Workbook

Sheet Log of Prior SAR Models
A1: Effective Dates | B1: Order No. | C1: Modifications | D1: File Names
A3: 2021-12-30 | B3: 35280 | C3: Avista Cost of Capital | D3: Avoided Cost Model Order No. 35280 ver Dec 30, 2021 Avista Cost of Capital
A4: 2021-06-01 | B4: 35052 | C4: Annual Natural Gas Update | D4: Avoided Cost Model Order No. 35052 ver June 1, 2021 Annual Natural Gas Update
A5: 2021-04-05 | B5: 34966 | C5: PAC's Integration Charges | D5: Avoided Cost Model Order No. 34966 ver April 5, 2021 PAC Integration Charges
A6: 2021-03-31 | B6: 34981 | C6: Avista's Capacity Deficiency Updates | D6: Avoided Cost Model Order No. 34981 ver March 31, 2021 Avista Capacity Deficiency
A7: 2021-02-09 | B7: 34918 | C7: PAC's Capacity Deficiency Updates | D7: Avoided Cost Model Order No. 34918 ver February 9, 2021 PAC Capacity Deficiency
A8: 2021-02-05 | B8: 34913 | C8: IPCO's Energy Storage Published Rates | D8: Avoided Cost Model Order No. 34913 ver February 5, 2021 Energy Storage (linked)
A9: 2022-06-01 | B9: 35422 | C9: Annual Natural Gas Update | D9: Avoided Cost Model Order No. 35422 ver June 1, 2022 Annual Natural Gas Update

Sheet AVOID NEW
B1: AVOIDED COST CALCULATION MODEL | L1: Base Calculations | X1: Resource-Specific Calculations | AK1: Resource-Specific Calculations
B2: Idaho Public Utilities Commission
B3: XX/XX/2022 | AK3: =$E$105 -> IPCO
G4: ENERGY INFORMATION ADMIN (EIA) - ANNUAL ENERGY OUTLOOK | X4: Resource Type | AK4: =TODAY()+1 -> 2022-06-08
B5: 1. Choose Utility | G5: Natural Gas Price Forecast | U5: Surplus Energy Transmission Cost Calcs | AK5: ="Avoided Cost Rates for "&'Input - Capacity Factors'!$C$3&" Projects" -> Avoided Cost Rates for Wind Projects
G6: 2022 REPORT - RELEASE DATE - March 3, 2022 | L6: Year | N6: Energy Rate Calcs | R6: Capacity Rate Calcs | X6: Year | Z6: Energy Rate | AE6: Peak capacity adjustment | AH6: Total Rate | AI6: Fueled Rate | AK6: CONTRACT | AL6: CAL YEAR | AM6: NON-LEVELIZED RATE ($/MWH) | AN6: LEVELIZED RATES ($/MWH)
B7: 2. Choose Contract Type | H7: Real Price | I7: Nominal Price | N7: Gas Price | O7: Fuel Cost | P7: VO&M Cost | Q7: Total | R7: "Tilted" Capital Costs | S7: FO&M Cost | T7: Total | U7: Rate | V7: Losses | Z7: Fuel | AA7: VO&M | AB7: Trans. | AC7: Losses | AD7: Total | AE7: Capital | AF7: FO&M | AG7: Total | AK7: LENGTH | AN7: ON-LINE YEAR
I8: by Year | J8: FUEL COST | L8: No. | M8: Cal | N8: $/MMBtu | O8: $/MWh | P8: $/MWh | Q8: $/MWh | R8: $/MWh | S8: $/MWh | T8: $/MWh | U8: $/MWh | V8: $/MWh | X8: No. | Y8: Cal | Z8: $/MWh | AA8: $/MWh | AB8: $/MWh | AC8: $/MWh | AD8: $/MWh | AE8: $/MWh | AF8: $/MWh | AG8: $/MWh | AH8: $/MWh | AI8: $/MWh | AK8: (YEARS) | AN8: =$D$54 -> 2022 | AO8: =AN8+1 -> 2023 | AP8: =AO8+1 -> 2024 | AQ8: 2025 | AR8: 2026 | AS8: 2027
G9: YEAR | H9: (2021 $ per MMBtu) | I9: ($ per MMBtu) | J9: $/MWh | L9: 1 | M9: =D54 -> 2022 | N9: =IF(ISERROR(VLOOKUP($M9,$G$10:$J$40,3,FALSE)),GROWTH($I$31:$I$40,$G$31:$G$40,M9),VLOOKUP($M9,$G$10:$J$40,3,FALSE)) -> 4.378097 | O9: =N9*$D$36/1000 -> 31.0844887 | P9: =$D$40*(1+$D$47)^(M9-$D$43) -> 2.335477411 | Q9: =P9+O9 -> 33.41996611 | R9: =$R$41*(($D$37-$D$52)/$D$37)*((1+$D$37)^$D$32-1)/((1+$D$37)^$D$32-(1+$D$52)^$D$32)*(1+$D$52)^(M9-$M$41) -> 53.94200425 | S9: =$D$39*(1+$D$47)^($M9-$D$43)*(1000/(365*24))/VLOOKUP('Input - Capacity Factors'!$C$3,'Input - Capacity Factors'!$A:$B,2,FALSE) -> 6.650340936 | T9: =S9+R9 -> 60.59234518 | U9: =-VLOOKUP($E$105,'Input - Transmission'!$A:$C,2)*(1+'Input - Transmission'!$C$11)^('AVOID NEW'!$M9-'Input - Transmission'!$C$10)*12*(1000/(365*24))*(1/VLOOKUP('Input - Capacity Factors'!$C$3,'Input - Capacity Factors'!$A:$D,2,FALSE)) -> -8.855293628 | V9: =-VLOOKUP($E$105,'Input - Transmission'!$A:$C,3)*Q9 -> -1.336798644 | X9: 1 | Y9: =M9 -> 2022 | Z9: =O9 -> 31.0844887 | AA9: =P9 -> 2.335477411 | AB9: =IF(VLOOKUP($Y9,'Input - Load and Resource'!$B$13:$C$42,2,FALSE)>=0,0,0) -> 0 | AC9: =IF(VLOOKUP($Y9,'Input - Load and Resource'!$B$13:$C$42,2,FALSE)>=0,0,0) -> 0 | AD9: =SUM(Z9:AC9) -> 33.41996611 | AE9: =VLOOKUP($Y9,'Input - Load and Resource'!$B$13:$L$42,11,FALSE)*R9 -> 0 | AF9: =VLOOKUP($Y9,'Input - Load and Resource'!$B$13:$L$42,11,FALSE)*S9 -> 0 | AG9: =AF9+AE9 -> 0 | AH9: =AG9+AD9 -> 33.41996611 | AI9: =AA9+AE9+AF9 -> 2.335477411 | AK9: 1 | AL9: =D54 -> 2022 | AM9: =IF('Input - Capacity Factors'!$C$3="Fueled",'AVOID NEW'!AI9,AH9) -> 33.41996611 | AN9: =IF('Input - Capacity Factors'!$C$3="Fueled",-PMT($D$37,$AK9,NPV($D$37,$AI$9:$AI9)),-PMT($D$37,$AK9,NPV($D$37,$AH$9:$AH9))) -> 33.41996611 | AO9: =IF('Input - Capacity Factors'!$C$3="Fueled",-PMT($D$37,$AK9,NPV($D$37,$AI$10:$AI10)),-PMT($D$37,$AK9,NPV($D$37,$AH$10:$AH10))) -> 35.54237876 | AP9: =IF('Input - Capacity Factors'!$C$3="Fueled",-PMT($D$37,$AK9,NPV($D$37,$AI$11:$AI11)),-PMT($D$37,$AK9,NPV($D$37,$AH$11:$AH11))) -> 33.69315868 | AQ9: =IF('Input - Capacity Factors'!$C$3="Fueled",-PMT($D$37,$AK9,NPV($D$37,$AI$12:$AI12)),-PMT($D$37,$AK9,NPV($D$37,$AH$12:$AH12))) -> 33.21200078 | AR9: =IF('Input - Capacity Factors'!$C$3="Fueled",-PMT($D$37,$AK9,NPV($D$37,$AI$13:$AI13)),-PMT($D$37,$AK9,NPV($D$37,$AH$13:$AH13))) -> 34.46980282 | AS9: =IF('Input - Capacity Factors'!$C$3="Fueled",-PMT($D$37,$AK9,NPV($D$37,$AI$14:$AI14)),-PMT($D$37,$AK9,NPV($D$37,$AH$14:$AH14))) -> 36.48321624
B10: 4. Choose specific resource | G10: 2022 | H10: 4.274894 | I10: 4.378097 | J10: =I10*D$36/1000 -> 31.0844887 | L10: 2 | M10: =M9+1 -> 2023 | N10: =IF(ISERROR(VLOOKUP($M10,$G$10:$J$40,3,FALSE)),GROWTH($I$31:$I$40,$G$31:$G$40,M10),VLOOKUP($M10,$G$10:$J$40,3,FALSE)) -> 4.237488 | O10: =N10*$D$36/1000 -> 30.0861648 | P10: =$D$40*(1+$D$47)^(M10-$D$43) -> 2.382186959 | Q10: =P10+O10 -> 32.46835176 | R10: =$R$41*(($D$37-$D$52)/$D$37)*((1+$D$37)^$D$32-1)/((1+$D$37)^$D$32-(1+$D$52)^$D$32)*(1+$D$52)^(M10-$M$41) -> 54.69719231 | S10: =$D$39*(1+$D$47)^($M10-$D$43)*(1000/(365*24))/VLOOKUP('Input - Capacity Factors'!$C$3,'Input - Capacity Factors'!$A:$B,2,FALSE) -> 6.783347755 | T10: =S10+R10 -> 61.48054006 | U10: =-VLOOKUP($E$105,'Input - Transmission'!$A:$C,2)*(1+'Input - Transmission'!$C$11)^('AVOID NEW'!$M10-'Input - Transmission'!$C$10)*12*(1000/(365*24))*(1/VLOOKUP('Input - Capacity Factors'!$C$3,'Input - Capacity Factors'!$A:$D,2,FALSE)) -> -9.032399501 | V10: =-VLOOKUP($E$105,'Input - Transmission'!$A:$C,3)*Q10 -> -1.29873407 | X10: 2 | Y10: =M10 -> 2023 | Z10: =O10 -> 30.0861648 | AA10: =P10 -> 2.382186959 | AB10: =IF(VLOOKUP($Y10,'Input - Load and Resource'!$B$13:$C$42,2,FALSE)>=0,0,0) -> 0 | AC10: =IF(VLOOKUP($Y10,'Input - Load and Resource'!$B$13:$C$42,2,FALSE)>=0,0,0) -> 0 | AD10: =SUM(Z10:AC10) -> 32.46835176 | AE10: =VLOOKUP($Y10,'Input - Load and Resource'!$B$13:$L$42,11,FALSE)*R10 -> 2.734859615 | AF10: =VLOOKUP($Y10,'Input - Load and Resource'!$B$13:$L$42,11,FALSE)*S10 -> 0.3391673877 | AG10: =AF10+AE10 -> 3.074027003 | AH10: =AG10+AD10 -> 35.54237876 | AI10: =AA10+AE10+AF10 -> 5.456213962 | AK10: 2 | AL10: =AL9+1 -> 2023 | AM10: =IF('Input - Capacity Factors'!$C$3="Fueled",'AVOID NEW'!AI10,AH10) -> 35.54237876 | AN10: =IF('Input - Capacity Factors'!$C$3="Fueled",-PMT($D$37,$AK10,NPV($D$37,$AI$9:$AI10)),-PMT($D$37,$AK10,NPV($D$37,$AH$9:$AH10))) -> 34.43947397 | AO10: =IF('Input - Capacity Factors'!$C$3="Fueled",-PMT($D$37,$AK10,NPV($D$37,$AI$10:$AI11)),-PMT($D$37,$AK10,NPV($D$37,$AH$10:$AH11))) -> 34.65409985 | AP10: =IF('Input - Capacity Factors'!$C$3="Fueled",-PMT($D$37,$AK10,NPV($D$37,$AI$11:$AI12)),-PMT($D$37,$AK10,NPV($D$37,$AH$11:$AH12))) -> 33.46203291 | AQ10: =IF('Input - Capacity Factors'!$C$3="Fueled",-PMT($D$37,$AK10,NPV($D$37,$AI$12:$AI13)),-PMT($D$37,$AK10,NPV($D$37,$AH$12:$AH13))) -> 33.8161901 | AR10: =IF('Input - Capacity Factors'!$C$3="Fueled",-PMT($D$37,$AK10,NPV($D$37,$AI$13:$AI14)),-PMT($D$37,$AK10,NPV($D$37,$AH$13:$AH14))) -> 35.43695254 | AS10: =IF('Input - Capacity Factors'!$C$3="Fueled",-PMT($D$37,$AK10,NPV($D$37,$AI$14:$AI15)),-PMT($D$37,$AK10,NPV($D$37,$AH$14:$AH15))) -> 37.67782438
G11: 2023 | H11: 4.065331 | I11: 4.237488 | J11: 30.0861648 | L11: 3 | M11: =M10+1 -> 2024 | N11: 3.963976 | O11: 28.1442296 | P11: 2.429830698 | Q11: 30.5740603 | R11: 55.462953 | S11: =$D$39*(1+$D$47)^($M11-$D$43)*(1000/(365*24))/VLOOKUP('Input - Capacity Factors'!$C$3,'Input - Capacity Factors'!$A:$B,2,FALSE) -> 6.91901471 | T11: 62.38196771 | U11: =-VLOOKUP($E$105,'Input - Transmission'!$A:$C,2)*(1+'Input - Transmission'!$C$11)^('AVOID NEW'!$M11-'Input - Transmission'!$C$10)*12*(1000/(365*24))*(1/VLOOKUP('Input - Capacity Factors'!$C$3,'Input - Capacity Factors'!$A:$D,2,FALSE)) -> -9.213047491 | V11: =-VLOOKUP($E$105,'Input - Transmission'!$A:$C,3)*Q11 -> -1.222962412 | X11: 3 | Y11: 2024 | Z11: 28.1442296 | AA11: 2.429830698 | AB11: =IF(VLOOKUP($Y11,'Input - Load and Resource'!$B$13:$C$42,2,FALSE)>=0,0,0) -> 0 | AC11: =IF(VLOOKUP($Y11,'Input - Load and Resource'!$B$13:$C$42,2,FALSE)>=0,0,0) -> 0 | AD11: 30.5740603 | AE11: =VLOOKUP($Y11,'Input - Load and Resource'!$B$13:$L$42,11,FALSE)*R11 -> 2.77314765 | AF11: =VLOOKUP($Y11,'Input - Load and Resource'!$B$13:$L$42,11,FALSE)*S11 -> 0.3459507355 | AG11: 3.119098385 | AH11: 33.69315868 | AI11: 5.548929083 | AK11: 3 | AL11: =AL10+1 -> 2024 | AM11: =IF('Input - Capacity Factors'!$C$3="Fueled",'AVOID NEW'!AI11,AH11) -> 33.69315868 | AN11: =IF('Input - Capacity Factors'!$C$3="Fueled",-PMT($D$37,$AK11,NPV($D$37,$AI$9:$AI11)),-PMT($D$37,$AK11,NPV($D$37,$AH$9:$AH11))) -> 34.20998642 | AO11: =IF('Input - Capacity Factors'!$C$3="Fueled",-PMT($D$37,$AK11,NPV($D$37,$AI$10:$AI12)),-PMT($D$37,$AK11,NPV($D$37,$AH$10:$AH12))) -> 34.2106629 | AP11: =IF('Input - Capacity Factors'!$C$3="Fueled",-PMT($D$37,$AK11,NPV($D$37,$AI$11:$AI13)),-PMT($D$37,$AK11,NPV($D$37,$AH$11:$AH13))) -> 33.77191621 | AQ11: =IF('Input - Capacity Factors'!$C$3="Fueled",-PMT($D$37,$AK11,NPV($D$37,$AI$12:$AI14)),-PMT($D$37,$AK11,NPV($D$37,$AH$12:$AH14))) -> 34.6362849 | AR11: =IF('Input - Capacity Factors'!$C$3="Fueled",-PMT($D$37,$AK11,NPV($D$37,$AI$13:$AI15)),-PMT($D$37,$AK11,NPV($D$37,$AH$13:$AH15))) -> 36.52339079 | AS11: =IF('Input - Capacity Factors'!$C$3="Fueled",-PMT($D$37,$AK11,NPV($D$37,$AI$14:$AI16)),-PMT($D$37,$AK11,NPV($D$37,$AH$14:$AH16))) -> 38.74755188
G12: 2024 | H12: 3.718738 | I12: 3.963976 | J12: 28.1442296 | L12: 4 | M12: 2025 | N12: 3.88292 | O12: 27.568732 | P12: 2.478427312 | Q12: 30.04715931 | R12: 56.23943434 | S12: =$D$39*(1+$D$47)^($M12-$D$43)*(1000/(365*24))/VLOOKUP('Input - Capacity Factors'!$C$3,'Input - Capacity Factors'!$A:$B,2,FALSE) -> 7.057395004 | T12: 63.29682935 | U12: =-VLOOKUP($E$105,'Input - Transmission'!$A:$C,2)*(1+'Input - Transmission'!$C$11)^('AVOID NEW'!$M12-'Input - Transmission'!$C$10)*12*(1000/(365*24))*(1/VLOOKUP('Input - Capacity Factors'!$C$3,'Input - Capacity Factors'!$A:$D,2,FALSE)) -> -9.39730844 | V12: =-VLOOKUP($E$105,'Input - Transmission'!$A:$C,3)*Q12 -> -1.201886372 | X12: 4 | Y12: 2025 | Z12: 27.568732 | AA12: 2.478427312 | AB12: =IF(VLOOKUP($Y12,'Input - Load and Resource'!$B$13:$C$42,2,FALSE)>=0,0,0) -> 0 | AC12: =IF(VLOOKUP($Y12,'Input - Load and Resource'!$B$13:$C$42,2,FALSE)>=0,0,0) -> 0 | AD12: 30.04715931 | AE12: =VLOOKUP($Y12,'Input - Load and Resource'!$B$13:$L$42,11,FALSE)*R12 -> 2.811971717 | AF12: =VLOOKUP($Y12,'Input - Load and Resource'!$B$13:$L$42,11,FALSE)*S12 -> 0.3528697502 | AG12: 3.164841467 | AH12: 33.21200078 | AI12: 5.643268779 | AK12: 4 | AL12: 2025 | AM12: =IF('Input - Capacity Factors'!$C$3="Fueled",'AVOID NEW'!AI12,AH12) -> 33.21200078 | AN12: =IF('Input - Capacity Factors'!$C$3="Fueled",-PMT($D$37,$AK12,NPV($D$37,$AI$9:$AI12)),-PMT($D$37,$AK12,NPV($D$37,$AH$9:$AH12))) -> 33.98910127 | AO12: =IF('Input - Capacity Factors'!$C$3="Fueled",-PMT($D$37,$AK12,NPV($D$37,$AI$10:$AI13)),-PMT($D$37,$AK12,NPV($D$37,$AH$10:$AH13))) -> 34.26801859 | AP12: =IF('Input - Capacity Factors'!$C$3="Fueled",-PMT($D$37,$AK12,NPV($D$37,$AI$11:$AI14)),-PMT($D$37,$AK12,NPV($D$37,$AH$11:$AH14))) -> 34.37201093 | AQ12: =IF('Input - Capacity Factors'!$C$3="Fueled",-PMT($D$37,$AK12,NPV($D$37,$AI$12:$AI15)),-PMT($D$37,$AK12,NPV($D$37,$AH$12:$AH15))) -> 35.59550419 | AR12: =IF('Input - Capacity Factors'!$C$3="Fueled",-PMT($D$37,$AK12,NPV($D$37,$AI$13:$AI16)),-PMT($D$37,$AK12,NPV($D$37,$AH$13:$AH16))) -> 37.54888123 | AS12: =IF('Input - Capacity Factors'!$C$3="Fueled",-PMT($D$37,$AK12,NPV($D$37,$AI$14:$AI17)),-PMT($D$37,$AK12,NPV($D$37,$AH$14:$AH17))) -> 39.66224506
B13: 5. Enter current year | D13: 2022 | G13: 2025 | H13: 3.558197 | I13: 3.88292 | J13: 27.568732 | L13: 5 | M13: 2026 | N13: 4.046555 | O13: 28.7305405 | P13: 2.527995858 | Q13: 31.25853636 | R13: 57.02678642 | S13: =$D$39*(1+$D$47)^($M13-$D$43)*(1000/(365*24))/VLOOKUP('Input - Capacity Factors'!$C$3,'Input - Capacity Factors'!$A:$B,2,FALSE) -> 7.198542904 | T13: 64.22532933 | U13: =-VLOOKUP($E$105,'Input - Transmission'!$A:$C,2)*(1+'Input - Transmission'!$C$11)^('AVOID NEW'!$M13-'Input - Transmission'!$C$10)*12*(1000/(365*24))*(1/VLOOKUP('Input - Capacity Factors'!$C$3,'Input - Capacity Factors'!$A:$D,2,FALSE)) -> -9.585254609 | V13: =-VLOOKUP($E$105,'Input - Transmission'!$A:$C,3)*Q13 -> -1.250341454 | X13: 5 | Y13: 2026 | Z13: 28.7305405 | AA13: 2.527995858 | AB13: =IF(VLOOKUP($Y13,'Input - Load and Resource'!$B$13:$C$42,2,FALSE)>=0,0,0) -> 0 | AC13: =IF(VLOOKUP($Y13,'Input - Load and Resource'!$B$13:$C$42,2,FALSE)>=0,0,0) -> 0 | AD13: 31.25853636 | AE13: =VLOOKUP($Y13,'Input - Load and Resource'!$B$13:$L$42,11,FALSE)*R13 -> 2.851339321 | AF13: =VLOOKUP($Y13,'Input - Load and Resource'!$B$13:$L$42,11,FALSE)*S13 -> 0.3599271452 | AG13: 3.211266466 | AH13: 34.46980282 | AI13: 5.739262325 | AK13: 5 | AL13: 2026 | AM13: =IF('Input - Capacity Factors'!$C$3="Fueled",'AVOID NEW'!AI13,AH13) -> 34.46980282 | AN13: =IF('Input - Capacity Factors'!$C$3="Fueled",-PMT($D$37,$AK13,NPV($D$37,$AI$9:$AI13)),-PMT($D$37,$AK13,NPV($D$37,$AH$9:$AH13))) -> 34.07074621 | AO13: =IF('Input - Capacity Factors'!$C$3="Fueled",-PMT($D$37,$AK13,NPV($D$37,$AI$10:$AI14)),-PMT($D$37,$AK13,NPV($D$37,$AH$10:$AH14))) -> 34.6442597 | AP13: =IF('Input - Capacity Factors'!$C$3="Fueled",-PMT($D$37,$AK13,NPV($D$37,$AI$11:$AI15)),-PMT($D$37,$AK13,NPV($D$37,$AH$11:$AH15))) -> 35.15298414 | AQ13: =IF('Input - Capacity Factors'!$C$3="Fueled",-PMT($D$37,$AK13,NPV($D$37,$AI$12:$AI16)),-PMT($D$37,$AK13,NPV($D$37,$AH$12:$AH16))) -> 36.54004423 | AR13: =IF('Input - Capacity Factors'!$C$3="Fueled",-PMT($D$37,$AK13,NPV($D$37,$AI$13:$AI17)),-PMT($D$37,$AK13,NPV($D$37,$AH$13:$AH17))) -> 38.45438888 | AS13: =IF('Input - Capacity Factors'!$C$3="Fueled",-PMT($D$37,$AK13,NPV($D$37,$AI$14:$AI18)),-PMT($D$37,$AK13,NPV($D$37,$AH$14:$AH18))) -> 40.4608731
G14: 2026 | H14: 3.619375 | I14: 4.046555 | J14: 28.7305405 | L14: 6 | M14: 2027 | N14: 4.316377 | O14: 30.6462767 | P14: 2.578555775 | Q14: 33.22483248 | R14: 57.82516143 | S14: =$D$39*(1+$D$47)^($M14-$D$43)*(1000/(365*24))/VLOOKUP('Input - Capacity Factors'!$C$3,'Input - Capacity Factors'!$A:$B,2,FALSE) -> 7.342513762 | T14: 65.16767519 | U14: =-VLOOKUP($E$105,'Input - Transmission'!$A:$C,2)*(1+'Input - Transmission'!$C$11)^('AVOID NEW'!$M14-'Input - Transmission'!$C$10)*12*(1000/(365*24))*(1/VLOOKUP('Input - Capacity Factors'!$C$3,'Input - Capacity Factors'!$A:$D,2,FALSE)) -> -9.776959701 | V14: =-VLOOKUP($E$105,'Input - Transmission'!$A:$C,3)*Q14 -> -1.328993299 | X14: 6 | Y14: 2027 | Z14: 30.6462767 | AA14: 2.578555775 | AB14: =IF(VLOOKUP($Y14,'Input - Load and Resource'!$B$13:$C$42,2,FALSE)>=0,0,0) -> 0 | AC14: =IF(VLOOKUP($Y14,'Input - Load and Resource'!$B$13:$C$42,2,FALSE)>=0,0,0) -> 0 | AD14: 33.22483248 | AE14: =VLOOKUP($Y14,'Input - Load and Resource'!$B$13:$L$42,11,FALSE)*R14 -> 2.891258072 | AF14: =VLOOKUP($Y14,'Input - Load and Resource'!$B$13:$L$42,11,FALSE)*S14 -> 0.3671256881 | AG14: 3.25838376 | AH14: 36.48321624 | AI14: 5.836939535 | AK14: 6 | AL14: 2027 | AM14: =IF('Input - Capacity Factors'!$C$3="Fueled",'AVOID NEW'!AI14,AH14) -> 36.48321624 | AN14: =IF('Input - Capacity Factors'!$C$3="Fueled",-PMT($D$37,$AK14,NPV($D$37,$AI$9:$AI14)),-PMT($D$37,$AK14,NPV($D$37,$AH$9:$AH14))) -> 34.39811252 | AO14: =IF('Input - Capacity Factors'!$C$3="Fueled",-PMT($D$37,$AK14,NPV($D$37,$AI$10:$AI15)),-PMT($D$37,$AK14,NPV($D$37,$AH$10:$AH15))) -> 35.23127287 | AP14: =IF('Input - Capacity Factors'!$C$3="Fueled",-PMT($D$37,$AK14,NPV($D$37,$AI$11:$AI16)),-PMT($D$37,$AK14,NPV($D$37,$AH$11:$AH16))) -> 35.96767102 | AQ14: =IF('Input - Capacity Factors'!$C$3="Fueled",-PMT($D$37,$AK14,NPV($D$37,$AI$12:$AI17)),-PMT($D$37,$AK14,NPV($D$37,$AH$12:$AH17))) -> 37.4003941 | AR14: =IF('Input - Capacity Factors'!$C$3="Fueled",-PMT($D$37,$AK14,NPV($D$37,$AI$13:$AI18)),-PMT($D$37,$AK14,NPV($D$37,$AH$13:$AH18))) -> 39.25635396 | AS14: =IF('Input - Capacity Factors'!$C$3="Fueled",-PMT($D$37,$AK14,NPV($D$37,$AI$14:$AI19)),-PMT($D$37,$AK14,NPV($D$37,$AH$14:$AH19))) -> 41.22174825
B15: 6. Enter project nameplate capacity | D15: 0.1 | G15: 2027 | H15: 3.765227 | I15: 4.316377 | J15: 30.6462767 | L15: 7 | M15: 2028 | N15: 4.652651 | O15: 33.0338221 | P15: 2.630126891 | Q15: 35.66394899 | R15: 58.63471369 | S15: =$D$39*(1+$D$47)^($M15-$D$43)*(1000/(365*24))/VLOOKUP('Input - Capacity Factors'!$C$3,'Input - Capacity Factors'!$A:$B,2,FALSE) -> 7.489364037 | T15: 66.12407773 | U15: =-VLOOKUP($E$105,'Input - Transmission'!$A:$C,2)*(1+'Input - Transmission'!$C$11)^('AVOID NEW'!$M15-'Input - Transmission'!$C$10)*12*(1000/(365*24))*(1/VLOOKUP('Input - Capacity Factors'!$C$3,'Input - Capacity Factors'!$A:$D,2,FALSE)) -> -9.972498895 | V15: =-VLOOKUP($E$105,'Input - Transmission'!$A:$C,3)*Q15 -> -1.42655796 | X15: 7 | Y15: 2028 | Z15: 33.0338221 | AA15: 2.630126891 | AB15: =IF(VLOOKUP($Y15,'Input - Load and Resource'!$B$13:$C$42,2,FALSE)>=0,0,0) -> 0 | AC15: =IF(VLOOKUP($Y15,'Input - Load and Resource'!$B$13:$C$42,2,FALSE)>=0,0,0) -> 0 | AD15: 35.66394899 | AE15: =VLOOKUP($Y15,'Input - Load and Resource'!$B$13:$L$42,11,FALSE)*R15 -> 2.931735685 | AF15: =VLOOKUP($Y15,'Input - Load and Resource'!$B$13:$L$42,11,FALSE)*S15 -> 0.3744682019 | AG15: 3.306203887 | AH15: 38.97015288 | AI15: 5.936330777 | AK15: 7 | AL15: 2028 | AM15: =IF('Input - Capacity Factors'!$C$3="Fueled",'AVOID NEW'!AI15,AH15) -> 38.97015288 | AN15: =IF('Input - Capacity Factors'!$C$3="Fueled",-PMT($D$37,$AK15,NPV($D$37,$AI$9:$AI15)),-PMT($D$37,$AK15,NPV($D$37,$AH$9:$AH15))) -> 34.90769395 | AO15: =IF('Input - Capacity Factors'!$C$3="Fueled",-PMT($D$37,$AK15,NPV($D$37,$AI$10:$AI16)),-PMT($D$37,$AK15,NPV($D$37,$AH$10:$AH16))) -> 35.89169515 | AP15: =IF('Input - Capacity Factors'!$C$3="Fueled",-PMT($D$37,$AK15,NPV($D$37,$AI$11:$AI17)),-PMT($D$37,$AK15,NPV($D$37,$AH$11:$AH17))) -> 36.73811907 | AQ15: =IF('Input - Capacity Factors'!$C$3="Fueled",-PMT($D$37,$AK15,NPV($D$37,$AI$12:$AI18)),-PMT($D$37,$AK15,NPV($D$37,$AH$12:$AH18))) -> 38.17656707 | AR15: =IF('Input - Capacity Factors'!$C$3="Fueled",-PMT($D$37,$AK15,NPV($D$37,$AI$13:$AI19)),-PMT($D$37,$AK15,NPV($D$37,$AH$13:$AH19))) -> 40.01555431 | AS15: =IF('Input - Capacity Factors'!$C$3="Fueled",-PMT($D$37,$AK15,NPV($D$37,$AI$14:$AI20)),-PMT($D$37,$AK15,NPV($D$37,$AH$14:$AH20))) -> 41.94458086
B16: (MW) | G16: 2028 | H16: 3.959045 | I16: 4.652651 | J16: 33.0338221 | L16: 8 | M16: 2029 | N16: 4.946368 | O16: 35.1192128 | P16: 2.682729429 | Q16: 37.80194223 | R16: 59.45559968 | S16: =$D$39*(1+$D$47)^($M16-$D$43)*(1000/(365*24))/VLOOKUP('Input - Capacity Factors'!$C$3,'Input - Capacity Factors'!$A:$B,2,FALSE) -> 7.639151318 | T16: 67.094751 | U16: =-VLOOKUP($E$105,'Input - Transmission'!$A:$C,2)*(1+'Input - Transmission'!$C$11)^('AVOID NEW'!$M16-'Input - Transmission'!$C$10)*12*(1000/(365*24))*(1/VLOOKUP('Input - Capacity Factors'!$C$3,'Input - Capacity Factors'!$A:$D,2,FALSE)) -> -10.17194887 | V16: =-VLOOKUP($E$105,'Input - Transmission'!$A:$C,3)*Q16 -> -1.512077689 | X16: 8 | Y16: 2029 | Z16: 35.1192128 | AA16: 2.682729429 | AB16: =IF(VLOOKUP($Y16,'Input - Load and Resource'!$B$13:$C$42,2,FALSE)>=0,0,0) -> 0 | AC16: =IF(VLOOKUP($Y16,'Input - Load and Resource'!$B$13:$C$42,2,FALSE)>=0,0,0) -> 0 | AD16: 37.80194223 | AE16: =VLOOKUP($Y16,'Input - Load and Resource'!$B$13:$L$42,11,FALSE)*R16 -> 2.972779984 | AF16: =VLOOKUP($Y16,'Input - Load and Resource'!$B$13:$L$42,11,FALSE)*S16 -> 0.3819575659 | AG16: 3.35473755 | AH16: 41.15667978 | AI16: 6.037466979 | AK16: 8 | AL16: 2029 | AM16: =IF('Input - Capacity Factors'!$C$3="Fueled",'AVOID NEW'!AI16,AH16) -> 41.15667978 | AN16: =IF('Input - Capacity Factors'!$C$3="Fueled",-PMT($D$37,$AK16,NPV($D$37,$AI$9:$AI16)),-PMT($D$37,$AK16,NPV($D$37,$AH$9:$AH16))) -> 35.49137959 | AO16: =IF('Input - Capacity Factors'!$C$3="Fueled",-PMT($D$37,$AK16,NPV($D$37,$AI$10:$AI17)),-PMT($D$37,$AK16,NPV($D$37,$AH$10:$AH17))) -> 36.54445972 | AP16: =IF('Input - Capacity Factors'!$C$3="Fueled",-PMT($D$37,$AK16,NPV($D$37,$AI$11:$AI18)),-PMT($D$37,$AK16,NPV($D$37,$AH$11:$AH18))) -> 37.45044456 | AQ16: =IF('Input - Capacity Factors'!$C$3="Fueled",-PMT($D$37,$AK16,NPV($D$37,$AI$12:$AI19)),-PMT($D$37,$AK16,NPV($D$37,$AH$12:$AH19))) -> 38.91366642 | AR16: =IF('Input - Capacity Factors'!$C$3="Fueled",-PMT($D$37,$AK16,NPV($D$37,$AI$13:$AI20)),-PMT($D$37,$AK16,NPV($D$37,$AH$13:$AH20))) -> 40.73398299 | AS16: =IF('Input - Capacity Factors'!$C$3="Fueled",-PMT($D$37,$AK16,NPV($D$37,$AI$14:$AI21)),-PMT($D$37,$AK16,NPV($D$37,$AH$14:$AH21))) -> 42.59250793
G17: 2029 | H17: 4.108975 | I17: 4.946368 | J17: 35.1192128 | L17: 9 | M17: 2030 | N17: 5.174629 | O17: 36.7398659 | P17: 2.736384017 | Q17: 39.47624992 | R17: 60.28797808 | S17: =$D$39*(1+$D$47)^($M17-$D$43)*(1000/(365*24))/VLOOKUP('Input - Capacity Factors'!$C$3,'Input - Capacity Factors'!$A:$B,2,FALSE) -> 7.791934345 | T17: 68.07991242 | U17: =-VLOOKUP($E$105,'Input - Transmission'!$A:$C,2)*(1+'Input - Transmission'!$C$11)^('AVOID NEW'!$M17-'Input - Transmission'!$C$10)*12*(1000/(365*24))*(1/VLOOKUP('Input - Capacity Factors'!$C$3,'Input - Capacity Factors'!$A:$D,2,FALSE)) -> -10.37538785 | V17: =-VLOOKUP($E$105,'Input - Transmission'!$A:$C,3)*Q17 -> -1.579049997 | X17: 9 | Y17: 2030 | Z17: 36.7398659 | AA17: 2.736384017 | AB17: =IF(VLOOKUP($Y17,'Input - Load and Resource'!$B$13:$C$42,2,FALSE)>=0,0,0) -> 0 | AC17: =IF(VLOOKUP($Y17,'Input - Load and Resource'!$B$13:$C$42,2,FALSE)>=0,0,0) -> 0 | AD17: 39.47624992 | AE17: =VLOOKUP($Y17,'Input - Load and Resource'!$B$13:$L$42,11,FALSE)*R17 -> 3.014398904 | AF17: =VLOOKUP($Y17,'Input - Load and Resource'!$B$13:$L$42,11,FALSE)*S17 -> 0.3895967172 | AG17: 3.403995621 | AH17: 42.88024554 | AI17: 6.140379638 | AK17: 9 | AL17: 2030 | AM17: =IF('Input - Capacity Factors'!$C$3="Fueled",'AVOID NEW'!AI17,AH17) -> 42.88024554 | AN17: =IF('Input - Capacity Factors'!$C$3="Fueled",-PMT($D$37,$AK17,NPV($D$37,$AI$9:$AI17)),-PMT($D$37,$AK17,NPV($D$37,$AH$9:$AH17))) -> 36.07864342 | AO17: =IF('Input - Capacity Factors'!$C$3="Fueled",-PMT($D$37,$AK17,NPV($D$37,$AI$10:$AI18)),-PMT($D$37,$AK17,NPV($D$37,$AH$10:$AH18))) -> 37.16597985 | AP17: =IF('Input - Capacity Factors'!$C$3="Fueled",-PMT($D$37,$AK17,NPV($D$37,$AI$11:$AI19)),-PMT($D$37,$AK17,NPV($D$37,$AH$11:$AH19))) -> 38.13536507 | AQ17: =IF('Input - Capacity Factors'!$C$3="Fueled",-PMT($D$37,$AK17,NPV($D$37,$AI$12:$AI20)),-PMT($D$37,$AK17,NPV($D$37,$AH$12:$AH20))) -> 39.61256546 | AR17: =IF('Input - Capacity Factors'!$C$3="Fueled",-PMT($D$37,$AK17,NPV($D$37,$AI$13:$AI21)),-PMT($D$37,$AK17,NPV($D$37,$AH$13:$AH21))) -> 41.3815314 | AS17: =IF('Input - Capacity Factors'!$C$3="Fueled",-PMT($D$37,$AK17,NPV($D$37,$AI$14:$AI22)),-PMT($D$37,$AK17,NPV($D$37,$AH$14:$AH22))) -> 43.15669788
B18: 20-yr Levelized rate | G18: 2030 | H18: 4.200751 | I18: 5.174629 | J18: 36.7398659 | L18: 10 | M18: 2031 | N18: 5.368906 | O18: 38.1192326 | P18: 2.791111698 | Q18: 40.9103443 | R18: 61.13200977 | S18: =$D$39*(1+$D$47)^($M18-$D$43)*(1000/(365*24))/VLOOKUP('Input - Capacity Factors'!$C$3,'Input - Capacity Factors'!$A:$B,2,FALSE) -> 7.947773031 | T18: 69.0797828 | U18: =-VLOOKUP($E$105,'Input - Transmission'!$A:$C,2)*(1+'Input - Transmission'!$C$11)^('AVOID NEW'!$M18-'Input - Transmission'!$C$10)*12*(1000/(365*24))*(1/VLOOKUP('Input - Capacity Factors'!$C$3,'Input - Capacity Factors'!$A:$D,2,FALSE)) -> -10.58289561 | V18: =-VLOOKUP($E$105,'Input - Transmission'!$A:$C,3)*Q18 -> -1.636413772 | X18: 10 | Y18: 2031 | Z18: 38.1192326 | AA18: 2.791111698 | AB18: =IF(VLOOKUP($Y18,'Input - Load and Resource'!$B$13:$C$42,2,FALSE)>=0,0,0) -> 0 | AC18: =IF(VLOOKUP($Y18,'Input - Load and Resource'!$B$13:$C$42,2,FALSE)>=0,0,0) -> 0 | AD18: 40.9103443 | AE18: =VLOOKUP($Y18,'Input - Load and Resource'!$B$13:$L$42,11,FALSE)*R18 -> 3.056600489 | AF18: =VLOOKUP($Y18,'Input - Load and Resource'!$B$13:$L$42,11,FALSE)*S18 -> 0.3973886516 | AG18: 3.45398914 | AH18: 44.36433344 | AI18: 6.245100838 | AK18: 10 | AL18: 2031 | AM18: =IF('Input - Capacity Factors'!$C$3="Fueled",'AVOID NEW'!AI18,AH18) -> 44.36433344 | AN18: =IF('Input - Capacity Factors'!$C$3="Fueled",-PMT($D$37,$AK18,NPV($D$37,$AI$9:$AI18)),-PMT($D$37,$AK18,NPV($D$37,$AH$9:$AH18))) -> 36.6457268 | AO18: =IF('Input - Capacity Factors'!$C$3="Fueled",-PMT($D$37,$AK18,NPV($D$37,$AI$10:$AI19)),-PMT($D$37,$AK18,NPV($D$37,$AH$10:$AH19))) -> 37.77524652 | AP18: =IF('Input - Capacity Factors'!$C$3="Fueled",-PMT($D$37,$AK18,NPV($D$37,$AI$11:$AI20)),-PMT($D$37,$AK18,NPV($D$37,$AH$11:$AH20))) -> 38.79046772 | AQ18: =IF('Input - Capacity Factors'!$C$3="Fueled",-PMT($D$37,$AK18,NPV($D$37,$AI$12:$AI21)),-PMT($D$37,$AK18,NPV($D$37,$AH$12:$AH21))) -> 40.24693246 | AR18: =IF('Input - Capacity Factors'!$C$3="Fueled",-PMT($D$37,$AK18,NPV($D$37,$AI$13:$AI22)),-PMT($D$37,$AK18,NPV($D$37,$AH$13:$AH22))) -> 41.95024645 | AS18: =IF('Input - Capacity Factors'!$C$3="Fueled",-PMT($D$37,$AK18,NPV($D$37,$AI$14:$AI23)),-PMT($D$37,$AK18,NPV($D$37,$AH$14:$AH23))) -> 43.68269764
B19: =TEXT($D$13,"0000")&" on-line date:" -> 2022 on-line date: | D19: =AN28 -> 41.09813936 | G19: 2031 | H19: 4.260202 | I19: 5.368906 | J19: 38.1192326 | L19: 11 | M19: 2032 | N19: 5.593852 | O19: 39.7163492 | P19: 2.846933932 | Q19: 42.56328313 | R19: 61.98785791 | S19: =$D$39*(1+$D$47)^($M19-$D$43)*(1000/(365*24))/VLOOKUP('Input - Capacity Factors'!$C$3,'Input - Capacity Factors'!$A:$B,2,FALSE) -> 8.106728492 | T19: 70.0945864 | U19: =-VLOOKUP($E$105,'Input - Transmission'!$A:$C,2)*(1+'Input - Transmission'!$C$11)^('AVOID NEW'!$M19-'Input - Transmission'!$C$10)*12*(1000/(365*24))*(1/VLOOKUP('Input - Capacity Factors'!$C$3,'Input - Capacity Factors'!$A:$D,2,FALSE)) -> -10.79455352 | V19: =-VLOOKUP($E$105,'Input - Transmission'!$A:$C,3)*Q19 -> -1.702531325 | X19: 11 | Y19: 2032 | Z19: 39.7163492 | AA19: 2.846933932 | AB19: =IF(VLOOKUP($Y19,'Input - Load and Resource'!$B$13:$C$42,2,FALSE)>=0,0,0) -> 0 | AC19: =IF(VLOOKUP($Y19,'Input - Load and Resource'!$B$13:$C$42,2,FALSE)>=0,0,0) -> 0 | AD19: 42.56328313 | AE19: =VLOOKUP($Y19,'Input - Load and Resource'!$B$13:$L$42,11,FALSE)*R19 -> 3.099392895 | AF19: =VLOOKUP($Y19,'Input - Load and Resource'!$B$13:$L$42,11,FALSE)*S19 -> 0.4053364246 | AG19: 3.50472932 | AH19: 46.06801245 | AI19: 6.351663252 | AK19: 11 | AL19: 2032 | AM19: =IF('Input - Capacity Factors'!$C$3="Fueled",'AVOID NEW'!AI19,AH19) -> 46.06801245 | AN19: =IF('Input - Capacity Factors'!$C$3="Fueled",-PMT($D$37,$AK19,NPV($D$37,$AI$9:$AI19)),-PMT($D$37,$AK19,NPV($D$37,$AH$9:$AH19))) -> 37.20636813 | AO19: =IF('Input - Capacity Factors'!$C$3="Fueled",-PMT($D$37,$AK19,NPV($D$37,$AI$10:$AI20)),-PMT($D$37,$AK19,NPV($D$37,$AH$10:$AH20))) -> 38.36620856 | AP19: =IF('Input - Capacity Factors'!$C$3="Fueled",-PMT($D$37,$AK19,NPV($D$37,$AI$11:$AI21)),-PMT($D$37,$AK19,NPV($D$37,$AH$11:$AH21))) -> 39.39089108 | AQ19: =IF('Input - Capacity Factors'!$C$3="Fueled",-PMT($D$37,$AK19,NPV($D$37,$AI$12:$AI22)),-PMT($D$37,$AK19,NPV($D$37,$AH$12:$AH22))) -> 40.80887353 | AR19: =IF('Input - Capacity Factors'!$C$3="Fueled",-PMT($D$37,$AK19,NPV($D$37,$AI$13:$AI23)),-PMT($D$37,$AK19,NPV($D$37,$AH$13:$AH23))) -> 42.47932696 | AS19: =IF('Input - Capacity Factors'!$C$3="Fueled",-PMT($D$37,$AK19,NPV($D$37,$AI$14:$AI24)),-PMT($D$37,$AK19,NPV($D$37,$AH$14:$AH24))) -> 44.17148346
B20: =TEXT($D$13+1,"0000")&" on-line date:" -> 2023 on-line date: | D20: =AO28 -> 42.26931278 | G20: 2032 | H20: 4.342225 | I20: 5.593852 | J20: 39.7163492 | L20: 12 | M20: 2033 | N20: 5.809438 | O20: 41.2470098 | P20: 2.90387261 | Q20: 44.15088241 | R20: 62.85568792 | S20: =$D$39*(1+$D$47)^($M20-$D$43)*(1000/(365*24))/VLOOKUP('Input - Capacity Factors'!$C$3,'Input - Capacity Factors'!$A:$B,2,FALSE) -> 8.268863062 | T20: 71.12455098 | U20: =-VLOOKUP($E$105,'Input - Transmission'!$A:$C,2)*(1+'Input - Transmission'!$C$11)^('AVOID NEW'!$M20-'Input - Transmission'!$C$10)*12*(1000/(365*24))*(1/VLOOKUP('Input - Capacity Factors'!$C$3,'Input - Capacity Factors'!$A:$D,2,FALSE)) -> -11.01044459 | V20: =-VLOOKUP($E$105,'Input - Transmission'!$A:$C,3)*Q20 -> -1.766035296 | X20: 12 | Y20: 2033 | Z20: 41.2470098 | AA20: 2.90387261 | AB20: =IF(VLOOKUP($Y20,'Input - Load and Resource'!$B$13:$C$42,2,FALSE)>=0,0,0) -> 0 | AC20: =IF(VLOOKUP($Y20,'Input - Load and Resource'!$B$13:$C$42,2,FALSE)>=0,0,0) -> 0 | AD20: 44.15088241 | AE20: =VLOOKUP($Y20,'Input - Load and Resource'!$B$13:$L$42,11,FALSE)*R20 -> 3.142784396 | AF20: =VLOOKUP($Y20,'Input - Load and Resource'!$B$13:$L$42,11,FALSE)*S20 -> 0.4134431531 | AG20: 3.556227549 | AH20: 47.70710996 | AI20: 6.460100159 | AK20: 12 | AL20: 2033 | AM20: =IF('Input - Capacity Factors'!$C$3="Fueled",'AVOID NEW'!AI20,AH20) -> 47.70710996 | AN20: =IF('Input - Capacity Factors'!$C$3="Fueled",-PMT($D$37,$AK20,NPV($D$37,$AI$9:$AI20)),-PMT($D$37,$AK20,NPV($D$37,$AH$9:$AH20))) -> 37.75382252 | AO20: =IF('Input - Capacity Factors'!$C$3="Fueled",-PMT($D$37,$AK20,NPV($D$37,$AI$10:$AI21)),-PMT($D$37,$AK20,NPV($D$37,$AH$10:$AH21))) -> 38.91441318 | AP20: =IF('Input - Capacity Factors'!$C$3="Fueled",-PMT($D$37,$AK20,NPV($D$37,$AI$11:$AI22)),-PMT($D$37,$AK20,NPV($D$37,$AH$11:$AH22))) -> 39.92788872 | AQ20: =IF('Input - Capacity Factors'!$C$3="Fueled",-PMT($D$37,$AK20,NPV($D$37,$AI$12:$AI23)),-PMT($D$37,$AK20,NPV($D$37,$AH$12:$AH23))) -> 41.33195474 | AR20: =IF('Input - Capacity Factors'!$C$3="Fueled",-PMT($D$37,$AK20,NPV($D$37,$AI$13:$AI24)),-PMT($D$37,$AK20,NPV($D$37,$AH$13:$AH24))) -> 42.97033455 | AS20: =IF('Input - Capacity Factors'!$C$3="Fueled",-PMT($D$37,$AK20,NPV($D$37,$AI$14:$AI25)),-PMT($D$37,$AK20,NPV($D$37,$AH$14:$AH25))) -> 44.64303535
B21: =TEXT($D$13+2,"0000")&" on-line date:" -> 2024 on-line date: | D21: =AP28 -> 43.34918028 | G21: 2033 | H21: 4.411919 | I21: 5.809438 | J21: 41.2470098 | L21: 13 | M21: 2034 | N21: 5.959281 | O21: 42.3108951 | P21: 2.961950062 | Q21: 45.27284516 | R21: 63.73566755 | S21: =$D$39*(1+$D$47)^($M21-$D$43)*(1000/(365*24))/VLOOKUP('Input - Capacity Factors'!$C$3,'Input - Capacity Factors'!$A:$B,2,FALSE) -> 8.434240323 | T21: 72.16990787 | U21: =-VLOOKUP($E$105,'Input - Transmission'!$A:$C,2)*(1+'Input - Transmission'!$C$11)^('AVOID NEW'!$M21-'Input - Transmission'!$C$10)*12*(1000/(365*24))*(1/VLOOKUP('Input - Capacity Factors'!$C$3,'Input - Capacity Factors'!$A:$D,2,FALSE)) -> -11.23065348 | V21: =-VLOOKUP($E$105,'Input - Transmission'!$A:$C,3)*Q21 -> -1.810913806 | X21: 13 | Y21: 2034 | Z21: 42.3108951 | AA21: 2.961950062 | AB21: =IF(VLOOKUP($Y21,'Input - Load and Resource'!$B$13:$C$42,2,FALSE)>=0,0,0) -> 0 | AC21: =IF(VLOOKUP($Y21,'Input - Load and Resource'!$B$13:$C$42,2,FALSE)>=0,0,0) -> 0 | AD21: 45.27284516 | AE21: =VLOOKUP($Y21,'Input - Load and Resource'!$B$13:$L$42,11,FALSE)*R21 -> 3.186783378 | AF21: =VLOOKUP($Y21,'Input - Load and Resource'!$B$13:$L$42,11,FALSE)*S21 -> 0.4217120162 | AG21: 3.608495394 | AH21: 48.88134056 | AI21: 6.570445456 | AK21: 13 | AL21: 2034 | AM21: =IF('Input - Capacity Factors'!$C$3="Fueled",'AVOID NEW'!AI21,AH21) -> 48.88134056 | AN21: =IF('Input - Capacity Factors'!$C$3="Fueled",-PMT($D$37,$AK21,NPV($D$37,$AI$9:$AI21)),-PMT($D$37,$AK21,NPV($D$37,$AH$9:$AH21))) -> 38.26543099 | AO21: =IF('Input - Capacity Factors'!$C$3="Fueled",-PMT($D$37,$AK21,NPV($D$37,$AI$10:$AI22)),-PMT($D$37,$AK21,NPV($D$37,$AH$10:$AH22))) -> 39.40988977 | AP21: =IF('Input - Capacity Factors'!$C$3="Fueled",-PMT($D$37,$AK21,NPV($D$37,$AI$11:$AI23)),-PMT($D$37,$AK21,NPV($D$37,$AH$11:$AH23))) -> 40.4296906 | AQ21: =IF('Input - Capacity Factors'!$C$3="Fueled",-PMT($D$37,$AK21,NPV($D$37,$AI$12:$AI24)),-PMT($D$37,$AK21,NPV($D$37,$AH$12:$AH24))) -> 41.81771905 | AR21: =IF('Input - Capacity Factors'!$C$3="Fueled",-PMT($D$37,$AK21,NPV($D$37,$AI$13:$AI25)),-PMT($D$37,$AK21,NPV($D$37,$AH$13:$AH25))) -> 43.44141367 | AS21: =IF('Input - Capacity Factors'!$C$3="Fueled",-PMT($D$37,$AK21,NPV($D$37,$AI$14:$AI26)),-PMT($D$37,$AK21,NPV($D$37,$AH$14:$AH26))) -> 45.09702088
B22: =TEXT($D$13+3,"0000")&" on-line date:" -> 2025 on-line date: | D22: =AQ28 -> 44.74377533 | G22: 2034 | H22: 4.426871 | I22: 5.959281 | J22: 42.3108951 | L22: 14 | M22: 2035 | N22: 6.057511 | O22: 43.0083281 | P22: 3.021189064 | Q22: 46.02951716 | R22: 64.6279669 | S22: =$D$39*(1+$D$47)^($M22-$D$43)*(1000/(365*24))/VLOOKUP('Input - Capacity Factors'!$C$3,'Input - Capacity Factors'!$A:$B,2,FALSE) -> 8.60292513 | T22: 73.23089203 | U22: =-VLOOKUP($E$105,'Input - Transmission'!$A:$C,2)*(1+'Input - Transmission'!$C$11)^('AVOID NEW'!$M22-'Input - Transmission'!$C$10)*12*(1000/(365*24))*(1/VLOOKUP('Input - Capacity Factors'!$C$3,'Input - Capacity Factors'!$A:$D,2,FALSE)) -> -11.45526655 | V22: =-VLOOKUP($E$105,'Input - Transmission'!$A:$C,3)*Q22 -> -1.841180687 | X22: 14 | Y22: 2035 | Z22: 43.0083281 | AA22: 3.021189064 | AB22: =IF(VLOOKUP($Y22,'Input - Load and Resource'!$B$13:$C$42,2,FALSE)>=0,0,0) -> 0 | AC22: =IF(VLOOKUP($Y22,'Input - Load and Resource'!$B$13:$C$42,2,FALSE)>=0,0,0) -> 0 | AD22: 46.02951716 | AE22: =VLOOKUP($Y22,'Input - Load and Resource'!$B$13:$L$42,11,FALSE)*R22 -> 3.231398345 | AF22: =VLOOKUP($Y22,'Input - Load and Resource'!$B$13:$L$42,11,FALSE)*S22 -> 0.4301462565 | AG22: 3.661544601 | AH22: 49.69106177 | AI22: 6.682733665 | AK22: 14 | AL22: 2035 | AM22: =IF('Input - Capacity Factors'!$C$3="Fueled",'AVOID NEW'!AI22,AH22) -> 49.69106177 | AN22: =IF('Input - Capacity Factors'!$C$3="Fueled",-PMT($D$37,$AK22,NPV($D$37,$AI$9:$AI22)),-PMT($D$37,$AK22,NPV($D$37,$AH$9:$AH22))) -> 38.73122722 | AO22: =IF('Input - Capacity Factors'!$C$3="Fueled",-PMT($D$37,$AK22,NPV($D$37,$AI$10:$AI23)),-PMT($D$37,$AK22,NPV($D$37,$AH$10:$AH23))) -> 39.87595474 | AP22: =IF('Input - Capacity Factors'!$C$3="Fueled",-PMT($D$37,$AK22,NPV($D$37,$AI$11:$AI24)),-PMT($D$37,$AK22,NPV($D$37,$AH$11:$AH24))) -> 40.89720067 | AQ22: =IF('Input - Capacity Factors'!$C$3="Fueled",-PMT($D$37,$AK22,NPV($D$37,$AI$12:$AI25)),-PMT($D$37,$AK22,NPV($D$37,$AH$12:$AH25))) -> 42.28241402 | AR22: =IF('Input - Capacity Factors'!$C$3="Fueled",-PMT($D$37,$AK22,NPV($D$37,$AI$13:$AI26)),-PMT($D$37,$AK22,NPV($D$37,$AH$13:$AH26))) -> 43.89294962 | AS22: =IF('Input - Capacity Factors'!$C$3="Fueled",-PMT($D$37,$AK22,NPV($D$37,$AI$14:$AI27)),-PMT($D$37,$AK22,NPV($D$37,$AH$14:$AH27))) -> 45.54723592
B23: =TEXT($D$13+4,"0000")&" on-line date:" -> 2026 on-line date: | D23: =AR28 -> 46.33602396 | G23: 2035 | H23: 4.402354 | I23: 6.057511 | J23: 43.0083281 | L23: 15 | M23: 2036 | N23: 6.203537 | O23: 44.0451127 | P23: 3.081612845 | Q23: 47.12672554 | R23: 65.53275843 | S23: =$D$39*(1+$D$47)^($M23-$D$43)*(1000/(365*24))/VLOOKUP('Input - Capacity Factors'!$C$3,'Input - Capacity Factors'!$A:$B,2,FALSE) -> 8.774983632 | T23: 74.30774207 | U23: =-VLOOKUP($E$105,'Input - Transmission'!$A:$C,2)*(1+'Input - Transmission'!$C$11)^('AVOID NEW'!$M23-'Input - Transmission'!$C$10)*12*(1000/(365*24))*(1/VLOOKUP('Input - Capacity Factors'!$C$3,'Input - Capacity Factors'!$A:$D,2,FALSE)) -> -11.68437188 | V23: =-VLOOKUP($E$105,'Input - Transmission'!$A:$C,3)*Q23 -> -1.885069022 | X23: 15 | Y23: 2036 | Z23: 44.0451127 | AA23: 3.081612845 | AB23: =IF(VLOOKUP($Y23,'Input - Load and Resource'!$B$13:$C$42,2,FALSE)>=0,0,0) -> 0 | AC23: =IF(VLOOKUP($Y23,'Input - Load and Resource'!$B$13:$C$42,2,FALSE)>=0,0,0) -> 0 | AD23: 47.12672554 | AE23: =VLOOKUP($Y23,'Input - Load and Resource'!$B$13:$L$42,11,FALSE)*R23 -> 3.276637922 | AF23: =VLOOKUP($Y23,'Input - Load and Resource'!$B$13:$L$42,11,FALSE)*S23 -> 0.4387491816 | AG23: 3.715387103 | AH23: 50.84211265 | AI23: 6.796999948 | AK23: 15 | AL23: 2036 | AM23: =IF('Input - Capacity Factors'!$C$3="Fueled",'AVOID NEW'!AI23,AH23) -> 50.84211265 | AN23: =IF('Input - Capacity Factors'!$C$3="Fueled",-PMT($D$37,$AK23,NPV($D$37,$AI$9:$AI23)),-PMT($D$37,$AK23,NPV($D$37,$AH$9:$AH23))) -> 39.17105099 | AO23: =IF('Input - Capacity Factors'!$C$3="Fueled",-PMT($D$37,$AK23,NPV($D$37,$AI$10:$AI24)),-PMT($D$37,$AK23,NPV($D$37,$AH$10:$AH24))) -> 40.31252894 | AP23: =IF('Input - Capacity Factors'!$C$3="Fueled",-PMT($D$37,$AK23,NPV($D$37,$AI$11:$AI25)),-PMT($D$37,$AK23,NPV($D$37,$AH$11:$AH25))) -> 41.34458736 | AQ23: =IF('Input - Capacity Factors'!$C$3="Fueled",-PMT($D$37,$AK23,NPV($D$37,$AI$12:$AI26)),-PMT($D$37,$AK23,NPV($D$37,$AH$12:$AH26))) -> 42.72673925 | AR23: =IF('Input - Capacity Factors'!$C$3="Fueled",-PMT($D$37,$AK23,NPV($D$37,$AI$13:$AI27)),-PMT($D$37,$AK23,NPV($D$37,$AH$13:$AH27))) -> 44.33773501 | AS23: =IF('Input - Capacity Factors'!$C$3="Fueled",-PMT($D$37,$AK23,NPV($D$37,$AI$14:$AI28)),-PMT($D$37,$AK23,NPV($D$37,$AH$14:$AH28))) -> 45.98528181
B24: =TEXT($D$13+5,"0000")&" on-line date:" -> 2027 on-line date: | D24: =AS28 -> 47.9642334 | G24: 2036 | H24: 4.411024 | I24: 6.203537 | J24: 44.0451127 | L24: 16 | M24: 2037 | N24: 6.335786 | O24: 44.9840806 | P24: 3.143245102 | Q24: 48.1273257 | R24: 66.45021705 | S24: =$D$39*(1+$D$47)^($M24-$D$43)*(1000/(365*24))/VLOOKUP('Input - Capacity Factors'!$C$3,'Input - Capacity Factors'!$A:$B,2,FALSE) -> 8.950483305 | T24: 75.40070036 | U24: =-VLOOKUP($E$105,'Input - Transmission'!$A:$C,2)*(1+'Input - Transmission'!$C$11)^('AVOID NEW'!$M24-'Input - Transmission'!$C$10)*12*(1000/(365*24))*(1/VLOOKUP('Input - Capacity Factors'!$C$3,'Input - Capacity Factors'!$A:$D,2,FALSE)) -> -11.91805932 | V24: =-VLOOKUP($E$105,'Input - Transmission'!$A:$C,3)*Q24 -> -1.925093028 | X24: 16 | Y24: 2037 | Z24: 44.9840806 | AA24: 3.143245102 | AB24: =IF(VLOOKUP($Y24,'Input - Load and Resource'!$B$13:$C$42,2,FALSE)>=0,0,0) -> 0 | AC24: =IF(VLOOKUP($Y24,'Input - Load and Resource'!$B$13:$C$42,2,FALSE)>=0,0,0) -> 0 | AD24: 48.1273257 | AE24: =VLOOKUP($Y24,'Input - Load and Resource'!$B$13:$L$42,11,FALSE)*R24 -> 3.322510853 | AF24: =VLOOKUP($Y24,'Input - Load and Resource'!$B$13:$L$42,11,FALSE)*S24 -> 0.4475241653 | AG24: 3.770035018 | AH24: 51.89736072 | AI24: 6.91328012 | AK24: 16 | AL24: 2037 | AM24: =IF('Input - Capacity Factors'!$C$3="Fueled",'AVOID NEW'!AI24,AH24) -> 51.89736072 | AN24: =IF('Input - Capacity Factors'!$C$3="Fueled",-PMT($D$37,$AK24,NPV($D$37,$AI$9:$AI24)),-PMT($D$37,$AK24,NPV($D$37,$AH$9:$AH24))) -> 39.58440087 | AO24: =IF('Input - Capacity Factors'!$C$3="Fueled",-PMT($D$37,$AK24,NPV($D$37,$AI$10:$AI25)),-PMT($D$37,$AK24,NPV($D$37,$AH$10:$AH25))) -> 40.73164395 | AP24: =IF('Input - Capacity Factors'!$C$3="Fueled",-PMT($D$37,$AK24,NPV($D$37,$AI$11:$AI26)),-PMT($D$37,$AK24,NPV($D$37,$AH$11:$AH26))) -> 41.77243478 | AQ24: =IF('Input - Capacity Factors'!$C$3="Fueled",-PMT($D$37,$AK24,NPV($D$37,$AI$12:$AI27)),-PMT($D$37,$AK24,NPV($D$37,$AH$12:$AH27))) -> 43.16241611 | AR24: =IF('Input - Capacity Factors'!$C$3="Fueled",-PMT($D$37,$AK24,NPV($D$37,$AI$13:$AI28)),-PMT($D$37,$AK24,NPV($D$37,$AH$13:$AH28))) -> 44.7687904 | AS24: =IF('Input - Capacity Factors'!$C$3="Fueled",-PMT($D$37,$AK24,NPV($D$37,$AI$14:$AI29)),-PMT($D$37,$AK24,NPV($D$37,$AH$14:$AH29))) -> 46.40066762
G25: 2037 | H25: 4.407473 | I25: 6.335786 | J25: 44.9840806 | L25: 17 | M25: 2038 | N25: 6.504891 | O25: 46.1847261 | P25: 3.206110004 | Q25: 49.3908361 | R25: 67.38052009 | S25: =$D$39*(1+$D$47)^($M25-$D$43)*(1000/(365*24))/VLOOKUP('Input - Capacity Factors'!$C$3,'Input - Capacity Factors'!$A:$B,2,FALSE) -> 9.129492971 | T25: 76.51001306 | U25: =-VLOOKUP($E$105,'Input - Transmission'!$A:$C,2)*(1+'Input - Transmission'!$C$11)^('AVOID NEW'!$M25-'Input - Transmission'!$C$10)*12*(1000/(365*24))*(1/VLOOKUP('Input - Capacity Factors'!$C$3,'Input - Capacity Factors'!$A:$D,2,FALSE)) -> -12.15642051 | V25: =-VLOOKUP($E$105,'Input - Transmission'!$A:$C,3)*Q25 -> -1.975633444 | X25: 17 | Y25: 2038 | Z25: 46.1847261 | AA25: 3.206110004 | AB25: =IF(VLOOKUP($Y25,'Input - Load and Resource'!$B$13:$C$42,2,FALSE)>=0,0,0) -> 0 | AC25: =IF(VLOOKUP($Y25,'Input - Load and Resource'!$B$13:$C$42,2,FALSE)>=0,0,0) -> 0 | AD25: 49.3908361 | AE25: =VLOOKUP($Y25,'Input - Load and Resource'!$B$13:$L$42,11,FALSE)*R25 -> 3.369026005 | AF25: =VLOOKUP($Y25,'Input - Load and Resource'!$B$13:$L$42,11,FALSE)*S25 -> 0.4564746486 | AG25: 3.825500653 | AH25: 53.21633676 | AI25: 7.031610657 | AK25: 17 | AL25: 2038 | AM25: =IF('Input - Capacity Factors'!$C$3="Fueled",'AVOID NEW'!AI25,AH25) -> 53.21633676 | AN25: =IF('Input - Capacity Factors'!$C$3="Fueled",-PMT($D$37,$AK25,NPV($D$37,$AI$9:$AI25)),-PMT($D$37,$AK25,NPV($D$37,$AH$9:$AH25))) -> 39.98175533 | AO25: =IF('Input - Capacity Factors'!$C$3="Fueled",-PMT($D$37,$AK25,NPV($D$37,$AI$10:$AI26)),-PMT($D$37,$AK25,NPV($D$37,$AH$10:$AH26))) -> 41.13347773 | AP25: =IF('Input - Capacity Factors'!$C$3="Fueled",-PMT($D$37,$AK25,NPV($D$37,$AI$11:$AI27)),-PMT($D$37,$AK25,NPV($D$37,$AH$11:$AH27))) -> 42.19124527 | AQ25: =IF('Input - Capacity Factors'!$C$3="Fueled",-PMT($D$37,$AK25,NPV($D$37,$AI$12:$AI28)),-PMT($D$37,$AK25,NPV($D$37,$AH$12:$AH28))) -> 43.58352142 | AR25: =IF('Input - Capacity Factors'!$C$3="Fueled",-PMT($D$37,$AK25,NPV($D$37,$AI$13:$AI29)),-PMT($D$37,$AK25,NPV($D$37,$AH$13:$AH29))) -> 45.17703333 | AS25: =IF('Input - Capacity Factors'!$C$3="Fueled",-PMT($D$37,$AK25,NPV($D$37,$AI$14:$AI30)),-PMT($D$37,$AK25,NPV($D$37,$AH$14:$AH30))) -> 46.80484691
G26: 2038 | H26: 4.426501 | I26: 6.504891 | J26: 46.1847261 | L26: 18 | M26: 2039 | N26: 6.671158 | O26: 47.3652218 | P26: 3.270232204 | Q26: 50.635454 | R26: 68.32384737 | S26: =$D$39*(1+$D$47)^($M26-$D$43)*(1000/(365*24))/VLOOKUP('Input - Capacity Factors'!$C$3,'Input - Capacity Factors'!$A:$B,2,FALSE) -> 9.31208283 | T26: 77.6359302 | U26: =-VLOOKUP($E$105,'Input - Transmission'!$A:$C,2)*(1+'Input - Transmission'!$C$11)^('AVOID NEW'!$M26-'Input - Transmission'!$C$10)*12*(1000/(365*24))*(1/VLOOKUP('Input - Capacity Factors'!$C$3,'Input - Capacity Factors'!$A:$D,2,FALSE)) -> -12.39954892 | V26: =-VLOOKUP($E$105,'Input - Transmission'!$A:$C,3)*Q26 -> -2.02541816 | X26: 18 | Y26: 2039 | Z26: 47.3652218 | AA26: 3.270232204 | AB26: =IF(VLOOKUP($Y26,'Input - Load and Resource'!$B$13:$C$42,2,FALSE)>=0,0,0) -> 0 | AC26: =IF(VLOOKUP($Y26,'Input - Load and Resource'!$B$13:$C$42,2,FALSE)>=0,0,0) -> 0 | AD26: 50.635454 | AE26: =VLOOKUP($Y26,'Input - Load and Resource'!$B$13:$L$42,11,FALSE)*R26 -> 3.416192369 | AF26: =VLOOKUP($Y26,'Input - Load and Resource'!$B$13:$L$42,11,FALSE)*S26 -> 0.4656041415 | AG26: 3.88179651 | AH26: 54.51725051 | AI26: 7.152028714 | AK26: 18 | AL26: 2039 | AM26: =IF('Input - Capacity Factors'!$C$3="Fueled",'AVOID NEW'!AI26,AH26) -> 54.51725051 | AN26: =IF('Input - Capacity Factors'!$C$3="Fueled",-PMT($D$37,$AK26,NPV($D$37,$AI$9:$AI26)),-PMT($D$37,$AK26,NPV($D$37,$AH$9:$AH26))) -> 40.36313356 | AO26: =IF('Input - Capacity Factors'!$C$3="Fueled",-PMT($D$37,$AK26,NPV($D$37,$AI$10:$AI27)),-PMT($D$37,$AK26,NPV($D$37,$AH$10:$AH27))) -> 41.52722662 | AP26: =IF('Input - Capacity Factors'!$C$3="Fueled",-PMT($D$37,$AK26,NPV($D$37,$AI$11:$AI28)),-PMT($D$37,$AK26,NPV($D$37,$AH$11:$AH28))) -> 42.59577632 | AQ26: =IF('Input - Capacity Factors'!$C$3="Fueled",-PMT($D$37,$AK26,NPV($D$37,$AI$12:$AI29)),-PMT($D$37,$AK26,NPV($D$37,$AH$12:$AH29))) -> 43.9820921 | AR26: =IF('Input - Capacity Factors'!$C$3="Fueled",-PMT($D$37,$AK26,NPV($D$37,$AI$13:$AI30)),-PMT($D$37,$AK26,NPV($D$37,$AH$13:$AH30))) -> 45.57295283 | AS26: =IF('Input - Capacity Factors'!$C$3="Fueled",-PMT($D$37,$AK26,NPV($D$37,$AI$14:$AI31)),-PMT($D$37,$AK26,NPV($D$37,$AH$14:$AH31))) -> 47.20155847
B27: INPUT | C27: DATA | D27: =$E$105 -> IPCO | G27: 2039 | H27: 4.441397 | I27: 6.671158 | J27: 47.3652218 | L27: 19 | M27: 2040 | N27: 6.882519 | O27: 48.8658849 | P27: 3.335636848 | Q27: 52.20152175 | R27: 69.28038124 | S27: =$D$39*(1+$D$47)^($M27-$D$43)*(1000/(365*24))/VLOOKUP('Input - Capacity Factors'!$C$3,'Input - Capacity Factors'!$A:$B,2,FALSE) -> 9.498324487 | T27: 78.77870572 | U27: =-VLOOKUP($E$105,'Input - Transmission'!$A:$C,2)*(1+'Input - Transmission'!$C$11)^('AVOID NEW'!$M27-'Input - Transmission'!$C$10)*12*(1000/(365*24))*(1/VLOOKUP('Input - Capacity Factors'!$C$3,'Input - Capacity Factors'!$A:$D,2,FALSE)) -> -12.6475399 | V27: =-VLOOKUP($E$105,'Input - Transmission'!$A:$C,3)*Q27 -> -2.08806087 | X27: 19 | Y27: 2040 | Z27: 48.8658849 | AA27: 3.335636848 | AB27: =IF(VLOOKUP($Y27,'Input - Load and Resource'!$B$13:$C$42,2,FALSE)>=0,0,0) -> 0 | AC27: =IF(VLOOKUP($Y27,'Input - Load and Resource'!$B$13:$C$42,2,FALSE)>=0,0,0) -> 0 | AD27: 52.20152175 | AE27: =VLOOKUP($Y27,'Input - Load and Resource'!$B$13:$L$42,11,FALSE)*R27 -> 3.464019062 | AF27: =VLOOKUP($Y27,'Input - Load and Resource'!$B$13:$L$42,11,FALSE)*S27 -> 0.4749162244 | AG27: 3.938935286 | AH27: 56.14045703 | AI27: 7.274572134 | AK27: 19 | AL27: 2040 | AM27: =IF('Input - Capacity Factors'!$C$3="Fueled",'AVOID NEW'!AI27,AH27) -> 56.14045703 | AN27: =IF('Input - Capacity Factors'!$C$3="Fueled",-PMT($D$37,$AK27,NPV($D$37,$AI$9:$AI27)),-PMT($D$37,$AK27,NPV($D$37,$AH$9:$AH27))) -> 40.73673142 | AO27: =IF('Input - Capacity Factors'!$C$3="Fueled",-PMT($D$37,$AK27,NPV($D$37,$AI$10:$AI28)),-PMT($D$37,$AK27,NPV($D$37,$AH$10:$AH28))) -> 41.90803761 | AP27: =IF('Input - Capacity Factors'!$C$3="Fueled",-PMT($D$37,$AK27,NPV($D$37,$AI$11:$AI29)),-PMT($D$37,$AK27,NPV($D$37,$AH$11:$AH29))) -> 42.97887376 | AQ27: =IF('Input - Capacity Factors'!$C$3="Fueled",-PMT($D$37,$AK27,NPV($D$37,$AI$12:$AI30)),-PMT($D$37,$AK27,NPV($D$37,$AH$12:$AH30))) -> 44.36770314 | AR27: =IF('Input - Capacity Factors'!$C$3="Fueled",-PMT($D$37,$AK27,NPV($D$37,$AI$13:$AI31)),-PMT($D$37,$AK27,NPV($D$37,$AH$13:$AH31))) -> 45.96015372 | AS27: =IF('Input - Capacity Factors'!$C$3="Fueled",-PMT($D$37,$AK27,NPV($D$37,$AI$14:$AI32)),-PMT($D$37,$AK27,NPV($D$37,$AH$14:$AH32))) -> 47.58767997
B28: DATA | C28: SOURCE | D28: DATA | G28: 2040 | H28: 4.480473 | I28: 6.882519 | J28: 48.8658849 | L28: 20 | M28: 2041 | N28: 7.071815 | O28: 50.2098865 | P28: 3.402349585 | Q28: 53.61223608 | R28: 70.25030657 | S28: =$D$39*(1+$D$47)^($M28-$D$43)*(1000/(365*24))/VLOOKUP('Input - Capacity Factors'!$C$3,'Input - Capacity Factors'!$A:$B,2,FALSE) -> 9.688290977 | T28: 79.93859755 | U28: =-VLOOKUP($E$105,'Input - Transmission'!$A:$C,2)*(1+'Input - Transmission'!$C$11)^('AVOID NEW'!$M28-'Input - Transmission'!$C$10)*12*(1000/(365*24))*(1/VLOOKUP('Input - Capacity Factors'!$C$3,'Input - Capacity Factors'!$A:$D,2,FALSE)) -> -12.90049069 | V28: =-VLOOKUP($E$105,'Input - Transmission'!$A:$C,3)*Q28 -> -2.144489443 | X28: 20 | Y28: 2041 | Z28: 50.2098865 | AA28: 3.402349585 | AB28: =IF(VLOOKUP($Y28,'Input - Load and Resource'!$B$13:$C$42,2,FALSE)>=0,0,0) -> 0 | AC28: =IF(VLOOKUP($Y28,'Input - Load and Resource'!$B$13:$C$42,2,FALSE)>=0,0,0) -> 0 | AD28: 53.61223608 | AE28: =VLOOKUP($Y28,'Input - Load and Resource'!$B$13:$L$42,11,FALSE)*R28 -> 3.512515329 | AF28: =VLOOKUP($Y28,'Input - Load and Resource'!$B$13:$L$42,11,FALSE)*S28 -> 0.4844145488 | AG28: 3.996929878 | AH28: 57.60916596 | AI28: 7.399279463 | AK28: 20 | AL28: 2041 | AM28: =IF('Input - Capacity Factors'!$C$3="Fueled",'AVOID NEW'!AI28,AH28) -> 57.60916596 | AN28: =IF('Input - Capacity Factors'!$C$3="Fueled",-PMT($D$37,$AK28,NPV($D$37,$AI$9:$AI28)),-PMT($D$37,$AK28,NPV($D$37,$AH$9:$AH28))) -> 41.09813936 | AO28: =IF('Input - Capacity Factors'!$C$3="Fueled",-PMT($D$37,$AK28,NPV($D$37,$AI$10:$AI29)),-PMT($D$37,$AK28,NPV($D$37,$AH$10:$AH29))) -> 42.26931278 | AP28: =IF('Input - Capacity Factors'!$C$3="Fueled",-PMT($D$37,$AK28,NPV($D$37,$AI$11:$AI30)),-PMT($D$37,$AK28,NPV($D$37,$AH$11:$AH30))) -> 43.34918028 | AQ28: =IF('Input - Capacity Factors'!$C$3="Fueled",-PMT($D$37,$AK28,NPV($D$37,$AI$12:$AI31)),-PMT($D$37,$AK28,NPV($D$37,$AH$12:$AH31))) -> 44.74377533 | AR28: =IF('Input - Capacity Factors'!$C$3="Fueled",-PMT($D$37,$AK28,NPV($D$37,$AI$13:$AI32)),-PMT($D$37,$AK28,NPV($D$37,$AH$13:$AH32))) -> 46.33602396 | AS28: =IF('Input - Capacity Factors'!$C$3="Fueled",-PMT($D$37,$AK28,NPV($D$37,$AI$14:$AI33)),-PMT($D$37,$AK28,NPV($D$37,$AH$14:$AH33))) -> 47.9642334
C29: N/A | G29: 2041 | H29: 4.501604 | I29: 7.071815 | J29: 50.2098865 | L29: 21 | M29: 2042 | N29: 7.21804 | O29: 51.248084 | P29: 3.470396577 | Q29: =P29+O29 -> 54.71848058 | R29: 71.23381086 | S29: =$D$39*(1+$D$47)^($M29-$D$43)*(1000/(365*24))/VLOOKUP('Input - Capacity Factors'!$C$3,'Input - Capacity Factors'!$A:$B,2,FALSE) -> 9.882056796 | T29: 81.11586766 | U29: =-VLOOKUP($E$105,'Input - Transmission'!$A:$C,2)*(1+'Input - Transmission'!$C$11)^('AVOID NEW'!$M29-'Input - Transmission'!$C$10)*12*(1000/(365*24))*(1/VLOOKUP('Input - Capacity Factors'!$C$3,'Input - Capacity Factors'!$A:$D,2,FALSE)) -> -13.15850051 | V29: =-VLOOKUP($E$105,'Input - Transmission'!$A:$C,3)*Q29 -> -2.188739223 | X29: 21 | Y29: 2042 | Z29: 51.248084 | AA29: 3.470396577 | AB29: =IF(VLOOKUP($Y29,'Input - Load and Resource'!$B$13:$C$42,2,FALSE)>=0,0,0) -> 0 | AC29: =IF(VLOOKUP($Y29,'Input - Load and Resource'!$B$13:$C$42,2,FALSE)>=0,0,0) -> 0 | AD29: 54.71848058 | AE29: =VLOOKUP($Y29,'Input - Load and Resource'!$B$13:$L$42,11,FALSE)*R29 -> 3.561690543 | AF29: =VLOOKUP($Y29,'Input - Load and Resource'!$B$13:$L$42,11,FALSE)*S29 -> 0.4941028398 | AG29: 4.055793383 | AH29: 58.77427396 | AI29: 7.52618996 | AK29: 21 | AL29: 2042 | AM29: =IF('Input - Capacity Factors'!$C$3="Fueled",'AVOID NEW'!AI29,AH29) -> 58.77427396 | AN29: Eligibility for these rates is limited to wind and solar projects 100 kW or smaller, and to non-wind and non-solar projects smaller than 10 aMW.
C30: N/A | G30: 2042 | H30: 4.492259 | I30: 7.21804 | J30: 51.248084 | L30: 22 | M30: 2043 | N30: 7.410056 | O30: 52.6113976 | P30: 3.539804508 | Q30: 56.15120211 | R30: 72.23108422 | S30: =$D$39*(1+$D$47)^($M30-$D$43)*(1000/(365*24))/VLOOKUP('Input - Capacity Factors'!$C$3,'Input - Capacity Factors'!$A:$B,2,FALSE) -> 10.07969793 | T30: 82.31078215 | U30: =-VLOOKUP($E$105,'Input - Transmission'!$A:$C,2)*(1+'Input - Transmission'!$C$11)^('AVOID NEW'!$M30-'Input - Transmission'!$C$10)*12*(1000/(365*24))*(1/VLOOKUP('Input - Capacity Factors'!$C$3,'Input - Capacity Factors'!$A:$D,2,FALSE)) -> -13.42167052 | V30: =-VLOOKUP($E$105,'Input - Transmission'!$A:$C,3)*Q30 -> -2.246048084 | X30: 22 | Y30: 2043 | Z30: 52.6113976 | AA30: 3.539804508 | AB30: =IF(VLOOKUP($Y30,'Input - Load and Resource'!$B$13:$C$42,2,FALSE)>=0,0,0) -> 0 | AC30: =IF(VLOOKUP($Y30,'Input - Load and Resource'!$B$13:$C$42,2,FALSE)>=0,0,0) -> 0 | AD30: 56.15120211 | AE30: =VLOOKUP($Y30,'Input - Load and Resource'!$B$13:$L$42,11,FALSE)*R30 -> 3.611554211 | AF30: =VLOOKUP($Y30,'Input - Load and Resource'!$B$13:$L$42,11,FALSE)*S30 -> 0.5039848966 | AG30: 4.115539108 | AH30: 60.26674122 | AI30: 7.655343616 | AK30: 22 | AL30: 2043 | AM30: =IF('Input - Capacity Factors'!$C$3="Fueled",'AVOID NEW'!AI30,AH30) -> 60.26674122
C31: N/A | G31: 2043 | H31: 4.508434 | I31: 7.410056 | J31: 52.6113976 | L31: 23 | M31: 2044 | N31: 7.625065 | O31: 54.1379615 | P31: 3.610600598 | Q31: 57.7485621 | R31: 73.2423194 | S31: =$D$39*(1+$D$47)^($M31-$D$43)*(1000/(365*24))/VLOOKUP('Input - Capacity Factors'!$C$3,'Input - Capacity Factors'!$A:$B,2,FALSE) -> 10.28129189 | T31: 83.52361129 | U31: =-VLOOKUP($E$105,'Input - Transmission'!$A:$C,2)*(1+'Input - Transmission'!$C$11)^('AVOID NEW'!$M31-'Input - Transmission'!$C$10)*12*(1000/(365*24))*(1/VLOOKUP('Input - Capacity Factors'!$C$3,'Input - Capacity Factors'!$A:$D,2,FALSE)) -> -13.69010393 | V31: =-VLOOKUP($E$105,'Input - Transmission'!$A:$C,3)*Q31 -> -2.309942484 | X31: 23 | Y31: 2044 | Z31: 54.1379615 | AA31: 3.610600598 | AB31: =IF(VLOOKUP($Y31,'Input - Load and Resource'!$B$13:$C$42,2,FALSE)>=0,0,0) -> 0 | AC31: =IF(VLOOKUP($Y31,'Input - Load and Resource'!$B$13:$C$42,2,FALSE)>=0,0,0) -> 0 | AD31: 57.7485621 | AE31: =VLOOKUP($Y31,'Input - Load and Resource'!$B$13:$L$42,11,FALSE)*R31 -> 3.66211597 | AF31: =VLOOKUP($Y31,'Input - Load and Resource'!$B$13:$L$42,11,FALSE)*S31 -> 0.5140645946 | AG31: 4.176180564 | AH31: 61.92474266 | AI31: 7.786781163 | AK31: 23 | AL31: 2044 | AM31: =IF('Input - Capacity Factors'!$C$3="Fueled",'AVOID NEW'!AI31,AH31) -> 61.92474266
B32: "SAR" PLANT LIFE (YEARS): | C32: N/A | D32: 30 | G32: 2044 | H32: 4.535688 | I32: 7.625065 | J32: 54.1379615 | L32: 24 | M32: 2045 | N32: 7.829186 | O32: 55.5872206 | P32: 3.68281261 | Q32: 59.27003321 | R32: 74.26771187 | S32: =$D$39*(1+$D$47)^($M32-$D$43)*(1000/(365*24))/VLOOKUP('Input - Capacity Factors'!$C$3,'Input - Capacity Factors'!$A:$B,2,FALSE) -> 10.48691773 | T32: 84.7546296 | U32: =-VLOOKUP($E$105,'Input - Transmission'!$A:$C,2)*(1+'Input - Transmission'!$C$11)^('AVOID NEW'!$M32-'Input - Transmission'!$C$10)*12*(1000/(365*24))*(1/VLOOKUP('Input - Capacity Factors'!$C$3,'Input - Capacity Factors'!$A:$D,2,FALSE)) -> -13.96390601 | V32: =-VLOOKUP($E$105,'Input - Transmission'!$A:$C,3)*Q32 -> -2.370801328 | X32: 24 | Y32: 2045 | Z32: 55.5872206 | AA32: 3.68281261 | AB32: =IF(VLOOKUP($Y32,'Input - Load and Resource'!$B$13:$C$42,2,FALSE)>=0,0,0) -> 0 | AC32: =IF(VLOOKUP($Y32,'Input - Load and Resource'!$B$13:$C$42,2,FALSE)>=0,0,0) -> 0 | AD32: 59.27003321 | AE32: =VLOOKUP($Y32,'Input - Load and Resource'!$B$13:$L$42,11,FALSE)*R32 -> 3.713385593 | AF32: =VLOOKUP($Y32,'Input - Load and Resource'!$B$13:$L$42,11,FALSE)*S32 -> 0.5243458864 | AG32: 4.23773148 | AH32: 63.50776469 | AI32: 7.92054409 | AK32: 24 | AL32: 2045 | AM32: =IF('Input - Capacity Factors'!$C$3="Fueled",'AVOID NEW'!AI32,AH32) -> 63.50776469
B33: "SAR" PLANT COST ($/kW): | C33: N/A | D33: 1313 | G33: 2045 | H33: 4.553664 | I33: 7.829186 | J33: 55.5872206 | L33: 25 | M33: 2046 | N33: 8.043734 | O33: 57.1105114 | P33: 3.756468863 | Q33: 60.86698026 | R33: 75.30745983 | S33: =$D$39*(1+$D$47)^($M33-$D$43)*(1000/(365*24))/VLOOKUP('Input - Capacity Factors'!$C$3,'Input - Capacity Factors'!$A:$B,2,FALSE) -> 10.69665608 | T33: 86.00411592 | U33: =-VLOOKUP($E$105,'Input - Transmission'!$A:$C,2)*(1+'Input - Transmission'!$C$11)^('AVOID NEW'!$M33-'Input - Transmission'!$C$10)*12*(1000/(365*24))*(1/VLOOKUP('Input - Capacity Factors'!$C$3,'Input - Capacity Factors'!$A:$D,2,FALSE)) -> -14.24318413 | V33: =-VLOOKUP($E$105,'Input - Transmission'!$A:$C,3)*Q33 -> -2.434679211 | X33: 25 | Y33: 2046 | Z33: 57.1105114 | AA33: 3.756468863 | AB33: =IF(VLOOKUP($Y33,'Input - Load and Resource'!$B$13:$C$42,2,FALSE)>=0,0,0) -> 0 | AC33: =IF(VLOOKUP($Y33,'Input - Load and Resource'!$B$13:$C$42,2,FALSE)>=0,0,0) -> 0 | AD33: 60.86698026 | AE33: =VLOOKUP($Y33,'Input - Load and Resource'!$B$13:$L$42,11,FALSE)*R33 -> 3.765372992 | AF33: =VLOOKUP($Y33,'Input - Load and Resource'!$B$13:$L$42,11,FALSE)*S33 -> 0.5348328042 | AG33: 4.300205796 | AH33: 65.16718606 | AI33: 8.056674658 | AK33: 25 | AL33: 2046 | AM33: =IF('Input - Capacity Factors'!$C$3="Fueled",'AVOID NEW'!AI33,AH33) -> 65.16718606
B34: BASE YEAR OF "SAR" COST: | C34: N/A | D34: 2008 | G34: 2046 | H34: 4.573921 | I34: 8.043734 | J34: 57.1105114 | L34: 26 | M34: 2047 | N34: 8.261925 | O34: 58.6596675 | P34: 3.83159824 | Q34: 62.49126574 | R34: 76.36176427 | S34: =$D$39*(1+$D$47)^($M34-$D$43)*(1000/(365*24))/VLOOKUP('Input - Capacity Factors'!$C$3,'Input - Capacity Factors'!$A:$B,2,FALSE) -> 10.9105892 | T34: 87.27235348 | U34: =-VLOOKUP($E$105,'Input - Transmission'!$A:$C,2)*(1+'Input - Transmission'!$C$11)^('AVOID NEW'!$M34-'Input - Transmission'!$C$10)*12*(1000/(365*24))*(1/VLOOKUP('Input - Capacity Factors'!$C$3,'Input - Capacity Factors'!$A:$D,2,FALSE)) -> -14.52804781 | V34: =-VLOOKUP($E$105,'Input - Transmission'!$A:$C,3)*Q34 -> -2.49965063 | X34: 26 | Y34: 2047 | Z34: 58.6596675 | AA34: 3.83159824 | AB34: =IF(VLOOKUP($Y34,'Input - Load and Resource'!$B$13:$C$42,2,FALSE)>=0,0,0) -> 0 | AC34: =IF(VLOOKUP($Y34,'Input - Load and Resource'!$B$13:$C$42,2,FALSE)>=0,0,0) -> 0 | AD34: 62.49126574 | AE34: =VLOOKUP($Y34,'Input - Load and Resource'!$B$13:$L$42,11,FALSE)*R34 -> 3.818088214 | AF34: =VLOOKUP($Y34,'Input - Load and Resource'!$B$13:$L$42,11,FALSE)*S34 -> 0.5455294603 | AG34: 4.363617674 | AH34: 66.85488341 | AI34: 8.195215914 | AK34: 26 | AL34: 2047 | AM34: =IF('Input - Capacity Factors'!$C$3="Fueled",'AVOID NEW'!AI34,AH34) -> 66.85488341
B35: "SAR" CAPACITY FACTOR (%): | C35: N/A | D35: 0.9 | G35: 2047 | H35: 4.593343 | I35: 8.261925 | J35: 58.6596675 | L35: 27 | M35: 2048 | N35: 8.519556 | O35: 60.4888476 | P35: 3.908230205 | Q35: 64.3970778 | R35: 77.43082897 | S35: =$D$39*(1+$D$47)^($M35-$D$43)*(1000/(365*24))/VLOOKUP('Input - Capacity Factors'!$C$3,'Input - Capacity Factors'!$A:$B,2,FALSE) -> 11.12880099 | T35: 88.55962996 | U35: =-VLOOKUP($E$105,'Input - Transmission'!$A:$C,2)*(1+'Input - Transmission'!$C$11)^('AVOID NEW'!$M35-'Input - Transmission'!$C$10)*12*(1000/(365*24))*(1/VLOOKUP('Input - Capacity Factors'!$C$3,'Input - Capacity Factors'!$A:$D,2,FALSE)) -> -14.81860877 | V35: =-VLOOKUP($E$105,'Input - Transmission'!$A:$C,3)*Q35 -> -2.575883112 | X35: 27 | Y35: 2048 | Z35: 60.4888476 | AA35: 3.908230205 | AB35: =IF(VLOOKUP($Y35,'Input - Load and Resource'!$B$13:$C$42,2,FALSE)>=0,0,0) -> 0 | AC35: =IF(VLOOKUP($Y35,'Input - Load and Resource'!$B$13:$C$42,2,FALSE)>=0,0,0) -> 0 | AD35: 64.3970778 | AE35: =VLOOKUP($Y35,'Input - Load and Resource'!$B$13:$L$42,11,FALSE)*R35 -> 3.871541449 | AF35: =VLOOKUP($Y35,'Input - Load and Resource'!$B$13:$L$42,11,FALSE)*S35 -> 0.5564400495 | AG35: 4.427981498 | AH35: 68.8250593 | AI35: 8.336211703
B36: HEAT RATE (BTU/kWh): | D36: 7100 | G36: 2048 | H36: 4.630776 | I36: 8.519556 | J36: 60.4888476 | L36: 28 | M36: 2049 | N36: 8.706051 | O36: 61.8129621 | P36: 3.986394809 | Q36: 65.79935691 | R36: 78.51486058 | S36: =$D$39*(1+$D$47)^($M36-$D$43)*(1000/(365*24))/VLOOKUP('Input - Capacity Factors'!$C$3,'Input - Capacity Factors'!$A:$B,2,FALSE) -> 11.35137701 | T36: 89.86623758 | U36: =-VLOOKUP($E$105,'Input - Transmission'!$A:$C,2)*(1+'Input - Transmission'!$C$11)^('AVOID NEW'!$M36-'Input - Transmission'!$C$10)*12*(1000/(365*24))*(1/VLOOKUP('Input - Capacity Factors'!$C$3,'Input - Capacity Factors'!$A:$D,2,FALSE)) -> -15.11498094 | V36: =-VLOOKUP($E$105,'Input - Transmission'!$A:$C,3)*Q36 -> -2.631974276 | X36: 28 | Y36: 2049 | Z36: 61.8129621 | AA36: 3.986394809 | AB36: =IF(VLOOKUP($Y36,'Input - Load and Resource'!$B$13:$C$42,2,FALSE)>=0,0,0) -> 0 | AC36: =IF(VLOOKUP($Y36,'Input - Load and Resource'!$B$13:$C$42,2,FALSE)>=0,0,0) -> 0 | AD36: 65.79935691 | AE36: =VLOOKUP($Y36,'Input - Load and Resource'!$B$13:$L$42,11,FALSE)*R36 -> 3.925743029 | AF36: =VLOOKUP($Y36,'Input - Load and Resource'!$B$13:$L$42,11,FALSE)*S36 -> 0.5675688504 | AG36: 4.493311879 | AH36: 70.29266879 | AI36: 8.479706688
B37: UTILITY WEIGHTED COST OF CAPITAL (%): | C37: N/A | D37: =HLOOKUP($D$27,$B$62:$G$65,3) -> 0.081801171 | G37: 2049 | H37: 4.626049 | I37: 8.706051 | J37: 61.8129621 | L37: 29 | M37: 2050 | N37: 8.863743 | O37: 62.9325753 | P37: 4.066122705 | Q37: 66.998698 | R37: 79.61406862 | S37: =$D$39*(1+$D$47)^($M37-$D$43)*(1000/(365*24))/VLOOKUP('Input - Capacity Factors'!$C$3,'Input - Capacity Factors'!$A:$B,2,FALSE) -> 11.57840455 | T37: 91.19247317 | U37: =-VLOOKUP($E$105,'Input - Transmission'!$A:$C,2)*(1+'Input - Transmission'!$C$11)^('AVOID NEW'!$M37-'Input - Transmission'!$C$10)*12*(1000/(365*24))*(1/VLOOKUP('Input - Capacity Factors'!$C$3,'Input - Capacity Factors'!$A:$D,2,FALSE)) -> -15.41728056 | V37: =-VLOOKUP($E$105,'Input - Transmission'!$A:$C,3)*Q37 -> -2.67994792 | X37: 29 | Y37: 2050 | Z37: 62.9325753 | AA37: 4.066122705 | AB37: =IF(VLOOKUP($Y37,'Input - Load and Resource'!$B$13:$C$42,2,FALSE)>=0,0,0) -> 0 | AC37: =IF(VLOOKUP($Y37,'Input - Load and Resource'!$B$13:$C$42,2,FALSE)>=0,0,0) -> 0 | AD37: 66.998698 | AE37: =VLOOKUP($Y37,'Input - Load and Resource'!$B$13:$L$42,11,FALSE)*R37 -> 3.980703431 | AF37: =VLOOKUP($Y37,'Input - Load and Resource'!$B$13:$L$42,11,FALSE)*S37 -> 0.5789202275 | AG37: 4.559623659 | AH37: 71.55832166 | AI37: 8.625746364
B38: RATEPAYER DISCOUNT RATE (%): | C38: ASSUMED | D38: =D37 -> 0.081801171 | G38: 2050 | H38: 4.604418 | I38: 8.863743 | J38: 62.9325753 | L38: 30 | M38: 2051 | N38: 0 | O38: 0 | P38: 4.147445159 | Q38: 4.147445159 | R38: 80.72866559 | S38: =$D$39*(1+$D$47)^($M38-$D$43)*(1000/(365*24))/VLOOKUP('Input - Capacity Factors'!$C$3,'Input - Capacity Factors'!$A:$B,2,FALSE) -> 11.80997264 | T38: 92.53863822 | U38: =-VLOOKUP($E$105,'Input - Transmission'!$A:$C,2)*(1+'Input - Transmission'!$C$11)^('AVOID NEW'!$M38-'Input - Transmission'!$C$10)*12*(1000/(365*24))*(1/VLOOKUP('Input - Capacity Factors'!$C$3,'Input - Capacity Factors'!$A:$D,2,FALSE)) -> -15.72562617 | V38: =-VLOOKUP($E$105,'Input - Transmission'!$A:$C,3)*Q38 -> -0.1658978064 | X38: 30 | Y38: 2051 | Z38: 0 | AA38: 4.147445159 | AB38: =IF(VLOOKUP($Y38,'Input - Load and Resource'!$B$13:$C$42,2,FALSE)>=0,0,0) -> 0 | AC38: =IF(VLOOKUP($Y38,'Input - Load and Resource'!$B$13:$C$42,2,FALSE)>=0,0,0) -> 0 | AD38: 4.147445159 | AE38: =VLOOKUP($Y38,'Input - Load and Resource'!$B$13:$L$42,11,FALSE)*R38 -> 4.036433279 | AF38: =VLOOKUP($Y38,'Input - Load and Resource'!$B$13:$L$42,11,FALSE)*S38 -> 0.590498632 | AG38: 4.626931911 | AH38: 8.77437707 | AI38: 8.77437707
B39: "SAR" FIXED O&M ($/kW): | C39: N/A | D39: 14.57 | G39: 2051 | J39: 0
B40: "SAR" VARIABLE O&M ($/MWh): | C40: N/A | D40: 1.77 | G40: 2052 | J40: 0 | M40: Calculation of Level Carrying Cost | R40: capital cost
B41: CURRENT YEAR GAS PRICE ($/MMBTU): | D41: =VLOOKUP(D54,$G$10:$J$40,3) -> 4.378097 | M41: =D34-1 -> 2007 | R41: =$D$33*(1+$D$45)^($M41-D$34)*$D$50*(1000/(365*24))/VLOOKUP('Input - Capacity Factors'!$C$3,'Input - Capacity Factors'!A:B,2,FALSE) -> 49.97548274
B42: CURRENT YEAR FUEL COST ($/MWh): | D42: =D41*D36/1000 -> 31.0844887 | M42: Calculated for year prior to SAR cost base year
B43: BASE YEAR, O&M EXPENSES: | D43: 2008
B44: BASE YEAR FUEL COST: | D44: 2019 | G44: General inflation rate: | H44: 0.02 | I44: per year | N44: Gas prices were extrapolated using exponential growth.
B45: ESCALATION RATE; "SAR" (%): | C45: N/A | D45: 0.014 | G45: Note: The Annual Energy Outlook includes both a real and nominal forecast so no need to use general inflation rate.
C46: N/A
B47: ESCALATION RATE; O&M (%): | C47: N/A | D47: 0.02
C48: N/A
B49: ADJUSTABLE PORTION ($/MWh): | C49: CALC | D49: =IF(D53="FUELED",D42,0) -> 0
B50: CAPITAL CARRYING CHARGE (%): | C50: N/A | D50: =HLOOKUP($D$27,$B$62:$G$65,4) -> 0.1115702157
B51: LEVEL CARRYING COST ($/MWh): | C51: CALC | D51: =R41 -> 49.97548274
B52: "TILTING" RATE (%): | C52: N/A | D52: 0.014
B53: TYPE OF RATES: | C53: N/A | D53: =IF('Input - Capacity Factors'!C3="Fueled", "Fueled", "Non-fueled") -> Non-fueled
B54: CURRENT YEAR: | C54: N/A | D54: =D13 -> 2022
B62: UTILITY-SPECIFIC VARIABLES | D62: IPCO | E62: AVISTA | F62: PCP
B63: FIRST DEFICIT YEAR: | D63: 2002 | E63: 2002 | F63: 2002
B64: UTILITY WEIGHTED COST OF CAPITAL (%): | D64: 0.081801171 | E64: 0.0705 | F64: 0.0798
B65: CAPITAL CARRYING CHARGE (%): | D65: 0.1115702157 | E65: 0.09999959216 | F65: 0.109170507
B66: HLH LLH PRICE DIFFERENTIAL: | D66: 7.28 | E66: 5 | F66: Monthly
B67: WIND INTEGRATION ADJUSTMENT: | D67: NA | E67: 0.08 | F67: NA
B68: SOLAR INTEGRATION ADJUSTMENT: | D68: NA | E68: NA | F68: NA
B69: Rate Effective Date | E69: XXXX, 2022
B71: SEASONALIZATION FACTORS | C71: FACTOR | D71: SEASON | E71: FACTOR | F71: Tiber, United Materials Contracts | H71: New Contracts
B72: Idaho Power | C72: 0.735 | D72: Mar-May | E72: 0.735 | F72: Mar-May | H72: Mar-May
C73: 1.2 | D73: Jun-Sep | E73: 1.2 | F73: Jun, Jul, Nov, Dec | H73: Jul, Aug, Nov, Dec
C74: 1 | D74: Oct-Feb | E74: 1 | F74: Jan, Feb, Aug, Sep, Oct | H74: Jan, Feb, Jun, Sep, Oct
B75: Avista | C75: 1.08 | D75: Jul-Feb | E75: 1.08 | H75: July - Feb
C76: 0.84 | D76: Mar-Jun | E76: 0.84 | H76: Mar - June
B78: PacifiCorp | D78: Monthly | E78: See PacifiCorp spreadsheets
B83: Light Load Hours (LLH) are defined as: | G83: Integration Charges
B84: Monday through Saturday Hour ending 2300 through 0600 (Pacific Prevailing Time (PPT)) | G84: Tier | H84: Avista | I84: Integration Charge
B85: All Sunday Hours (PPT) | G85: 1 | H85: 0 - 199 MW | I85: 0.07
B86: All NERC Holidays (PPT) | G86: 2 | H86: 200 - 299 MW | I86: 0.08
C87: NERC Holidays being: | D87: NERC Holidays being: | G87: 3 | H87: 300 and above | I87: 0.09
D88: New Years Day
D89: Memorial Day | H89: Idaho Power | I89: Integration Charge
D90: Independence Day | G90: 1 | H90: 0 - 300 MW | I90: Sch 87
D91: Labor Day | G91: 2 | H91: 301 - 500 MW | I91: Sch 87
D92: Thanksgiving Day | G92: 3 | H92: 501 and above | I92: Sch 87
D93: Christmas Day
B94: Heavy Load Hours (HLH) are defined as: | H94: PacifiCorp | I94: Integration Charge
B95: Monday through Saturday Hour ending 0700 through 2200 (PST) | G95: Wind | H95: All new capacity | I95: NA
B96: Less all NERC Holidays | G96: Solar | H96: All new capacity | I96: NA
D101: Drop down box (don't change)
D102: AVISTA | E102: 1
D103: IPCO | E103: 2
D104: PCP | E104: 3
D105: =VLOOKUP(E105,D102:E104,2,FALSE) -> 2 | E105: IPCO
E106: Wind
D110: New contract | E110: New contract
D111: Replacement contract

Sheet Single rate sheets for printing
B3: =O3 -> IDAHO POWER COMPANY | M3: Company | N3: ='AVOID NEW'!E105 -> IPCO | O3: =VLOOKUP(N3,P:Q,2,FALSE) -> IDAHO POWER COMPANY | P3: AVISTA | Q3: AVISTA
B4: ="AVOIDED COST RATES FOR "&UPPER(N4)&" PROJECTS" -> AVOIDED COST RATES FOR WIND PROJECTS | M4: Type of project | N4: ='Input - Load and Resource'!D2 -> Wind | P4: IPCO | Q4: IDAHO POWER COMPANY
B5: ='AVOID NEW'!$E$69 -> XXXX, 2022 | O5: Eligibility for these rates is limited to projects 100 kW or smaller. | P5: PCP | Q5: PACIFICORP
B6: $/MWh | O6: Eligibility for these rates is limited to projects smaller than 10 aMW.
B7: =IF('AVOID NEW'!$E$110="New contract", "New Contracts and Replacement Contracts without Full Capacity Payments","Replacement Contracts with Full Capacity Payments") -> New Contracts and Replacement Contracts without Full Capacity Payments | O7: Note: These rates will be further adjusted with the applicable integration charge.
B8: =IF(N4="Wind",O5,IF(N4="Solar",O5,O6)) -> Eligibility for these rates is limited to projects 100 kW or smaller. | O8: Note: "Other projects" refers to projects other than wind, solar, non-seasonal hydro, and seasonal hydro projects. These "Other projects" may include (but are not limited to): cogeneration, biomass, biogas, landfill gas, or geothermal projects.
O9: =" " -> 
B10: LEVELIZED | I10: NON-LEVELIZED | O10: Note: A "seasonal hydro project" is defined as a generation facility which produces at least 55% of its annual generation during the months of June, July, and August. Order 32802
B11: CONTRACT | C11: ON-LINE YEAR | M11: Rates calculated using extrapolated gas prices
B12: LENGTH | I12: CONTRACT | J12: NON-LEVELIZED | L12: Levelized | M12: 2017 | N12: 20 | O12: =H34 -> 47.9642334
B13: (YEARS) | C13: ='AVOID NEW'!$AN$8 -> 2022 | D13: ='AVOID NEW'!$AO$8 -> 2023 | E13: ='AVOID NEW'!$AP$8 -> 2024 | F13: ='AVOID NEW'!$AQ$8 -> 2025 | G13: ='AVOID NEW'!$AR$8 -> 2026 | H13: ='AVOID NEW'!$AS$8 -> 2027 | I13: YEAR | J13: RATES | L13: Non-levelized | M13: 2036 | N13: =J39 -> 65.16718606
M14: 2037 | N14: =J40 -> 66.85488341
B15: 1 | C15: ='AVOID NEW'!$AN$9 -> 33.41996611 | D15: ='AVOID NEW'!$AO$9 -> 35.54237876 | E15: ='AVOID NEW'!$AP$9 -> 33.69315868 | F15: ='AVOID NEW'!$AQ$9 -> 33.21200078 | G15: ='AVOID NEW'!$AR$9 -> 34.46980282 | H15: ='AVOID NEW'!$AS$9 -> 36.48321624 | I15: ='AVOID NEW'!$AL$9 -> 2022 | J15: ='AVOID NEW'!$AM$9 -> 33.41996611
B16: 2 | C16: ='AVOID NEW'!$AN$10 -> 34.43947397 | D16: ='AVOID NEW'!$AO$10 -> 34.65409985 | E16: ='AVOID NEW'!$AP$10 -> 33.46203291 | F16: ='AVOID NEW'!$AQ$10 -> 33.8161901 | G16: ='AVOID NEW'!$AR$10 -> 35.43695254 | H16: ='AVOID NEW'!$AS$10 -> 37.67782438 | I16: ='AVOID NEW'!$AL$10 -> 2023 | J16: ='AVOID NEW'!$AM$10 -> 35.54237876
B17: 3 | C17: ='AVOID NEW'!$AN$11 -> 34.20998642 | D17: ='AVOID NEW'!$AO$11 -> 34.2106629 | E17: ='AVOID NEW'!$AP$11 -> 33.77191621 | F17: ='AVOID NEW'!$AQ$11 -> 34.6362849 | G17: ='AVOID NEW'!$AR$11 -> 36.52339079 | H17: ='AVOID NEW'!$AS$11 -> 38.74755188 | I17: ='AVOID NEW'!$AL$11 -> 2024 | J17: ='AVOID NEW'!$AM$11 -> 33.69315868
B18: 4 | C18: ='AVOID NEW'!$AN$12 -> 33.98910127 | D18: ='AVOID NEW'!$AO$12 -> 34.26801859 | E18: ='AVOID NEW'!$AP$12 -> 34.37201093 | F18: ='AVOID NEW'!$AQ$12 -> 35.59550419 | G18: ='AVOID NEW'!$AR$12 -> 37.54888123 | H18: ='AVOID NEW'!$AS$12 -> 39.66224506 | I18: ='AVOID NEW'!$AL$12 -> 2025 | J18: ='AVOID NEW'!$AM$12 -> 33.21200078 | L18: The company, contract type, and resource type are all tied to those selected in AVOID NEW.
B19: 5 | C19: ='AVOID NEW'!$AN$13 -> 34.07074621 | D19: ='AVOID NEW'!$AO$13 -> 34.6442597 | E19: ='AVOID NEW'!$AP$13 -> 35.15298414 | F19: ='AVOID NEW'!$AQ$13 -> 36.54004423 | G19: ='AVOID NEW'!$AR$13 -> 38.45438888 | H19: ='AVOID NEW'!$AS$13 -> 40.4608731 | I19: ='AVOID NEW'!$AL$13 -> 2026 | J19: ='AVOID NEW'!$AM$13 -> 34.46980282
B20: 6 | C20: ='AVOID NEW'!$AN$14 -> 34.39811252 | D20: ='AVOID NEW'!$AO$14 -> 35.23127287 | E20: ='AVOID NEW'!$AP$14 -> 35.96767102 | F20: ='AVOID NEW'!$AQ$14 -> 37.4003941 | G20: ='AVOID NEW'!$AR$14 -> 39.25635396 | H20: ='AVOID NEW'!$AS$14 -> 41.22174825 | I20: ='AVOID NEW'!$AL$14 -> 2027 | J20: ='AVOID NEW'!$AM$14 -> 36.48321624
B21: 7 | C21: ='AVOID NEW'!$AN$15 -> 34.90769395 | D21: ='AVOID NEW'!$AO$15 -> 35.89169515 | E21: ='AVOID NEW'!$AP$15 -> 36.73811907 | F21: ='AVOID NEW'!$AQ$15 -> 38.17656707 | G21: ='AVOID NEW'!$AR$15 -> 40.01555431 | H21: ='AVOID NEW'!$AS$15 -> 41.94458086 | I21: ='AVOID NEW'!$AL$15 -> 2028 | J21: ='AVOID NEW'!$AM$15 -> 38.97015288
B22: 8 | C22: ='AVOID NEW'!$AN$16 -> 35.49137959 | D22: ='AVOID NEW'!$AO$16 -> 36.54445972 | E22: ='AVOID NEW'!$AP$16 -> 37.45044456 | F22: ='AVOID NEW'!$AQ$16 -> 38.91366642 | G22: ='AVOID NEW'!$AR$16 -> 40.73398299 | H22: ='AVOID NEW'!$AS$16 -> 42.59250793 | I22: ='AVOID NEW'!$AL$16 -> 2029 | J22: ='AVOID NEW'!$AM$16 -> 41.15667978
B23: 9 | C23: ='AVOID NEW'!$AN$17 -> 36.07864342 | D23: ='AVOID NEW'!$AO$17 -> 37.16597985 | E23: ='AVOID NEW'!$AP$17 -> 38.13536507 | F23: ='AVOID NEW'!$AQ$17 -> 39.61256546 | G23: ='AVOID NEW'!$AR$17 -> 41.3815314 | H23: ='AVOID NEW'!$AS$17 -> 43.15669788 | I23: ='AVOID NEW'!$AL$17 -> 2030 | J23: ='AVOID NEW'!$AM$17 -> 42.88024554
B24: 10 | C24: ='AVOID NEW'!$AN$18 -> 36.6457268 | D24: ='AVOID NEW'!$AO$18 -> 37.77524652 | E24: ='AVOID NEW'!$AP$18 -> 38.79046772 | F24: ='AVOID NEW'!$AQ$18 -> 40.24693246 | G24: ='AVOID NEW'!$AR$18 -> 41.95024645 | H24: ='AVOID NEW'!$AS$18 -> 43.68269764 | I24: ='AVOID NEW'!$AL$18 -> 2031 | J24: ='AVOID NEW'!$AM$18 -> 44.36433344
B25: 11 | C25: ='AVOID NEW'!$AN$19 -> 37.20636813 | D25: ='AVOID NEW'!$AO$19 -> 38.36620856 | E25: ='AVOID NEW'!$AP$19 -> 39.39089108 | F25: ='AVOID NEW'!$AQ$19 -> 40.80887353 | G25: ='AVOID NEW'!$AR$19 -> 42.47932696 | H25: ='AVOID NEW'!$AS$19 -> 44.17148346 | I25: ='AVOID NEW'!$AL$19 -> 2032 | J25: ='AVOID NEW'!$AM$19 -> 46.06801245
B26: 12 | C26: ='AVOID NEW'!$AN$20 -> 37.75382252 | D26: ='AVOID NEW'!$AO$20 -> 38.91441318 | E26: ='AVOID NEW'!$AP$20 -> 39.92788872 | F26: ='AVOID NEW'!$AQ$20 -> 41.33195474 | G26: ='AVOID NEW'!$AR$20 -> 42.97033455 | H26: ='AVOID NEW'!$AS$20 -> 44.64303535 | I26: ='AVOID NEW'!$AL$20 -> 2033 | J26: ='AVOID NEW'!$AM$20 -> 47.70710996
B27: 13 | C27: ='AVOID NEW'!$AN$21 -> 38.26543099 | D27: ='AVOID NEW'!$AO$21 -> 39.40988977 | E27: ='AVOID NEW'!$AP$21 -> 40.4296906 | F27: ='AVOID NEW'!$AQ$21 -> 41.81771905 | G27: ='AVOID NEW'!$AR$21 -> 43.44141367 | H27: ='AVOID NEW'!$AS$21 -> 45.09702088 | I27: ='AVOID NEW'!$AL$21 -> 2034 | J27: ='AVOID NEW'!$AM$21 -> 48.88134056
B28: 14 | C28: ='AVOID NEW'!$AN$22 -> 38.73122722 | D28: ='AVOID NEW'!$AO$22 -> 39.87595474 | E28: ='AVOID NEW'!$AP$22 -> 40.89720067 | F28: ='AVOID NEW'!$AQ$22 -> 42.28241402 | G28: ='AVOID NEW'!$AR$22 -> 43.89294962 | H28: ='AVOID NEW'!$AS$22 -> 45.54723592 | I28: ='AVOID NEW'!$AL$22 -> 2035 | J28: ='AVOID NEW'!$AM$22 -> 49.69106177
B29: 15 | C29: ='AVOID NEW'!$AN$23 -> 39.17105099 | D29: ='AVOID NEW'!$AO$23 -> 40.31252894 | E29: ='AVOID NEW'!$AP$23 -> 41.34458736 | F29: ='AVOID NEW'!$AQ$23 -> 42.72673925 | G29: ='AVOID NEW'!$AR$23 -> 44.33773501 | H29: ='AVOID NEW'!$AS$23 -> 45.98528181 | I29: ='AVOID NEW'!$AL$23 -> 2036 | J29: ='AVOID NEW'!$AM$23 -> 50.84211265
B30: 16 | C30: ='AVOID NEW'!$AN$24 -> 39.58440087 | D30: ='AVOID NEW'!$AO$24 -> 40.73164395 | E30: ='AVOID NEW'!$AP$24 -> 41.77243478 | F30: ='AVOID NEW'!$AQ$24 -> 43.16241611 | G30: ='AVOID NEW'!$AR$24 -> 44.7687904 | H30: ='AVOID NEW'!$AS$24 -> 46.40066762 | I30: ='AVOID NEW'!$AL$24 -> 2037 | J30: ='AVOID NEW'!$AM$24 -> 51.89736072
B31: 17 | C31: ='AVOID NEW'!$AN$25 -> 39.98175533 | D31: ='AVOID NEW'!$AO$25 -> 41.13347773 | E31: ='AVOID NEW'!$AP$25 -> 42.19124527 | F31: ='AVOID NEW'!$AQ$25 -> 43.58352142 | G31: ='AVOID NEW'!$AR$25 -> 45.17703333 | H31: ='AVOID NEW'!$AS$25 -> 46.80484691 | I31: ='AVOID NEW'!$AL$25 -> 2038 | J31: ='AVOID NEW'!$AM$25 -> 53.21633676
B32: 18 | C32: ='AVOID NEW'!$AN$26 -> 40.36313356 | D32: ='AVOID NEW'!$AO$26 -> 41.52722662 | E32: ='AVOID NEW'!$AP$26 -> 42.59577632 | F32: ='AVOID NEW'!$AQ$26 -> 43.9820921 | G32: ='AVOID NEW'!$AR$26 -> 45.57295283 | H32: ='AVOID NEW'!$AS$26 -> 47.20155847 | I32: ='AVOID NEW'!$AL$26 -> 2039 | J32: ='AVOID NEW'!$AM$26 -> 54.51725051
B33: 19 | C33: ='AVOID NEW'!$AN$27 -> 40.73673142 | D33: ='AVOID NEW'!$AO$27 -> 41.90803761 | E33: ='AVOID NEW'!$AP$27 -> 42.97887376 | F33: ='AVOID NEW'!$AQ$27 -> 44.36770314 | G33: ='AVOID NEW'!$AR$27 -> 45.96015372 | H33: ='AVOID NEW'!$AS$27 -> 47.58767997 | I33: ='AVOID NEW'!$AL$27 -> 2040 | J33: ='AVOID NEW'!$AM$27 -> 56.14045703
B34: 20 | C34: ='AVOID NEW'!$AN$28 -> 41.09813936 | D34: ='AVOID NEW'!$AO$28 -> 42.26931278 | E34: ='AVOID NEW'!$AP$28 -> 43.34918028 | F34: ='AVOID NEW'!$AQ$28 -> 44.74377533 | G34: ='AVOID NEW'!$AR$28 -> 46.33602396 | H34: ='AVOID NEW'!$AS$28 -> 47.9642334 | I34: ='AVOID NEW'!$AL$28 -> 2041 | J34: ='AVOID NEW'!$AM$28 -> 57.60916596
I35: ='AVOID NEW'!$AL$29 -> 2042 | J35: ='AVOID NEW'!$AM$29 -> 58.77427396
I36: ='AVOID NEW'!$AL$30 -> 2043 | J36: ='AVOID NEW'!$AM$30 -> 60.26674122
I37: ='AVOID NEW'!$AL$31 -> 2044 | J37: ='AVOID NEW'!$AM$31 -> 61.92474266
I38: ='AVOID NEW'!$AL$32 -> 2045 | J38: ='AVOID NEW'!$AM$32 -> 63.50776469
I39: ='AVOID NEW'!$AL$33 -> 2046 | J39: ='AVOID NEW'!$AM$33 -> 65.16718606
I40: ='AVOID NEW'!$AL$34 -> 2047 | J40: ='AVOID NEW'!$AM$34 -> 66.85488341
I42: =IF(N4="Fueled", "ADJUSTABLE COMPONENT","") -> 
I43: =IF(N4="Fueled",'AVOID NEW'!D42,"") -> 
B45: =IF(N4="Fueled", "The total avoided cost rate in each year is the sum of the adjustable component and the fixed component from either of the tables above.", "") -> 
B47: =IF($N$4="Fueled", "Example 1. A 20-year levelized contract with a "&C14&" on-line date would receive the following rates:", "") -> 
C48: =IF($N$4="Fueled", "Year","") ->  | E48: =IF($N$4="Fueled", "Rate", "") -> 
C49: =IF($N$4="Fueled", "1", "") ->  | E49: =IF($N$4="Fueled", TEXT($C$34,"$0.00")&" + "&TEXT($I$43,"$0.00"),"") -> 
C50: =IF($N$4="Fueled", "2-20", "") ->  | E50: =IF($N$4="Fueled", TEXT($C$34,"$0.00")&" + Adjustable component in each year","") -> 
B52: =IF($N$4="Fueled", "Example 2. A 3-year non-levelized contract with a "&$I$15&" on-line date would receive the following rates:","") -> 
C53: =IF($N$4="Fueled", "Year","") ->  | E53: =IF($N$4="Fueled", "Rate", "") -> 
C54: =IF($N$4="Fueled", "1", "") ->  | E54: =IF($N$4="Fueled",TEXT($J$15,"$0.00")&" + "&TEXT($I$43,"$0.00"),"") -> 
C55: =IF($N$4="Fueled", "2", "") ->  | E55: =IF($N$4="Fueled", TEXT($J$16,"$0.00")&" + Adjustable component in year "&$I$16,"") -> 
C56: =IF($N$4="Fueled", "3", "") ->  | E56: =IF($N$4="Fueled", TEXT($J$17,"$0.00")&" + Adjustable component in year "&$I$17,"") -> 
B57: =IF($N$4="Seasonal Hydro",$O$10,$O$9) -> 
B61: =IF($N$4="Other",$O$8,IF($N$4="Wind",$O$7,IF($N$4="Solar",$O$7,$O$9))) -> Note: These rates will be further adjusted with the applicable integration charge.
B64: Note: The rates shown in this table have been computed using the U.S. Energy Information Administration (EIA)'s Annual Energy Outlook 2022, released March 3, 2022. See Annual Energy Outlook 2022, Table 3.8 Energy Prices by Sector-Mountain at https://www.eia.gov/outlooks/aeo/tables_ref.php

Sheet All rate sheets for printing
L1: The company and contract type are tied to those selected in AVOID NEW.
B3: =$N$3 -> IDAHO POWER COMPANY | L3: Company | M3: ='AVOID NEW'!E105 -> IPCO | N3: =VLOOKUP(M3,P:Q,2,FALSE) -> IDAHO POWER COMPANY | P3: AVISTA | Q3: AVISTA
B4: ="AVOIDED COST RATES FOR WIND PROJECTS" -> AVOIDED COST RATES FOR WIND PROJECTS | P4: IPCO | Q4: IDAHO POWER COMPANY
B5: ='AVOID NEW'!$E$69 -> XXXX, 2022 | L5: Type of contract | M5: ='AVOID NEW'!E110 -> New contract | P5: PCP | Q5: PACIFICORP
B6: $/MWh
B7: =IF('AVOID NEW'!$E$110="New contract", "New Contracts and Replacement Contracts without Full Capacity Payments","Replacement Contracts with Full Capacity Payments") -> New Contracts and Replacement Contracts without Full Capacity Payments
B8: Eligibility for these rates is limited to projects 100 kW or smaller.
B10: LEVELIZED | I10: NON-LEVELIZED
B11: CONTRACT | C11: ON-LINE YEAR
B12: LENGTH | I12: CONTRACT | J12: NON-LEVELIZED
B13: (YEARS) | C13: ='AVOID NEW'!$AN$8 -> 2022 | D13: ='AVOID NEW'!$AO$8 -> 2023 | E13: ='AVOID NEW'!$AP$8 -> 2024 | F13: ='AVOID NEW'!$AQ$8 -> 2025 | G13: ='AVOID NEW'!$AR$8 -> 2026 | H13: ='AVOID NEW'!$AS$8 -> 2027 | I13: YEAR | J13: RATES
L14: Note: You must select the box below to retrieve the rates for the selected utility and contract type.
B15: 1 | C15: 28.77572008 | D15: 29.07452604 | E15: 30.48313631 | F15: 32.84329566 | G15: 35.7600494 | H15: 38.62202101 | I15: 2020 | J15: 28.77572008
B16: 2 | C16: 28.91982712 | D16: 29.75386545 | E16: 31.62138533 | F16: 34.24997699 | G16: 37.14031061 | H16: 40.98242532 | I16: 2021 | J16: 29.07452604
B17: 3 | C17: 29.40443858 | D17: 30.71156037 | E17: 32.90433309 | F17: 35.60527039 | G17: 39.11681462 | H17: 42.07577067 | I17: 2022 | J17: 30.48313631
B18: 4 | C18: 30.17496343 | D18: 31.84274616 | E18: 34.18546241 | F18: 37.37785345 | G18: 40.32511141 | H18: 43.0624707 | I18: 2023 | J18: 32.84329566
B19: 5 | C19: 31.13939967 | D19: 33.01339571 | E19: 35.7967208 | F19: 38.60934223 | G19: 41.38784119 | H19: 43.81314666 | I19: 2024 | J19: 35.7600494
B20: 6 | C20: 32.17625085 | D20: 34.46876386 | E20: 37.00402552 | F20: 39.69988228 | G20: 42.22227243 | H20: 44.50677604 | I20: 2025 | J20: 38.62202101
B21: 7 | C21: 33.47268775 | D21: 35.61665081 | E21: 38.08728614 | F21: 40.58129178 | G21: 42.97641623 | H21: 45.12499809 | I21: 2026 | J21: 43.51631935
B22: 8 | C22: 34.53493468 | D22: 36.6621514 | E22: 38.98452986 | F22: 41.37412548 | G22: 43.64417384 | H22: 45.82804064 | I22: 2027 | J22: 44.50945055
B23: 9 | C23: 35.51772193 | D23: 37.54645224 | E23: 39.79369341 | F23: 42.07681811 | G23: 44.36703687 | H23: 46.52304592 | I23: 2028 | J23: 46.47941889
B24: 10 | C24: 36.36430551 | D24: 38.34893049 | E24: 40.5141854 | F24: 42.81383098 | G24: 45.07237557 | H24: 47.20297308 | I24: 2029 | J24: 47.40966294
B25: 11 | C25: 37.13886907 | D25: 39.06820334 | E25: 41.25522134 | F25: 43.52661013 | G25: 45.7565784 | H25: 47.8615271 | I25: 2030 | J25: 48.81884672
B26: 12 | C26: 37.83846774 | D26: 39.79988405 | E26: 41.96818892 | F26: 44.21371229 | G26: 46.41565465 | H26: 48.51448693 | I26: 2031 | J26: 49.91442862
B27: 13 | C27: 38.5466568 | D27: 40.50243699 | E27: 42.65282006 | F27: 44.87274852 | G27: 47.06456214 | H27: 49.13175169 | I27: 2032 | J27: 52.42962163
B28: 14 | C28: 39.22700867 | D28: 41.17600939 | E28: 43.30769677 | F28: 45.51782011 | G28: 47.67741048 | H28: 49.72288214 | I28: 2033 | J28: 54.27491412
B29: 15 | C29: 39.87956191 | D29: 41.81962195 | E29: 43.94594728 | F29: 46.12650709 | G29: 48.26307109 | H29: 50.29490758 | I29: 2034 | J29: 56.07396776
B30: 16 | C30: 40.50337783 | D30: 42.44529043 | E30: 44.54795376 | F30: 46.70708049 | G30: 48.82821289 | H30: 50.87490924 | I30: 2035 | J30: 57.79214705
B31: 17 | C31: 41.10925344 | D31: 43.03561129 | E31: 45.12138402 | F31: 47.26587844 | G31: 49.39761249 | H31: 51.42251104 | I31: 2036 | J31: 59.78540233
B32: 18 | C32: 41.68151253 | D32: 43.59759746 | E32: 45.67221338 | F32: 47.82563837 | G32: 49.93522621 | H32: 51.9474797 | I32: 2037 | J32: 61.23228445
B33: 19 | C33: 42.22645611 | D33: 44.13679551 | E33: 46.22131922 | F33: 48.35408691 | G33: 50.45001386 | H33: 52.47846859 | I33: 2038 | J33: 62.79740335
B34: 20 | C34: 42.74913388 | D34: 44.67234258 | E34: 46.73969262 | F34: 48.85948933 | G34: 50.96818964 | H34: 53.02274281 | I34: 2039 | J34: 64.4908561
I35: 2040 | J35: 66.94938647
I36: 2041 | J36: 68.30236682
I37: 2042 | J37: 69.8826121
I38: 2043 | J38: 72.52264361
I39: 2044 | J39: 75.66280824
I40: 2045 | J40: 78.53028325
B56: Note: These rates will be further adjusted with the applicable integration charge.
B63: Note: The rates shown in this table have been computed using the U.S. Energy Information Administration (EIA)'s Annual Energy Outlook 2022, released March 3, 2022. See Annual Energy Outlook 2022, Table 3.8 Energy Prices by Sector-Mountain at https://www.eia.gov/outlooks/aeo/tables_ref.php
J64: =$B$3&" Page 1" -> IDAHO POWER COMPANY Page 1
B66: =$N$3 -> IDAHO POWER COMPANY
B67: ="AVOIDED COST RATES FOR SOLAR PROJECTS" -> AVOIDED COST RATES FOR SOLAR PROJECTS
B68: ='AVOID NEW'!$E$69 -> XXXX, 2022
B69: $/MWh
B70: =IF('AVOID NEW'!$E$110="New contract", "New Contracts and Replacement Contracts without Full Capacity Payments","Replacement Contracts with Full Capacity Payments") -> New Contracts and Replacement Contracts without Full Capacity Payments
B71: Eligibility for these rates is limited to projects 100 kW or smaller.
B73: LEVELIZED | I73: NON-LEVELIZED
B74: CONTRACT | C74: ON-LINE YEAR
B75: LENGTH | I75: CONTRACT | J75: NON-LEVELIZED
B76: (YEARS) | C76: ='AVOID NEW'!$AN$8 -> 2022 | D76: ='AVOID NEW'!$AO$8 -> 2023 | E76: ='AVOID NEW'!$AP$8 -> 2024 | F76: ='AVOID NEW'!$AQ$8 -> 2025 | G76: ='AVOID NEW'!$AR$8 -> 2026 | H76: ='AVOID NEW'!$AS$8 -> 2027 | I76: YEAR | J76: RATES
B78: 1 | C78: 28.77572008 | D78: 29.07452604 | E78: 30.48313631 | F78: 32.84329566 | G78: 35.7600494 | H78: 38.62202101 | I78: 2020 | J78: 28.77572008
B79: 2 | C79: 28.91982712 | D79: 29.75386545 | E79: 31.62138533 | F79: 34.24997699 | G79: 37.14031061 | H79: 41.64111641 | I79: 2021 | J79: 29.07452604
B80: 3 | C80: 29.40443858 | D80: 30.71156037 | E80: 32.90433309 | F80: 35.60527039 | G80: 39.54019879 | H80: 42.9598932 | I80: 2022 | J80: 30.48313631
B81: 4 | C81: 30.17496343 | D81: 31.84274616 | E81: 34.18546241 | F81: 37.68387947 | G81: 40.96416339 | H81: 44.06360064 | I81: 2023 | J81: 32.84329566
B82: 5 | C82: 31.13939967 | D82: 33.01339571 | E82: 36.03256732 | F82: 39.10184346 | G82: 42.15938677 | H82: 49.57935628 | I82: 2024 | J82: 35.7600494
B83: 6 | C83: 32.17625085 | D83: 34.65801934 | E83: 37.39923406 | F83: 40.31901048 | G83: 46.84937818 | H83: 53.49484861 | I83: 2025 | J83: 38.62202101
B84: 7 | C84: 33.6288304 | D84: 35.9427122 | E84: 38.59808937 | F84: 44.39882191 | G84: 50.3919022 | H84: 53.25351296 | I84: 2026 | J84: 44.88211531
B85: 8 | C85: 34.80943789 | D85: 37.09218432 | E85: 42.1984164 | F85: 47.61704428 | G85: 50.48737447 | H85: 53.31772941 | I85: 2027 | J85: 45.89536144
B86: 9 | C86: 35.88535117 | D86: 40.29395971 | E86: 45.13067898 | F86: 47.92697638 | G86: 50.76986897 | H86: 53.52098308 | I86: 2028 | J86: 47.88574619
B87: 10 | C87: 38.74149534 | D87: 42.96658044 | E87: 45.57584103 | F87: 48.35366933 | G87: 51.12710886 | H87: 53.81203538 | I87: 2029 | J87: 76.00554568
B88: 11 | C88: 41.17284439 | D88: 43.49006167 | E88: 46.09481971 | F88: 48.8160203 | G88: 51.53024997 | H88: 54.15646254 | I88: 2030 | J88: 77.83620455
B89: 12 | C89: 41.73200685 | D89: 44.06125204 | E89: 46.62562566 | F89: 49.29755135 | G89: 51.95847749 | H89: 54.55128841 | I89: 2031 | J89: 51.38386061
B90: 13 | C90: 42.32359237 | D90: 44.63041619 | E90: 47.15872816 | F90: 49.78546312 | G90: 52.41509987 | H90: 54.95342569 | I90: 2032 | J90: 53.92072288
B91: 14 | C91: 42.9060181 | D91: 45.19184318 | E91: 47.68609172 | F91: 50.2864194 | G91: 52.86590403 | H91: 55.36315725 | I91: 2033 | J91: 55.78800994
B92: 15 | C92: 43.47554117 | D92: 45.74025668 | E92: 48.21599058 | F92: 50.77254479 | G92: 53.3136567 | H92: 55.78070708 | I92: 2034 | J92: 57.60938846
B93: 16 | C93: 44.02838613 | D93: 46.2844489 | E93: 48.72516551 | F93: 51.24801771 | G93: 53.76044711 | H93: 57.33967659 | I93: 2035 | J93: 59.35022802
B94: 17 | C94: 44.5731801 | D94: 46.80455056 | E94: 49.21849894 | F94: 51.71604576 | G94: 55.23052617 | H94: 57.73760426 | I94: 2036 | J94: 61.36648409
B95: 18 | C95: 45.09255874 | D95: 47.30565624 | E95: 49.69979921 | F95: 53.10466695 | G95: 55.65064725 | H95: 58.13208347 | I95: 2037 | J95: 62.83671277
B96: 19 | C96: 45.59149001 | D96: 47.79179767 | E96: 51.01199574 | F96: 53.54078613 | G96: 56.06249267 | H96: 58.54868081 | I96: 2038 | J96: 64.4255293
B97: 20 | C97: 46.07395692 | D97: 49.03024744 | E97: 51.45784498 | F97: 53.96495796 | G97: 56.49004177 | H97: 58.99219113 | I97: 2039 | J97: 66.14303617
I98: 2040 | J98: 100.5457941
I99: 2041 | J99: 70.00374659
I100: 2042 | J100: 71.60914869
I101: 2043 | J101: 74.27471596
I102: 2044 | J102: 77.44080114
I103: 2045 | J103: 80.33458742
B119: Note: These rates will be further adjusted with the applicable integration charge.
B126: Note: The rates shown in this table have been computed using the U.S. Energy Information Administration (EIA)'s Annual Energy Outlook 2022, released March 3, 2022. See Annual Energy Outlook 2022, Table 3.8 Energy Prices by Sector-Mountain at https://www.eia.gov/outlooks/aeo/tables_ref.php
J127: =$B$3&" Page 2" -> IDAHO POWER COMPANY Page 2
B129: =$N$3 -> IDAHO POWER COMPANY
B130: ="AVOIDED COST RATES FOR NON-SEASONAL HYDRO PROJECTS" -> AVOIDED COST RATES FOR NON-SEASONAL HYDRO PROJECTS
B131: ='AVOID NEW'!$E$69 -> XXXX, 2022
B132: $/MWh
B133: =IF('AVOID NEW'!$E$110="New contract", "New Contracts and Replacement Contracts without Full Capacity Payments","Replacement Contracts with Full Capacity Payments") -> New Contracts and Replacement Contracts without Full Capacity Payments
B134: Eligibility for these rates is limited to projects smaller than 10 aMW.
B136: LEVELIZED | I136: NON-LEVELIZED
B137: CONTRACT | C137: ON-LINE YEAR
B138: LENGTH | I138: CONTRACT | J138: NON-LEVELIZED
B139: (YEARS) | C139: ='AVOID NEW'!$AN$8 -> 2022 | D139: ='AVOID NEW'!$AO$8 -> 2023 | E139: ='AVOID NEW'!$AP$8 -> 2024 | F139: ='AVOID NEW'!$AQ$8 -> 2025 | G139: ='AVOID NEW'!$AR$8 -> 2026 | H139: ='AVOID NEW'!$AS$8 -> 2027 | I139: YEAR | J139: RATES
B141: 1 | C141: 28.77572008 | D141: 29.07452604 | E141: 30.48313631 | F141: 32.84329566 | G141: 35.7600494 | H141: 38.62202101 | I141: 2020 | J141: 28.77572008
B142: 2 | C142: 28.91982712 | D142: 29.75386545 | E142: 31.62138533 | F142: 34.24997699 | G142: 37.14031061 | H142: 44.68535969 | I142: 2021 | J142: 29.07452604
B143: 3 | C143: 29.40443858 | D143: 30.71156037 | E143: 32.90433309 | F143: 35.60527039 | G143: 41.49693461 | H143: 47.04600297 | I143: 2022 | J143: 30.48313631
B144: 4 | C144: 30.17496343 | D144: 31.84274616 | E144: 34.18546241 | F144: 39.09822629 | G144: 43.9176415 | H144: 48.69047834 | I144: 2023 | J144: 32.84329566
B145: 5 | C145: 31.13939967 | D145: 33.01339571 | E145: 37.12256872 | F145: 41.37801449 | G145: 45.72520463 | H145: 52.92790961 | I145: 2024 | J145: 35.7600494
B146: 6 | C146: 32.17625085 | D146: 35.53269302 | E146: 39.22575179 | F146: 43.18040773 | G146: 49.5364311 | H146: 55.98907343 | I146: 2025 | J146: 38.62202101
B147: 7 | C147: 34.35046791 | D147: 37.44965559 | E147: 40.95884591 | F147: 46.61573806 | G147: 52.44972818 | H147: 56.23898421 | I147: 2026 | J147: 51.19435377
B148: 8 | C148: 36.07809719 | D148: 39.07964832 | E148: 44.06478464 | F148: 49.34947833 | G148: 53.00077071 | H148: 56.6791274 | I148: 2027 | J148: 52.30056414
B149: 9 | C149: 37.58440685 | D149: 41.8894923 | E149: 46.61171307 | F149: 50.07564431 | G149: 53.64348196 | H149: 57.18118842 | I149: 2028 | J149: 54.38530651
B150: 10 | C150: 40.12197705 | D150: 44.24799612 | E150: 47.43490478 | F150: 50.83996777 | G150: 54.29398028 | H150: 57.71684709 | I150: 2029 | J150: 73.22959971
B151: 11 | C151: 42.2922881 | D151: 45.11413827 | E151: 48.26684805 | F151: 51.58259665 | G151: 54.94149037 | H151: 58.26626295 | I151: 2030 | J151: 75.01934387
B152: 12 | C152: 43.16204041 | D152: 45.97376861 | E152: 49.06165423 | F152: 52.30122016 | G152: 55.57724307 | H152: 58.83618152 | I152: 2031 | J152: 58.17506903
B153: 13 | C153: 44.018694 | D153: 46.78951697 | E153: 49.82093982 | F153: 52.99284733 | G153: 56.21288622 | H153: 59.39024571 | I153: 2032 | J153: 60.81207916
B154: 14 | C154: 44.83028945 | D154: 47.56450575 | E154: 50.54463246 | F154: 53.67114861 | G154: 56.82016394 | H154: 59.93354593 | I154: 2033 | J154: 62.78101758
B155: 15 | C155: 45.6001424 | D155: 48.29993762 | E155: 51.2468471 | F155: 54.31338771 | G155: 57.40621227 | H155: 60.46983225 | I155: 2034 | J155: 64.70557403
B156: 16 | C156: 46.32977281 | D156: 49.00946541 | E156: 51.90870631 | F156: 54.92759852 | G156: 57.97639842 | H156: 61.75192119 | I156: 2035 | J156: 66.55114151
B157: 17 | C157: 47.03185884 | D157: 49.67693833 | E157: 52.53844475 | F157: 55.51993826 | G157: 59.21152664 | H157: 62.25828376 | I157: 2036 | J157: 68.67369933
B158: 18 | C158: 47.6921887 | D158: 50.31034476 | E158: 53.14247955 | F158: 56.70763734 | G158: 59.74204953 | H158: 62.75112375 | I158: 2037 | J158: 70.25182776
B159: 19 | C159: 48.31822099 | D159: 50.91600274 | E159: 54.28166276 | F159: 57.25370121 | G159: 60.25423505 | H159: 63.25749001 | I159: 2038 | J159: 71.95016662
B160: 20 | C160: 48.91593309 | D160: 52.00454507 | E160: 54.83534931 | F160: 57.77803414 | G160: 60.7734749 | H160: 63.78336477 | I160: 2039 | J160: 73.77884333
I161: 2040 | J161: 97.28442205
I162: 2041 | J162: 77.86693783
I163: 2042 | J163: 79.58860606
I164: 2043 | J164: 82.37219082
I165: 2044 | J165: 85.65807183
I166: 2045 | J166: 88.67345972
B182: Note: These rates will be further adjusted with the applicable integration charge.
B189: Note: The rates shown in this table have been computed using the U.S. Energy Information Administration (EIA)'s Annual Energy Outlook 2022, released March 3, 2022. See Annual Energy Outlook 2022, Table 3.8 Energy Prices by Sector-Mountain at https://www.eia.gov/outlooks/aeo/tables_ref.php
J190: =$B$3&" Page 3" -> IDAHO POWER COMPANY Page 3
B192: =$N$3 -> IDAHO POWER COMPANY
B193: ="AVOIDED COST RATES FOR SEASONAL HYDRO PROJECTS" -> AVOIDED COST RATES FOR SEASONAL HYDRO PROJECTS
B194: ='AVOID NEW'!$E$69 -> XXXX, 2022
B195: $/MWh
B196: =IF('AVOID NEW'!$E$110="New contract", "New Contracts and Replacement Contracts without Full Capacity Payments","Replacement Contracts with Full Capacity Payments") -> New Contracts and Replacement Contracts without Full Capacity Payments
B197: Eligibility for these rates is limited to projects smaller than 10 aMW.
B199: LEVELIZED | I199: NON-LEVELIZED
B200: CONTRACT | C200: ON-LINE YEAR
B201: LENGTH | I201: CONTRACT | J201: NON-LEVELIZED
B202: (YEARS) | C202: ='AVOID NEW'!$AN$8 -> 2022 | D202: ='AVOID NEW'!$AO$8 -> 2023 | E202: ='AVOID NEW'!$AP$8 -> 2024 | F202: ='AVOID NEW'!$AQ$8 -> 2025 | G202: ='AVOID NEW'!$AR$8 -> 2026 | H202: ='AVOID NEW'!$AS$8 -> 2027 | I202: YEAR | J202: RATES
B204: 1 | C204: 28.77572008 | D204: 29.07452604 | E204: 30.48313631 | F204: 32.84329566 | G204: 35.7600494 | H204: 38.62202101 | I204: 2020 | J204: 28.77572008
B205: 2 | C205: 28.91982712 | D205: 29.75386545 | E205: 31.62138533 | F205: 34.24997699 | G205: 37.14031061 | H205: 39.55103893 | I205: 2021 | J205: 29.07452604
B206: 3 | C206: 29.40443858 | D206: 30.71156037 | E206: 32.90433309 | F206: 35.60527039 | G206: 38.19676824 | H206: 40.15450441 | I206: 2022 | J206: 30.48313631
B207: 4 | C207: 30.17496343 | D207: 31.84274616 | E207: 34.18546241 | F207: 36.71283538 | G207: 38.93640231 | H207: 40.88693834 | I207: 2023 | J207: 32.84329566
B208: 5 | C208: 31.13939967 | D208: 33.01339571 | E208: 35.28420815 | F208: 37.53909917 | G208: 39.71121331 | H208: 49.83155811 | I208: 2024 | J208: 35.7600494
B209: 6 | C209: 32.17625085 | D209: 34.05749712 | E209: 36.14520697 | F209: 38.35446909 | G209: 47.05175801 | H209: 56.05748489 | I209: 2025 | J209: 38.62202101
B210: 7 | C210: 33.13337777 | D210: 34.90809435 | E210: 36.97727144 | F210: 44.56579262 | G210: 52.50617012 | H210: 54.99013221 | I210: 2026 | J210: 40.54833966
B211: 8 | C211: 33.93841807 | D211: 35.72765679 | E211: 42.33898501 | F211: 49.39699544 | G211: 51.94939233 | H211: 54.43182815 | I211: 2027 | J211: 41.49775958
B212: 9 | C212: 34.71883532 | D212: 40.41412989 | E212: 46.65233479 | F212: 49.17683537 | G212: 51.72229668 | H212: 54.14837598 | I212: 2028 | J212: 43.42336149
B213: 10 | C213: 38.8454686 | D213: 44.28314272 | E213: 46.65724012 | F213: 49.17772585 | G213: 51.66993979 | H213: 54.04792765 | I213: 2029 | J213: 92.6855625
B214: 11 | C214: 42.32299214 | D214: 44.43477105 | E214: 46.81471484 | F214: 49.29023696 | G214: 51.73632526 | H214: 54.07021635 | I214: 2030 | J214: 94.76206836
B215: 12 | C215: 42.5638433 | D215: 44.69513482 | E215: 47.04318339 | F215: 49.47900498 | G215: 51.88253591 | H215: 54.19503646 | I215: 2031 | J215: 46.7212399
B216: 13 | C216: 42.88541534 | D216: 45.00050595 | E216: 47.31955413 | F216: 49.71815458 | G216: 52.09934665 | H216: 54.36737158 | I216: 2032 | J216: 49.18934393
B217: 14 | C217: 43.23585593 | D217: 45.3351773 | E217: 47.62610383 | F217: 50.00500833 | G217: 52.34359069 | H217: 54.57898267 | I217: 2033 | J217: 50.98684051
B218: 15 | C218: 43.60388974 | D218: 45.68654051 | E218: 47.96400097 | F218: 50.3048392 | G218: 52.6114674 | H218: 54.82384311 | I218: 2034 | J218: 52.73738046
B219: 16 | C219: 43.9800904 | D219: 46.05788725 | E219: 48.30465551 | F219: 50.61668547 | G219: 52.90013911 | H219: 57.09860664 | I219: 2035 | J219: 54.40631726
B220: 17 | C220: 44.36876214 | D220: 46.42514038 | E220: 48.64887188 | F220: 50.93982258 | G220: 55.01301792 | H220: 57.33447524 | I220: 2036 | J220: 56.34959004
B221: 18 | C221: 44.74917681 | D221: 46.79012014 | E221: 48.99728507 | F221: 52.90781298 | G221: 55.28579878 | H221: 57.58462286 | I221: 2037 | J221: 57.7457383
B222: 19 | C222: 45.12364509 | D222: 47.15427166 | E222: 50.83335232 | F222: 53.20968904 | G222: 55.56567652 | H222: 57.87187415 | I222: 2038 | J222: 59.2593604
B223: 20 | C223: 45.49402261 | D223: 48.867742 | E223: 51.15665796 | F223: 53.51302231 | G223: 55.87437528 | H223: 58.19882873 | I223: 2039 | J223: 60.9005417
I224: 2040 | J224: 120.1426238
I225: 2041 | J225: 64.60513768
I226: 2042 | J226: 66.13071528
I227: 2043 | J227: 68.71525561
I228: 2044 | J228: 71.7990929
I229: 2045 | J229: 74.60939151
B234: Note: A "seasonal hydro project" is defined as a generation facility which produces at least 55% of its annual generation during the months of June, July, and August. Order 32802.
B245: Note: These rates will be further adjusted with the applicable integration charge.
B252: Note: The rates shown in this table have been computed using the U.S. Energy Information Administration (EIA)'s Annual Energy Outlook 2022, released March 3, 2022. See Annual Energy Outlook 2022, Table 3.8 Energy Prices by Sector-Mountain at https://www.eia.gov/outlooks/aeo/tables_ref.php
J253: =$B$3&" Page 4" -> IDAHO POWER COMPANY Page 4
B255: =$N$3 -> IDAHO POWER COMPANY
B256: ="AVOIDED COST RATES FOR OTHER PROJECTS" -> AVOIDED COST RATES FOR OTHER PROJECTS
B257: ='AVOID NEW'!$E$69 -> XXXX, 2022
B258: $/MWh
B259: =IF('AVOID NEW'!$E$110="New contract", "New Contracts and Replacement Contracts without Full Capacity Payments","Replacement Contracts with Full Capacity Payments") -> New Contracts and Replacement Contracts without Full Capacity Payments
B260: Eligibility for these rates is limited to projects smaller than 10 aMW.
B262: LEVELIZED | I262: NON-LEVELIZED
B263: CONTRACT | C263: ON-LINE YEAR
B264: LENGTH | I264: CONTRACT | J264: NON-LEVELIZED
B265: (YEARS) | C265: ='AVOID NEW'!$AN$8 -> 2022 | D265: ='AVOID NEW'!$AO$8 -> 2023 | E265: ='AVOID NEW'!$AP$8 -> 2024 | F265: ='AVOID NEW'!$AQ$8 -> 2025 | G265: ='AVOID NEW'!$AR$8 -> 2026 | H265: ='AVOID NEW'!$AS$8 -> 2027 | I265: YEAR | J265: RATES
B267: 1 | C267: 28.77572008 | D267: 29.07452604 | E267: 30.48313631 | F267: 32.84329566 | G267: 35.7600494 | H267: 38.62202101 | I267: 2020 | J267: 28.77572008
B268: 2 | C268: 28.91982712 | D268: 29.75386545 | E268: 31.62138533 | F268: 34.24997699 | G268: 37.14031061 | H268: 49.42278016 | I268: 2021 | J268: 29.07452604
B269: 3 | C269: 29.40443858 | D269: 30.71156037 | E269: 32.90433309 | F269: 35.60527039 | G269: 44.54198699 | H269: 53.40476546 | I269: 2022 | J269: 30.48313631
B270: 4 | C270: 30.17496343 | D270: 31.84274616 | E270: 34.18546241 | F270: 41.29921845 | G270: 48.51381411 | H270: 55.89077839 | I270: 2023 | J270: 32.84329566
B271: 5 | C271: 31.13939967 | D271: 33.01339571 | E271: 38.81881783 | F271: 44.92016872 | G271: 51.27429415 | H271: 57.58388734 | I271: 2024 | J271: 35.7600494
B272: 6 | C272: 32.17625085 | D272: 36.8938513 | E272: 42.0681601 | F272: 47.63328504 | G272: 53.27262917 | H272: 58.94052932 | I272: 2025 | J272: 38.62202101
B273: 7 | C273: 35.47347288 | D273: 39.79474558 | E273: 44.63263126 | F273: 49.69823703 | G273: 54.88478637 | H273: 60.06123728 | I273: 2026 | J273: 61.01739511
B274: 8 | C274: 38.05237189 | D274: 42.1725196 | E274: 46.65986618 | F274: 51.3994951 | G274: 56.21863339 | H274: 61.16567256 | I274: 2027 | J274: 62.2682755
B275: 9 | C275: 40.22846005 | D275: 44.10799187 | E275: 48.36424425 | F275: 52.82655093 | G275: 57.47896782 | H275: 62.1939858 | I275: 2028 | J275: 64.49985622
B276: 10 | C276: 42.04146031 | D276: 45.76431567 | E276: 49.8150356 | F276: 54.15849484 | G276: 58.63113714 | H276: 63.15893356 | I276: 2029 | J276: 65.695635
B277: 11 | C277: 43.61694365 | D277: 47.19341866 | E277: 51.16591065 | F277: 55.37153342 | G277: 59.69569277 | H277: 64.06681372 | I277: 2030 | J277: 67.37433596
B278: 12 | C278: 44.99289045 | D278: 48.52645411 | E278: 52.39789263 | F278: 56.48739521 | G278: 60.68474983 | H278: 64.9417967 | I278: 2031 | J278: 68.74347856
B279: 13 | C279: 46.28119015 | D279: 49.7464917 | E279: 53.53123038 | F279: 57.51973259 | G279: 61.62441491 | H279: 65.75958883 | I279: 2032 | J279: 71.53633778
B280: 14 | C280: 47.46565589 | D280: 50.87125544 | E280: 54.57916187 | F280: 58.49410532 | G280: 62.49676069 | H280: 66.53389783 | I280: 2033 | J280: 73.66346501
B281: 15 | C281: 48.56117215 | D281: 51.91265789 | E281: 55.56556476 | F281: 59.39649754 | G281: 63.31649884 | H281: 67.27479413 | I281: 2034 | J281: 75.74858589
B282: 16 | C282: 49.57793791 | D282: 52.89238658 | E282: 56.47888577 | F282: 60.24148534 | G282: 64.09467995 | H282: 68.01164073 | I282: 2035 | J282: 77.75712991
B283: 17 | C283: 50.53527092 | D283: 53.80043742 | E283: 57.33296269 | F283: 61.04023097 | G283: 64.85943347 | H283: 68.70580812 | I283: 2036 | J283: 80.04511343
B284: 18 | C284: 51.42412624 | D284: 54.64958218 | E284: 58.1385732 | F284: 61.81922706 | G284: 65.57732624 | H284: 69.36842381 | I284: 2037 | J284: 81.79115435
B285: 19 | C285: 52.25604448 | D285: 55.44991805 | E285: 58.92038984 | F285: 62.54916849 | G285: 66.25938231 | H285: 70.02921842 | I285: 2038 | J285: 83.65993073
B286: 20 | C286: 53.04027158 | D286: 56.22422704 | E286: 59.65244405 | F286: 63.24069904 | G286: 66.93347091 | H286: 70.69632222 | I286: 2039 | J286: 85.66160883
I287: 2040 | J287: 88.43300271
I288: 2041 | J288: 90.10355612
I289: 2042 | J289: 92.00615653
I290: 2043 | J290: 94.9733989
I291: 2044 | J291: 98.44570498
I292: 2045 | J292: 101.650328
B308: Note: "Other projects" refers to projects other than wind, solar, non-seasonal hydro, and seasonal hydro projects. These "Other projects" may include (but are not limited to): cogeneration, biomass, biogas, landfill gas, or geothermal projects.
B314: Note: The rates shown in this table have been computed using the U.S. Energy Information Administration (EIA)'s Annual Energy Outlook 2022, released March 3, 2022. See Annual Energy Outlook 2022, Table 3.8 Energy Prices by Sector-Mountain at https://www.eia.gov/outlooks/aeo/tables_ref.php
J315: =$B$3&" Page 5" -> IDAHO POWER COMPANY Page 5

Sheet Input - Capacity Factors
A2: Resource On-Peak Capacity Contributions
A3: Current Resource | B3: =VLOOKUP(C3,A6:E11,5,FALSE) -> 1 | C3: =H10 -> Wind | G3: Old resources - no longer broken apart but grouped into other
A4: Resource | B4: Annual Capacity Factor | C4: On-Peak Capacity Factors | G4: Biomass | H4: 0.85 | I4: 1 | J4: 1
C5: Summer | D5: Winter | G5: Geothermal | H5: 0.85 | I5: 1 | J5: 1
A6: Wind | B6: 0.33 | C6: 0.05 | D6: 0.05 | E6: 1 | G6: Other Base Load | H6: 0.92 | I6: 1 | J6: 1
A7: Solar | B7: 0.226 | C7: 0.35 | D7: 0.05 | E7: 2
A8: Non-seasonal hydro | B8: 0.46 | C8: 0.65 | D8: 0.25 | E8: 3
A9: Seasonal hydro | B9: 0.33 | C9: 0.78 | D9: 0 | E9: 4
A10: Other | B10: 0.89 | C10: 0.93 | D10: 0.93 | E10: 5 | G10: Do not change-used for printing sheets | H10: ='AVOID NEW'!E106 -> Wind
A11: Fueled | B11: 0.89 | C11: 0.93 | D11: 0.93 | E11: 6

Sheet Input - Load and Resource
B1: Utility | D1: ='AVOID NEW'!D27 -> IPCO | E1: ='AVOID NEW'!D105 -> 2 | G1: Notes: | H1: 1. Capacity contributions are set equal to zero when the utility does not need capacity; i.e., when the planning deficit, column (d), is not negative.
B2: Project type | D2: ='Input - Capacity Factors'!C3 -> Wind | H2: Capacity contributions cannot exceed the absolute value of the planning deficit (column (d)).
B3: Project Nameplate | D3: ='AVOID NEW'!D15 -> 0.1 | E3: Contract type | F3: ='AVOID NEW'!$E$110 -> New contract | H3: 2. A capacity payment will be made if the capacity contribution is strictly positive.
D4: Summer | E4: Winter | H4: 3. The capacity factor is calculated as the capacity contribution divided by the project nameplate.
B5: Peak Capacity Factors | D5: =VLOOKUP(D2,'Input - Capacity Factors'!A:D,3,FALSE) -> 0.05 | E5: =VLOOKUP(D2,'Input - Capacity Factors'!A:D,4,FALSE) -> 0.05 | H5: 4. The capacity factor cannot decrease over time.
B6: Peak Capacity (MW) | D6: =$D$3*D5 -> 0.005 | E6: =$D$3*E5 -> 0.005 | H6: 5. Replacement contracts receive capacity payments throughout the life of the contract. In the years preceding a utility's need for capacity, the capacity factor is based on the capacity factor in the first year the resource makes a strictly positive capacity contribution.
B7: Current Year | D7: ='AVOID NEW'!D54 -> 2022 | E7: Max capacity in new contract | G7: =MAX(J13:J42) -> 0.005
B8: Most deficient season | D8: =IF(O9>O10,"Summer", IF(O9<O10,"Winter","Both")) -> Summer | E8: First deficiency | F8: =MIN($N$13:$N$42) -> 2023 | G8: =IF(VLOOKUP(F8,B13:E42,3,FALSE)<VLOOKUP(F8,B13:E42,4,FALSE),D4,IF(VLOOKUP(F8,B13:E42,3,FALSE)>VLOOKUP(F8,B13:E42,4,FALSE),E4,"Either")) -> Summer
B9: Calculation of basis for capacity payments | N9: Summer | O9: =COUNTIF($O$13:$O$42,N9) -> 29
C10: =D1 -> IPCO | G10: With QF output | J10: Capacity Calculations | N10: Winter | O10: =COUNTIF($O$13:$O$42,N10) -> 0
C11: (a) | D11: (b) | E11: (c) | F11: (d) | G11: (e) | H11: (f) | I11: (g) | J11: (h) | K11: (i) | L11: (j)
C12: Energy (aMW) | D12: Summer Capacity (MW) | E12: Winter Capacity (MW) | F12: Planning Deficit (MW) | G12: Summer Capacity (MW) | H12: Winter Capacity (MW) | I12: New Planning Deficit (MW) | J12: Capacity Contribution (1) | K12: Based on capacity contribution, is capacity payment made? (2) | L12: Capacity adjustment applied to rates (3) (4) (5) | N12: Capacity contribution greater than 0? | O12: Season more deficient
A13: =B13-$D$7 -> 0 | B13: =D7 -> 2022 | C13: =OFFSET($B$49,$A13,$E$1*3-2) -> 0 | D13: =OFFSET($B$49,$A13,$E$1*3-1) -> 0 | E13: =OFFSET($B$49,$A13,$E$1*3) -> 0 | F13: =MIN(D13:E13) -> 0 | G13: =D13+$D$6 -> 0.005 | H13: =E13+$E$6 -> 0.005 | I13: =MIN(G13:H13) -> 0.005 | J13: =IF(F13>=0,0,MIN(-1*F13,I13-F13)) -> 0 | K13: =IF(J13>0,"Yes","No") -> No | L13: =IF($F$3="New contract",J13/$D$3,MAX($D$6:$E$6)/$D$3) -> 0 | N13: =IF(J13>0,B13,"") ->  | O13: =IF(F13<0,IF(D13<E13,"Summer",IF(D13>E13,"Winter","Both")),"") -> 
A14: =B14-$D$7 -> 1 | B14: =B13+1 -> 2023 | C14: =OFFSET($B$49,$A14,$E$1*3-2) -> 0 | D14: -101 | E14: 0 | F14: =MIN(D14:E14) -> -101 | G14: =D14+$D$6 -> -100.995 | H14: =E14+$E$6 -> 0.005 | I14: =MIN(G14:H14) -> -100.995 | J14: =IF(F14>=0,0,MIN(-1*F14,I14-F14)) -> 0.005 | K14: =IF(J14>0,"Yes","No") -> Yes | L14: =IF($F$3="New contract",J14/$D$3,MAX($D$6:$E$6)/$D$3) -> 0.05 | N14: =IF(J14>0,B14,"") -> 2023 | O14: =IF(F14<0,IF(D14<E14,"Summer",IF(D14>E14,"Winter","Both")),"") -> Summer
A15: 2 | B15: =B14+1 -> 2024 | C15: 0 | D15: -186 | E15: 0 | F15: -186 | G15: -185.995 | H15: 0.005 | I15: -185.995 | J15: 0.005 | K15: Yes | L15: 0.05 | N15: 2024 | O15: Summer
A16: 3 | B16: 2025 | C16: 0 | D16: -311 | E16: 0 | F16: -311 | G16: -310.995 | H16: 0.005 | I16: -310.995 | J16: 0.005 | K16: Yes | L16: 0.05 | N16: 2025 | O16: Summer
A17: 4 | B17: 2026 | C17: 0 | D17: -560 | E17: 0 | F17: -560 | G17: -559.995 | H17: 0.005 | I17: -559.995 | J17: 0.005 | K17: Yes | L17: 0.05 | N17: 2026 | O17: Summer
A18: 5 | B18: 2027 | C18: 0 | D18: -665 | E18: 0 | F18: -665 | G18: -664.995 | H18: 0.005 | I18: -664.995 | J18: 0.005 | K18: Yes | L18: 0.05 | N18: 2027 | O18: Summer
A19: 6 | B19: 2028 | C19: 0 | D19: -773 | E19: 0 | F19: -773 | G19: -772.995 | H19: 0.005 | I19: -772.995 | J19: 0.005 | K19: Yes | L19: 0.05 | N19: 2028 | O19: Summer
A20: 7 | B20: 2029 | C20: 0 | D20: -823 | E20: 0 | F20: -823 | G20: -822.995 | H20: 0.005 | I20: -822.995 | J20: 0.005 | K20: Yes | L20: 0.05 | N20: 2029 | O20: Summer
A21: 8 | B21: 2030 | C21: 0 | D21: -873 | E21: 0 | F21: -873 | G21: -872.995 | H21: 0.005 | I21: -872.995 | J21: 0.005 | K21: Yes | L21: 0.05 | N21: 2030 | O21: Summer
A22: 9 | B22: 2031 | C22: 0 | D22: -935 | E22: 0 | F22: -935 | G22: -934.995 | H22: 0.005 | I22: -934.995 | J22: 0.005 | K22: Yes | L22: 0.05 | N22: 2031 | O22: Summer
A23: 10 | B23: 2032 | C23: 0 | D23: -983 | E23: 0 | F23: -983 | G23: -982.995 | H23: 0.005 | I23: -982.995 | J23: 0.005 | K23: Yes | L23: 0.05 | N23: 2032 | O23: Summer
A24: 11 | B24: 2033 | C24: 0 | D24: -1051 | E24: 0 | F24: -1051 | G24: -1050.995 | H24: 0.005 | I24: -1050.995 | J24: 0.005 | K24: Yes | L24: 0.05 | N24: 2033 | O24: Summer
A25: 12 | B25: 2034 | C25: 0 | D25: -1102 | E25: 0 | F25: -1102 | G25: -1101.995 | H25: 0.005 | I25: -1101.995 | J25: 0.005 | K25: Yes | L25: 0.05 | N25: 2034 | O25: Summer
A26: 13 | B26: 2035 | C26: 0 | D26: -1155 | E26: 0 | F26: -1155 | G26: -1154.995 | H26: 0.005 | I26: -1154.995 | J26: 0.005 | K26: Yes | L26: 0.05 | N26: 2035 | O26: Summer
A27: 14 | B27: 2036 | C27: 0 | D27: -1210 | E27: 0 | F27: -1210 | G27: -1209.995 | H27: 0.005 | I27: -1209.995 | J27: 0.005 | K27: Yes | L27: 0.05 | N27: 2036 | O27: Summer
A28: 15 | B28: 2037 | C28: 0 | D28: -1282 | E28: 0 | F28: -1282 | G28: -1281.995 | H28: 0.005 | I28: -1281.995 | J28: 0.005 | K28: Yes | L28: 0.05 | N28: 2037 | O28: Summer
A29: 16 | B29: 2038 | C29: 0 | D29: -1349 | E29: 0 | F29: -1349 | G29: -1348.995 | H29: 0.005 | I29: -1348.995 | J29: 0.005 | K29: Yes | L29: 0.05 | N29: 2038 | O29: Summer
A30: 17 | B30: 2039 | C30: 0 | D30: -1406 | E30: 0 | F30: -1406 | G30: -1405.995 | H30: 0.005 | I30: -1405.995 | J30: 0.005 | K30: Yes | L30: 0.05 | N30: 2039 | O30: Summer
A31: 18 | B31: 2040 | C31: 0 | D31: -1466 | E31: 0 | F31: -1466 | G31: -1465.995 | H31: 0.005 | I31: -1465.995 | J31: 0.005 | K31: Yes | L31: 0.05 | N31: 2040 | O31: Summer
A32: 19 | B32: 2041 | C32: 0 | D32: -1466 | E32: 0 | F32: -1466 | G32: -1465.995 | H32: 0.005 | I32: -1465.995 | J32: 0.005 | K32: Yes | L32: 0.05 | N32: 2041 | O32: Summer
A33: 20 | B33: 2042 | C33: 0 | D33: -1466 | E33: 0 | F33: -1466 | G33: -1465.995 | H33: 0.005 | I33: -1465.995 | J33: 0.005 | K33: Yes | L33: 0.05 | N33: 2042 | O33: Summer
A34: 21 | B34: 2043 | C34: 0 | D34: -1466 | E34: 0 | F34: -1466 | G34: -1465.995 | H34: 0.005 | I34: -1465.995 | J34: 0.005 | K34: Yes | L34: 0.05 | N34: 2043 | O34: Summer
A35: 22 | B35: 2044 | C35: 0 | D35: -1466 | E35: 0 | F35: -1466 | G35: -1465.995 | H35: 0.005 | I35: -1465.995 | J35: 0.005 | K35: Yes | L35: 0.05 | N35: 2044 | O35: Summer
A36: 23 | B36: 2045 | C36: 0 | D36: -1466 | E36: 0 | F36: -1466 | G36: -1465.995 | H36: 0.005 | I36: -1465.995 | J36: 0.005 | K36: Yes | L36: 0.05 | N36: 2045 | O36: Summer
A37: 24 | B37: 2046 | C37: 0 | D37: -1466 | E37: 0 | F37: -1466 | G37: -1465.995 | H37: 0.005 | I37: -1465.995 | J37: 0.005 | K37: Yes | L37: 0.05 | N37: 2046 | O37: Summer
A38: 25 | B38: 2047 | C38: 0 | D38: -1466 | E38: 0 | F38: -1466 | G38: -1465.995 | H38: 0.005 | I38: -1465.995 | J38: 0.005 | K38: Yes | L38: 0.05 | N38: 2047 | O38: Summer
A39: 26 | B39: 2048 | C39: 0 | D39: -1466 | E39: 0 | F39: -1466 | G39: -1465.995 | H39: 0.005 | I39: -1465.995 | J39: 0.005 | K39: Yes | L39: 0.05 | N39: 2048 | O39: Summer
A40: 27 | B40: 2049 | C40: 0 | D40: -1466 | E40: 0 | F40: -1466 | G40: -1465.995 | H40: 0.005 | I40: -1465.995 | J40: 0.005 | K40: Yes | L40: 0.05 | N40: 2049 | O40: Summer
A41: 28 | B41: 2050 | C41: 0 | D41: -1466 | E41: 0 | F41: -1466 | G41: -1465.995 | H41: 0.005 | I41: -1465.995 | J41: 0.005 | K41: Yes | L41: 0.05 | N41: 2050 | O41: Summer
A42: 29 | B42: 2051 | C42: 0 | D42: -1466 | E42: 0 | F42: -1466 | G42: -1465.995 | H42: 0.005 | I42: -1465.995 | J42: 0.005 | K42: Yes | L42: 0.05 | N42: 2051 | O42: Summer
B46: Input data from IRP
C47: ="Avista "& 'Input - Avista IRP'!G3 -> Avista AVU-E-20-11 | F47: IPC-E-21-09 | I47: ="PacifiCorp "&'Input - RMP IRP'!I10 -> PacifiCorp PAC-E-20-13
C48: Energy (aMW) | D48: Summer Capacity (MW) | E48: Winter Capacity (MW) | F48: Energy (aMW) | G48: Summer Capacity (MW) | H48: Winter Capacity (MW) | I48: Energy (aMW) | J48: Summer Capacity (MW) | K48: Winter Capacity (MW)
B49: =B13 -> 2022 | C49: =MIN(VLOOKUP($B49,'Input - Avista IRP'!$A:$D,2,FALSE),0) -> 0 | D49: =MIN(VLOOKUP($B49,'Input - Avista IRP'!$A:$H,7,FALSE),0) -> 0 | E49: =MIN(VLOOKUP($B49,'Input - Avista IRP'!$A:$H,8,FALSE),0) -> 0 | F49: =MIN(VLOOKUP($B49,'Input - IPCO IRP'!$A:$B,2,FALSE),0) -> 0 | G49: =MIN(VLOOKUP($B49,'Input - IPCO IRP'!$A:$M,12,FALSE),0) -> 0 | H49: =MIN(VLOOKUP($B49,'Input - IPCO IRP'!$A:$M,13,FALSE),0) -> 0 | I49: =MIN(VLOOKUP($B49,'Input - RMP IRP'!$A:$K,9,FALSE),0) -> 0 | J49: =MIN(VLOOKUP($B49,'Input - RMP IRP'!$A:$K,10,FALSE),0) -> 0 | K49: =MIN(VLOOKUP($B49,'Input - RMP IRP'!$A:$K,11,FALSE),0) -> 0
B50: =B49+1 -> 2023 | C50: =MIN(VLOOKUP($B50,'Input - Avista IRP'!$A:$D,2,FALSE),0) -> 0 | D50: =MIN(VLOOKUP($B50,'Input - Avista IRP'!$A:$H,7,FALSE),0) -> 0 | E50: =MIN(VLOOKUP($B50,'Input - Avista IRP'!$A:$H,8,FALSE),0) -> 0 | F50: =MIN(VLOOKUP($B50,'Input - IPCO IRP'!$A:$B,2,FALSE),0) -> 0 | G50: =MIN(VLOOKUP($B50,'Input - IPCO IRP'!$A:$M,12,FALSE),0) -> -101 | H50: =MIN(VLOOKUP($B50,'Input - IPCO IRP'!$A:$M,13,FALSE),0) -> 0 | I50: =MIN(VLOOKUP($B50,'Input - RMP IRP'!$A:$K,9,FALSE),0) -> 0 | J50: =MIN(VLOOKUP($B50,'Input - RMP IRP'!$A:$K,10,FALSE),0) -> 0 | K50: =MIN(VLOOKUP($B50,'Input - RMP IRP'!$A:$K,11,FALSE),0) -> 0
B51: =B50+1 -> 2024 | C51: =MIN(VLOOKUP($B51,'Input - Avista IRP'!$A:$D,2,FALSE),0) -> 0 | D51: =MIN(VLOOKUP($B51,'Input - Avista IRP'!$A:$H,7,FALSE),0) -> 0 | E51: =MIN(VLOOKUP($B51,'Input - Avista IRP'!$A:$H,8,FALSE),0) -> 0 | F51: =MIN(VLOOKUP($B51,'Input - IPCO IRP'!$A:$B,2,FALSE),0) -> 0 | G51: =MIN(VLOOKUP($B51,'Input - IPCO IRP'!$A:$M,12,FALSE),0) -> -186 | H51: =MIN(VLOOKUP($B51,'Input - IPCO IRP'!$A:$M,13,FALSE),0) -> 0 | I51: =MIN(VLOOKUP($B51,'Input - RMP IRP'!$A:$K,9,FALSE),0) -> 0 | J51: =MIN(VLOOKUP($B51,'Input - RMP IRP'!$A:$K,10,FALSE),0) -> 0 | K51: =MIN(VLOOKUP($B51,'Input - RMP IRP'!$A:$K,11,FALSE),0) -> 0
B52: 2025 | C52: =MIN(VLOOKUP($B52,'Input - Avista IRP'!$A:$D,2,FALSE),0) -> 0 | D52: =MIN(VLOOKUP($B52,'Input - Avista IRP'!$A:$H,7,FALSE),0) -> 0 | E52: =MIN(VLOOKUP($B52,'Input - Avista IRP'!$A:$H,8,FALSE),0) -> 0 | F52: =MIN(VLOOKUP($B52,'Input - IPCO IRP'!$A:$B,2,FALSE),0) -> 0 | G52: =MIN(VLOOKUP($B52,'Input - IPCO IRP'!$A:$M,12,FALSE),0) -> -311 | H52: =MIN(VLOOKUP($B52,'Input - IPCO IRP'!$A:$M,13,FALSE),0) -> 0 | I52: =MIN(VLOOKUP($B52,'Input - RMP IRP'!$A:$K,9,FALSE),0) -> 0 | J52: =MIN(VLOOKUP($B52,'Input - RMP IRP'!$A:$K,10,FALSE),0) -> 0 | K52: =MIN(VLOOKUP($B52,'Input - RMP IRP'!$A:$K,11,FALSE),0) -> 0
B53: 2026 | C53: =MIN(VLOOKUP($B53,'Input - Avista IRP'!$A:$D,2,FALSE),0) -> 0 | D53: =MIN(VLOOKUP($B53,'Input - Avista IRP'!$A:$H,7,FALSE),0) -> 0 | E53: =MIN(VLOOKUP($B53,'Input - Avista IRP'!$A:$H,8,FALSE),0) -> -16.8005885 | F53: =MIN(VLOOKUP($B53,'Input - IPCO IRP'!$A:$B,2,FALSE),0) -> 0 | G53: =MIN(VLOOKUP($B53,'Input - IPCO IRP'!$A:$M,12,FALSE),0) -> -560 | H53: =MIN(VLOOKUP($B53,'Input - IPCO IRP'!$A:$M,13,FALSE),0) -> 0 | I53: =MIN(VLOOKUP($B53,'Input - RMP IRP'!$A:$K,9,FALSE),0) -> 0 | J53: =MIN(VLOOKUP($B53,'Input - RMP IRP'!$A:$K,10,FALSE),0) -> 0 | K53: =MIN(VLOOKUP($B53,'Input - RMP IRP'!$A:$K,11,FALSE),0) -> 0
B54: 2027 | C54: =MIN(VLOOKUP($B54,'Input - Avista IRP'!$A:$D,2,FALSE),0) -> 0 | D54: =MIN(VLOOKUP($B54,'Input - Avista IRP'!$A:$H,7,FALSE),0) -> -90.1248244 | E54: =MIN(VLOOKUP($B54,'Input - Avista IRP'!$A:$H,8,FALSE),0) -> -22.53086362 | F54: =MIN(VLOOKUP($B54,'Input - IPCO IRP'!$A:$B,2,FALSE),0) -> 0 | G54: =MIN(VLOOKUP($B54,'Input - IPCO IRP'!$A:$M,12,FALSE),0) -> -665 | H54: =MIN(VLOOKUP($B54,'Input - IPCO IRP'!$A:$M,13,FALSE),0) -> 0 | I54: =MIN(VLOOKUP($B54,'Input - RMP IRP'!$A:$K,9,FALSE),0) -> 0 | J54: =MIN(VLOOKUP($B54,'Input - RMP IRP'!$A:$K,10,FALSE),0) -> 0 | K54: =MIN(VLOOKUP($B54,'Input - RMP IRP'!$A:$K,11,FALSE),0) -> 0
B55: 2028 | C55: =MIN(VLOOKUP($B55,'Input - Avista IRP'!$A:$D,2,FALSE),0) -> 0 | D55: =MIN(VLOOKUP($B55,'Input - Avista IRP'!$A:$H,7,FALSE),0) -> -97.22810607 | E55: =MIN(VLOOKUP($B55,'Input - Avista IRP'!$A:$H,8,FALSE),0) -> -42.85154951 | F55: =MIN(VLOOKUP($B55,'Input - IPCO IRP'!$A:$B,2,FALSE),0) -> 0 | G55: =MIN(VLOOKUP($B55,'Input - IPCO IRP'!$A:$M,12,FALSE),0) -> -773 | H55: =MIN(VLOOKUP($B55,'Input - IPCO IRP'!$A:$M,13,FALSE),0) -> 0 | I55: =MIN(VLOOKUP($B55,'Input - RMP IRP'!$A:$K,9,FALSE),0) -> 0 | J55: =MIN(VLOOKUP($B55,'Input - RMP IRP'!$A:$K,10,FALSE),0) -> 0 | K55: =MIN(VLOOKUP($B55,'Input - RMP IRP'!$A:$K,11,FALSE),0) -> 0
B56: 2029 | C56: =MIN(VLOOKUP($B56,'Input - Avista IRP'!$A:$D,2,FALSE),0) -> 0 | D56: =MIN(VLOOKUP($B56,'Input - Avista IRP'!$A:$H,7,FALSE),0) -> -124.9489577 | E56: =MIN(VLOOKUP($B56,'Input - Avista IRP'!$A:$H,8,FALSE),0) -> -47.96861676 | F56: =MIN(VLOOKUP($B56,'Input - IPCO IRP'!$A:$B,2,FALSE),0) -> 0 | G56: =MIN(VLOOKUP($B56,'Input - IPCO IRP'!$A:$M,12,FALSE),0) -> -823 | H56: =MIN(VLOOKUP($B56,'Input - IPCO IRP'!$A:$M,13,FALSE),0) -> 0 | I56: =MIN(VLOOKUP($B56,'Input - RMP IRP'!$A:$K,9,FALSE),0) -> 0 | J56: =MIN(VLOOKUP($B56,'Input - RMP IRP'!$A:$K,10,FALSE),0) -> -71.83794749 | K56: =MIN(VLOOKUP($B56,'Input - RMP IRP'!$A:$K,11,FALSE),0) -> 0
B57: 2030 | C57: =MIN(VLOOKUP($B57,'Input - Avista IRP'!$A:$D,2,FALSE),0) -> 0 | D57: =MIN(VLOOKUP($B57,'Input - Avista IRP'!$A:$H,7,FALSE),0) -> -131.4803867 | E57: =MIN(VLOOKUP($B57,'Input - Avista IRP'!$A:$H,8,FALSE),0) -> -53.28466284 | F57: =MIN(VLOOKUP($B57,'Input - IPCO IRP'!$A:$B,2,FALSE),0) -> 0 | G57: =MIN(VLOOKUP($B57,'Input - IPCO IRP'!$A:$M,12,FALSE),0) -> -873 | H57: =MIN(VLOOKUP($B57,'Input - IPCO IRP'!$A:$M,13,FALSE),0) -> 0 | I57: =MIN(VLOOKUP($B57,'Input - RMP IRP'!$A:$K,9,FALSE),0) -> 0 | J57: =MIN(VLOOKUP($B57,'Input - RMP IRP'!$A:$K,10,FALSE),0) -> -314.395395 | K57: =MIN(VLOOKUP($B57,'Input - RMP IRP'!$A:$K,11,FALSE),0) -> 0
B58: 2031 | C58: =MIN(VLOOKUP($B58,'Input - Avista IRP'!$A:$D,2,FALSE),0) -> 0 | D58: =MIN(VLOOKUP($B58,'Input - Avista IRP'!$A:$H,7,FALSE),0) -> -202.3864362 | E58: =MIN(VLOOKUP($B58,'Input - Avista IRP'!$A:$H,8,FALSE),0) -> -133.6975449 | F58: =MIN(VLOOKUP($B58,'Input - IPCO IRP'!$A:$B,2,FALSE),0) -> 0 | G58: =MIN(VLOOKUP($B58,'Input - IPCO IRP'!$A:$M,12,FALSE),0) -> -935 | H58: =MIN(VLOOKUP($B58,'Input - IPCO IRP'!$A:$M,13,FALSE),0) -> 0 | I58: =MIN(VLOOKUP($B58,'Input - RMP IRP'!$A:$K,9,FALSE),0) -> 0 | J58: =MIN(VLOOKUP($B58,'Input - RMP IRP'!$A:$K,10,FALSE),0) -> -398.8526388 | K58: =MIN(VLOOKUP($B58,'Input - RMP IRP'!$A:$K,11,FALSE),0) -> 0
B59: 2032 | C59: =MIN(VLOOKUP($B59,'Input - Avista IRP'!$A:$D,2,FALSE),0) -> 0 | D59: =MIN(VLOOKUP($B59,'Input - Avista IRP'!$A:$H,7,FALSE),0) -> -209.3972155 | E59: =MIN(VLOOKUP($B59,'Input - Avista IRP'!$A:$H,8,FALSE),0) -> -139.514879 | F59: =MIN(VLOOKUP($B59,'Input - IPCO IRP'!$A:$B,2,FALSE),0) -> 0 | G59: =MIN(VLOOKUP($B59,'Input - IPCO IRP'!$A:$M,12,FALSE),0) -> -983 | H59: =MIN(VLOOKUP($B59,'Input - IPCO IRP'!$A:$M,13,FALSE),0) -> 0 | I59: =MIN(VLOOKUP($B59,'Input - RMP IRP'!$A:$K,9,FALSE),0) -> 0 | J59: =MIN(VLOOKUP($B59,'Input - RMP IRP'!$A:$K,10,FALSE),0) -> -478.9992684 | K59: =MIN(VLOOKUP($B59,'Input - RMP IRP'!$A:$K,11,FALSE),0) -> 0
B60: 2033 | C60: =MIN(VLOOKUP($B60,'Input - Avista IRP'!$A:$D,2,FALSE),0) -> 0 | D60: =MIN(VLOOKUP($B60,'Input - Avista IRP'!$A:$H,7,FALSE),0) -> -216.7068092 | E60: =MIN(VLOOKUP($B60,'Input - Avista IRP'!$A:$H,8,FALSE),0) -> -145.6466593 | F60: =MIN(VLOOKUP($B60,'Input - IPCO IRP'!$A:$B,2,FALSE),0) -> 0 | G60: =MIN(VLOOKUP($B60,'Input - IPCO IRP'!$A:$M,12,FALSE),0) -> -1051 | H60: =MIN(VLOOKUP($B60,'Input - IPCO IRP'!$A:$M,13,FALSE),0) -> 0 | I60: =MIN(VLOOKUP($B60,'Input - RMP IRP'!$A:$K,9,FALSE),0) -> 0 | J60: =MIN(VLOOKUP($B60,'Input - RMP IRP'!$A:$K,10,FALSE),0) -> -758.9620157 | K60: =MIN(VLOOKUP($B60,'Input - RMP IRP'!$A:$K,11,FALSE),0) -> 0
B61: 2034 | C61: =MIN(VLOOKUP($B61,'Input - Avista IRP'!$A:$D,2,FALSE),0) -> 0 | D61: =MIN(VLOOKUP($B61,'Input - Avista IRP'!$A:$H,7,FALSE),0) -> -224.3637709 | E61: =MIN(VLOOKUP($B61,'Input - Avista IRP'!$A:$H,8,FALSE),0) -> -152.1452751 | F61: =MIN(VLOOKUP($B61,'Input - IPCO IRP'!$A:$B,2,FALSE),0) -> 0 | G61: =MIN(VLOOKUP($B61,'Input - IPCO IRP'!$A:$M,12,FALSE),0) -> -1102 | H61: =MIN(VLOOKUP($B61,'Input - IPCO IRP'!$A:$M,13,FALSE),0) -> 0 | I61: =MIN(VLOOKUP($B61,'Input - RMP IRP'!$A:$K,9,FALSE),0) -> 0 | J61: =MIN(VLOOKUP($B61,'Input - RMP IRP'!$A:$K,10,FALSE),0) -> -754.3955192 | K61: =MIN(VLOOKUP($B61,'Input - RMP IRP'!$A:$K,11,FALSE),0) -> 0
B62: 2035 | C62: =MIN(VLOOKUP($B62,'Input - Avista IRP'!$A:$D,2,FALSE),0) -> 0 | D62: =MIN(VLOOKUP($B62,'Input - Avista IRP'!$A:$H,7,FALSE),0) -> -268.4828033 | E62: =MIN(VLOOKUP($B62,'Input - Avista IRP'!$A:$H,8,FALSE),0) -> -194.907323 | F62: =MIN(VLOOKUP($B62,'Input - IPCO IRP'!$A:$B,2,FALSE),0) -> 0 | G62: =MIN(VLOOKUP($B62,'Input - IPCO IRP'!$A:$M,12,FALSE),0) -> -1155 | H62: =MIN(VLOOKUP($B62,'Input - IPCO IRP'!$A:$M,13,FALSE),0) -> 0 | I62: =MIN(VLOOKUP($B62,'Input - RMP IRP'!$A:$K,9,FALSE),0) -> 0 | J62: =MIN(VLOOKUP($B62,'Input - RMP IRP'!$A:$K,10,FALSE),0) -> -760.4603218 | K62: =MIN(VLOOKUP($B62,'Input - RMP IRP'!$A:$K,11,FALSE),0) -> 0
B63: 2036 | C63: =MIN(VLOOKUP($B63,'Input - Avista IRP'!$A:$D,2,FALSE),0) -> 0 | D63: =MIN(VLOOKUP($B63,'Input - Avista IRP'!$A:$H,7,FALSE),0) -> -277.0148916 | E63: =MIN(VLOOKUP($B63,'Input - Avista IRP'!$A:$H,8,FALSE),0) -> -202.3342776 | F63: =MIN(VLOOKUP($B63,'Input - IPCO IRP'!$A:$B,2,FALSE),0) -> 0 | G63: =MIN(VLOOKUP($B63,'Input - IPCO IRP'!$A:$M,12,FALSE),0) -> -1210 | H63: =MIN(VLOOKUP($B63,'Input - IPCO IRP'!$A:$M,13,FALSE),0) -> 0 | I63: =MIN(VLOOKUP($B63,'Input - RMP IRP'!$A:$K,9,FALSE),0) -> 0 | J63: =MIN(VLOOKUP($B63,'Input - RMP IRP'!$A:$K,10,FALSE),0) -> -739.3839693 | K63: =MIN(VLOOKUP($B63,'Input - RMP IRP'!$A:$K,11,FALSE),0) -> 0
B64: 2037 | C64: =MIN(VLOOKUP($B64,'Input - Avista IRP'!$A:$D,2,FALSE),0) -> 0 | D64: =MIN(VLOOKUP($B64,'Input - Avista IRP'!$A:$H,7,FALSE),0) -> -322.1537458 | E64: =MIN(VLOOKUP($B64,'Input - Avista IRP'!$A:$H,8,FALSE),0) -> -246.1808248 | F64: =MIN(VLOOKUP($B64,'Input - IPCO IRP'!$A:$B,2,FALSE),0) -> 0 | G64: =MIN(VLOOKUP($B64,'Input - IPCO IRP'!$A:$M,12,FALSE),0) -> -1282 | H64: =MIN(VLOOKUP($B64,'Input - IPCO IRP'!$A:$M,13,FALSE),0) -> 0 | I64: =MIN(VLOOKUP($B64,'Input - RMP IRP'!$A:$K,9,FALSE),0) -> 0 | J64: =MIN(VLOOKUP($B64,'Input - RMP IRP'!$A:$K,10,FALSE),0) -> -2232.906355 | K64: =MIN(VLOOKUP($B64,'Input - RMP IRP'!$A:$K,11,FALSE),0) -> 0
B65: 2038 | C65: =MIN(VLOOKUP($B65,'Input - Avista IRP'!$A:$D,2,FALSE),0) -> 0 | D65: =MIN(VLOOKUP($B65,'Input - Avista IRP'!$A:$H,7,FALSE),0) -> -341.1404106 | E65: =MIN(VLOOKUP($B65,'Input - Avista IRP'!$A:$H,8,FALSE),0) -> -254.8752369 | F65: =MIN(VLOOKUP($B65,'Input - IPCO IRP'!$A:$B,2,FALSE),0) -> 0 | G65: =MIN(VLOOKUP($B65,'Input - IPCO IRP'!$A:$M,12,FALSE),0) -> -1349 | H65: =MIN(VLOOKUP($B65,'Input - IPCO IRP'!$A:$M,13,FALSE),0) -> 0 | I65: =MIN(VLOOKUP($B65,'Input - RMP IRP'!$A:$K,9,FALSE),0) -> 0 | J65: =MIN(VLOOKUP($B65,'Input - RMP IRP'!$A:$K,10,FALSE),0) -> -2929.676937 | K65: =MIN(VLOOKUP($B65,'Input - RMP IRP'!$A:$K,11,FALSE),0) -> 0
B66: 2039 | C66: =MIN(VLOOKUP($B66,'Input - Avista IRP'!$A:$D,2,FALSE),0) -> 0 | D66: =MIN(VLOOKUP($B66,'Input - Avista IRP'!$A:$H,7,FALSE),0) -> -351.5630441 | E66: =MIN(VLOOKUP($B66,'Input - Avista IRP'!$A:$H,8,FALSE),0) -> -264.3683792 | F66: =MIN(VLOOKUP($B66,'Input - IPCO IRP'!$A:$B,2,FALSE),0) -> 0 | G66: =MIN(VLOOKUP($B66,'Input - IPCO IRP'!$A:$M,12,FALSE),0) -> -1406 | H66: =MIN(VLOOKUP($B66,'Input - IPCO IRP'!$A:$M,13,FALSE),0) -> 0 | I66: =MIN(VLOOKUP($B66,'Input - RMP IRP'!$A:$K,9,FALSE),0) -> 0 | J66: =MIN(VLOOKUP($B66,'Input - RMP IRP'!$A:$K,10,FALSE),0) -> -2929.676937 | K66: =MIN(VLOOKUP($B66,'Input - RMP IRP'!$A:$K,11,FALSE),0) -> 0
B67: 2040 | C67: =MIN(VLOOKUP($B67,'Input - Avista IRP'!$A:$D,2,FALSE),0) -> 0 | D67: =MIN(VLOOKUP($B67,'Input - Avista IRP'!$A:$H,7,FALSE),0) -> -362.8589674 | E67: =MIN(VLOOKUP($B67,'Input - Avista IRP'!$A:$H,8,FALSE),0) -> -274.7957466 | F67: =MIN(VLOOKUP($B67,'Input - IPCO IRP'!$A:$B,2,FALSE),0) -> 0 | G67: =MIN(VLOOKUP($B67,'Input - IPCO IRP'!$A:$M,12,FALSE),0) -> -1466 | H67: =MIN(VLOOKUP($B67,'Input - IPCO IRP'!$A:$M,13,FALSE),0) -> 0 | I67: =MIN(VLOOKUP($B67,'Input - RMP IRP'!$A:$K,9,FALSE),0) -> 0 | J67: =MIN(VLOOKUP($B67,'Input - RMP IRP'!$A:$K,10,FALSE),0) -> -2929.676937 | K67: =MIN(VLOOKUP($B67,'Input - RMP IRP'!$A:$K,11,FALSE),0) -> 0
B68: 2041 | C68: =MIN(VLOOKUP($B68,'Input - Avista IRP'!$A:$D,2,FALSE),0) -> 0 | D68: =MIN(VLOOKUP($B68,'Input - Avista IRP'!$A:$H,7,FALSE),0) -> -377.6701114 | E68: =MIN(VLOOKUP($B68,'Input - Avista IRP'!$A:$H,8,FALSE),0) -> -286.3160877 | F68: =MIN(VLOOKUP($B68,'Input - IPCO IRP'!$A:$B,2,FALSE),0) -> 0 | G68: =MIN(VLOOKUP($B68,'Input - IPCO IRP'!$A:$M,12,FALSE),0) -> -1466 | H68: =MIN(VLOOKUP($B68,'Input - IPCO IRP'!$A:$M,13,FALSE),0) -> 0 | I68: =MIN(VLOOKUP($B68,'Input - RMP IRP'!$A:$K,9,FALSE),0) -> 0 | J68: =MIN(VLOOKUP($B68,'Input - RMP IRP'!$A:$K,10,FALSE),0) -> -2929.676937 | K68: =MIN(VLOOKUP($B68,'Input - RMP IRP'!$A:$K,11,FALSE),0) -> 0
B69: 2042 | C69: =MIN(VLOOKUP($B69,'Input - Avista IRP'!$A:$D,2,FALSE),0) -> 0 | D69: =MIN(VLOOKUP($B69,'Input - Avista IRP'!$A:$H,7,FALSE),0) -> -391.179025 | E69: =MIN(VLOOKUP($B69,'Input - Avista IRP'!$A:$H,8,FALSE),0) -> -299.1153966 | F69: =MIN(VLOOKUP($B69,'Input - IPCO IRP'!$A:$B,2,FALSE),0) -> 0 | G69: =MIN(VLOOKUP($B69,'Input - IPCO IRP'!$A:$M,12,FALSE),0) -> -1466 | H69: =MIN(VLOOKUP($B69,'Input - IPCO IRP'!$A:$M,13,FALSE),0) -> 0 | I69: =MIN(VLOOKUP($B69,'Input - RMP IRP'!$A:$K,9,FALSE),0) -> 0 | J69: =MIN(VLOOKUP($B69,'Input - RMP IRP'!$A:$K,10,FALSE),0) -> -2929.676937 | K69: =MIN(VLOOKUP($B69,'Input - RMP IRP'!$A:$K,11,FALSE),0) -> 0
B70: 2043 | C70: =MIN(VLOOKUP($B70,'Input - Avista IRP'!$A:$D,2,FALSE),0) -> 0 | D70: =MIN(VLOOKUP($B70,'Input - Avista IRP'!$A:$H,7,FALSE),0) -> -407.8824379 | E70: =MIN(VLOOKUP($B70,'Input - Avista IRP'!$A:$H,8,FALSE),0) -> -313.4115897 | F70: =MIN(VLOOKUP($B70,'Input - IPCO IRP'!$A:$B,2,FALSE),0) -> 0 | G70: =MIN(VLOOKUP($B70,'Input - IPCO IRP'!$A:$M,12,FALSE),0) -> -1466 | H70: =MIN(VLOOKUP($B70,'Input - IPCO IRP'!$A:$M,13,FALSE),0) -> 0 | I70: =MIN(VLOOKUP($B70,'Input - RMP IRP'!$A:$K,9,FALSE),0) -> 0 | J70: =MIN(VLOOKUP($B70,'Input - RMP IRP'!$A:$K,10,FALSE),0) -> -2929.676937 | K70: =MIN(VLOOKUP($B70,'Input - RMP IRP'!$A:$K,11,FALSE),0) -> 0
B71: 2044 | C71: =MIN(VLOOKUP($B71,'Input - Avista IRP'!$A:$D,2,FALSE),0) -> 0 | D71: =MIN(VLOOKUP($B71,'Input - Avista IRP'!$A:$H,7,FALSE),0) -> -424.416848 | E71: =MIN(VLOOKUP($B71,'Input - Avista IRP'!$A:$H,8,FALSE),0) -> -329.4599848 | F71: =MIN(VLOOKUP($B71,'Input - IPCO IRP'!$A:$B,2,FALSE),0) -> 0 | G71: =MIN(VLOOKUP($B71,'Input - IPCO IRP'!$A:$M,12,FALSE),0) -> -1466 | H71: =MIN(VLOOKUP($B71,'Input - IPCO IRP'!$A:$M,13,FALSE),0) -> 0 | I71: =MIN(VLOOKUP($B71,'Input - RMP IRP'!$A:$K,9,FALSE),0) -> 0 | J71: =MIN(VLOOKUP($B71,'Input - RMP IRP'!$A:$K,10,FALSE),0) -> -2929.676937 | K71: =MIN(VLOOKUP($B71,'Input - RMP IRP'!$A:$K,11,FALSE),0) -> 0
B72: 2045 | C72: =MIN(VLOOKUP($B72,'Input - Avista IRP'!$A:$D,2,FALSE),0) -> 0 | D72: =MIN(VLOOKUP($B72,'Input - Avista IRP'!$A:$H,7,FALSE),0) -> -442.8593392 | E72: =MIN(VLOOKUP($B72,'Input - Avista IRP'!$A:$H,8,FALSE),0) -> -347.5597213 | F72: =MIN(VLOOKUP($B72,'Input - IPCO IRP'!$A:$B,2,FALSE),0) -> 0 | G72: =MIN(VLOOKUP($B72,'Input - IPCO IRP'!$A:$M,12,FALSE),0) -> -1466 | H72: =MIN(VLOOKUP($B72,'Input - IPCO IRP'!$A:$M,13,FALSE),0) -> 0 | I72: =MIN(VLOOKUP($B72,'Input - RMP IRP'!$A:$K,9,FALSE),0) -> 0 | J72: =MIN(VLOOKUP($B72,'Input - RMP IRP'!$A:$K,10,FALSE),0) -> -2929.676937 | K72: =MIN(VLOOKUP($B72,'Input - RMP IRP'!$A:$K,11,FALSE),0) -> 0
B73: 2046 | C73: =MIN(VLOOKUP($B73,'Input - Avista IRP'!$A:$D,2,FALSE),0) -> 0 | D73: =MIN(VLOOKUP($B73,'Input - Avista IRP'!$A:$H,7,FALSE),0) -> -442.8593392 | E73: =MIN(VLOOKUP($B73,'Input - Avista IRP'!$A:$H,8,FALSE),0) -> -347.5597213 | F73: =MIN(VLOOKUP($B73,'Input - IPCO IRP'!$A:$B,2,FALSE),0) -> 0 | G73: =MIN(VLOOKUP($B73,'Input - IPCO IRP'!$A:$M,12,FALSE),0) -> -1466 | H73: =MIN(VLOOKUP($B73,'Input - IPCO IRP'!$A:$M,13,FALSE),0) -> 0 | I73: =MIN(VLOOKUP($B73,'Input - RMP IRP'!$A:$K,9,FALSE),0) -> 0 | J73: =MIN(VLOOKUP($B73,'Input - RMP IRP'!$A:$K,10,FALSE),0) -> -2929.676937 | K73: =MIN(VLOOKUP($B73,'Input - RMP IRP'!$A:$K,11,FALSE),0) -> 0
B74: 2047 | C74: =MIN(VLOOKUP($B74,'Input - Avista IRP'!$A:$D,2,FALSE),0) -> 0 | D74: =MIN(VLOOKUP($B74,'Input - Avista IRP'!$A:$H,7,FALSE),0) -> -442.8593392 | E74: =MIN(VLOOKUP($B74,'Input - Avista IRP'!$A:$H,8,FALSE),0) -> -347.5597213 | F74: =MIN(VLOOKUP($B74,'Input - IPCO IRP'!$A:$B,2,FALSE),0) -> 0 | G74: =MIN(VLOOKUP($B74,'Input - IPCO IRP'!$A:$M,12,FALSE),0) -> -1466 | H74: =MIN(VLOOKUP($B74,'Input - IPCO IRP'!$A:$M,13,FALSE),0) -> 0 | I74: =MIN(VLOOKUP($B74,'Input - RMP IRP'!$A:$K,9,FALSE),0) -> 0 | J74: =MIN(VLOOKUP($B74,'Input - RMP IRP'!$A:$K,10,FALSE),0) -> -2929.676937 | K74: =MIN(VLOOKUP($B74,'Input - RMP IRP'!$A:$K,11,FALSE),0) -> 0
B75: 2048 | C75: =MIN(VLOOKUP($B75,'Input - Avista IRP'!$A:$D,2,FALSE),0) -> 0 | D75: =MIN(VLOOKUP($B75,'Input - Avista IRP'!$A:$H,7,FALSE),0) -> -442.8593392 | E75: =MIN(VLOOKUP($B75,'Input - Avista IRP'!$A:$H,8,FALSE),0) -> -347.5597213 | F75: =MIN(VLOOKUP($B75,'Input - IPCO IRP'!$A:$B,2,FALSE),0) -> 0 | G75: =MIN(VLOOKUP($B75,'Input - IPCO IRP'!$A:$M,12,FALSE),0) -> -1466 | H75: =MIN(VLOOKUP($B75,'Input - IPCO IRP'!$A:$M,13,FALSE),0) -> 0 | I75: =MIN(VLOOKUP($B75,'Input - RMP IRP'!$A:$K,9,FALSE),0) -> 0 | J75: =MIN(VLOOKUP($B75,'Input - RMP IRP'!$A:$K,10,FALSE),0) -> -2929.676937 | K75: =MIN(VLOOKUP($B75,'Input - RMP IRP'!$A:$K,11,FALSE),0) -> 0
B76: 2049 | C76: =MIN(VLOOKUP($B76,'Input - Avista IRP'!$A:$D,2,FALSE),0) -> 0 | D76: =MIN(VLOOKUP($B76,'Input - Avista IRP'!$A:$H,7,FALSE),0) -> -442.8593392 | E76: =MIN(VLOOKUP($B76,'Input - Avista IRP'!$A:$H,8,FALSE),0) -> -347.5597213 | F76: =MIN(VLOOKUP($B76,'Input - IPCO IRP'!$A:$B,2,FALSE),0) -> 0 | G76: =MIN(VLOOKUP($B76,'Input - IPCO IRP'!$A:$M,12,FALSE),0) -> -1466 | H76: =MIN(VLOOKUP($B76,'Input - IPCO IRP'!$A:$M,13,FALSE),0) -> 0 | I76: =MIN(VLOOKUP($B76,'Input - RMP IRP'!$A:$K,9,FALSE),0) -> 0 | J76: =MIN(VLOOKUP($B76,'Input - RMP IRP'!$A:$K,10,FALSE),0) -> -2929.676937 | K76: =MIN(VLOOKUP($B76,'Input - RMP IRP'!$A:$K,11,FALSE),0) -> 0
B77: 2050 | C77: =MIN(VLOOKUP($B77,'Input - Avista IRP'!$A:$D,2,FALSE),0) -> 0 | D77: =MIN(VLOOKUP($B77,'Input - Avista IRP'!$A:$H,7,FALSE),0) -> -442.8593392 | E77: =MIN(VLOOKUP($B77,'Input - Avista IRP'!$A:$H,8,FALSE),0) -> -347.5597213 | F77: =MIN(VLOOKUP($B77,'Input - IPCO IRP'!$A:$B,2,FALSE),0) -> 0 | G77: =MIN(VLOOKUP($B77,'Input - IPCO IRP'!$A:$M,12,FALSE),0) -> -1466 | H77: =MIN(VLOOKUP($B77,'Input - IPCO IRP'!$A:$M,13,FALSE),0) -> 0 | I77: =MIN(VLOOKUP($B77,'Input - RMP IRP'!$A:$K,9,FALSE),0) -> 0 | J77: =MIN(VLOOKUP($B77,'Input - RMP IRP'!$A:$K,10,FALSE),0) -> -2929.676937 | K77: =MIN(VLOOKUP($B77,'Input - RMP IRP'!$A:$K,11,FALSE),0) -> 0
B78: 2051 | C78: 0 | D78: =MIN(VLOOKUP($B78,'Input - Avista IRP'!$A:$H,7,FALSE),0) ->  | E78: =MIN(VLOOKUP($B78,'Input - Avista IRP'!$A:$H,8,FALSE),0) ->  | F78: =MIN(VLOOKUP($B78,'Input - IPCO IRP'!$A:$B,2,FALSE),0) -> 0 | G78: =MIN(VLOOKUP($B78,'Input - IPCO IRP'!$A:$M,12,FALSE),0) -> -1466 | H78: =MIN(VLOOKUP($B78,'Input - IPCO IRP'!$A:$M,13,FALSE),0) -> 0 | I78: =MIN(VLOOKUP($B78,'Input - RMP IRP'!$A:$K,9,FALSE),0) ->  | J78: =MIN(VLOOKUP($B78,'Input - RMP IRP'!$A:$K,10,FALSE),0) ->  | K78: =MIN(VLOOKUP($B78,'Input - RMP IRP'!$A:$K,11,FALSE),0) -> 

Sheet Input - Transmission
A2: Utility Transmission Costs
A5: Utility | B5: Rate ($/kW-mo) | C5: Losses
A6: AVISTA | B6: 2 | C6: 0.03
A7: IPCO | B7: 1.75 | C7: 0.04
A8: PCP | B8: 2.5 | C8: 0.05
A10: Rates Year | C10: 2012
A11: Inflation Rate | C11: ='AVOID NEW'!D47 -> 0.02
A14: Note: The current SAR model does not take utility transmission costs into account.

Sheet AVISTA NF HLH LLH Levelized
B1: =IF('AVOID NEW'!E105="AVISTA","AVISTA","THESE RATES ARE NOT VALID") -> THESE RATES ARE NOT VALID
B2: AVOIDED COST RATES FOR NON-FUELED PROJECTS
B3: Eligibility for these rates is limited to wind and solar projects 100 kW or smaller, and to non-wind and non-solar projects smaller than 10 aMW
B5: Seasonalization Factors
B7: Season 1 | D7: ='AVOID NEW'!E75 -> 1.08 | E7: (Applied to July - February)
B8: Season 2 | D8: ='AVOID NEW'!E76 -> 0.84 | E8: (Applied to March - June)
B12: =$B$1 -> THESE RATES ARE NOT VALID
B13: LEVELIZED RATES
B14: ="PROJECT ON-LINE IN "& 'AVOID NEW'!$D$54 -> PROJECT ON-LINE IN 2022
B15: ="Rate Effective Date: "&'AVOID NEW'!$E$69 -> Rate Effective Date: XXXX, 2022
B16: ="Resource: "&'Input - Capacity Factors'!$C$3 -> Resource: Wind
C17: Levelized Price | G17: ="Season 1 Pricing ("&$D$7*100&"%)" -> Season 1 Pricing (108%) | N17: ="Season 2 Pricing ("&100*$D$8&"%)" -> Season 2 Pricing (84%) | V17: Non-Seasonalized Pricing
C18: Heavy and Light Load Hour Differential | D18: ='AVOID NEW'!$E$66 -> 5 | G18: Flat | I18: Heavy Load Hour | K18: Light Load Hour | N18: Flat | P18: Heavy Load Hour | R18: Light Load Hour | V18: Flat | X18: Heavy Load Hour | Z18: Light Load Hour
D19: =ROUND(D18/3,2) -> 1.67 | E19: =-ROUND((D18*2)/3,2) -> -3.33 | G19: Price | H19: Price less wind integration adjustment | J19: Price less wind integration adjustment | L19: Price less wind integration adjustment | O19: Price less wind integration adjustment | Q19: Price less wind integration adjustment | S19: Price less wind integration adjustment | W19: Price less wind integration adjustment | Y19: Price less wind integration adjustment | AA19: Price less wind integration adjustment
B20: Contract Length | C20: Flat | D20: Heavy Load Hour | E20: Light Load Hour | I20: Price | K20: Price | N20: Price | P20: Price | R20: Price | V20: Price | X20: Price | Z20: Price
B21: 1 | C21: ='AVOID NEW'!AN9 -> 33.41996611 | D21: =C21+D$19 -> 35.08996611 | E21: =C21+E$19 -> 30.08996611 | G21: =ROUND((+$C21*$D$7),2) -> 36.09 | H21: =IF(OR('Input - Capacity Factors'!$C$3="Wind"),IF(G21*'AVOID NEW'!$E$67<6.5,G21*(1-'AVOID NEW'!$E$67),G21-6.5),"NA") -> 33.2028 | I21: =ROUND((+$D21*$D$7),2) -> 37.9 | J21: =IF(OR('Input - Capacity Factors'!$C$3="Wind"),IF(I21*'AVOID NEW'!$E$67<6.5,I21*(1-'AVOID NEW'!$E$67),I21-6.5),"NA") -> 34.868 | K21: =ROUND((+$E21*$D$7),2) -> 32.5 | L21: =IF(OR('Input - Capacity Factors'!$C$3="Wind"),IF(K21*'AVOID NEW'!$E$67<6.5,K21*(1-'AVOID NEW'!$E$67),K21-6.5),"NA") -> 29.9 | N21: =ROUND((+$C21*$D$8),2) -> 28.07 | O21: =IF(OR('Input - Capacity Factors'!$C$3="Wind"),IF(N21*'AVOID NEW'!$E$67<6.5,N21*(1-'AVOID NEW'!$E$67),N21-6.5),"NA") -> 25.8244 | P21: =ROUND((+$D21*$D$8),2) -> 29.48 | Q21: =IF(OR('Input - Capacity Factors'!$C$3="Wind"),IF(P21*'AVOID NEW'!$E$67<6.5,P21*(1-'AVOID NEW'!$E$67),P21-6.5),"NA") -> 27.1216 | R21: =ROUND((+$E21*$D$8),2) -> 25.28 | S21: =IF(OR('Input - Capacity Factors'!$C$3="Wind"),IF(R21*'AVOID NEW'!$E$67<6.5,R21*(1-'AVOID NEW'!$E$67),R21-6.5),"NA") -> 23.2576 | V21: =ROUND((+$C21),2) -> 33.42 | W21: =IF(OR('Input - Capacity Factors'!$C$3="Wind"),IF(V21*'AVOID NEW'!$E$67<6.5,V21*(1-'AVOID NEW'!$E$67),V21-6.5),"NA") -> 30.7464 | X21: =ROUND((+$D21),2) -> 35.09 | Y21: =IF(OR('Input - Capacity Factors'!$C$3="Wind"),IF(X21*'AVOID NEW'!$E$67<6.5,X21*(1-'AVOID NEW'!$E$67),X21-6.5),"NA") -> 32.2828 | Z21: =ROUND((+$E21),2) -> 30.09 | AA21: =IF(OR('Input - Capacity Factors'!$C$3="Wind"),IF(Z21*'AVOID NEW'!$E$67<6.5,Z21*(1-'AVOID NEW'!$E$67),Z21-6.5),"NA") -> 27.6828
B22: 2 | C22: ='AVOID NEW'!AN10 -> 34.43947397 | D22: 36.10947397 | E22: 31.10947397 | G22: 37.19 | H22: =IF(OR('Input - Capacity Factors'!$C$3="Wind"),IF(G22*'AVOID NEW'!$E$67<6.5,G22*(1-'AVOID NEW'!$E$67),G22-6.5),"NA") -> 34.2148 | I22: 39 | J22: =IF(OR('Input - Capacity Factors'!$C$3="Wind"),IF(I22*'AVOID NEW'!$E$67<6.5,I22*(1-'AVOID NEW'!$E$67),I22-6.5),"NA") -> 35.88 | K22: 33.6 | L22: =IF(OR('Input - Capacity Factors'!$C$3="Wind"),IF(K22*'AVOID NEW'!$E$67<6.5,K22*(1-'AVOID NEW'!$E$67),K22-6.5),"NA") -> 30.912 | N22: 28.93 | O22: =IF(OR('Input - Capacity Factors'!$C$3="Wind"),IF(N22*'AVOID NEW'!$E$67<6.5,N22*(1-'AVOID NEW'!$E$67),N22-6.5),"NA") -> 26.6156 | P22: 30.33 | Q22: =IF(OR('Input - Capacity Factors'!$C$3="Wind"),IF(P22*'AVOID NEW'!$E$67<6.5,P22*(1-'AVOID NEW'!$E$67),P22-6.5),"NA") -> 27.9036 | R22: 26.13 | S22: =IF(OR('Input - Capacity Factors'!$C$3="Wind"),IF(R22*'AVOID NEW'!$E$67<6.5,R22*(1-'AVOID NEW'!$E$67),R22-6.5),"NA") -> 24.0396 | V22: =ROUND((+$C22),2) -> 34.44 | W22: =IF(OR('Input - Capacity Factors'!$C$3="Wind"),IF(V22*'AVOID NEW'!$E$67<6.5,V22*(1-'AVOID NEW'!$E$67),V22-6.5),"NA") -> 31.6848 | X22: =ROUND((+$D22),2) -> 36.11 | Y22: =IF(OR('Input - Capacity Factors'!$C$3="Wind"),IF(X22*'AVOID NEW'!$E$67<6.5,X22*(1-'AVOID NEW'!$E$67),X22-6.5),"NA") -> 33.2212 | Z22: =ROUND((+$E22),2) -> 31.11 | AA22: =IF(OR('Input - Capacity Factors'!$C$3="Wind"),IF(Z22*'AVOID NEW'!$E$67<6.5,Z22*(1-'AVOID NEW'!$E$67),Z22-6.5),"NA") -> 28.6212
B23: 3 | C23: ='AVOID NEW'!AN11 -> 34.20998642 | D23: 35.87998642 | E23: 30.87998642 | G23: 36.95 | H23: =IF(OR('Input - Capacity Factors'!$C$3="Wind"),IF(G23*'AVOID NEW'!$E$67<6.5,G23*(1-'AVOID NEW'!$E$67),G23-6.5),"NA") -> 33.994 | I23: 38.75 | J23: =IF(OR('Input - Capacity Factors'!$C$3="Wind"),IF(I23*'AVOID NEW'!$E$67<6.5,I23*(1-'AVOID NEW'!$E$67),I23-6.5),"NA") -> 35.65 | K23: 33.35 | L23: =IF(OR('Input - Capacity Factors'!$C$3="Wind"),IF(K23*'AVOID NEW'!$E$67<6.5,K23*(1-'AVOID NEW'!$E$67),K23-6.5),"NA") -> 30.682 | N23: 28.74 | O23: =IF(OR('Input - Capacity Factors'!$C$3="Wind"),IF(N23*'AVOID NEW'!$E$67<6.5,N23*(1-'AVOID NEW'!$E$67),N23-6.5),"NA") -> 26.4408 | P23: 30.14 | Q23: =IF(OR('Input - Capacity Factors'!$C$3="Wind"),IF(P23*'AVOID NEW'!$E$67<6.5,P23*(1-'AVOID NEW'!$E$67),P23-6.5),"NA") -> 27.7288 | R23: 25.94 | S23: =IF(OR('Input - Capacity Factors'!$C$3="Wind"),IF(R23*'AVOID NEW'!$E$67<6.5,R23*(1-'AVOID NEW'!$E$67),R23-6.5),"NA") -> 23.8648 | V23: 34.21 | W23: =IF(OR('Input - Capacity Factors'!$C$3="Wind"),IF(V23*'AVOID NEW'!$E$67<6.5,V23*(1-'AVOID NEW'!$E$67),V23-6.5),"NA") -> 31.4732 | X23: 35.88 | Y23: =IF(OR('Input - Capacity Factors'!$C$3="Wind"),IF(X23*'AVOID NEW'!$E$67<6.5,X23*(1-'AVOID NEW'!$E$67),X23-6.5),"NA") -> 33.0096 | Z23: 30.88 | AA23: =IF(OR('Input - Capacity Factors'!$C$3="Wind"),IF(Z23*'AVOID NEW'!$E$67<6.5,Z23*(1-'AVOID NEW'!$E$67),Z23-6.5),"NA") -> 28.4096
B24: 4 | C24: ='AVOID NEW'!AN12 -> 33.98910127 | D24: 35.65910127 | E24: 30.65910127 | G24: 36.71 | H24: =IF(OR('Input - Capacity Factors'!$C$3="Wind"),IF(G24*'AVOID NEW'!$E$67<6.5,G24*(1-'AVOID NEW'!$E$67),G24-6.5),"NA") -> 33.7732 | I24: 38.51 | J24: =IF(OR('Input - Capacity Factors'!$C$3="Wind"),IF(I24*'AVOID NEW'!$E$67<6.5,I24*(1-'AVOID NEW'!$E$67),I24-6.5),"NA") -> 35.4292 | K24: 33.11 | L24: =IF(OR('Input - Capacity Factors'!$C$3="Wind"),IF(K24*'AVOID NEW'!$E$67<6.5,K24*(1-'AVOID NEW'!$E$67),K24-6.5),"NA") -> 30.4612 | N24: 28.55 | O24: =IF(OR('Input - Capacity Factors'!$C$3="Wind"),IF(N24*'AVOID NEW'!$E$67<6.5,N24*(1-'AVOID NEW'!$E$67),N24-6.5),"NA") -> 26.266 | P24: 29.95 | Q24: =IF(OR('Input - Capacity Factors'!$C$3="Wind"),IF(P24*'AVOID NEW'!$E$67<6.5,P24*(1-'AVOID NEW'!$E$67),P24-6.5),"NA") -> 27.554 | R24: 25.75 | S24: =IF(OR('Input - Capacity Factors'!$C$3="Wind"),IF(R24*'AVOID NEW'!$E$67<6.5,R24*(1-'AVOID NEW'!$E$67),R24-6.5),"NA") -> 23.69 | V24: 33.99 | W24: =IF(OR('Input - Capacity Factors'!$C$3="Wind"),IF(V24*'AVOID NEW'!$E$67<6.5,V24*(1-'AVOID NEW'!$E$67),V24-6.5),"NA") -> 31.2708 | X24: 35.66 | Y24: =IF(OR('Input - Capacity Factors'!$C$3="Wind"),IF(X24*'AVOID NEW'!$E$67<6.5,X24*(1-'AVOID NEW'!$E$67),X24-6.5),"NA") -> 32.8072 | Z24: 30.66 | AA24: =IF(OR('Input - Capacity Factors'!$C$3="Wind"),IF(Z24*'AVOID NEW'!$E$67<6.5,Z24*(1-'AVOID NEW'!$E$67),Z24-6.5),"NA") -> 28.2072
B25: 5 | C25: ='AVOID NEW'!AN13 -> 34.07074621 | D25: 35.74074621 | E25: 30.74074621 | G25: 36.8 | H25: =IF(OR('Input - Capacity Factors'!$C$3="Wind"),IF(G25*'AVOID NEW'!$E$67<6.5,G25*(1-'AVOID NEW'!$E$67),G25-6.5),"NA") -> 33.856 | I25: 38.6 | J25: =IF(OR('Input - Capacity Factors'!$C$3="Wind"),IF(I25*'AVOID NEW'!$E$67<6.5,I25*(1-'AVOID NEW'!$E$67),I25-6.5),"NA") -> 35.512 | K25: 33.2 | L25: =IF(OR('Input - Capacity Factors'!$C$3="Wind"),IF(K25*'AVOID NEW'!$E$67<6.5,K25*(1-'AVOID NEW'!$E$67),K25-6.5),"NA") -> 30.544 | N25: 28.62 | O25: =IF(OR('Input - Capacity Factors'!$C$3="Wind"),IF(N25*'AVOID NEW'!$E$67<6.5,N25*(1-'AVOID NEW'!$E$67),N25-6.5),"NA") -> 26.3304 | P25: 30.02 | Q25: =IF(OR('Input - Capacity Factors'!$C$3="Wind"),IF(P25*'AVOID NEW'!$E$67<6.5,P25*(1-'AVOID NEW'!$E$67),P25-6.5),"NA") -> 27.6184 | R25: 25.82 | S25: =IF(OR('Input - Capacity Factors'!$C$3="Wind"),IF(R25*'AVOID NEW'!$E$67<6.5,R25*(1-'AVOID NEW'!$E$67),R25-6.5),"NA") -> 23.7544 | V25: 34.07 | W25: =IF(OR('Input - Capacity Factors'!$C$3="Wind"),IF(V25*'AVOID NEW'!$E$67<6.5,V25*(1-'AVOID NEW'!$E$67),V25-6.5),"NA") -> 31.3444 | X25: 35.74 | Y25: =IF(OR('Input - Capacity Factors'!$C$3="Wind"),IF(X25*'AVOID NEW'!$E$67<6.5,X25*(1-'AVOID NEW'!$E$67),X25-6.5),"NA") -> 32.8808 | Z25: 30.74 | AA25: =IF(OR('Input - Capacity Factors'!$C$3="Wind"),IF(Z25*'AVOID NEW'!$E$67<6.5,Z25*(1-'AVOID NEW'!$E$67),Z25-6.5),"NA") -> 28.2808
B26: 6 | C26: ='AVOID NEW'!AN14 -> 34.39811252 | D26: 36.06811252 | E26: 31.06811252 | G26: 37.15 | H26: =IF(OR('Input - Capacity Factors'!$C$3="Wind"),IF(G26*'AVOID NEW'!$E$67<6.5,G26*(1-'AVOID NEW'!$E$67),G26-6.5),"NA") -> 34.178 | I26: 38.95 | J26: =IF(OR('Input - Capacity Factors'!$C$3="Wind"),IF(I26*'AVOID NEW'!$E$67<6.5,I26*(1-'AVOID NEW'!$E$67),I26-6.5),"NA") -> 35.834 | K26: 33.55 | L26: =IF(OR('Input - Capacity Factors'!$C$3="Wind"),IF(K26*'AVOID NEW'!$E$67<6.5,K26*(1-'AVOID NEW'!$E$67),K26-6.5),"NA") -> 30.866 | N26: 28.89 | O26: =IF(OR('Input - Capacity Factors'!$C$3="Wind"),IF(N26*'AVOID NEW'!$E$67<6.5,N26*(1-'AVOID NEW'!$E$67),N26-6.5),"NA") -> 26.5788 | P26: 30.3 | Q26: =IF(OR('Input - Capacity Factors'!$C$3="Wind"),IF(P26*'AVOID NEW'!$E$67<6.5,P26*(1-'AVOID NEW'!$E$67),P26-6.5),"NA") -> 27.876 | R26: 26.1 | S26: =IF(OR('Input - Capacity Factors'!$C$3="Wind"),IF(R26*'AVOID NEW'!$E$67<6.5,R26*(1-'AVOID NEW'!$E$67),R26-6.5),"NA") -> 24.012 | V26: 34.4 | W26: =IF(OR('Input - Capacity Factors'!$C$3="Wind"),IF(V26*'AVOID NEW'!$E$67<6.5,V26*(1-'AVOID NEW'!$E$67),V26-6.5),"NA") -> 31.648 | X26: 36.07 | Y26: =IF(OR('Input - Capacity Factors'!$C$3="Wind"),IF(X26*'AVOID NEW'!$E$67<6.5,X26*(1-'AVOID NEW'!$E$67),X26-6.5),"NA") -> 33.1844 | Z26: 31.07 | AA26: =IF(OR('Input - Capacity Factors'!$C$3="Wind"),IF(Z26*'AVOID NEW'!$E$67<6.5,Z26*(1-'AVOID NEW'!$E$67),Z26-6.5),"NA") -> 28.5844
B27: 7 | C27: ='AVOID NEW'!AN15 -> 34.90769395 | D27: 36.57769395 | E27: 31.57769395 | G27: 37.7 | H27: =IF(OR('Input - Capacity Factors'!$C$3="Wind"),IF(G27*'AVOID NEW'!$E$67<6.5,G27*(1-'AVOID NEW'!$E$67),G27-6.5),"NA") -> 34.684 | I27: 39.5 | J27: =IF(OR('Input - Capacity Factors'!$C$3="Wind"),IF(I27*'AVOID NEW'!$E$67<6.5,I27*(1-'AVOID NEW'!$E$67),I27-6.5),"NA") -> 36.34 | K27: 34.1 | L27: =IF(OR('Input - Capacity Factors'!$C$3="Wind"),IF(K27*'AVOID NEW'!$E$67<6.5,K27*(1-'AVOID NEW'!$E$67),K27-6.5),"NA") -> 31.372 | N27: 29.32 | O27: =IF(OR('Input - Capacity Factors'!$C$3="Wind"),IF(N27*'AVOID NEW'!$E$67<6.5,N27*(1-'AVOID NEW'!$E$67),N27-6.5),"NA") -> 26.9744 | P27: 30.73 | Q27: =IF(OR('Input - Capacity Factors'!$C$3="Wind"),IF(P27*'AVOID NEW'!$E$67<6.5,P27*(1-'AVOID NEW'!$E$67),P27-6.5),"NA") -> 28.2716 | R27: 26.53 | S27: =IF(OR('Input - Capacity Factors'!$C$3="Wind"),IF(R27*'AVOID NEW'!$E$67<6.5,R27*(1-'AVOID NEW'!$E$67),R27-6.5),"NA") -> 24.4076 | V27: 34.91 | W27: =IF(OR('Input - Capacity Factors'!$C$3="Wind"),IF(V27*'AVOID NEW'!$E$67<6.5,V27*(1-'AVOID NEW'!$E$67),V27-6.5),"NA") -> 32.1172 | X27: 36.58 | Y27: =IF(OR('Input - Capacity Factors'!$C$3="Wind"),IF(X27*'AVOID NEW'!$E$67<6.5,X27*(1-'AVOID NEW'!$E$67),X27-6.5),"NA") -> 33.6536 | Z27: 31.58 | AA27: =IF(OR('Input - Capacity Factors'!$C$3="Wind"),IF(Z27*'AVOID NEW'!$E$67<6.5,Z27*(1-'AVOID NEW'!$E$67),Z27-6.5),"NA") -> 29.0536
B28: 8 | C28: ='AVOID NEW'!AN16 -> 35.49137959 | D28: 37.16137959 | E28: 32.16137959 | G28: 38.33 | H28: =IF(OR('Input - Capacity Factors'!$C$3="Wind"),IF(G28*'AVOID NEW'!$E$67<6.5,G28*(1-'AVOID NEW'!$E$67),G28-6.5),"NA") -> 35.2636 | I28: 40.13 | J28: =IF(OR('Input - Capacity Factors'!$C$3="Wind"),IF(I28*'AVOID NEW'!$E$67<6.5,I28*(1-'AVOID NEW'!$E$67),I28-6.5),"NA") -> 36.9196 | K28: 34.73 | L28: =IF(OR('Input - Capacity Factors'!$C$3="Wind"),IF(K28*'AVOID NEW'!$E$67<6.5,K28*(1-'AVOID NEW'!$E$67),K28-6.5),"NA") -> 31.9516 | N28: 29.81 | O28: =IF(OR('Input - Capacity Factors'!$C$3="Wind"),IF(N28*'AVOID NEW'!$E$67<6.5,N28*(1-'AVOID NEW'!$E$67),N28-6.5),"NA") -> 27.4252 | P28: 31.22 | Q28: =IF(OR('Input - Capacity Factors'!$C$3="Wind"),IF(P28*'AVOID NEW'!$E$67<6.5,P28*(1-'AVOID NEW'!$E$67),P28-6.5),"NA") -> 28.7224 | R28: 27.02 | S28: =IF(OR('Input - Capacity Factors'!$C$3="Wind"),IF(R28*'AVOID NEW'!$E$67<6.5,R28*(1-'AVOID NEW'!$E$67),R28-6.5),"NA") -> 24.8584 | V28: 35.49 | W28: =IF(OR('Input - Capacity Factors'!$C$3="Wind"),IF(V28*'AVOID NEW'!$E$67<6.5,V28*(1-'AVOID NEW'!$E$67),V28-6.5),"NA") -> 32.6508 | X28: 37.16 | Y28: =IF(OR('Input - Capacity Factors'!$C$3="Wind"),IF(X28*'AVOID NEW'!$E$67<6.5,X28*(1-'AVOID NEW'!$E$67),X28-6.5),"NA") -> 34.1872 | Z28: 32.16 | AA28: =IF(OR('Input - Capacity Factors'!$C$3="Wind"),IF(Z28*'AVOID NEW'!$E$67<6.5,Z28*(1-'AVOID NEW'!$E$67),Z28-6.5),"NA") -> 29.5872
B29: 9 | C29: ='AVOID NEW'!AN17 -> 36.07864342 | D29: 37.74864342 | E29: 32.74864342 | G29: 38.96 | H29: =IF(OR('Input - Capacity Factors'!$C$3="Wind"),IF(G29*'AVOID NEW'!$E$67<6.5,G29*(1-'AVOID NEW'!$E$67),G29-6.5),"NA") -> 35.8432 | I29: 40.77 | J29: =IF(OR('Input - Capacity Factors'!$C$3="Wind"),IF(I29*'AVOID NEW'!$E$67<6.5,I29*(1-'AVOID NEW'!$E$67),I29-6.5),"NA") -> 37.5084 | K29: 35.37 | L29: =IF(OR('Input - Capacity Factors'!$C$3="Wind"),IF(K29*'AVOID NEW'!$E$67<6.5,K29*(1-'AVOID NEW'!$E$67),K29-6.5),"NA") -> 32.5404 | N29: 30.31 | O29: =IF(OR('Input - Capacity Factors'!$C$3="Wind"),IF(N29*'AVOID NEW'!$E$67<6.5,N29*(1-'AVOID NEW'!$E$67),N29-6.5),"NA") -> 27.8852 | P29: 31.71 | Q29: =IF(OR('Input - Capacity Factors'!$C$3="Wind"),IF(P29*'AVOID NEW'!$E$67<6.5,P29*(1-'AVOID NEW'!$E$67),P29-6.5),"NA") -> 29.1732 | R29: 27.51 | S29: =IF(OR('Input - Capacity Factors'!$C$3="Wind"),IF(R29*'AVOID NEW'!$E$67<6.5,R29*(1-'AVOID NEW'!$E$67),R29-6.5),"NA") -> 25.3092 | V29: 36.08 | W29: =IF(OR('Input - Capacity Factors'!$C$3="Wind"),IF(V29*'AVOID NEW'!$E$67<6.5,V29*(1-'AVOID NEW'!$E$67),V29-6.5),"NA") -> 33.1936 | X29: 37.75 | Y29: =IF(OR('Input - Capacity Factors'!$C$3="Wind"),IF(X29*'AVOID NEW'!$E$67<6.5,X29*(1-'AVOID NEW'!$E$67),X29-6.5),"NA") -> 34.73 | Z29: 32.75 | AA29: =IF(OR('Input - Capacity Factors'!$C$3="Wind"),IF(Z29*'AVOID NEW'!$E$67<6.5,Z29*(1-'AVOID NEW'!$E$67),Z29-6.5),"NA") -> 30.13
B30: 10 | C30: ='AVOID NEW'!AN18 -> 36.6457268 | D30: 38.3157268 | E30: 33.3157268 | G30: 39.58 | H30: =IF(OR('Input - Capacity Factors'!$C$3="Wind"),IF(G30*'AVOID NEW'!$E$67<6.5,G30*(1-'AVOID NEW'!$E$67),G30-6.5),"NA") -> 36.4136 | I30: 41.38 | J30: =IF(OR('Input - Capacity Factors'!$C$3="Wind"),IF(I30*'AVOID NEW'!$E$67<6.5,I30*(1-'AVOID NEW'!$E$67),I30-6.5),"NA") -> 38.0696 | K30: 35.98 | L30: =IF(OR('Input - Capacity Factors'!$C$3="Wind"),IF(K30*'AVOID NEW'!$E$67<6.5,K30*(1-'AVOID NEW'!$E$67),K30-6.5),"NA") -> 33.1016 | N30: 30.78 | O30: =IF(OR('Input - Capacity Factors'!$C$3="Wind"),IF(N30*'AVOID NEW'!$E$67<6.5,N30*(1-'AVOID NEW'!$E$67),N30-6.5),"NA") -> 28.3176 | P30: 32.19 | Q30: =IF(OR('Input - Capacity Factors'!$C$3="Wind"),IF(P30*'AVOID NEW'!$E$67<6.5,P30*(1-'AVOID NEW'!$E$67),P30-6.5),"NA") -> 29.6148 | R30: 27.99 | S30: =IF(OR('Input - Capacity Factors'!$C$3="Wind"),IF(R30*'AVOID NEW'!$E$67<6.5,R30*(1-'AVOID NEW'!$E$67),R30-6.5),"NA") -> 25.7508 | V30: 36.65 | W30: =IF(OR('Input - Capacity Factors'!$C$3="Wind"),IF(V30*'AVOID NEW'!$E$67<6.5,V30*(1-'AVOID NEW'!$E$67),V30-6.5),"NA") -> 33.718 | X30: 38.32 | Y30: =IF(OR('Input - Capacity Factors'!$C$3="Wind"),IF(X30*'AVOID NEW'!$E$67<6.5,X30*(1-'AVOID NEW'!$E$67),X30-6.5),"NA") -> 35.2544 | Z30: 33.32 | AA30: =IF(OR('Input - Capacity Factors'!$C$3="Wind"),IF(Z30*'AVOID NEW'!$E$67<6.5,Z30*(1-'AVOID NEW'!$E$67),Z30-6.5),"NA") -> 30.6544
B31: 11 | C31: ='AVOID NEW'!AN19 -> 37.20636813 | D31: 38.87636813 | E31: 33.87636813 | G31: 40.18 | H31: =IF(OR('Input - Capacity Factors'!$C$3="Wind"),IF(G31*'AVOID NEW'!$E$67<6.5,G31*(1-'AVOID NEW'!$E$67),G31-6.5),"NA") -> 36.9656 | I31: 41.99 | J31: =IF(OR('Input - Capacity Factors'!$C$3="Wind"),IF(I31*'AVOID NEW'!$E$67<6.5,I31*(1-'AVOID NEW'!$E$67),I31-6.5),"NA") -> 38.6308 | K31: 36.59 | L31: =IF(OR('Input - Capacity Factors'!$C$3="Wind"),IF(K31*'AVOID NEW'!$E$67<6.5,K31*(1-'AVOID NEW'!$E$67),K31-6.5),"NA") -> 33.6628 | N31: 31.25 | O31: =IF(OR('Input - Capacity Factors'!$C$3="Wind"),IF(N31*'AVOID NEW'!$E$67<6.5,N31*(1-'AVOID NEW'!$E$67),N31-6.5),"NA") -> 28.75 | P31: 32.66 | Q31: =IF(OR('Input - Capacity Factors'!$C$3="Wind"),IF(P31*'AVOID NEW'!$E$67<6.5,P31*(1-'AVOID NEW'!$E$67),P31-6.5),"NA") -> 30.0472 | R31: 28.46 | S31: =IF(OR('Input - Capacity Factors'!$C$3="Wind"),IF(R31*'AVOID NEW'!$E$67<6.5,R31*(1-'AVOID NEW'!$E$67),R31-6.5),"NA") -> 26.1832 | V31: 37.21 | W31: =IF(OR('Input - Capacity Factors'!$C$3="Wind"),IF(V31*'AVOID NEW'!$E$67<6.5,V31*(1-'AVOID NEW'!$E$67),V31-6.5),"NA") -> 34.2332 | X31: 38.88 | Y31: =IF(OR('Input - Capacity Factors'!$C$3="Wind"),IF(X31*'AVOID NEW'!$E$67<6.5,X31*(1-'AVOID NEW'!$E$67),X31-6.5),"NA") -> 35.7696 | Z31: 33.88 | AA31: =IF(OR('Input - Capacity Factors'!$C$3="Wind"),IF(Z31*'AVOID NEW'!$E$67<6.5,Z31*(1-'AVOID NEW'!$E$67),Z31-6.5),"NA") -> 31.1696
B32: 12 | C32: ='AVOID NEW'!AN20 -> 37.75382252 | D32: 39.42382252 | E32: 34.42382252 | G32: 40.77 | H32: =IF(OR('Input - Capacity Factors'!$C$3="Wind"),IF(G32*'AVOID NEW'!$E$67<6.5,G32*(1-'AVOID NEW'!$E$67),G32-6.5),"NA") -> 37.5084 | I32: 42.58 | J32: =IF(OR('Input - Capacity Factors'!$C$3="Wind"),IF(I32*'AVOID NEW'!$E$67<6.5,I32*(1-'AVOID NEW'!$E$67),I32-6.5),"NA") -> 39.1736 | K32: 37.18 | L32: =IF(OR('Input - Capacity Factors'!$C$3="Wind"),IF(K32*'AVOID NEW'!$E$67<6.5,K32*(1-'AVOID NEW'!$E$67),K32-6.5),"NA") -> 34.2056 | N32: 31.71 | O32: =IF(OR('Input - Capacity Factors'!$C$3="Wind"),IF(N32*'AVOID NEW'!$E$67<6.5,N32*(1-'AVOID NEW'!$E$67),N32-6.5),"NA") -> 29.1732 | P32: 33.12 | Q32: =IF(OR('Input - Capacity Factors'!$C$3="Wind"),IF(P32*'AVOID NEW'!$E$67<6.5,P32*(1-'AVOID NEW'!$E$67),P32-6.5),"NA") -> 30.4704 | R32: 28.92 | S32: =IF(OR('Input - Capacity Factors'!$C$3="Wind"),IF(R32*'AVOID NEW'!$E$67<6.5,R32*(1-'AVOID NEW'!$E$67),R32-6.5),"NA") -> 26.6064 | V32: 37.75 | W32: =IF(OR('Input - Capacity Factors'!$C$3="Wind"),IF(V32*'AVOID NEW'!$E$67<6.5,V32*(1-'AVOID NEW'!$E$67),V32-6.5),"NA") -> 34.73 | X32: 39.42 | Y32: =IF(OR('Input - Capacity Factors'!$C$3="Wind"),IF(X32*'AVOID NEW'!$E$67<6.5,X32*(1-'AVOID NEW'!$E$67),X32-6.5),"NA") -> 36.2664 | Z32: 34.42 | AA32: =IF(OR('Input - Capacity Factors'!$C$3="Wind"),IF(Z32*'AVOID NEW'!$E$67<6.5,Z32*(1-'AVOID NEW'!$E$67),Z32-6.5),"NA") -> 31.6664
B33: 13 | C33: ='AVOID NEW'!AN21 -> 38.26543099 | D33: 39.93543099 | E33: 34.93543099 | G33: 41.33 | H33: =IF(OR('Input - Capacity Factors'!$C$3="Wind"),IF(G33*'AVOID NEW'!$E$67<6.5,G33*(1-'AVOID NEW'!$E$67),G33-6.5),"NA") -> 38.0236 | I33: 43.13 | J33: =IF(OR('Input - Capacity Factors'!$C$3="Wind"),IF(I33*'AVOID NEW'!$E$67<6.5,I33*(1-'AVOID NEW'!$E$67),I33-6.5),"NA") -> 39.6796 | K33: 37.73 | L33: =IF(OR('Input - Capacity Factors'!$C$3="Wind"),IF(K33*'AVOID NEW'!$E$67<6.5,K33*(1-'AVOID NEW'!$E$67),K33-6.5),"NA") -> 34.7116 | N33: 32.14 | O33: =IF(OR('Input - Capacity Factors'!$C$3="Wind"),IF(N33*'AVOID NEW'!$E$67<6.5,N33*(1-'AVOID NEW'!$E$67),N33-6.5),"NA") -> 29.5688 | P33: 33.55 | Q33: =IF(OR('Input - Capacity Factors'!$C$3="Wind"),IF(P33*'AVOID NEW'!$E$67<6.5,P33*(1-'AVOID NEW'!$E$67),P33-6.5),"NA") -> 30.866 | R33: 29.35 | S33: =IF(OR('Input - Capacity Factors'!$C$3="Wind"),IF(R33*'AVOID NEW'!$E$67<6.5,R33*(1-'AVOID NEW'!$E$67),R33-6.5),"NA") -> 27.002 | V33: 38.27 | W33: =IF(OR('Input - Capacity Factors'!$C$3="Wind"),IF(V33*'AVOID NEW'!$E$67<6.5,V33*(1-'AVOID NEW'!$E$67),V33-6.5),"NA") -> 35.2084 | X33: 39.94 | Y33: =IF(OR('Input - Capacity Factors'!$C$3="Wind"),IF(X33*'AVOID NEW'!$E$67<6.5,X33*(1-'AVOID NEW'!$E$67),X33-6.5),"NA") -> 36.7448 | Z33: 34.94 | AA33: =IF(OR('Input - Capacity Factors'!$C$3="Wind"),IF(Z33*'AVOID NEW'!$E$67<6.5,Z33*(1-'AVOID NEW'!$E$67),Z33-6.5),"NA") -> 32.1448
B34: 14 | C34: ='AVOID NEW'!AN22 -> 38.73122722 | D34: 40.40122722 | E34: 35.40122722 | G34: 41.83 | H34: =IF(OR('Input - Capacity Factors'!$C$3="Wind"),IF(G34*'AVOID NEW'!$E$67<6.5,G34*(1-'AVOID NEW'!$E$67),G34-6.5),"NA") -> 38.4836 | I34: 43.63 | J34: =IF(OR('Input - Capacity Factors'!$C$3="Wind"),IF(I34*'AVOID NEW'!$E$67<6.5,I34*(1-'AVOID NEW'!$E$67),I34-6.5),"NA") -> 40.1396 | K34: 38.23 | L34: =IF(OR('Input - Capacity Factors'!$C$3="Wind"),IF(K34*'AVOID NEW'!$E$67<6.5,K34*(1-'AVOID NEW'!$E$67),K34-6.5),"NA") -> 35.1716 | N34: 32.53 | O34: =IF(OR('Input - Capacity Factors'!$C$3="Wind"),IF(N34*'AVOID NEW'!$E$67<6.5,N34*(1-'AVOID NEW'!$E$67),N34-6.5),"NA") -> 29.9276 | P34: 33.94 | Q34: =IF(OR('Input - Capacity Factors'!$C$3="Wind"),IF(P34*'AVOID NEW'!$E$67<6.5,P34*(1-'AVOID NEW'!$E$67),P34-6.5),"NA") -> 31.2248 | R34: 29.74 | S34: =IF(OR('Input - Capacity Factors'!$C$3="Wind"),IF(R34*'AVOID NEW'!$E$67<6.5,R34*(1-'AVOID NEW'!$E$67),R34-6.5),"NA") -> 27.3608 | V34: 38.73 | W34: =IF(OR('Input - Capacity Factors'!$C$3="Wind"),IF(V34*'AVOID NEW'!$E$67<6.5,V34*(1-'AVOID NEW'!$E$67),V34-6.5),"NA") -> 35.6316 | X34: 40.4 | Y34: =IF(OR('Input - Capacity Factors'!$C$3="Wind"),IF(X34*'AVOID NEW'!$E$67<6.5,X34*(1-'AVOID NEW'!$E$67),X34-6.5),"NA") -> 37.168 | Z34: 35.4 | AA34: =IF(OR('Input - Capacity Factors'!$C$3="Wind"),IF(Z34*'AVOID NEW'!$E$67<6.5,Z34*(1-'AVOID NEW'!$E$67),Z34-6.5),"NA") -> 32.568
B35: 15 | C35: ='AVOID NEW'!AN23 -> 39.17105099 | D35: 40.84105099 | E35: 35.84105099 | G35: 42.3 | H35: =IF(OR('Input - Capacity Factors'!$C$3="Wind"),IF(G35*'AVOID NEW'!$E$67<6.5,G35*(1-'AVOID NEW'!$E$67),G35-6.5),"NA") -> 38.916 | I35: 44.11 | J35: =IF(OR('Input - Capacity Factors'!$C$3="Wind"),IF(I35*'AVOID NEW'!$E$67<6.5,I35*(1-'AVOID NEW'!$E$67),I35-6.5),"NA") -> 40.5812 | K35: 38.71 | L35: =IF(OR('Input - Capacity Factors'!$C$3="Wind"),IF(K35*'AVOID NEW'!$E$67<6.5,K35*(1-'AVOID NEW'!$E$67),K35-6.5),"NA") -> 35.6132 | N35: 32.9 | O35: =IF(OR('Input - Capacity Factors'!$C$3="Wind"),IF(N35*'AVOID NEW'!$E$67<6.5,N35*(1-'AVOID NEW'!$E$67),N35-6.5),"NA") -> 30.268 | P35: 34.31 | Q35: =IF(OR('Input - Capacity Factors'!$C$3="Wind"),IF(P35*'AVOID NEW'!$E$67<6.5,P35*(1-'AVOID NEW'!$E$67),P35-6.5),"NA") -> 31.5652 | R35: 30.11 | S35: =IF(OR('Input - Capacity Factors'!$C$3="Wind"),IF(R35*'AVOID NEW'!$E$67<6.5,R35*(1-'AVOID NEW'!$E$67),R35-6.5),"NA") -> 27.7012 | V35: 39.17 | W35: =IF(OR('Input - Capacity Factors'!$C$3="Wind"),IF(V35*'AVOID NEW'!$E$67<6.5,V35*(1-'AVOID NEW'!$E$67),V35-6.5),"NA") -> 36.0364 | X35: 40.84 | Y35: =IF(OR('Input - Capacity Factors'!$C$3="Wind"),IF(X35*'AVOID NEW'!$E$67<6.5,X35*(1-'AVOID NEW'!$E$67),X35-6.5),"NA") -> 37.5728 | Z35: 35.84 | AA35: =IF(OR('Input - Capacity Factors'!$C$3="Wind"),IF(Z35*'AVOID NEW'!$E$67<6.5,Z35*(1-'AVOID NEW'!$E$67),Z35-6.5),"NA") -> 32.9728
B36: 16 | C36: ='AVOID NEW'!AN24 -> 39.58440087 | D36: 41.25440087 | E36: 36.25440087 | G36: 42.75 | H36: =IF(OR('Input - Capacity Factors'!$C$3="Wind"),IF(G36*'AVOID NEW'!$E$67<6.5,G36*(1-'AVOID NEW'!$E$67),G36-6.5),"NA") -> 39.33 | I36: 44.55 | J36: =IF(OR('Input - Capacity Factors'!$C$3="Wind"),IF(I36*'AVOID NEW'!$E$67<6.5,I36*(1-'AVOID NEW'!$E$67),I36-6.5),"NA") -> 40.986 | K36: 39.15 | L36: =IF(OR('Input - Capacity Factors'!$C$3="Wind"),IF(K36*'AVOID NEW'!$E$67<6.5,K36*(1-'AVOID NEW'!$E$67),K36-6.5),"NA") -> 36.018 | N36: 33.25 | O36: =IF(OR('Input - Capacity Factors'!$C$3="Wind"),IF(N36*'AVOID NEW'!$E$67<6.5,N36*(1-'AVOID NEW'!$E$67),N36-6.5),"NA") -> 30.59 | P36: 34.65 | Q36: =IF(OR('Input - Capacity Factors'!$C$3="Wind"),IF(P36*'AVOID NEW'!$E$67<6.5,P36*(1-'AVOID NEW'!$E$67),P36-6.5),"NA") -> 31.878 | R36: 30.45 | S36: =IF(OR('Input - Capacity Factors'!$C$3="Wind"),IF(R36*'AVOID NEW'!$E$67<6.5,R36*(1-'AVOID NEW'!$E$67),R36-6.5),"NA") -> 28.014 | V36: 39.58 | W36: =IF(OR('Input - Capacity Factors'!$C$3="Wind"),IF(V36*'AVOID NEW'!$E$67<6.5,V36*(1-'AVOID NEW'!$E$67),V36-6.5),"NA") -> 36.4136 | X36: 41.25 | Y36: =IF(OR('Input - Capacity Factors'!$C$3="Wind"),IF(X36*'AVOID NEW'!$E$67<6.5,X36*(1-'AVOID NEW'!$E$67),X36-6.5),"NA") -> 37.95 | Z36: 36.25 | AA36: =IF(OR('Input - Capacity Factors'!$C$3="Wind"),IF(Z36*'AVOID NEW'!$E$67<6.5,Z36*(1-'AVOID NEW'!$E$67),Z36-6.5),"NA") -> 33.35
B37: 17 | C37: ='AVOID NEW'!AN25 -> 39.98175533 | D37: 41.65175533 | E37: 36.65175533 | G37: 43.18 | H37: =IF(OR('Input - Capacity Factors'!$C$3="Wind"),IF(G37*'AVOID NEW'!$E$67<6.5,G37*(1-'AVOID NEW'!$E$67),G37-6.5),"NA") -> 39.7256 | I37: 44.98 | J37: =IF(OR('Input - Capacity Factors'!$C$3="Wind"),IF(I37*'AVOID NEW'!$E$67<6.5,I37*(1-'AVOID NEW'!$E$67),I37-6.5),"NA") -> 41.3816 | K37: 39.58 | L37: =IF(OR('Input - Capacity Factors'!$C$3="Wind"),IF(K37*'AVOID NEW'!$E$67<6.5,K37*(1-'AVOID NEW'!$E$67),K37-6.5),"NA") -> 36.4136 | N37: 33.58 | O37: =IF(OR('Input - Capacity Factors'!$C$3="Wind"),IF(N37*'AVOID NEW'!$E$67<6.5,N37*(1-'AVOID NEW'!$E$67),N37-6.5),"NA") -> 30.8936 | P37: 34.99 | Q37: =IF(OR('Input - Capacity Factors'!$C$3="Wind"),IF(P37*'AVOID NEW'!$E$67<6.5,P37*(1-'AVOID NEW'!$E$67),P37-6.5),"NA") -> 32.1908 | R37: 30.79 | S37: =IF(OR('Input - Capacity Factors'!$C$3="Wind"),IF(R37*'AVOID NEW'!$E$67<6.5,R37*(1-'AVOID NEW'!$E$67),R37-6.5),"NA") -> 28.3268 | V37: 39.98 | W37: =IF(OR('Input - Capacity Factors'!$C$3="Wind"),IF(V37*'AVOID NEW'!$E$67<6.5,V37*(1-'AVOID NEW'!$E$67),V37-6.5),"NA") -> 36.7816 | X37: 41.65 | Y37: =IF(OR('Input - Capacity Factors'!$C$3="Wind"),IF(X37*'AVOID NEW'!$E$67<6.5,X37*(1-'AVOID NEW'!$E$67),X37-6.5),"NA") -> 38.318 | Z37: 36.65 | AA37: =IF(OR('Input - Capacity Factors'!$C$3="Wind"),IF(Z37*'AVOID NEW'!$E$67<6.5,Z37*(1-'AVOID NEW'!$E$67),Z37-6.5),"NA") -> 33.718
B38: 18 | C38: ='AVOID NEW'!AN26 -> 40.36313356 | D38: 42.03313356 | E38: 37.03313356 | G38: 43.59 | H38: =IF(OR('Input - Capacity Factors'!$C$3="Wind"),IF(G38*'AVOID NEW'!$E$67<6.5,G38*(1-'AVOID NEW'!$E$67),G38-6.5),"NA") -> 40.1028 | I38: 45.4 | J38: =IF(OR('Input - Capacity Factors'!$C$3="Wind"),IF(I38*'AVOID NEW'!$E$67<6.5,I38*(1-'AVOID NEW'!$E$67),I38-6.5),"NA") -> 41.768 | K38: 40 | L38: =IF(OR('Input - Capacity Factors'!$C$3="Wind"),IF(K38*'AVOID NEW'!$E$67<6.5,K38*(1-'AVOID NEW'!$E$67),K38-6.5),"NA") -> 36.8 | N38: 33.91 | O38: =IF(OR('Input - Capacity Factors'!$C$3="Wind"),IF(N38*'AVOID NEW'!$E$67<6.5,N38*(1-'AVOID NEW'!$E$67),N38-6.5),"NA") -> 31.1972 | P38: 35.31 | Q38: =IF(OR('Input - Capacity Factors'!$C$3="Wind"),IF(P38*'AVOID NEW'!$E$67<6.5,P38*(1-'AVOID NEW'!$E$67),P38-6.5),"NA") -> 32.4852 | R38: 31.11 | S38: =IF(OR('Input - Capacity Factors'!$C$3="Wind"),IF(R38*'AVOID NEW'!$E$67<6.5,R38*(1-'AVOID NEW'!$E$67),R38-6.5),"NA") -> 28.6212 | V38: 40.36 | W38: =IF(OR('Input - Capacity Factors'!$C$3="Wind"),IF(V38*'AVOID NEW'!$E$67<6.5,V38*(1-'AVOID NEW'!$E$67),V38-6.5),"NA") -> 37.1312 | X38: 42.03 | Y38: =IF(OR('Input - Capacity Factors'!$C$3="Wind"),IF(X38*'AVOID NEW'!$E$67<6.5,X38*(1-'AVOID NEW'!$E$67),X38-6.5),"NA") -> 38.6676 | Z38: 37.03 | AA38: =IF(OR('Input - Capacity Factors'!$C$3="Wind"),IF(Z38*'AVOID NEW'!$E$67<6.5,Z38*(1-'AVOID NEW'!$E$67),Z38-6.5),"NA") -> 34.0676
B39: 19 | C39: ='AVOID NEW'!AN27 -> 40.73673142 | D39: 42.40673142 | E39: 37.40673142 | G39: 44 | H39: =IF(OR('Input - Capacity Factors'!$C$3="Wind"),IF(G39*'AVOID NEW'!$E$67<6.5,G39*(1-'AVOID NEW'!$E$67),G39-6.5),"NA") -> 40.48 | I39: 45.8 | J39: =IF(OR('Input - Capacity Factors'!$C$3="Wind"),IF(I39*'AVOID NEW'!$E$67<6.5,I39*(1-'AVOID NEW'!$E$67),I39-6.5),"NA") -> 42.136 | K39: 40.4 | L39: =IF(OR('Input - Capacity Factors'!$C$3="Wind"),IF(K39*'AVOID NEW'!$E$67<6.5,K39*(1-'AVOID NEW'!$E$67),K39-6.5),"NA") -> 37.168 | N39: 34.22 | O39: =IF(OR('Input - Capacity Factors'!$C$3="Wind"),IF(N39*'AVOID NEW'!$E$67<6.5,N39*(1-'AVOID NEW'!$E$67),N39-6.5),"NA") -> 31.4824 | P39: 35.62 | Q39: =IF(OR('Input - Capacity Factors'!$C$3="Wind"),IF(P39*'AVOID NEW'!$E$67<6.5,P39*(1-'AVOID NEW'!$E$67),P39-6.5),"NA") -> 32.7704 | R39: 31.42 | S39: =IF(OR('Input - Capacity Factors'!$C$3="Wind"),IF(R39*'AVOID NEW'!$E$67<6.5,R39*(1-'AVOID NEW'!$E$67),R39-6.5),"NA") -> 28.9064 | V39: 40.74 | W39: =IF(OR('Input - Capacity Factors'!$C$3="Wind"),IF(V39*'AVOID NEW'!$E$67<6.5,V39*(1-'AVOID NEW'!$E$67),V39-6.5),"NA") -> 37.4808 | X39: 42.41 | Y39: =IF(OR('Input - Capacity Factors'!$C$3="Wind"),IF(X39*'AVOID NEW'!$E$67<6.5,X39*(1-'AVOID NEW'!$E$67),X39-6.5),"NA") -> 39.0172 | Z39: 37.41 | AA39: =IF(OR('Input - Capacity Factors'!$C$3="Wind"),IF(Z39*'AVOID NEW'!$E$67<6.5,Z39*(1-'AVOID NEW'!$E$67),Z39-6.5),"NA") -> 34.4172
B40: 20 | C40: ='AVOID NEW'!AN28 -> 41.09813936 | D40: 42.76813936 | E40: 37.76813936 | G40: 44.39 | H40: =IF(OR('Input - Capacity Factors'!$C$3="Wind"),IF(G40*'AVOID NEW'!$E$67<6.5,G40*(1-'AVOID NEW'!$E$67),G40-6.5),"NA") -> 40.8388 | I40: 46.19 | J40: =IF(OR('Input - Capacity Factors'!$C$3="Wind"),IF(I40*'AVOID NEW'!$E$67<6.5,I40*(1-'AVOID NEW'!$E$67),I40-6.5),"NA") -> 42.4948 | K40: 40.79 | L40: =IF(OR('Input - Capacity Factors'!$C$3="Wind"),IF(K40*'AVOID NEW'!$E$67<6.5,K40*(1-'AVOID NEW'!$E$67),K40-6.5),"NA") -> 37.5268 | N40: 34.52 | O40: =IF(OR('Input - Capacity Factors'!$C$3="Wind"),IF(N40*'AVOID NEW'!$E$67<6.5,N40*(1-'AVOID NEW'!$E$67),N40-6.5),"NA") -> 31.7584 | P40: 35.93 | Q40: =IF(OR('Input - Capacity Factors'!$C$3="Wind"),IF(P40*'AVOID NEW'!$E$67<6.5,P40*(1-'AVOID NEW'!$E$67),P40-6.5),"NA") -> 33.0556 | R40: 31.73 | S40: =IF(OR('Input - Capacity Factors'!$C$3="Wind"),IF(R40*'AVOID NEW'!$E$67<6.5,R40*(1-'AVOID NEW'!$E$67),R40-6.5),"NA") -> 29.1916 | V40: 41.1 | W40: =IF(OR('Input - Capacity Factors'!$C$3="Wind"),IF(V40*'AVOID NEW'!$E$67<6.5,V40*(1-'AVOID NEW'!$E$67),V40-6.5),"NA") -> 37.812 | X40: 42.77 | Y40: =IF(OR('Input - Capacity Factors'!$C$3="Wind"),IF(X40*'AVOID NEW'!$E$67<6.5,X40*(1-'AVOID NEW'!$E$67),X40-6.5),"NA") -> 39.3484 | Z40: 37.77 | AA40: =IF(OR('Input - Capacity Factors'!$C$3="Wind"),IF(Z40*'AVOID NEW'!$E$67<6.5,Z40*(1-'AVOID NEW'!$E$67),Z40-6.5),"NA") -> 34.7484
B44: =$B$1 -> THESE RATES ARE NOT VALID
B45: LEVELIZED RATES
B46: ="PROJECT ON-LINE IN "& 'AVOID NEW'!$D$54+1 -> PROJECT ON-LINE IN 2023
B47: ="Rate Effective Date: "&'AVOID NEW'!$E$69 -> Rate Effective Date: XXXX, 2022
B48: ="Resource: "&'Input - Capacity Factors'!$C$3 -> Resource: Wind
C49: Levelized Price | G49: ="Season 1 Pricing ("&$D$7*100&"%)" -> Season 1 Pricing (108%) | N49: ="Season 2 Pricing ("&100*$D$8&"%)" -> Season 2 Pricing (84%) | V49: Non-Seasonalized Pricing
C50: Heavy and Light Load Hour Differential | D50: ='AVOID NEW'!$E$66 -> 5 | G50: Flat | I50: Heavy Load Hour | K50: Light Load Hour | N50: Flat | P50: Heavy Load Hour | R50: Light Load Hour | V50: Flat | X50: Heavy Load Hour | Z50: Light Load Hour
D51: =ROUND(D50/3,2) -> 1.67 | E51: =-ROUND((D50*2)/3,2) -> -3.33 | H51: Price less wind integration adjustment | J51: Price less wind integration adjustment | L51: Price less wind integration adjustment | O51: Price less wind integration adjustment | Q51: Price less wind integration adjustment | S51: Price less wind integration adjustment | W51: Price less wind integration adjustment | Y51: Price less wind integration adjustment | AA51: Price less wind integration adjustment
B52: Contract Length | C52: Flat | D52: Heavy Load Hour | E52: Light Load Hour | G52: Price | I52: Price | K52: Price | N52: Price | P52: Price | R52: Price | V52: Price | X52: Price | Z52: Price
B53: 1 | C53: ='AVOID NEW'!AO9 -> 35.54237876 | D53: =C53+D$51 -> 37.21237876 | E53: =C53+E$51 -> 32.21237876 | G53: =ROUND((+$C53*$D$7),2) -> 38.39 | H53: =IF(OR('Input - Capacity Factors'!$C$3="Wind"),IF(G53*'AVOID NEW'!$E$67<6.5,G53*(1-'AVOID NEW'!$E$67),G53-6.5),"NA") -> 35.3188 | I53: =ROUND((+$D53*$D$7),2) -> 40.19 | J53: =IF(OR('Input - Capacity Factors'!$C$3="Wind"),IF(I53*'AVOID NEW'!$E$67<6.5,I53*(1-'AVOID NEW'!$E$67),I53-6.5),"NA") -> 36.9748 | K53: =ROUND((+$E53*$D$7),2) -> 34.79 | L53: =IF(OR('Input - Capacity Factors'!$C$3="Wind"),IF(K53*'AVOID NEW'!$E$67<6.5,K53*(1-'AVOID NEW'!$E$67),K53-6.5),"NA") -> 32.0068 | N53: =ROUND((+$C53*$D$8),2) -> 29.86 | O53: =IF(OR('Input - Capacity Factors'!$C$3="Wind"),IF(N53*'AVOID NEW'!$E$67<6.5,N53*(1-'AVOID NEW'!$E$67),N53-6.5),"NA") -> 27.4712 | P53: =ROUND((+$D53*$D$8),2) -> 31.26 | Q53: =IF(OR('Input - Capacity Factors'!$C$3="Wind"),IF(P53*'AVOID NEW'!$E$67<6.5,P53*(1-'AVOID NEW'!$E$67),P53-6.5),"NA") -> 28.7592 | R53: =ROUND((+$E53*$D$8),2) -> 27.06 | S53: =IF(OR('Input - Capacity Factors'!$C$3="Wind"),IF(R53*'AVOID NEW'!$E$67<6.5,R53*(1-'AVOID NEW'!$E$67),R53-6.5),"NA") -> 24.8952 | V53: =ROUND((+$C53),2) -> 35.54 | W53: =IF(OR('Input - Capacity Factors'!$C$3="Wind"),IF(V53*'AVOID NEW'!$E$67<6.5,V53*(1-'AVOID NEW'!$E$67),V53-6.5),"NA") -> 32.6968 | X53: =ROUND((+$D53),2) -> 37.21 | Y53: =IF(OR('Input - Capacity Factors'!$C$3="Wind"),IF(X53*'AVOID NEW'!$E$67<6.5,X53*(1-'AVOID NEW'!$E$67),X53-6.5),"NA") -> 34.2332 | Z53: =ROUND((+$E53),2) -> 32.21 | AA53: =IF(OR('Input - Capacity Factors'!$C$3="Wind"),IF(Z53*'AVOID NEW'!$E$67<6.5,Z53*(1-'AVOID NEW'!$E$67),Z53-6.5),"NA") -> 29.6332
B54: 2 | C54: ='AVOID NEW'!AO10 -> 34.65409985 | D54: 36.32409985 | E54: 31.32409985 | G54: 37.43 | H54: =IF(OR('Input - Capacity Factors'!$C$3="Wind"),IF(G54*'AVOID NEW'!$E$67<6.5,G54*(1-'AVOID NEW'!$E$67),G54-6.5),"NA") -> 34.4356 | I54: 39.23 | J54: =IF(OR('Input - Capacity Factors'!$C$3="Wind"),IF(I54*'AVOID NEW'!$E$67<6.5,I54*(1-'AVOID NEW'!$E$67),I54-6.5),"NA") -> 36.0916 | K54: 33.83 | L54: =IF(OR('Input - Capacity Factors'!$C$3="Wind"),IF(K54*'AVOID NEW'!$E$67<6.5,K54*(1-'AVOID NEW'!$E$67),K54-6.5),"NA") -> 31.1236 | N54: 29.11 | O54: =IF(OR('Input - Capacity Factors'!$C$3="Wind"),IF(N54*'AVOID NEW'!$E$67<6.5,N54*(1-'AVOID NEW'!$E$67),N54-6.5),"NA") -> 26.7812 | P54: 30.51 | Q54: =IF(OR('Input - Capacity Factors'!$C$3="Wind"),IF(P54*'AVOID NEW'!$E$67<6.5,P54*(1-'AVOID NEW'!$E$67),P54-6.5),"NA") -> 28.0692 | R54: 26.31 | S54: =IF(OR('Input - Capacity Factors'!$C$3="Wind"),IF(R54*'AVOID NEW'!$E$67<6.5,R54*(1-'AVOID NEW'!$E$67),R54-6.5),"NA") -> 24.2052 | V54: =ROUND((+$C54),2) -> 34.65 | W54: =IF(OR('Input - Capacity Factors'!$C$3="Wind"),IF(V54*'AVOID NEW'!$E$67<6.5,V54*(1-'AVOID NEW'!$E$67),V54-6.5),"NA") -> 31.878 | X54: =ROUND((+$D54),2) -> 36.32 | Y54: =IF(OR('Input - Capacity Factors'!$C$3="Wind"),IF(X54*'AVOID NEW'!$E$67<6.5,X54*(1-'AVOID NEW'!$E$67),X54-6.5),"NA") -> 33.4144 | Z54: =ROUND((+$E54),2) -> 31.32 | AA54: =IF(OR('Input - Capacity Factors'!$C$3="Wind"),IF(Z54*'AVOID NEW'!$E$67<6.5,Z54*(1-'AVOID NEW'!$E$67),Z54-6.5),"NA") -> 28.8144
B55: 3 | C55: ='AVOID NEW'!AO11 -> 34.2106629 | D55: 35.8806629 | E55: 30.8806629 | G55: 36.95 | H55: =IF(OR('Input - Capacity Factors'!$C$3="Wind"),IF(G55*'AVOID NEW'!$E$67<6.5,G55*(1-'AVOID NEW'!$E$67),G55-6.5),"NA") -> 33.994 | I55: 38.75 | J55: =IF(OR('Input - Capacity Factors'!$C$3="Wind"),IF(I55*'AVOID NEW'!$E$67<6.5,I55*(1-'AVOID NEW'!$E$67),I55-6.5),"NA") -> 35.65 | K55: 33.35 | L55: =IF(OR('Input - Capacity Factors'!$C$3="Wind"),IF(K55*'AVOID NEW'!$E$67<6.5,K55*(1-'AVOID NEW'!$E$67),K55-6.5),"NA") -> 30.682 | N55: 28.74 | O55: =IF(OR('Input - Capacity Factors'!$C$3="Wind"),IF(N55*'AVOID NEW'!$E$67<6.5,N55*(1-'AVOID NEW'!$E$67),N55-6.5),"NA") -> 26.4408 | P55: 30.14 | Q55: =IF(OR('Input - Capacity Factors'!$C$3="Wind"),IF(P55*'AVOID NEW'!$E$67<6.5,P55*(1-'AVOID NEW'!$E$67),P55-6.5),"NA") -> 27.7288 | R55: 25.94 | S55: =IF(OR('Input - Capacity Factors'!$C$3="Wind"),IF(R55*'AVOID NEW'!$E$67<6.5,R55*(1-'AVOID NEW'!$E$67),R55-6.5),"NA") -> 23.8648 | V55: 34.21 | W55: =IF(OR('Input - Capacity Factors'!$C$3="Wind"),IF(V55*'AVOID NEW'!$E$67<6.5,V55*(1-'AVOID NEW'!$E$67),V55-6.5),"NA") -> 31.4732 | X55: 35.88 | Y55: =IF(OR('Input - Capacity Factors'!$C$3="Wind"),IF(X55*'AVOID NEW'!$E$67<6.5,X55*(1-'AVOID NEW'!$E$67),X55-6.5),"NA") -> 33.0096 | Z55: 30.88 | AA55: =IF(OR('Input - Capacity Factors'!$C$3="Wind"),IF(Z55*'AVOID NEW'!$E$67<6.5,Z55*(1-'AVOID NEW'!$E$67),Z55-6.5),"NA") -> 28.4096
B56: 4 | C56: ='AVOID NEW'!AO12 -> 34.26801859 | D56: 35.93801859 | E56: 30.93801859 | G56: 37.01 | H56: =IF(OR('Input - Capacity Factors'!$C$3="Wind"),IF(G56*'AVOID NEW'!$E$67<6.5,G56*(1-'AVOID NEW'!$E$67),G56-6.5),"NA") -> 34.0492 | I56: 38.81 | J56: =IF(OR('Input - Capacity Factors'!$C$3="Wind"),IF(I56*'AVOID NEW'!$E$67<6.5,I56*(1-'AVOID NEW'!$E$67),I56-6.5),"NA") -> 35.7052 | K56: 33.41 | L56: =IF(OR('Input - Capacity Factors'!$C$3="Wind"),IF(K56*'AVOID NEW'!$E$67<6.5,K56*(1-'AVOID NEW'!$E$67),K56-6.5),"NA") -> 30.7372 | N56: 28.79 | O56: =IF(OR('Input - Capacity Factors'!$C$3="Wind"),IF(N56*'AVOID NEW'!$E$67<6.5,N56*(1-'AVOID NEW'!$E$67),N56-6.5),"NA") -> 26.4868 | P56: 30.19 | Q56: =IF(OR('Input - Capacity Factors'!$C$3="Wind"),IF(P56*'AVOID NEW'!$E$67<6.5,P56*(1-'AVOID NEW'!$E$67),P56-6.5),"NA") -> 27.7748 | R56: 25.99 | S56: =IF(OR('Input - Capacity Factors'!$C$3="Wind"),IF(R56*'AVOID NEW'!$E$67<6.5,R56*(1-'AVOID NEW'!$E$67),R56-6.5),"NA") -> 23.9108 | V56: 34.27 | W56: =IF(OR('Input - Capacity Factors'!$C$3="Wind"),IF(V56*'AVOID NEW'!$E$67<6.5,V56*(1-'AVOID NEW'!$E$67),V56-6.5),"NA") -> 31.5284 | X56: 35.94 | Y56: =IF(OR('Input - Capacity Factors'!$C$3="Wind"),IF(X56*'AVOID NEW'!$E$67<6.5,X56*(1-'AVOID NEW'!$E$67),X56-6.5),"NA") -> 33.0648 | Z56: 30.94 | AA56: =IF(OR('Input - Capacity Factors'!$C$3="Wind"),IF(Z56*'AVOID NEW'!$E$67<6.5,Z56*(1-'AVOID NEW'!$E$67),Z56-6.5),"NA") -> 28.4648
B57: 5 | C57: ='AVOID NEW'!AO13 -> 34.6442597 | D57: 36.3142597 | E57: 31.3142597 | G57: 37.42 | H57: =IF(OR('Input - Capacity Factors'!$C$3="Wind"),IF(G57*'AVOID NEW'!$E$67<6.5,G57*(1-'AVOID NEW'!$E$67),G57-6.5),"NA") -> 34.4264 | I57: 39.22 | J57: =IF(OR('Input - Capacity Factors'!$C$3="Wind"),IF(I57*'AVOID NEW'!$E$67<6.5,I57*(1-'AVOID NEW'!$E$67),I57-6.5),"NA") -> 36.0824 | K57: 33.82 | L57: =IF(OR('Input - Capacity Factors'!$C$3="Wind"),IF(K57*'AVOID NEW'!$E$67<6.5,K57*(1-'AVOID NEW'!$E$67),K57-6.5),"NA") -> 31.1144 | N57: 29.1 | O57: =IF(OR('Input - Capacity Factors'!$C$3="Wind"),IF(N57*'AVOID NEW'!$E$67<6.5,N57*(1-'AVOID NEW'!$E$67),N57-6.5),"NA") -> 26.772 | P57: 30.5 | Q57: =IF(OR('Input - Capacity Factors'!$C$3="Wind"),IF(P57*'AVOID NEW'!$E$67<6.5,P57*(1-'AVOID NEW'!$E$67),P57-6.5),"NA") -> 28.06 | R57: 26.3 | S57: =IF(OR('Input - Capacity Factors'!$C$3="Wind"),IF(R57*'AVOID NEW'!$E$67<6.5,R57*(1-'AVOID NEW'!$E$67),R57-6.5),"NA") -> 24.196 | V57: 34.64 | W57: =IF(OR('Input - Capacity Factors'!$C$3="Wind"),IF(V57*'AVOID NEW'!$E$67<6.5,V57*(1-'AVOID NEW'!$E$67),V57-6.5),"NA") -> 31.8688 | X57: 36.31 | Y57: =IF(OR('Input - Capacity Factors'!$C$3="Wind"),IF(X57*'AVOID NEW'!$E$67<6.5,X57*(1-'AVOID NEW'!$E$67),X57-6.5),"NA") -> 33.4052 | Z57: 31.31 | AA57: =IF(OR('Input - Capacity Factors'!$C$3="Wind"),IF(Z57*'AVOID NEW'!$E$67<6.5,Z57*(1-'AVOID NEW'!$E$67),Z57-6.5),"NA") -> 28.8052
B58: 6 | C58: ='AVOID NEW'!AO14 -> 35.23127287 | D58: 36.90127287 | E58: 31.90127287 | G58: 38.05 | H58: =IF(OR('Input - Capacity Factors'!$C$3="Wind"),IF(G58*'AVOID NEW'!$E$67<6.5,G58*(1-'AVOID NEW'!$E$67),G58-6.5),"NA") -> 35.006 | I58: 39.85 | J58: =IF(OR('Input - Capacity Factors'!$C$3="Wind"),IF(I58*'AVOID NEW'!$E$67<6.5,I58*(1-'AVOID NEW'!$E$67),I58-6.5),"NA") -> 36.662 | K58: 34.45 | L58: =IF(OR('Input - Capacity Factors'!$C$3="Wind"),IF(K58*'AVOID NEW'!$E$67<6.5,K58*(1-'AVOID NEW'!$E$67),K58-6.5),"NA") -> 31.694 | N58: 29.59 | O58: =IF(OR('Input - Capacity Factors'!$C$3="Wind"),IF(N58*'AVOID NEW'!$E$67<6.5,N58*(1-'AVOID NEW'!$E$67),N58-6.5),"NA") -> 27.2228 | P58: 31 | Q58: =IF(OR('Input - Capacity Factors'!$C$3="Wind"),IF(P58*'AVOID NEW'!$E$67<6.5,P58*(1-'AVOID NEW'!$E$67),P58-6.5),"NA") -> 28.52 | R58: 26.8 | S58: =IF(OR('Input - Capacity Factors'!$C$3="Wind"),IF(R58*'AVOID NEW'!$E$67<6.5,R58*(1-'AVOID NEW'!$E$67),R58-6.5),"NA") -> 24.656 | V58: 35.23 | W58: =IF(OR('Input - Capacity Factors'!$C$3="Wind"),IF(V58*'AVOID NEW'!$E$67<6.5,V58*(1-'AVOID NEW'!$E$67),V58-6.5),"NA") -> 32.4116 | X58: 36.9 | Y58: =IF(OR('Input - Capacity Factors'!$C$3="Wind"),IF(X58*'AVOID NEW'!$E$67<6.5,X58*(1-'AVOID NEW'!$E$67),X58-6.5),"NA") -> 33.948 | Z58: 31.9 | AA58: =IF(OR('Input - Capacity Factors'!$C$3="Wind"),IF(Z58*'AVOID NEW'!$E$67<6.5,Z58*(1-'AVOID NEW'!$E$67),Z58-6.5),"NA") -> 29.348
B59: 7 | C59: ='AVOID NEW'!AO15 -> 35.89169515 | D59: 37.56169515 | E59: 32.56169515 | G59: 38.76 | H59: =IF(OR('Input - Capacity Factors'!$C$3="Wind"),IF(G59*'AVOID NEW'!$E$67<6.5,G59*(1-'AVOID NEW'!$E$67),G59-6.5),"NA") -> 35.6592 | I59: 40.57 | J59: =IF(OR('Input - Capacity Factors'!$C$3="Wind"),IF(I59*'AVOID NEW'!$E$67<6.5,I59*(1-'AVOID NEW'!$E$67),I59-6.5),"NA") -> 37.3244 | K59: 35.17 | L59: =IF(OR('Input - Capacity Factors'!$C$3="Wind"),IF(K59*'AVOID NEW'!$E$67<6.5,K59*(1-'AVOID NEW'!$E$67),K59-6.5),"NA") -> 32.3564 | N59: 30.15 | O59: =IF(OR('Input - Capacity Factors'!$C$3="Wind"),IF(N59*'AVOID NEW'!$E$67<6.5,N59*(1-'AVOID NEW'!$E$67),N59-6.5),"NA") -> 27.738 | P59: 31.55 | Q59: =IF(OR('Input - Capacity Factors'!$C$3="Wind"),IF(P59*'AVOID NEW'!$E$67<6.5,P59*(1-'AVOID NEW'!$E$67),P59-6.5),"NA") -> 29.026 | R59: 27.35 | S59: =IF(OR('Input - Capacity Factors'!$C$3="Wind"),IF(R59*'AVOID NEW'!$E$67<6.5,R59*(1-'AVOID NEW'!$E$67),R59-6.5),"NA") -> 25.162 | V59: 35.89 | W59: =IF(OR('Input - Capacity Factors'!$C$3="Wind"),IF(V59*'AVOID NEW'!$E$67<6.5,V59*(1-'AVOID NEW'!$E$67),V59-6.5),"NA") -> 33.0188 | X59: 37.56 | Y59: =IF(OR('Input - Capacity Factors'!$C$3="Wind"),IF(X59*'AVOID NEW'!$E$67<6.5,X59*(1-'AVOID NEW'!$E$67),X59-6.5),"NA") -> 34.5552 | Z59: 32.56 | AA59: =IF(OR('Input - Capacity Factors'!$C$3="Wind"),IF(Z59*'AVOID NEW'!$E$67<6.5,Z59*(1-'AVOID NEW'!$E$67),Z59-6.5),"NA") -> 29.9552
B60: 8 | C60: ='AVOID NEW'!AO16 -> 36.54445972 | D60: 38.21445972 | E60: 33.21445972 | G60: 39.47 | H60: =IF(OR('Input - Capacity Factors'!$C$3="Wind"),IF(G60*'AVOID NEW'!$E$67<6.5,G60*(1-'AVOID NEW'!$E$67),G60-6.5),"NA") -> 36.3124 | I60: 41.27 | J60: =IF(OR('Input - Capacity Factors'!$C$3="Wind"),IF(I60*'AVOID NEW'!$E$67<6.5,I60*(1-'AVOID NEW'!$E$67),I60-6.5),"NA") -> 37.9684 | K60: 35.87 | L60: =IF(OR('Input - Capacity Factors'!$C$3="Wind"),IF(K60*'AVOID NEW'!$E$67<6.5,K60*(1-'AVOID NEW'!$E$67),K60-6.5),"NA") -> 33.0004 | N60: 30.7 | O60: =IF(OR('Input - Capacity Factors'!$C$3="Wind"),IF(N60*'AVOID NEW'!$E$67<6.5,N60*(1-'AVOID NEW'!$E$67),N60-6.5),"NA") -> 28.244 | P60: 32.1 | Q60: =IF(OR('Input - Capacity Factors'!$C$3="Wind"),IF(P60*'AVOID NEW'!$E$67<6.5,P60*(1-'AVOID NEW'!$E$67),P60-6.5),"NA") -> 29.532 | R60: 27.9 | S60: =IF(OR('Input - Capacity Factors'!$C$3="Wind"),IF(R60*'AVOID NEW'!$E$67<6.5,R60*(1-'AVOID NEW'!$E$67),R60-6.5),"NA") -> 25.668 | V60: 36.54 | W60: =IF(OR('Input - Capacity Factors'!$C$3="Wind"),IF(V60*'AVOID NEW'!$E$67<6.5,V60*(1-'AVOID NEW'!$E$67),V60-6.5),"NA") -> 33.6168 | X60: 38.21 | Y60: =IF(OR('Input - Capacity Factors'!$C$3="Wind"),IF(X60*'AVOID NEW'!$E$67<6.5,X60*(1-'AVOID NEW'!$E$67),X60-6.5),"NA") -> 35.1532 | Z60: 33.21 | AA60: =IF(OR('Input - Capacity Factors'!$C$3="Wind"),IF(Z60*'AVOID NEW'!$E$67<6.5,Z60*(1-'AVOID NEW'!$E$67),Z60-6.5),"NA") -> 30.5532
B61: 9 | C61: ='AVOID NEW'!AO17 -> 37.16597985 | D61: 38.83597985 | E61: 33.83597985 | G61: 40.14 | H61: =IF(OR('Input - Capacity Factors'!$C$3="Wind"),IF(G61*'AVOID NEW'!$E$67<6.5,G61*(1-'AVOID NEW'!$E$67),G61-6.5),"NA") -> 36.9288 | I61: 41.94 | J61: =IF(OR('Input - Capacity Factors'!$C$3="Wind"),IF(I61*'AVOID NEW'!$E$67<6.5,I61*(1-'AVOID NEW'!$E$67),I61-6.5),"NA") -> 38.5848 | K61: 36.54 | L61: =IF(OR('Input - Capacity Factors'!$C$3="Wind"),IF(K61*'AVOID NEW'!$E$67<6.5,K61*(1-'AVOID NEW'!$E$67),K61-6.5),"NA") -> 33.6168 | N61: 31.22 | O61: =IF(OR('Input - Capacity Factors'!$C$3="Wind"),IF(N61*'AVOID NEW'!$E$67<6.5,N61*(1-'AVOID NEW'!$E$67),N61-6.5),"NA") -> 28.7224 | P61: 32.62 | Q61: =IF(OR('Input - Capacity Factors'!$C$3="Wind"),IF(P61*'AVOID NEW'!$E$67<6.5,P61*(1-'AVOID NEW'!$E$67),P61-6.5),"NA") -> 30.0104 | R61: 28.42 | S61: =IF(OR('Input - Capacity Factors'!$C$3="Wind"),IF(R61*'AVOID NEW'!$E$67<6.5,R61*(1-'AVOID NEW'!$E$67),R61-6.5),"NA") -> 26.1464 | V61: 37.17 | W61: =IF(OR('Input - Capacity Factors'!$C$3="Wind"),IF(V61*'AVOID NEW'!$E$67<6.5,V61*(1-'AVOID NEW'!$E$67),V61-6.5),"NA") -> 34.1964 | X61: 38.84 | Y61: =IF(OR('Input - Capacity Factors'!$C$3="Wind"),IF(X61*'AVOID NEW'!$E$67<6.5,X61*(1-'AVOID NEW'!$E$67),X61-6.5),"NA") -> 35.7328 | Z61: 33.84 | AA61: =IF(OR('Input - Capacity Factors'!$C$3="Wind"),IF(Z61*'AVOID NEW'!$E$67<6.5,Z61*(1-'AVOID NEW'!$E$67),Z61-6.5),"NA") -> 31.1328
B62: 10 | C62: ='AVOID NEW'!AO18 -> 37.77524652 | D62: 39.44524652 | E62: 34.44524652 | G62: 40.8 | H62: =IF(OR('Input - Capacity Factors'!$C$3="Wind"),IF(G62*'AVOID NEW'!$E$67<6.5,G62*(1-'AVOID NEW'!$E$67),G62-6.5),"NA") -> 37.536 | I62: 42.6 | J62: =IF(OR('Input - Capacity Factors'!$C$3="Wind"),IF(I62*'AVOID NEW'!$E$67<6.5,I62*(1-'AVOID NEW'!$E$67),I62-6.5),"NA") -> 39.192 | K62: 37.2 | L62: =IF(OR('Input - Capacity Factors'!$C$3="Wind"),IF(K62*'AVOID NEW'!$E$67<6.5,K62*(1-'AVOID NEW'!$E$67),K62-6.5),"NA") -> 34.224 | N62: 31.73 | O62: =IF(OR('Input - Capacity Factors'!$C$3="Wind"),IF(N62*'AVOID NEW'!$E$67<6.5,N62*(1-'AVOID NEW'!$E$67),N62-6.5),"NA") -> 29.1916 | P62: 33.13 | Q62: =IF(OR('Input - Capacity Factors'!$C$3="Wind"),IF(P62*'AVOID NEW'!$E$67<6.5,P62*(1-'AVOID NEW'!$E$67),P62-6.5),"NA") -> 30.4796 | R62: 28.93 | S62: =IF(OR('Input - Capacity Factors'!$C$3="Wind"),IF(R62*'AVOID NEW'!$E$67<6.5,R62*(1-'AVOID NEW'!$E$67),R62-6.5),"NA") -> 26.6156 | V62: 37.78 | W62: =IF(OR('Input - Capacity Factors'!$C$3="Wind"),IF(V62*'AVOID NEW'!$E$67<6.5,V62*(1-'AVOID NEW'!$E$67),V62-6.5),"NA") -> 34.7576 | X62: 39.45 | Y62: =IF(OR('Input - Capacity Factors'!$C$3="Wind"),IF(X62*'AVOID NEW'!$E$67<6.5,X62*(1-'AVOID NEW'!$E$67),X62-6.5),"NA") -> 36.294 | Z62: 34.45 | AA62: =IF(OR('Input - Capacity Factors'!$C$3="Wind"),IF(Z62*'AVOID NEW'!$E$67<6.5,Z62*(1-'AVOID NEW'!$E$67),Z62-6.5),"NA") -> 31.694
B63: 11 | C63: ='AVOID NEW'!AO19 -> 38.36620856 | D63: 40.03620856 | E63: 35.03620856 | G63: 41.44 | H63: =IF(OR('Input - Capacity Factors'!$C$3="Wind"),IF(G63*'AVOID NEW'!$E$67<6.5,G63*(1-'AVOID NEW'!$E$67),G63-6.5),"NA") -> 38.1248 | I63: 43.24 | J63: =IF(OR('Input - Capacity Factors'!$C$3="Wind"),IF(I63*'AVOID NEW'!$E$67<6.5,I63*(1-'AVOID NEW'!$E$67),I63-6.5),"NA") -> 39.7808 | K63: 37.84 | L63: =IF(OR('Input - Capacity Factors'!$C$3="Wind"),IF(K63*'AVOID NEW'!$E$67<6.5,K63*(1-'AVOID NEW'!$E$67),K63-6.5),"NA") -> 34.8128 | N63: 32.23 | O63: =IF(OR('Input - Capacity Factors'!$C$3="Wind"),IF(N63*'AVOID NEW'!$E$67<6.5,N63*(1-'AVOID NEW'!$E$67),N63-6.5),"NA") -> 29.6516 | P63: 33.63 | Q63: =IF(OR('Input - Capacity Factors'!$C$3="Wind"),IF(P63*'AVOID NEW'!$E$67<6.5,P63*(1-'AVOID NEW'!$E$67),P63-6.5),"NA") -> 30.9396 | R63: 29.43 | S63: =IF(OR('Input - Capacity Factors'!$C$3="Wind"),IF(R63*'AVOID NEW'!$E$67<6.5,R63*(1-'AVOID NEW'!$E$67),R63-6.5),"NA") -> 27.0756 | V63: 38.37 | W63: =IF(OR('Input - Capacity Factors'!$C$3="Wind"),IF(V63*'AVOID NEW'!$E$67<6.5,V63*(1-'AVOID NEW'!$E$67),V63-6.5),"NA") -> 35.3004 | X63: 40.04 | Y63: =IF(OR('Input - Capacity Factors'!$C$3="Wind"),IF(X63*'AVOID NEW'!$E$67<6.5,X63*(1-'AVOID NEW'!$E$67),X63-6.5),"NA") -> 36.8368 | Z63: 35.04 | AA63: =IF(OR('Input - Capacity Factors'!$C$3="Wind"),IF(Z63*'AVOID NEW'!$E$67<6.5,Z63*(1-'AVOID NEW'!$E$67),Z63-6.5),"NA") -> 32.2368
B64: 12 | C64: ='AVOID NEW'!AO20 -> 38.91441318 | D64: 40.58441318 | E64: 35.58441318 | G64: 42.03 | H64: =IF(OR('Input - Capacity Factors'!$C$3="Wind"),IF(G64*'AVOID NEW'!$E$67<6.5,G64*(1-'AVOID NEW'!$E$67),G64-6.5),"NA") -> 38.6676 | I64: 43.83 | J64: =IF(OR('Input - Capacity Factors'!$C$3="Wind"),IF(I64*'AVOID NEW'!$E$67<6.5,I64*(1-'AVOID NEW'!$E$67),I64-6.5),"NA") -> 40.3236 | K64: 38.43 | L64: =IF(OR('Input - Capacity Factors'!$C$3="Wind"),IF(K64*'AVOID NEW'!$E$67<6.5,K64*(1-'AVOID NEW'!$E$67),K64-6.5),"NA") -> 35.3556 | N64: 32.69 | O64: =IF(OR('Input - Capacity Factors'!$C$3="Wind"),IF(N64*'AVOID NEW'!$E$67<6.5,N64*(1-'AVOID NEW'!$E$67),N64-6.5),"NA") -> 30.0748 | P64: 34.09 | Q64: =IF(OR('Input - Capacity Factors'!$C$3="Wind"),IF(P64*'AVOID NEW'!$E$67<6.5,P64*(1-'AVOID NEW'!$E$67),P64-6.5),"NA") -> 31.3628 | R64: 29.89 | S64: =IF(OR('Input - Capacity Factors'!$C$3="Wind"),IF(R64*'AVOID NEW'!$E$67<6.5,R64*(1-'AVOID NEW'!$E$67),R64-6.5),"NA") -> 27.4988 | V64: 38.91 | W64: =IF(OR('Input - Capacity Factors'!$C$3="Wind"),IF(V64*'AVOID NEW'!$E$67<6.5,V64*(1-'AVOID NEW'!$E$67),V64-6.5),"NA") -> 35.7972 | X64: 40.58 | Y64: =IF(OR('Input - Capacity Factors'!$C$3="Wind"),IF(X64*'AVOID NEW'!$E$67<6.5,X64*(1-'AVOID NEW'!$E$67),X64-6.5),"NA") -> 37.3336 | Z64: 35.58 | AA64: =IF(OR('Input - Capacity Factors'!$C$3="Wind"),IF(Z64*'AVOID NEW'!$E$67<6.5,Z64*(1-'AVOID NEW'!$E$67),Z64-6.5),"NA") -> 32.7336
B65: 13 | C65: ='AVOID NEW'!AO21 -> 39.40988977 | D65: 41.07988977 | E65: 36.07988977 | G65: 42.56 | H65: =IF(OR('Input - Capacity Factors'!$C$3="Wind"),IF(G65*'AVOID NEW'!$E$67<6.5,G65*(1-'AVOID NEW'!$E$67),G65-6.5),"NA") -> 39.1552 | I65: 44.37 | J65: =IF(OR('Input - Capacity Factors'!$C$3="Wind"),IF(I65*'AVOID NEW'!$E$67<6.5,I65*(1-'AVOID NEW'!$E$67),I65-6.5),"NA") -> 40.8204 | K65: 38.97 | L65: =IF(OR('Input - Capacity Factors'!$C$3="Wind"),IF(K65*'AVOID NEW'!$E$67<6.5,K65*(1-'AVOID NEW'!$E$67),K65-6.5),"NA") -> 35.8524 | N65: 33.1 | O65: =IF(OR('Input - Capacity Factors'!$C$3="Wind"),IF(N65*'AVOID NEW'!$E$67<6.5,N65*(1-'AVOID NEW'!$E$67),N65-6.5),"NA") -> 30.452 | P65: 34.51 | Q65: =IF(OR('Input - Capacity Factors'!$C$3="Wind"),IF(P65*'AVOID NEW'!$E$67<6.5,P65*(1-'AVOID NEW'!$E$67),P65-6.5),"NA") -> 31.7492 | R65: 30.31 | S65: =IF(OR('Input - Capacity Factors'!$C$3="Wind"),IF(R65*'AVOID NEW'!$E$67<6.5,R65*(1-'AVOID NEW'!$E$67),R65-6.5),"NA") -> 27.8852 | V65: 39.41 | W65: =IF(OR('Input - Capacity Factors'!$C$3="Wind"),IF(V65*'AVOID NEW'!$E$67<6.5,V65*(1-'AVOID NEW'!$E$67),V65-6.5),"NA") -> 36.2572 | X65: 41.08 | Y65: =IF(OR('Input - Capacity Factors'!$C$3="Wind"),IF(X65*'AVOID NEW'!$E$67<6.5,X65*(1-'AVOID NEW'!$E$67),X65-6.5),"NA") -> 37.7936 | Z65: 36.08 | AA65: =IF(OR('Input - Capacity Factors'!$C$3="Wind"),IF(Z65*'AVOID NEW'!$E$67<6.5,Z65*(1-'AVOID NEW'!$E$67),Z65-6.5),"NA") -> 33.1936
B66: 14 | C66: ='AVOID NEW'!AO22 -> 39.87595474 | D66: 41.54595474 | E66: 36.54595474 | G66: 43.07 | H66: =IF(OR('Input - Capacity Factors'!$C$3="Wind"),IF(G66*'AVOID NEW'!$E$67<6.5,G66*(1-'AVOID NEW'!$E$67),G66-6.5),"NA") -> 39.6244 | I66: 44.87 | J66: =IF(OR('Input - Capacity Factors'!$C$3="Wind"),IF(I66*'AVOID NEW'!$E$67<6.5,I66*(1-'AVOID NEW'!$E$67),I66-6.5),"NA") -> 41.2804 | K66: 39.47 | L66: =IF(OR('Input - Capacity Factors'!$C$3="Wind"),IF(K66*'AVOID NEW'!$E$67<6.5,K66*(1-'AVOID NEW'!$E$67),K66-6.5),"NA") -> 36.3124 | N66: 33.5 | O66: =IF(OR('Input - Capacity Factors'!$C$3="Wind"),IF(N66*'AVOID NEW'!$E$67<6.5,N66*(1-'AVOID NEW'!$E$67),N66-6.5),"NA") -> 30.82 | P66: 34.9 | Q66: =IF(OR('Input - Capacity Factors'!$C$3="Wind"),IF(P66*'AVOID NEW'!$E$67<6.5,P66*(1-'AVOID NEW'!$E$67),P66-6.5),"NA") -> 32.108 | R66: 30.7 | S66: =IF(OR('Input - Capacity Factors'!$C$3="Wind"),IF(R66*'AVOID NEW'!$E$67<6.5,R66*(1-'AVOID NEW'!$E$67),R66-6.5),"NA") -> 28.244 | V66: 39.88 | W66: =IF(OR('Input - Capacity Factors'!$C$3="Wind"),IF(V66*'AVOID NEW'!$E$67<6.5,V66*(1-'AVOID NEW'!$E$67),V66-6.5),"NA") -> 36.6896 | X66: 41.55 | Y66: =IF(OR('Input - Capacity Factors'!$C$3="Wind"),IF(X66*'AVOID NEW'!$E$67<6.5,X66*(1-'AVOID NEW'!$E$67),X66-6.5),"NA") -> 38.226 | Z66: 36.55 | AA66: =IF(OR('Input - Capacity Factors'!$C$3="Wind"),IF(Z66*'AVOID NEW'!$E$67<6.5,Z66*(1-'AVOID NEW'!$E$67),Z66-6.5),"NA") -> 33.626
B67: 15 | C67: ='AVOID NEW'!AO23 -> 40.31252894 | D67: 41.98252894 | E67: 36.98252894 | G67: 43.54 | H67: =IF(OR('Input - Capacity Factors'!$C$3="Wind"),IF(G67*'AVOID NEW'!$E$67<6.5,G67*(1-'AVOID NEW'!$E$67),G67-6.5),"NA") -> 40.0568 | I67: 45.34 | J67: =IF(OR('Input - Capacity Factors'!$C$3="Wind"),IF(I67*'AVOID NEW'!$E$67<6.5,I67*(1-'AVOID NEW'!$E$67),I67-6.5),"NA") -> 41.7128 | K67: 39.94 | L67: =IF(OR('Input - Capacity Factors'!$C$3="Wind"),IF(K67*'AVOID NEW'!$E$67<6.5,K67*(1-'AVOID NEW'!$E$67),K67-6.5),"NA") -> 36.7448 | N67: 33.86 | O67: =IF(OR('Input - Capacity Factors'!$C$3="Wind"),IF(N67*'AVOID NEW'!$E$67<6.5,N67*(1-'AVOID NEW'!$E$67),N67-6.5),"NA") -> 31.1512 | P67: 35.27 | Q67: =IF(OR('Input - Capacity Factors'!$C$3="Wind"),IF(P67*'AVOID NEW'!$E$67<6.5,P67*(1-'AVOID NEW'!$E$67),P67-6.5),"NA") -> 32.4484 | R67: 31.07 | S67: =IF(OR('Input - Capacity Factors'!$C$3="Wind"),IF(R67*'AVOID NEW'!$E$67<6.5,R67*(1-'AVOID NEW'!$E$67),R67-6.5),"NA") -> 28.5844 | V67: 40.31 | W67: =IF(OR('Input - Capacity Factors'!$C$3="Wind"),IF(V67*'AVOID NEW'!$E$67<6.5,V67*(1-'AVOID NEW'!$E$67),V67-6.5),"NA") -> 37.0852 | X67: 41.98 | Y67: =IF(OR('Input - Capacity Factors'!$C$3="Wind"),IF(X67*'AVOID NEW'!$E$67<6.5,X67*(1-'AVOID NEW'!$E$67),X67-6.5),"NA") -> 38.6216 | Z67: 36.98 | AA67: =IF(OR('Input - Capacity Factors'!$C$3="Wind"),IF(Z67*'AVOID NEW'!$E$67<6.5,Z67*(1-'AVOID NEW'!$E$67),Z67-6.5),"NA") -> 34.0216
B68: 16 | C68: ='AVOID NEW'!AO24 -> 40.73164395 | D68: 42.40164395 | E68: 37.40164395 | G68: 43.99 | H68: =IF(OR('Input - Capacity Factors'!$C$3="Wind"),IF(G68*'AVOID NEW'!$E$67<6.5,G68*(1-'AVOID NEW'!$E$67),G68-6.5),"NA") -> 40.4708 | I68: 45.79 | J68: =IF(OR('Input - Capacity Factors'!$C$3="Wind"),IF(I68*'AVOID NEW'!$E$67<6.5,I68*(1-'AVOID NEW'!$E$67),I68-6.5),"NA") -> 42.1268 | K68: 40.39 | L68: =IF(OR('Input - Capacity Factors'!$C$3="Wind"),IF(K68*'AVOID NEW'!$E$67<6.5,K68*(1-'AVOID NEW'!$E$67),K68-6.5),"NA") -> 37.1588 | N68: 34.21 | O68: =IF(OR('Input - Capacity Factors'!$C$3="Wind"),IF(N68*'AVOID NEW'!$E$67<6.5,N68*(1-'AVOID NEW'!$E$67),N68-6.5),"NA") -> 31.4732 | P68: 35.62 | Q68: =IF(OR('Input - Capacity Factors'!$C$3="Wind"),IF(P68*'AVOID NEW'!$E$67<6.5,P68*(1-'AVOID NEW'!$E$67),P68-6.5),"NA") -> 32.7704 | R68: 31.42 | S68: =IF(OR('Input - Capacity Factors'!$C$3="Wind"),IF(R68*'AVOID NEW'!$E$67<6.5,R68*(1-'AVOID NEW'!$E$67),R68-6.5),"NA") -> 28.9064 | V68: 40.73 | W68: =IF(OR('Input - Capacity Factors'!$C$3="Wind"),IF(V68*'AVOID NEW'!$E$67<6.5,V68*(1-'AVOID NEW'!$E$67),V68-6.5),"NA") -> 37.4716 | X68: 42.4 | Y68: =IF(OR('Input - Capacity Factors'!$C$3="Wind"),IF(X68*'AVOID NEW'!$E$67<6.5,X68*(1-'AVOID NEW'!$E$67),X68-6.5),"NA") -> 39.008 | Z68: 37.4 | AA68: =IF(OR('Input - Capacity Factors'!$C$3="Wind"),IF(Z68*'AVOID NEW'!$E$67<6.5,Z68*(1-'AVOID NEW'!$E$67),Z68-6.5),"NA") -> 34.408
B69: 17 | C69: ='AVOID NEW'!AO25 -> 41.13347773 | D69: 42.80347773 | E69: 37.80347773 | G69: 44.42 | H69: =IF(OR('Input - Capacity Factors'!$C$3="Wind"),IF(G69*'AVOID NEW'!$E$67<6.5,G69*(1-'AVOID NEW'!$E$67),G69-6.5),"NA") -> 40.8664 | I69: 46.23 | J69: =IF(OR('Input - Capacity Factors'!$C$3="Wind"),IF(I69*'AVOID NEW'!$E$67<6.5,I69*(1-'AVOID NEW'!$E$67),I69-6.5),"NA") -> 42.5316 | K69: 40.83 | L69: =IF(OR('Input - Capacity Factors'!$C$3="Wind"),IF(K69*'AVOID NEW'!$E$67<6.5,K69*(1-'AVOID NEW'!$E$67),K69-6.5),"NA") -> 37.5636 | N69: 34.55 | O69: =IF(OR('Input - Capacity Factors'!$C$3="Wind"),IF(N69*'AVOID NEW'!$E$67<6.5,N69*(1-'AVOID NEW'!$E$67),N69-6.5),"NA") -> 31.786 | P69: 35.95 | Q69: =IF(OR('Input - Capacity Factors'!$C$3="Wind"),IF(P69*'AVOID NEW'!$E$67<6.5,P69*(1-'AVOID NEW'!$E$67),P69-6.5),"NA") -> 33.074 | R69: 31.75 | S69: =IF(OR('Input - Capacity Factors'!$C$3="Wind"),IF(R69*'AVOID NEW'!$E$67<6.5,R69*(1-'AVOID NEW'!$E$67),R69-6.5),"NA") -> 29.21 | V69: 41.13 | W69: =IF(OR('Input - Capacity Factors'!$C$3="Wind"),IF(V69*'AVOID NEW'!$E$67<6.5,V69*(1-'AVOID NEW'!$E$67),V69-6.5),"NA") -> 37.8396 | X69: 42.8 | Y69: =IF(OR('Input - Capacity Factors'!$C$3="Wind"),IF(X69*'AVOID NEW'!$E$67<6.5,X69*(1-'AVOID NEW'!$E$67),X69-6.5),"NA") -> 39.376 | Z69: 37.8 | AA69: =IF(OR('Input - Capacity Factors'!$C$3="Wind"),IF(Z69*'AVOID NEW'!$E$67<6.5,Z69*(1-'AVOID NEW'!$E$67),Z69-6.5),"NA") -> 34.776
B70: 18 | C70: ='AVOID NEW'!AO26 -> 41.52722662 | D70: 43.19722662 | E70: 38.19722662 | G70: 44.85 | H70: =IF(OR('Input - Capacity Factors'!$C$3="Wind"),IF(G70*'AVOID NEW'!$E$67<6.5,G70*(1-'AVOID NEW'!$E$67),G70-6.5),"NA") -> 41.262 | I70: 46.65 | J70: =IF(OR('Input - Capacity Factors'!$C$3="Wind"),IF(I70*'AVOID NEW'!$E$67<6.5,I70*(1-'AVOID NEW'!$E$67),I70-6.5),"NA") -> 42.918 | K70: 41.25 | L70: =IF(OR('Input - Capacity Factors'!$C$3="Wind"),IF(K70*'AVOID NEW'!$E$67<6.5,K70*(1-'AVOID NEW'!$E$67),K70-6.5),"NA") -> 37.95 | N70: 34.88 | O70: =IF(OR('Input - Capacity Factors'!$C$3="Wind"),IF(N70*'AVOID NEW'!$E$67<6.5,N70*(1-'AVOID NEW'!$E$67),N70-6.5),"NA") -> 32.0896 | P70: 36.29 | Q70: =IF(OR('Input - Capacity Factors'!$C$3="Wind"),IF(P70*'AVOID NEW'!$E$67<6.5,P70*(1-'AVOID NEW'!$E$67),P70-6.5),"NA") -> 33.3868 | R70: 32.09 | S70: =IF(OR('Input - Capacity Factors'!$C$3="Wind"),IF(R70*'AVOID NEW'!$E$67<6.5,R70*(1-'AVOID NEW'!$E$67),R70-6.5),"NA") -> 29.5228 | V70: 41.53 | W70: =IF(OR('Input - Capacity Factors'!$C$3="Wind"),IF(V70*'AVOID NEW'!$E$67<6.5,V70*(1-'AVOID NEW'!$E$67),V70-6.5),"NA") -> 38.2076 | X70: 43.2 | Y70: =IF(OR('Input - Capacity Factors'!$C$3="Wind"),IF(X70*'AVOID NEW'!$E$67<6.5,X70*(1-'AVOID NEW'!$E$67),X70-6.5),"NA") -> 39.744 | Z70: 38.2 | AA70: =IF(OR('Input - Capacity Factors'!$C$3="Wind"),IF(Z70*'AVOID NEW'!$E$67<6.5,Z70*(1-'AVOID NEW'!$E$67),Z70-6.5),"NA") -> 35.144
B71: 19 | C71: ='AVOID NEW'!AO27 -> 41.90803761 | D71: 43.57803761 | E71: 38.57803761 | G71: 45.26 | H71: =IF(OR('Input - Capacity Factors'!$C$3="Wind"),IF(G71*'AVOID NEW'!$E$67<6.5,G71*(1-'AVOID NEW'!$E$67),G71-6.5),"NA") -> 41.6392 | I71: 47.06 | J71: =IF(OR('Input - Capacity Factors'!$C$3="Wind"),IF(I71*'AVOID NEW'!$E$67<6.5,I71*(1-'AVOID NEW'!$E$67),I71-6.5),"NA") -> 43.2952 | K71: 41.66 | L71: =IF(OR('Input - Capacity Factors'!$C$3="Wind"),IF(K71*'AVOID NEW'!$E$67<6.5,K71*(1-'AVOID NEW'!$E$67),K71-6.5),"NA") -> 38.3272 | N71: 35.2 | O71: =IF(OR('Input - Capacity Factors'!$C$3="Wind"),IF(N71*'AVOID NEW'!$E$67<6.5,N71*(1-'AVOID NEW'!$E$67),N71-6.5),"NA") -> 32.384 | P71: 36.61 | Q71: =IF(OR('Input - Capacity Factors'!$C$3="Wind"),IF(P71*'AVOID NEW'!$E$67<6.5,P71*(1-'AVOID NEW'!$E$67),P71-6.5),"NA") -> 33.6812 | R71: 32.41 | S71: =IF(OR('Input - Capacity Factors'!$C$3="Wind"),IF(R71*'AVOID NEW'!$E$67<6.5,R71*(1-'AVOID NEW'!$E$67),R71-6.5),"NA") -> 29.8172 | V71: 41.91 | W71: =IF(OR('Input - Capacity Factors'!$C$3="Wind"),IF(V71*'AVOID NEW'!$E$67<6.5,V71*(1-'AVOID NEW'!$E$67),V71-6.5),"NA") -> 38.5572 | X71: 43.58 | Y71: =IF(OR('Input - Capacity Factors'!$C$3="Wind"),IF(X71*'AVOID NEW'!$E$67<6.5,X71*(1-'AVOID NEW'!$E$67),X71-6.5),"NA") -> 40.0936 | Z71: 38.58 | AA71: =IF(OR('Input - Capacity Factors'!$C$3="Wind"),IF(Z71*'AVOID NEW'!$E$67<6.5,Z71*(1-'AVOID NEW'!$E$67),Z71-6.5),"NA") -> 35.4936
B72: 20 | C72: ='AVOID NEW'!AO28 -> 42.26931278 | D72: 43.93931278 | E72: 38.93931278 | G72: 45.65 | H72: =IF(OR('Input - Capacity Factors'!$C$3="Wind"),IF(G72*'AVOID NEW'!$E$67<6.5,G72*(1-'AVOID NEW'!$E$67),G72-6.5),"NA") -> 41.998 | I72: 47.45 | J72: =IF(OR('Input - Capacity Factors'!$C$3="Wind"),IF(I72*'AVOID NEW'!$E$67<6.5,I72*(1-'AVOID NEW'!$E$67),I72-6.5),"NA") -> 43.654 | K72: 42.05 | L72: =IF(OR('Input - Capacity Factors'!$C$3="Wind"),IF(K72*'AVOID NEW'!$E$67<6.5,K72*(1-'AVOID NEW'!$E$67),K72-6.5),"NA") -> 38.686 | N72: 35.51 | O72: =IF(OR('Input - Capacity Factors'!$C$3="Wind"),IF(N72*'AVOID NEW'!$E$67<6.5,N72*(1-'AVOID NEW'!$E$67),N72-6.5),"NA") -> 32.6692 | P72: 36.91 | Q72: =IF(OR('Input - Capacity Factors'!$C$3="Wind"),IF(P72*'AVOID NEW'!$E$67<6.5,P72*(1-'AVOID NEW'!$E$67),P72-6.5),"NA") -> 33.9572 | R72: 32.71 | S72: =IF(OR('Input - Capacity Factors'!$C$3="Wind"),IF(R72*'AVOID NEW'!$E$67<6.5,R72*(1-'AVOID NEW'!$E$67),R72-6.5),"NA") -> 30.0932 | V72: 42.27 | W72: =IF(OR('Input - Capacity Factors'!$C$3="Wind"),IF(V72*'AVOID NEW'!$E$67<6.5,V72*(1-'AVOID NEW'!$E$67),V72-6.5),"NA") -> 38.8884 | X72: 43.94 | Y72: =IF(OR('Input - Capacity Factors'!$C$3="Wind"),IF(X72*'AVOID NEW'!$E$67<6.5,X72*(1-'AVOID NEW'!$E$67),X72-6.5),"NA") -> 40.4248 | Z72: 38.94 | AA72: =IF(OR('Input - Capacity Factors'!$C$3="Wind"),IF(Z72*'AVOID NEW'!$E$67<6.5,Z72*(1-'AVOID NEW'!$E$67),Z72-6.5),"NA") -> 35.8248
B76: =$B$1 -> THESE RATES ARE NOT VALID
B77: LEVELIZED RATES
B78: ="PROJECT ON-LINE IN "& 'AVOID NEW'!$D$54+2 -> PROJECT ON-LINE IN 2024
B79: ="Rate Effective Date: "&'AVOID NEW'!$E$69 -> Rate Effective Date: XXXX, 2022
B80: ="Resource: "&'Input - Capacity Factors'!$C$3 -> Resource: Wind
C81: Levelized Price | G81: ="Season 1 Pricing ("&$D$7*100&"%)" -> Season 1 Pricing (108%) | N81: ="Season 2 Pricing ("&100*$D$8&"%)" -> Season 2 Pricing (84%) | V81: Non-Seasonalized Pricing
C82: Heavy and Light Load Hour Differential | D82: ='AVOID NEW'!$E$66 -> 5 | G82: Flat | I82: Heavy Load Hour | K82: Light Load Hour | N82: Flat | P82: Heavy Load Hour | R82: Light Load Hour | V82: Flat | X82: Heavy Load Hour | Z82: Light Load Hour
D83: =ROUND(D82/3,2) -> 1.67 | E83: =-ROUND((D82*2)/3,2) -> -3.33 | H83: Price less wind integration adjustment | J83: Price less wind integration adjustment | L83: Price less wind integration adjustment | O83: Price less wind integration adjustment | Q83: Price less wind integration adjustment | S83: Price less wind integration adjustment | W83: Price less wind integration adjustment | Y83: Price less wind integration adjustment | AA83: Price less wind integration adjustment
B84: Contract Length | C84: Flat | D84: Heavy Load Hour | E84: Light Load Hour | G84: Price | I84: Price | K84: Price | N84: Price | P84: Price | R84: Price | V84: Price | X84: Price | Z84: Price
B85: 1 | C85: ='AVOID NEW'!AP9 -> 33.69315868 | D85: =C85+D$83 -> 35.36315868 | E85: =C85+E$83 -> 30.36315868 | G85: =ROUND((+$C85*$D$7),2) -> 36.39 | H85: =IF(OR('Input - Capacity Factors'!$C$3="Wind"),IF(G85*'AVOID NEW'!$E$67<6.5,G85*(1-'AVOID NEW'!$E$67),G85-6.5),"NA") -> 33.4788 | I85: =ROUND((+$D85*$D$7),2) -> 38.19 | J85: =IF(OR('Input - Capacity Factors'!$C$3="Wind"),IF(I85*'AVOID NEW'!$E$67<6.5,I85*(1-'AVOID NEW'!$E$67),I85-6.5),"NA") -> 35.1348 | K85: =ROUND((+$E85*$D$7),2) -> 32.79 | L85: =IF(OR('Input - Capacity Factors'!$C$3="Wind"),IF(K85*'AVOID NEW'!$E$67<6.5,K85*(1-'AVOID NEW'!$E$67),K85-6.5),"NA") -> 30.1668 | N85: =ROUND((+$C85*$D$8),2) -> 28.3 | O85: =IF(OR('Input - Capacity Factors'!$C$3="Wind"),IF(N85*'AVOID NEW'!$E$67<6.5,N85*(1-'AVOID NEW'!$E$67),N85-6.5),"NA") -> 26.036 | P85: =ROUND((+$D85*$D$8),2) -> 29.71 | Q85: =IF(OR('Input - Capacity Factors'!$C$3="Wind"),IF(P85*'AVOID NEW'!$E$67<6.5,P85*(1-'AVOID NEW'!$E$67),P85-6.5),"NA") -> 27.3332 | R85: =ROUND((+$E85*$D$8),2) -> 25.51 | S85: =IF(OR('Input - Capacity Factors'!$C$3="Wind"),IF(R85*'AVOID NEW'!$E$67<6.5,R85*(1-'AVOID NEW'!$E$67),R85-6.5),"NA") -> 23.4692 | V85: =ROUND((+$C85),2) -> 33.69 | W85: =IF(OR('Input - Capacity Factors'!$C$3="Wind"),IF(V85*'AVOID NEW'!$E$67<6.5,V85*(1-'AVOID NEW'!$E$67),V85-6.5),"NA") -> 30.9948 | X85: =ROUND((+$D85),2) -> 35.36 | Y85: =IF(OR('Input - Capacity Factors'!$C$3="Wind"),IF(X85*'AVOID NEW'!$E$67<6.5,X85*(1-'AVOID NEW'!$E$67),X85-6.5),"NA") -> 32.5312 | Z85: =ROUND((+$E85),2) -> 30.36 | AA85: =IF(OR('Input - Capacity Factors'!$C$3="Wind"),IF(Z85*'AVOID NEW'!$E$67<6.5,Z85*(1-'AVOID NEW'!$E$67),Z85-6.5),"NA") -> 27.9312
B86: 2 | C86: ='AVOID NEW'!AP10 -> 33.46203291 | D86: 35.13203291 | E86: 30.13203291 | G86: 36.14 | H86: =IF(OR('Input - Capacity Factors'!$C$3="Wind"),IF(G86*'AVOID NEW'!$E$67<6.5,G86*(1-'AVOID NEW'!$E$67),G86-6.5),"NA") -> 33.2488 | I86: 37.94 | J86: =IF(OR('Input - Capacity Factors'!$C$3="Wind"),IF(I86*'AVOID NEW'!$E$67<6.5,I86*(1-'AVOID NEW'!$E$67),I86-6.5),"NA") -> 34.9048 | K86: 32.54 | L86: =IF(OR('Input - Capacity Factors'!$C$3="Wind"),IF(K86*'AVOID NEW'!$E$67<6.5,K86*(1-'AVOID NEW'!$E$67),K86-6.5),"NA") -> 29.9368 | N86: 28.11 | O86: =IF(OR('Input - Capacity Factors'!$C$3="Wind"),IF(N86*'AVOID NEW'!$E$67<6.5,N86*(1-'AVOID NEW'!$E$67),N86-6.5),"NA") -> 25.8612 | P86: 29.51 | Q86: =IF(OR('Input - Capacity Factors'!$C$3="Wind"),IF(P86*'AVOID NEW'!$E$67<6.5,P86*(1-'AVOID NEW'!$E$67),P86-6.5),"NA") -> 27.1492 | R86: 25.31 | S86: =IF(OR('Input - Capacity Factors'!$C$3="Wind"),IF(R86*'AVOID NEW'!$E$67<6.5,R86*(1-'AVOID NEW'!$E$67),R86-6.5),"NA") -> 23.2852 | V86: =ROUND((+$C86),2) -> 33.46 | W86: =IF(OR('Input - Capacity Factors'!$C$3="Wind"),IF(V86*'AVOID NEW'!$E$67<6.5,V86*(1-'AVOID NEW'!$E$67),V86-6.5),"NA") -> 30.7832 | X86: =ROUND((+$D86),2) -> 35.13 | Y86: =IF(OR('Input - Capacity Factors'!$C$3="Wind"),IF(X86*'AVOID NEW'!$E$67<6.5,X86*(1-'AVOID NEW'!$E$67),X86-6.5),"NA") -> 32.3196 | Z86: =ROUND((+$E86),2) -> 30.13 | AA86: =IF(OR('Input - Capacity Factors'!$C$3="Wind"),IF(Z86*'AVOID NEW'!$E$67<6.5,Z86*(1-'AVOID NEW'!$E$67),Z86-6.5),"NA") -> 27.7196
B87: 3 | C87: ='AVOID NEW'!AP11 -> 33.77191621 | D87: 35.44191621 | E87: 30.44191621 | G87: 36.47 | H87: =IF(OR('Input - Capacity Factors'!$C$3="Wind"),IF(G87*'AVOID NEW'!$E$67<6.5,G87*(1-'AVOID NEW'!$E$67),G87-6.5),"NA") -> 33.5524 | I87: 38.28 | J87: =IF(OR('Input - Capacity Factors'!$C$3="Wind"),IF(I87*'AVOID NEW'!$E$67<6.5,I87*(1-'AVOID NEW'!$E$67),I87-6.5),"NA") -> 35.2176 | K87: 32.88 | L87: =IF(OR('Input - Capacity Factors'!$C$3="Wind"),IF(K87*'AVOID NEW'!$E$67<6.5,K87*(1-'AVOID NEW'!$E$67),K87-6.5),"NA") -> 30.2496 | N87: 28.37 | O87: =IF(OR('Input - Capacity Factors'!$C$3="Wind"),IF(N87*'AVOID NEW'!$E$67<6.5,N87*(1-'AVOID NEW'!$E$67),N87-6.5),"NA") -> 26.1004 | P87: 29.77 | Q87: =IF(OR('Input - Capacity Factors'!$C$3="Wind"),IF(P87*'AVOID NEW'!$E$67<6.5,P87*(1-'AVOID NEW'!$E$67),P87-6.5),"NA") -> 27.3884 | R87: 25.57 | S87: =IF(OR('Input - Capacity Factors'!$C$3="Wind"),IF(R87*'AVOID NEW'!$E$67<6.5,R87*(1-'AVOID NEW'!$E$67),R87-6.5),"NA") -> 23.5244 | V87: 33.77 | W87: =IF(OR('Input - Capacity Factors'!$C$3="Wind"),IF(V87*'AVOID NEW'!$E$67<6.5,V87*(1-'AVOID NEW'!$E$67),V87-6.5),"NA") -> 31.0684 | X87: 35.44 | Y87: =IF(OR('Input - Capacity Factors'!$C$3="Wind"),IF(X87*'AVOID NEW'!$E$67<6.5,X87*(1-'AVOID NEW'!$E$67),X87-6.5),"NA") -> 32.6048 | Z87: 30.44 | AA87: =IF(OR('Input - Capacity Factors'!$C$3="Wind"),IF(Z87*'AVOID NEW'!$E$67<6.5,Z87*(1-'AVOID NEW'!$E$67),Z87-6.5),"NA") -> 28.0048
B88: 4 | C88: ='AVOID NEW'!AP12 -> 34.37201093 | D88: 36.04201093 | E88: 31.04201093 | G88: 37.12 | H88: =IF(OR('Input - Capacity Factors'!$C$3="Wind"),IF(G88*'AVOID NEW'!$E$67<6.5,G88*(1-'AVOID NEW'!$E$67),G88-6.5),"NA") -> 34.1504 | I88: 38.93 | J88: =IF(OR('Input - Capacity Factors'!$C$3="Wind"),IF(I88*'AVOID NEW'!$E$67<6.5,I88*(1-'AVOID NEW'!$E$67),I88-6.5),"NA") -> 35.8156 | K88: 33.53 | L88: =IF(OR('Input - Capacity Factors'!$C$3="Wind"),IF(K88*'AVOID NEW'!$E$67<6.5,K88*(1-'AVOID NEW'!$E$67),K88-6.5),"NA") -> 30.8476 | N88: 28.87 | O88: =IF(OR('Input - Capacity Factors'!$C$3="Wind"),IF(N88*'AVOID NEW'!$E$67<6.5,N88*(1-'AVOID NEW'!$E$67),N88-6.5),"NA") -> 26.5604 | P88: 30.28 | Q88: =IF(OR('Input - Capacity Factors'!$C$3="Wind"),IF(P88*'AVOID NEW'!$E$67<6.5,P88*(1-'AVOID NEW'!$E$67),P88-6.5),"NA") -> 27.8576 | R88: 26.08 | S88: =IF(OR('Input - Capacity Factors'!$C$3="Wind"),IF(R88*'AVOID NEW'!$E$67<6.5,R88*(1-'AVOID NEW'!$E$67),R88-6.5),"NA") -> 23.9936 | V88: 34.37 | W88: =IF(OR('Input - Capacity Factors'!$C$3="Wind"),IF(V88*'AVOID NEW'!$E$67<6.5,V88*(1-'AVOID NEW'!$E$67),V88-6.5),"NA") -> 31.6204 | X88: 36.04 | Y88: =IF(OR('Input - Capacity Factors'!$C$3="Wind"),IF(X88*'AVOID NEW'!$E$67<6.5,X88*(1-'AVOID NEW'!$E$67),X88-6.5),"NA") -> 33.1568 | Z88: 31.04 | AA88: =IF(OR('Input - Capacity Factors'!$C$3="Wind"),IF(Z88*'AVOID NEW'!$E$67<6.5,Z88*(1-'AVOID NEW'!$E$67),Z88-6.5),"NA") -> 28.5568
B89: 5 | C89: ='AVOID NEW'!AP13 -> 35.15298414 | D89: 36.82298414 | E89: 31.82298414 | G89: 37.97 | H89: =IF(OR('Input - Capacity Factors'!$C$3="Wind"),IF(G89*'AVOID NEW'!$E$67<6.5,G89*(1-'AVOID NEW'!$E$67),G89-6.5),"NA") -> 34.9324 | I89: 39.77 | J89: =IF(OR('Input - Capacity Factors'!$C$3="Wind"),IF(I89*'AVOID NEW'!$E$67<6.5,I89*(1-'AVOID NEW'!$E$67),I89-6.5),"NA") -> 36.5884 | K89: 34.37 | L89: =IF(OR('Input - Capacity Factors'!$C$3="Wind"),IF(K89*'AVOID NEW'!$E$67<6.5,K89*(1-'AVOID NEW'!$E$67),K89-6.5),"NA") -> 31.6204 | N89: 29.53 | O89: =IF(OR('Input - Capacity Factors'!$C$3="Wind"),IF(N89*'AVOID NEW'!$E$67<6.5,N89*(1-'AVOID NEW'!$E$67),N89-6.5),"NA") -> 27.1676 | P89: 30.93 | Q89: =IF(OR('Input - Capacity Factors'!$C$3="Wind"),IF(P89*'AVOID NEW'!$E$67<6.5,P89*(1-'AVOID NEW'!$E$67),P89-6.5),"NA") -> 28.4556 | R89: 26.73 | S89: =IF(OR('Input - Capacity Factors'!$C$3="Wind"),IF(R89*'AVOID NEW'!$E$67<6.5,R89*(1-'AVOID NEW'!$E$67),R89-6.5),"NA") -> 24.5916 | V89: 35.15 | W89: =IF(OR('Input - Capacity Factors'!$C$3="Wind"),IF(V89*'AVOID NEW'!$E$67<6.5,V89*(1-'AVOID NEW'!$E$67),V89-6.5),"NA") -> 32.338 | X89: 36.82 | Y89: =IF(OR('Input - Capacity Factors'!$C$3="Wind"),IF(X89*'AVOID NEW'!$E$67<6.5,X89*(1-'AVOID NEW'!$E$67),X89-6.5),"NA") -> 33.8744 | Z89: 31.82 | AA89: =IF(OR('Input - Capacity Factors'!$C$3="Wind"),IF(Z89*'AVOID NEW'!$E$67<6.5,Z89*(1-'AVOID NEW'!$E$67),Z89-6.5),"NA") -> 29.2744
B90: 6 | C90: ='AVOID NEW'!AP14 -> 35.96767102 | D90: 37.63767102 | E90: 32.63767102 | G90: 38.85 | H90: =IF(OR('Input - Capacity Factors'!$C$3="Wind"),IF(G90*'AVOID NEW'!$E$67<6.5,G90*(1-'AVOID NEW'!$E$67),G90-6.5),"NA") -> 35.742 | I90: 40.65 | J90: =IF(OR('Input - Capacity Factors'!$C$3="Wind"),IF(I90*'AVOID NEW'!$E$67<6.5,I90*(1-'AVOID NEW'!$E$67),I90-6.5),"NA") -> 37.398 | K90: 35.25 | L90: =IF(OR('Input - Capacity Factors'!$C$3="Wind"),IF(K90*'AVOID NEW'!$E$67<6.5,K90*(1-'AVOID NEW'!$E$67),K90-6.5),"NA") -> 32.43 | N90: 30.21 | O90: =IF(OR('Input - Capacity Factors'!$C$3="Wind"),IF(N90*'AVOID NEW'!$E$67<6.5,N90*(1-'AVOID NEW'!$E$67),N90-6.5),"NA") -> 27.7932 | P90: 31.62 | Q90: =IF(OR('Input - Capacity Factors'!$C$3="Wind"),IF(P90*'AVOID NEW'!$E$67<6.5,P90*(1-'AVOID NEW'!$E$67),P90-6.5),"NA") -> 29.0904 | R90: 27.42 | S90: =IF(OR('Input - Capacity Factors'!$C$3="Wind"),IF(R90*'AVOID NEW'!$E$67<6.5,R90*(1-'AVOID NEW'!$E$67),R90-6.5),"NA") -> 25.2264 | V90: 35.97 | W90: =IF(OR('Input - Capacity Factors'!$C$3="Wind"),IF(V90*'AVOID NEW'!$E$67<6.5,V90*(1-'AVOID NEW'!$E$67),V90-6.5),"NA") -> 33.0924 | X90: 37.64 | Y90: =IF(OR('Input - Capacity Factors'!$C$3="Wind"),IF(X90*'AVOID NEW'!$E$67<6.5,X90*(1-'AVOID NEW'!$E$67),X90-6.5),"NA") -> 34.6288 | Z90: 32.64 | AA90: =IF(OR('Input - Capacity Factors'!$C$3="Wind"),IF(Z90*'AVOID NEW'!$E$67<6.5,Z90*(1-'AVOID NEW'!$E$67),Z90-6.5),"NA") -> 30.0288
B91: 7 | C91: ='AVOID NEW'!AP15 -> 36.73811907 | D91: 38.40811907 | E91: 33.40811907 | G91: 39.68 | H91: =IF(OR('Input - Capacity Factors'!$C$3="Wind"),IF(G91*'AVOID NEW'!$E$67<6.5,G91*(1-'AVOID NEW'!$E$67),G91-6.5),"NA") -> 36.5056 | I91: 41.48 | J91: =IF(OR('Input - Capacity Factors'!$C$3="Wind"),IF(I91*'AVOID NEW'!$E$67<6.5,I91*(1-'AVOID NEW'!$E$67),I91-6.5),"NA") -> 38.1616 | K91: 36.08 | L91: =IF(OR('Input - Capacity Factors'!$C$3="Wind"),IF(K91*'AVOID NEW'!$E$67<6.5,K91*(1-'AVOID NEW'!$E$67),K91-6.5),"NA") -> 33.1936 | N91: 30.86 | O91: =IF(OR('Input - Capacity Factors'!$C$3="Wind"),IF(N91*'AVOID NEW'!$E$67<6.5,N91*(1-'AVOID NEW'!$E$67),N91-6.5),"NA") -> 28.3912 | P91: 32.26 | Q91: =IF(OR('Input - Capacity Factors'!$C$3="Wind"),IF(P91*'AVOID NEW'!$E$67<6.5,P91*(1-'AVOID NEW'!$E$67),P91-6.5),"NA") -> 29.6792 | R91: 28.06 | S91: =IF(OR('Input - Capacity Factors'!$C$3="Wind"),IF(R91*'AVOID NEW'!$E$67<6.5,R91*(1-'AVOID NEW'!$E$67),R91-6.5),"NA") -> 25.8152 | V91: 36.74 | W91: =IF(OR('Input - Capacity Factors'!$C$3="Wind"),IF(V91*'AVOID NEW'!$E$67<6.5,V91*(1-'AVOID NEW'!$E$67),V91-6.5),"NA") -> 33.8008 | X91: 38.41 | Y91: =IF(OR('Input - Capacity Factors'!$C$3="Wind"),IF(X91*'AVOID NEW'!$E$67<6.5,X91*(1-'AVOID NEW'!$E$67),X91-6.5),"NA") -> 35.3372 | Z91: 33.41 | AA91: =IF(OR('Input - Capacity Factors'!$C$3="Wind"),IF(Z91*'AVOID NEW'!$E$67<6.5,Z91*(1-'AVOID NEW'!$E$67),Z91-6.5),"NA") -> 30.7372
B92: 8 | C92: ='AVOID NEW'!AP16 -> 37.45044456 | D92: 39.12044456 | E92: 34.12044456 | G92: 40.45 | H92: =IF(OR('Input - Capacity Factors'!$C$3="Wind"),IF(G92*'AVOID NEW'!$E$67<6.5,G92*(1-'AVOID NEW'!$E$67),G92-6.5),"NA") -> 37.214 | I92: 42.25 | J92: =IF(OR('Input - Capacity Factors'!$C$3="Wind"),IF(I92*'AVOID NEW'!$E$67<6.5,I92*(1-'AVOID NEW'!$E$67),I92-6.5),"NA") -> 38.87 | K92: 36.85 | L92: =IF(OR('Input - Capacity Factors'!$C$3="Wind"),IF(K92*'AVOID NEW'!$E$67<6.5,K92*(1-'AVOID NEW'!$E$67),K92-6.5),"NA") -> 33.902 | N92: 31.46 | O92: =IF(OR('Input - Capacity Factors'!$C$3="Wind"),IF(N92*'AVOID NEW'!$E$67<6.5,N92*(1-'AVOID NEW'!$E$67),N92-6.5),"NA") -> 28.9432 | P92: 32.86 | Q92: =IF(OR('Input - Capacity Factors'!$C$3="Wind"),IF(P92*'AVOID NEW'!$E$67<6.5,P92*(1-'AVOID NEW'!$E$67),P92-6.5),"NA") -> 30.2312 | R92: 28.66 | S92: =IF(OR('Input - Capacity Factors'!$C$3="Wind"),IF(R92*'AVOID NEW'!$E$67<6.5,R92*(1-'AVOID NEW'!$E$67),R92-6.5),"NA") -> 26.3672 | V92: 37.45 | W92: =IF(OR('Input - Capacity Factors'!$C$3="Wind"),IF(V92*'AVOID NEW'!$E$67<6.5,V92*(1-'AVOID NEW'!$E$67),V92-6.5),"NA") -> 34.454 | X92: 39.12 | Y92: =IF(OR('Input - Capacity Factors'!$C$3="Wind"),IF(X92*'AVOID NEW'!$E$67<6.5,X92*(1-'AVOID NEW'!$E$67),X92-6.5),"NA") -> 35.9904 | Z92: 34.12 | AA92: =IF(OR('Input - Capacity Factors'!$C$3="Wind"),IF(Z92*'AVOID NEW'!$E$67<6.5,Z92*(1-'AVOID NEW'!$E$67),Z92-6.5),"NA") -> 31.3904
B93: 9 | C93: ='AVOID NEW'!AP17 -> 38.13536507 | D93: 39.80536507 | E93: 34.80536507 | G93: 41.19 | H93: =IF(OR('Input - Capacity Factors'!$C$3="Wind"),IF(G93*'AVOID NEW'!$E$67<6.5,G93*(1-'AVOID NEW'!$E$67),G93-6.5),"NA") -> 37.8948 | I93: 42.99 | J93: =IF(OR('Input - Capacity Factors'!$C$3="Wind"),IF(I93*'AVOID NEW'!$E$67<6.5,I93*(1-'AVOID NEW'!$E$67),I93-6.5),"NA") -> 39.5508 | K93: 37.59 | L93: =IF(OR('Input - Capacity Factors'!$C$3="Wind"),IF(K93*'AVOID NEW'!$E$67<6.5,K93*(1-'AVOID NEW'!$E$67),K93-6.5),"NA") -> 34.5828 | N93: 32.03 | O93: =IF(OR('Input - Capacity Factors'!$C$3="Wind"),IF(N93*'AVOID NEW'!$E$67<6.5,N93*(1-'AVOID NEW'!$E$67),N93-6.5),"NA") -> 29.4676 | P93: 33.44 | Q93: =IF(OR('Input - Capacity Factors'!$C$3="Wind"),IF(P93*'AVOID NEW'!$E$67<6.5,P93*(1-'AVOID NEW'!$E$67),P93-6.5),"NA") -> 30.7648 | R93: 29.24 | S93: =IF(OR('Input - Capacity Factors'!$C$3="Wind"),IF(R93*'AVOID NEW'!$E$67<6.5,R93*(1-'AVOID NEW'!$E$67),R93-6.5),"NA") -> 26.9008 | V93: 38.14 | W93: =IF(OR('Input - Capacity Factors'!$C$3="Wind"),IF(V93*'AVOID NEW'!$E$67<6.5,V93*(1-'AVOID NEW'!$E$67),V93-6.5),"NA") -> 35.0888 | X93: 39.81 | Y93: =IF(OR('Input - Capacity Factors'!$C$3="Wind"),IF(X93*'AVOID NEW'!$E$67<6.5,X93*(1-'AVOID NEW'!$E$67),X93-6.5),"NA") -> 36.6252 | Z93: 34.81 | AA93: =IF(OR('Input - Capacity Factors'!$C$3="Wind"),IF(Z93*'AVOID NEW'!$E$67<6.5,Z93*(1-'AVOID NEW'!$E$67),Z93-6.5),"NA") -> 32.0252
B94: 10 | C94: ='AVOID NEW'!AP18 -> 38.79046772 | D94: 40.46046772 | E94: 35.46046772 | G94: 41.89 | H94: =IF(OR('Input - Capacity Factors'!$C$3="Wind"),IF(G94*'AVOID NEW'!$E$67<6.5,G94*(1-'AVOID NEW'!$E$67),G94-6.5),"NA") -> 38.5388 | I94: 43.7 | J94: =IF(OR('Input - Capacity Factors'!$C$3="Wind"),IF(I94*'AVOID NEW'!$E$67<6.5,I94*(1-'AVOID NEW'!$E$67),I94-6.5),"NA") -> 40.204 | K94: 38.3 | L94: =IF(OR('Input - Capacity Factors'!$C$3="Wind"),IF(K94*'AVOID NEW'!$E$67<6.5,K94*(1-'AVOID NEW'!$E$67),K94-6.5),"NA") -> 35.236 | N94: 32.58 | O94: =IF(OR('Input - Capacity Factors'!$C$3="Wind"),IF(N94*'AVOID NEW'!$E$67<6.5,N94*(1-'AVOID NEW'!$E$67),N94-6.5),"NA") -> 29.9736 | P94: 33.99 | Q94: =IF(OR('Input - Capacity Factors'!$C$3="Wind"),IF(P94*'AVOID NEW'!$E$67<6.5,P94*(1-'AVOID NEW'!$E$67),P94-6.5),"NA") -> 31.2708 | R94: 29.79 | S94: =IF(OR('Input - Capacity Factors'!$C$3="Wind"),IF(R94*'AVOID NEW'!$E$67<6.5,R94*(1-'AVOID NEW'!$E$67),R94-6.5),"NA") -> 27.4068 | V94: 38.79 | W94: =IF(OR('Input - Capacity Factors'!$C$3="Wind"),IF(V94*'AVOID NEW'!$E$67<6.5,V94*(1-'AVOID NEW'!$E$67),V94-6.5),"NA") -> 35.6868 | X94: 40.46 | Y94: =IF(OR('Input - Capacity Factors'!$C$3="Wind"),IF(X94*'AVOID NEW'!$E$67<6.5,X94*(1-'AVOID NEW'!$E$67),X94-6.5),"NA") -> 37.2232 | Z94: 35.46 | AA94: =IF(OR('Input - Capacity Factors'!$C$3="Wind"),IF(Z94*'AVOID NEW'!$E$67<6.5,Z94*(1-'AVOID NEW'!$E$67),Z94-6.5),"NA") -> 32.6232
B95: 11 | C95: ='AVOID NEW'!AP19 -> 39.39089108 | D95: 41.06089108 | E95: 36.06089108 | G95: 42.54 | H95: =IF(OR('Input - Capacity Factors'!$C$3="Wind"),IF(G95*'AVOID NEW'!$E$67<6.5,G95*(1-'AVOID NEW'!$E$67),G95-6.5),"NA") -> 39.1368 | I95: 44.35 | J95: =IF(OR('Input - Capacity Factors'!$C$3="Wind"),IF(I95*'AVOID NEW'!$E$67<6.5,I95*(1-'AVOID NEW'!$E$67),I95-6.5),"NA") -> 40.802 | K95: 38.95 | L95: =IF(OR('Input - Capacity Factors'!$C$3="Wind"),IF(K95*'AVOID NEW'!$E$67<6.5,K95*(1-'AVOID NEW'!$E$67),K95-6.5),"NA") -> 35.834 | N95: 33.09 | O95: =IF(OR('Input - Capacity Factors'!$C$3="Wind"),IF(N95*'AVOID NEW'!$E$67<6.5,N95*(1-'AVOID NEW'!$E$67),N95-6.5),"NA") -> 30.4428 | P95: 34.49 | Q95: =IF(OR('Input - Capacity Factors'!$C$3="Wind"),IF(P95*'AVOID NEW'!$E$67<6.5,P95*(1-'AVOID NEW'!$E$67),P95-6.5),"NA") -> 31.7308 | R95: 30.29 | S95: =IF(OR('Input - Capacity Factors'!$C$3="Wind"),IF(R95*'AVOID NEW'!$E$67<6.5,R95*(1-'AVOID NEW'!$E$67),R95-6.5),"NA") -> 27.8668 | V95: 39.39 | W95: =IF(OR('Input - Capacity Factors'!$C$3="Wind"),IF(V95*'AVOID NEW'!$E$67<6.5,V95*(1-'AVOID NEW'!$E$67),V95-6.5),"NA") -> 36.2388 | X95: 41.06 | Y95: =IF(OR('Input - Capacity Factors'!$C$3="Wind"),IF(X95*'AVOID NEW'!$E$67<6.5,X95*(1-'AVOID NEW'!$E$67),X95-6.5),"NA") -> 37.7752 | Z95: 36.06 | AA95: =IF(OR('Input - Capacity Factors'!$C$3="Wind"),IF(Z95*'AVOID NEW'!$E$67<6.5,Z95*(1-'AVOID NEW'!$E$67),Z95-6.5),"NA") -> 33.1752
B96: 12 | C96: ='AVOID NEW'!AP20 -> 39.92788872 | D96: 41.59788872 | E96: 36.59788872 | G96: 43.12 | H96: =IF(OR('Input - Capacity Factors'!$C$3="Wind"),IF(G96*'AVOID NEW'!$E$67<6.5,G96*(1-'AVOID NEW'!$E$67),G96-6.5),"NA") -> 39.6704 | I96: 44.93 | J96: =IF(OR('Input - Capacity Factors'!$C$3="Wind"),IF(I96*'AVOID NEW'!$E$67<6.5,I96*(1-'AVOID NEW'!$E$67),I96-6.5),"NA") -> 41.3356 | K96: 39.53 | L96: =IF(OR('Input - Capacity Factors'!$C$3="Wind"),IF(K96*'AVOID NEW'!$E$67<6.5,K96*(1-'AVOID NEW'!$E$67),K96-6.5),"NA") -> 36.3676 | N96: 33.54 | O96: =IF(OR('Input - Capacity Factors'!$C$3="Wind"),IF(N96*'AVOID NEW'!$E$67<6.5,N96*(1-'AVOID NEW'!$E$67),N96-6.5),"NA") -> 30.8568 | P96: 34.94 | Q96: =IF(OR('Input - Capacity Factors'!$C$3="Wind"),IF(P96*'AVOID NEW'!$E$67<6.5,P96*(1-'AVOID NEW'!$E$67),P96-6.5),"NA") -> 32.1448 | R96: 30.74 | S96: =IF(OR('Input - Capacity Factors'!$C$3="Wind"),IF(R96*'AVOID NEW'!$E$67<6.5,R96*(1-'AVOID NEW'!$E$67),R96-6.5),"NA") -> 28.2808 | V96: 39.93 | W96: =IF(OR('Input - Capacity Factors'!$C$3="Wind"),IF(V96*'AVOID NEW'!$E$67<6.5,V96*(1-'AVOID NEW'!$E$67),V96-6.5),"NA") -> 36.7356 | X96: 41.6 | Y96: =IF(OR('Input - Capacity Factors'!$C$3="Wind"),IF(X96*'AVOID NEW'!$E$67<6.5,X96*(1-'AVOID NEW'!$E$67),X96-6.5),"NA") -> 38.272 | Z96: 36.6 | AA96: =IF(OR('Input - Capacity Factors'!$C$3="Wind"),IF(Z96*'AVOID NEW'!$E$67<6.5,Z96*(1-'AVOID NEW'!$E$67),Z96-6.5),"NA") -> 33.672
B97: 13 | C97: ='AVOID NEW'!AP21 -> 40.4296906 | D97: 42.0996906 | E97: 37.0996906 | G97: 43.66 | H97: =IF(OR('Input - Capacity Factors'!$C$3="Wind"),IF(G97*'AVOID NEW'!$E$67<6.5,G97*(1-'AVOID NEW'!$E$67),G97-6.5),"NA") -> 40.1672 | I97: 45.47 | J97: =IF(OR('Input - Capacity Factors'!$C$3="Wind"),IF(I97*'AVOID NEW'!$E$67<6.5,I97*(1-'AVOID NEW'!$E$67),I97-6.5),"NA") -> 41.8324 | K97: 40.07 | L97: =IF(OR('Input - Capacity Factors'!$C$3="Wind"),IF(K97*'AVOID NEW'!$E$67<6.5,K97*(1-'AVOID NEW'!$E$67),K97-6.5),"NA") -> 36.8644 | N97: 33.96 | O97: =IF(OR('Input - Capacity Factors'!$C$3="Wind"),IF(N97*'AVOID NEW'!$E$67<6.5,N97*(1-'AVOID NEW'!$E$67),N97-6.5),"NA") -> 31.2432 | P97: 35.36 | Q97: =IF(OR('Input - Capacity Factors'!$C$3="Wind"),IF(P97*'AVOID NEW'!$E$67<6.5,P97*(1-'AVOID NEW'!$E$67),P97-6.5),"NA") -> 32.5312 | R97: 31.16 | S97: =IF(OR('Input - Capacity Factors'!$C$3="Wind"),IF(R97*'AVOID NEW'!$E$67<6.5,R97*(1-'AVOID NEW'!$E$67),R97-6.5),"NA") -> 28.6672 | V97: 40.43 | W97: =IF(OR('Input - Capacity Factors'!$C$3="Wind"),IF(V97*'AVOID NEW'!$E$67<6.5,V97*(1-'AVOID NEW'!$E$67),V97-6.5),"NA") -> 37.1956 | X97: 42.1 | Y97: =IF(OR('Input - Capacity Factors'!$C$3="Wind"),IF(X97*'AVOID NEW'!$E$67<6.5,X97*(1-'AVOID NEW'!$E$67),X97-6.5),"NA") -> 38.732 | Z97: 37.1 | AA97: =IF(OR('Input - Capacity Factors'!$C$3="Wind"),IF(Z97*'AVOID NEW'!$E$67<6.5,Z97*(1-'AVOID NEW'!$E$67),Z97-6.5),"NA") -> 34.132
B98: 14 | C98: ='AVOID NEW'!AP22 -> 40.89720067 | D98: 42.56720067 | E98: 37.56720067 | G98: 44.17 | H98: =IF(OR('Input - Capacity Factors'!$C$3="Wind"),IF(G98*'AVOID NEW'!$E$67<6.5,G98*(1-'AVOID NEW'!$E$67),G98-6.5),"NA") -> 40.6364 | I98: 45.97 | J98: =IF(OR('Input - Capacity Factors'!$C$3="Wind"),IF(I98*'AVOID NEW'!$E$67<6.5,I98*(1-'AVOID NEW'!$E$67),I98-6.5),"NA") -> 42.2924 | K98: 40.57 | L98: =IF(OR('Input - Capacity Factors'!$C$3="Wind"),IF(K98*'AVOID NEW'!$E$67<6.5,K98*(1-'AVOID NEW'!$E$67),K98-6.5),"NA") -> 37.3244 | N98: 34.35 | O98: =IF(OR('Input - Capacity Factors'!$C$3="Wind"),IF(N98*'AVOID NEW'!$E$67<6.5,N98*(1-'AVOID NEW'!$E$67),N98-6.5),"NA") -> 31.602 | P98: 35.76 | Q98: =IF(OR('Input - Capacity Factors'!$C$3="Wind"),IF(P98*'AVOID NEW'!$E$67<6.5,P98*(1-'AVOID NEW'!$E$67),P98-6.5),"NA") -> 32.8992 | R98: 31.56 | S98: =IF(OR('Input - Capacity Factors'!$C$3="Wind"),IF(R98*'AVOID NEW'!$E$67<6.5,R98*(1-'AVOID NEW'!$E$67),R98-6.5),"NA") -> 29.0352 | V98: 40.9 | W98: =IF(OR('Input - Capacity Factors'!$C$3="Wind"),IF(V98*'AVOID NEW'!$E$67<6.5,V98*(1-'AVOID NEW'!$E$67),V98-6.5),"NA") -> 37.628 | X98: 42.57 | Y98: =IF(OR('Input - Capacity Factors'!$C$3="Wind"),IF(X98*'AVOID NEW'!$E$67<6.5,X98*(1-'AVOID NEW'!$E$67),X98-6.5),"NA") -> 39.1644 | Z98: 37.57 | AA98: =IF(OR('Input - Capacity Factors'!$C$3="Wind"),IF(Z98*'AVOID NEW'!$E$67<6.5,Z98*(1-'AVOID NEW'!$E$67),Z98-6.5),"NA") -> 34.5644
B99: 15 | C99: ='AVOID NEW'!AP23 -> 41.34458736 | D99: 43.01458736 | E99: 38.01458736 | G99: 44.65 | H99: =IF(OR('Input - Capacity Factors'!$C$3="Wind"),IF(G99*'AVOID NEW'!$E$67<6.5,G99*(1-'AVOID NEW'!$E$67),G99-6.5),"NA") -> 41.078 | I99: 46.46 | J99: =IF(OR('Input - Capacity Factors'!$C$3="Wind"),IF(I99*'AVOID NEW'!$E$67<6.5,I99*(1-'AVOID NEW'!$E$67),I99-6.5),"NA") -> 42.7432 | K99: 41.06 | L99: =IF(OR('Input - Capacity Factors'!$C$3="Wind"),IF(K99*'AVOID NEW'!$E$67<6.5,K99*(1-'AVOID NEW'!$E$67),K99-6.5),"NA") -> 37.7752 | N99: 34.73 | O99: =IF(OR('Input - Capacity Factors'!$C$3="Wind"),IF(N99*'AVOID NEW'!$E$67<6.5,N99*(1-'AVOID NEW'!$E$67),N99-6.5),"NA") -> 31.9516 | P99: 36.13 | Q99: =IF(OR('Input - Capacity Factors'!$C$3="Wind"),IF(P99*'AVOID NEW'!$E$67<6.5,P99*(1-'AVOID NEW'!$E$67),P99-6.5),"NA") -> 33.2396 | R99: 31.93 | S99: =IF(OR('Input - Capacity Factors'!$C$3="Wind"),IF(R99*'AVOID NEW'!$E$67<6.5,R99*(1-'AVOID NEW'!$E$67),R99-6.5),"NA") -> 29.3756 | V99: 41.34 | W99: =IF(OR('Input - Capacity Factors'!$C$3="Wind"),IF(V99*'AVOID NEW'!$E$67<6.5,V99*(1-'AVOID NEW'!$E$67),V99-6.5),"NA") -> 38.0328 | X99: 43.01 | Y99: =IF(OR('Input - Capacity Factors'!$C$3="Wind"),IF(X99*'AVOID NEW'!$E$67<6.5,X99*(1-'AVOID NEW'!$E$67),X99-6.5),"NA") -> 39.5692 | Z99: 38.01 | AA99: =IF(OR('Input - Capacity Factors'!$C$3="Wind"),IF(Z99*'AVOID NEW'!$E$67<6.5,Z99*(1-'AVOID NEW'!$E$67),Z99-6.5),"NA") -> 34.9692
B100: 16 | C100: ='AVOID NEW'!AP24 -> 41.77243478 | D100: 43.44243478 | E100: 38.44243478 | G100: 45.11 | H100: =IF(OR('Input - Capacity Factors'!$C$3="Wind"),IF(G100*'AVOID NEW'!$E$67<6.5,G100*(1-'AVOID NEW'!$E$67),G100-6.5),"NA") -> 41.5012 | I100: 46.92 | J100: =IF(OR('Input - Capacity Factors'!$C$3="Wind"),IF(I100*'AVOID NEW'!$E$67<6.5,I100*(1-'AVOID NEW'!$E$67),I100-6.5),"NA") -> 43.1664 | K100: 41.52 | L100: =IF(OR('Input - Capacity Factors'!$C$3="Wind"),IF(K100*'AVOID NEW'!$E$67<6.5,K100*(1-'AVOID NEW'!$E$67),K100-6.5),"NA") -> 38.1984 | N100: 35.09 | O100: =IF(OR('Input - Capacity Factors'!$C$3="Wind"),IF(N100*'AVOID NEW'!$E$67<6.5,N100*(1-'AVOID NEW'!$E$67),N100-6.5),"NA") -> 32.2828 | P100: 36.49 | Q100: =IF(OR('Input - Capacity Factors'!$C$3="Wind"),IF(P100*'AVOID NEW'!$E$67<6.5,P100*(1-'AVOID NEW'!$E$67),P100-6.5),"NA") -> 33.5708 | R100: 32.29 | S100: =IF(OR('Input - Capacity Factors'!$C$3="Wind"),IF(R100*'AVOID NEW'!$E$67<6.5,R100*(1-'AVOID NEW'!$E$67),R100-6.5),"NA") -> 29.7068 | V100: 41.77 | W100: =IF(OR('Input - Capacity Factors'!$C$3="Wind"),IF(V100*'AVOID NEW'!$E$67<6.5,V100*(1-'AVOID NEW'!$E$67),V100-6.5),"NA") -> 38.4284 | X100: 43.44 | Y100: =IF(OR('Input - Capacity Factors'!$C$3="Wind"),IF(X100*'AVOID NEW'!$E$67<6.5,X100*(1-'AVOID NEW'!$E$67),X100-6.5),"NA") -> 39.9648 | Z100: 38.44 | AA100: =IF(OR('Input - Capacity Factors'!$C$3="Wind"),IF(Z100*'AVOID NEW'!$E$67<6.5,Z100*(1-'AVOID NEW'!$E$67),Z100-6.5),"NA") -> 35.3648
B101: 17 | C101: ='AVOID NEW'!AP25 -> 42.19124527 | D101: 43.86124527 | E101: 38.86124527 | G101: 45.57 | H101: =IF(OR('Input - Capacity Factors'!$C$3="Wind"),IF(G101*'AVOID NEW'!$E$67<6.5,G101*(1-'AVOID NEW'!$E$67),G101-6.5),"NA") -> 41.9244 | I101: 47.37 | J101: =IF(OR('Input - Capacity Factors'!$C$3="Wind"),IF(I101*'AVOID NEW'!$E$67<6.5,I101*(1-'AVOID NEW'!$E$67),I101-6.5),"NA") -> 43.5804 | K101: 41.97 | L101: =IF(OR('Input - Capacity Factors'!$C$3="Wind"),IF(K101*'AVOID NEW'!$E$67<6.5,K101*(1-'AVOID NEW'!$E$67),K101-6.5),"NA") -> 38.6124 | N101: 35.44 | O101: =IF(OR('Input - Capacity Factors'!$C$3="Wind"),IF(N101*'AVOID NEW'!$E$67<6.5,N101*(1-'AVOID NEW'!$E$67),N101-6.5),"NA") -> 32.6048 | P101: 36.84 | Q101: =IF(OR('Input - Capacity Factors'!$C$3="Wind"),IF(P101*'AVOID NEW'!$E$67<6.5,P101*(1-'AVOID NEW'!$E$67),P101-6.5),"NA") -> 33.8928 | R101: 32.64 | S101: =IF(OR('Input - Capacity Factors'!$C$3="Wind"),IF(R101*'AVOID NEW'!$E$67<6.5,R101*(1-'AVOID NEW'!$E$67),R101-6.5),"NA") -> 30.0288 | V101: 42.19 | W101: =IF(OR('Input - Capacity Factors'!$C$3="Wind"),IF(V101*'AVOID NEW'!$E$67<6.5,V101*(1-'AVOID NEW'!$E$67),V101-6.5),"NA") -> 38.8148 | X101: 43.86 | Y101: =IF(OR('Input - Capacity Factors'!$C$3="Wind"),IF(X101*'AVOID NEW'!$E$67<6.5,X101*(1-'AVOID NEW'!$E$67),X101-6.5),"NA") -> 40.3512 | Z101: 38.86 | AA101: =IF(OR('Input - Capacity Factors'!$C$3="Wind"),IF(Z101*'AVOID NEW'!$E$67<6.5,Z101*(1-'AVOID NEW'!$E$67),Z101-6.5),"NA") -> 35.7512
B102: 18 | C102: ='AVOID NEW'!AP26 -> 42.59577632 | D102: 44.26577632 | E102: 39.26577632 | G102: 46 | H102: =IF(OR('Input - Capacity Factors'!$C$3="Wind"),IF(G102*'AVOID NEW'!$E$67<6.5,G102*(1-'AVOID NEW'!$E$67),G102-6.5),"NA") -> 42.32 | I102: 47.81 | J102: =IF(OR('Input - Capacity Factors'!$C$3="Wind"),IF(I102*'AVOID NEW'!$E$67<6.5,I102*(1-'AVOID NEW'!$E$67),I102-6.5),"NA") -> 43.9852 | K102: 42.41 | L102: =IF(OR('Input - Capacity Factors'!$C$3="Wind"),IF(K102*'AVOID NEW'!$E$67<6.5,K102*(1-'AVOID NEW'!$E$67),K102-6.5),"NA") -> 39.0172 | N102: 35.78 | O102: =IF(OR('Input - Capacity Factors'!$C$3="Wind"),IF(N102*'AVOID NEW'!$E$67<6.5,N102*(1-'AVOID NEW'!$E$67),N102-6.5),"NA") -> 32.9176 | P102: 37.18 | Q102: =IF(OR('Input - Capacity Factors'!$C$3="Wind"),IF(P102*'AVOID NEW'!$E$67<6.5,P102*(1-'AVOID NEW'!$E$67),P102-6.5),"NA") -> 34.2056 | R102: 32.98 | S102: =IF(OR('Input - Capacity Factors'!$C$3="Wind"),IF(R102*'AVOID NEW'!$E$67<6.5,R102*(1-'AVOID NEW'!$E$67),R102-6.5),"NA") -> 30.3416 | V102: 42.6 | W102: =IF(OR('Input - Capacity Factors'!$C$3="Wind"),IF(V102*'AVOID NEW'!$E$67<6.5,V102*(1-'AVOID NEW'!$E$67),V102-6.5),"NA") -> 39.192 | X102: 44.27 | Y102: =IF(OR('Input - Capacity Factors'!$C$3="Wind"),IF(X102*'AVOID NEW'!$E$67<6.5,X102*(1-'AVOID NEW'!$E$67),X102-6.5),"NA") -> 40.7284 | Z102: 39.27 | AA102: =IF(OR('Input - Capacity Factors'!$C$3="Wind"),IF(Z102*'AVOID NEW'!$E$67<6.5,Z102*(1-'AVOID NEW'!$E$67),Z102-6.5),"NA") -> 36.1284
B103: 19 | C103: ='AVOID NEW'!AP27 -> 42.97887376 | D103: 44.64887376 | E103: 39.64887376 | G103: 46.42 | H103: =IF(OR('Input - Capacity Factors'!$C$3="Wind"),IF(G103*'AVOID NEW'!$E$67<6.5,G103*(1-'AVOID NEW'!$E$67),G103-6.5),"NA") -> 42.7064 | I103: 48.22 | J103: =IF(OR('Input - Capacity Factors'!$C$3="Wind"),IF(I103*'AVOID NEW'!$E$67<6.5,I103*(1-'AVOID NEW'!$E$67),I103-6.5),"NA") -> 44.3624 | K103: 42.82 | L103: =IF(OR('Input - Capacity Factors'!$C$3="Wind"),IF(K103*'AVOID NEW'!$E$67<6.5,K103*(1-'AVOID NEW'!$E$67),K103-6.5),"NA") -> 39.3944 | N103: 36.1 | O103: =IF(OR('Input - Capacity Factors'!$C$3="Wind"),IF(N103*'AVOID NEW'!$E$67<6.5,N103*(1-'AVOID NEW'!$E$67),N103-6.5),"NA") -> 33.212 | P103: 37.51 | Q103: =IF(OR('Input - Capacity Factors'!$C$3="Wind"),IF(P103*'AVOID NEW'!$E$67<6.5,P103*(1-'AVOID NEW'!$E$67),P103-6.5),"NA") -> 34.5092 | R103: 33.31 | S103: =IF(OR('Input - Capacity Factors'!$C$3="Wind"),IF(R103*'AVOID NEW'!$E$67<6.5,R103*(1-'AVOID NEW'!$E$67),R103-6.5),"NA") -> 30.6452 | V103: 42.98 | W103: =IF(OR('Input - Capacity Factors'!$C$3="Wind"),IF(V103*'AVOID NEW'!$E$67<6.5,V103*(1-'AVOID NEW'!$E$67),V103-6.5),"NA") -> 39.5416 | X103: 44.65 | Y103: =IF(OR('Input - Capacity Factors'!$C$3="Wind"),IF(X103*'AVOID NEW'!$E$67<6.5,X103*(1-'AVOID NEW'!$E$67),X103-6.5),"NA") -> 41.078 | Z103: 39.65 | AA103: =IF(OR('Input - Capacity Factors'!$C$3="Wind"),IF(Z103*'AVOID NEW'!$E$67<6.5,Z103*(1-'AVOID NEW'!$E$67),Z103-6.5),"NA") -> 36.478
B104: 20 | C104: ='AVOID NEW'!AP28 -> 43.34918028 | D104: 45.01918028 | E104: 40.01918028 | G104: 46.82 | H104: =IF(OR('Input - Capacity Factors'!$C$3="Wind"),IF(G104*'AVOID NEW'!$E$67<6.5,G104*(1-'AVOID NEW'!$E$67),G104-6.5),"NA") -> 43.0744 | I104: 48.62 | J104: =IF(OR('Input - Capacity Factors'!$C$3="Wind"),IF(I104*'AVOID NEW'!$E$67<6.5,I104*(1-'AVOID NEW'!$E$67),I104-6.5),"NA") -> 44.7304 | K104: 43.22 | L104: =IF(OR('Input - Capacity Factors'!$C$3="Wind"),IF(K104*'AVOID NEW'!$E$67<6.5,K104*(1-'AVOID NEW'!$E$67),K104-6.5),"NA") -> 39.7624 | N104: 36.41 | O104: =IF(OR('Input - Capacity Factors'!$C$3="Wind"),IF(N104*'AVOID NEW'!$E$67<6.5,N104*(1-'AVOID NEW'!$E$67),N104-6.5),"NA") -> 33.4972 | P104: 37.82 | Q104: =IF(OR('Input - Capacity Factors'!$C$3="Wind"),IF(P104*'AVOID NEW'!$E$67<6.5,P104*(1-'AVOID NEW'!$E$67),P104-6.5),"NA") -> 34.7944 | R104: 33.62 | S104: =IF(OR('Input - Capacity Factors'!$C$3="Wind"),IF(R104*'AVOID NEW'!$E$67<6.5,R104*(1-'AVOID NEW'!$E$67),R104-6.5),"NA") -> 30.9304 | V104: 43.35 | W104: =IF(OR('Input - Capacity Factors'!$C$3="Wind"),IF(V104*'AVOID NEW'!$E$67<6.5,V104*(1-'AVOID NEW'!$E$67),V104-6.5),"NA") -> 39.882 | X104: 45.02 | Y104: =IF(OR('Input - Capacity Factors'!$C$3="Wind"),IF(X104*'AVOID NEW'!$E$67<6.5,X104*(1-'AVOID NEW'!$E$67),X104-6.5),"NA") -> 41.4184 | Z104: 40.02 | AA104: =IF(OR('Input - Capacity Factors'!$C$3="Wind"),IF(Z104*'AVOID NEW'!$E$67<6.5,Z104*(1-'AVOID NEW'!$E$67),Z104-6.5),"NA") -> 36.8184
B108: =$B$1 -> THESE RATES ARE NOT VALID
B109: LEVELIZED RATES
B110: ="PROJECT ON-LINE IN "& 'AVOID NEW'!$D$54+3 -> PROJECT ON-LINE IN 2025
B111: ="Rate Effective Date: "&'AVOID NEW'!$E$69 -> Rate Effective Date: XXXX, 2022
B112: ="Resource: "&'Input - Capacity Factors'!$C$3 -> Resource: Wind
C113: Levelized Price | G113: ="Season 1 Pricing ("&$D$7*100&"%)" -> Season 1 Pricing (108%) | N113: ="Season 2 Pricing ("&100*$D$8&"%)" -> Season 2 Pricing (84%) | V113: Non-Seasonalized Pricing
C114: Heavy and Light Load Hour Differential | D114: ='AVOID NEW'!$E$66 -> 5 | G114: Flat | I114: Heavy Load Hour | K114: Light Load Hour | N114: Flat | P114: Heavy Load Hour | R114: Light Load Hour | V114: Flat | X114: Heavy Load Hour | Z114: Light Load Hour
D115: =ROUND(D114/3,2) -> 1.67 | E115: =-ROUND((D114*2)/3,2) -> -3.33 | H115: Price less wind integration adjustment | J115: Price less wind integration adjustment | L115: Price less wind integration adjustment | O115: Price less wind integration adjustment | Q115: Price less wind integration adjustment | S115: Price less wind integration adjustment | W115: Price less wind integration adjustment | Y115: Price less wind integration adjustment | AA115: Price less wind integration adjustment
B116: Contract Length | C116: Flat | D116: Heavy Load Hour | E116: Light Load Hour | G116: Price | I116: Price | K116: Price | N116: Price | P116: Price | R116: Price | V116: Price | X116: Price | Z116: Price
B117: 1 | C117: ='AVOID NEW'!AQ9 -> 33.21200078 | D117: =C117+D$83 -> 34.88200078 | E117: =C117+E$83 -> 29.88200078 | G117: =ROUND((+$C117*$D$7),2) -> 35.87 | H117: =IF(OR('Input - Capacity Factors'!$C$3="Wind"),IF(G117*'AVOID NEW'!$E$67<6.5,G117*(1-'AVOID NEW'!$E$67),G117-6.5),"NA") -> 33.0004 | I117: =ROUND((+$D117*$D$7),2) -> 37.67 | J117: =IF(OR('Input - Capacity Factors'!$C$3="Wind"),IF(I117*'AVOID NEW'!$E$67<6.5,I117*(1-'AVOID NEW'!$E$67),I117-6.5),"NA") -> 34.6564 | K117: =ROUND((+$E117*$D$7),2) -> 32.27 | L117: =IF(OR('Input - Capacity Factors'!$C$3="Wind"),IF(K117*'AVOID NEW'!$E$67<6.5,K117*(1-'AVOID NEW'!$E$67),K117-6.5),"NA") -> 29.6884 | N117: =ROUND((+$C117*$D$8),2) -> 27.9 | O117: =IF(OR('Input - Capacity Factors'!$C$3="Wind"),IF(N117*'AVOID NEW'!$E$67<6.5,N117*(1-'AVOID NEW'!$E$67),N117-6.5),"NA") -> 25.668 | P117: =ROUND((+$D117*$D$8),2) -> 29.3 | Q117: =IF(OR('Input - Capacity Factors'!$C$3="Wind"),IF(P117*'AVOID NEW'!$E$67<6.5,P117*(1-'AVOID NEW'!$E$67),P117-6.5),"NA") -> 26.956 | R117: =ROUND((+$E117*$D$8),2) -> 25.1 | S117: =IF(OR('Input - Capacity Factors'!$C$3="Wind"),IF(R117*'AVOID NEW'!$E$67<6.5,R117*(1-'AVOID NEW'!$E$67),R117-6.5),"NA") -> 23.092 | V117: =ROUND((+$C117),2) -> 33.21 | W117: =IF(OR('Input - Capacity Factors'!$C$3="Wind"),IF(V117*'AVOID NEW'!$E$67<6.5,V117*(1-'AVOID NEW'!$E$67),V117-6.5),"NA") -> 30.5532 | X117: =ROUND((+$D117),2) -> 34.88 | Y117: =IF(OR('Input - Capacity Factors'!$C$3="Wind"),IF(X117*'AVOID NEW'!$E$67<6.5,X117*(1-'AVOID NEW'!$E$67),X117-6.5),"NA") -> 32.0896 | Z117: =ROUND((+$E117),2) -> 29.88 | AA117: =IF(OR('Input - Capacity Factors'!$C$3="Wind"),IF(Z117*'AVOID NEW'!$E$67<6.5,Z117*(1-'AVOID NEW'!$E$67),Z117-6.5),"NA") -> 27.4896
B118: 2 | C118: ='AVOID NEW'!AQ10 -> 33.8161901 | D118: 35.4861901 | E118: 30.4861901 | G118: 36.52 | H118: =IF(OR('Input - Capacity Factors'!$C$3="Wind"),IF(G118*'AVOID NEW'!$E$67<6.5,G118*(1-'AVOID NEW'!$E$67),G118-6.5),"NA") -> 33.5984 | I118: 38.33 | J118: =IF(OR('Input - Capacity Factors'!$C$3="Wind"),IF(I118*'AVOID NEW'!$E$67<6.5,I118*(1-'AVOID NEW'!$E$67),I118-6.5),"NA") -> 35.2636 | K118: 32.93 | L118: =IF(OR('Input - Capacity Factors'!$C$3="Wind"),IF(K118*'AVOID NEW'!$E$67<6.5,K118*(1-'AVOID NEW'!$E$67),K118-6.5),"NA") -> 30.2956 | N118: 28.41 | O118: =IF(OR('Input - Capacity Factors'!$C$3="Wind"),IF(N118*'AVOID NEW'!$E$67<6.5,N118*(1-'AVOID NEW'!$E$67),N118-6.5),"NA") -> 26.1372 | P118: 29.81 | Q118: =IF(OR('Input - Capacity Factors'!$C$3="Wind"),IF(P118*'AVOID NEW'!$E$67<6.5,P118*(1-'AVOID NEW'!$E$67),P118-6.5),"NA") -> 27.4252 | R118: 25.61 | S118: =IF(OR('Input - Capacity Factors'!$C$3="Wind"),IF(R118*'AVOID NEW'!$E$67<6.5,R118*(1-'AVOID NEW'!$E$67),R118-6.5),"NA") -> 23.5612 | V118: =ROUND((+$C118),2) -> 33.82 | W118: =IF(OR('Input - Capacity Factors'!$C$3="Wind"),IF(V118*'AVOID NEW'!$E$67<6.5,V118*(1-'AVOID NEW'!$E$67),V118-6.5),"NA") -> 31.1144 | X118: =ROUND((+$D118),2) -> 35.49 | Y118: =IF(OR('Input - Capacity Factors'!$C$3="Wind"),IF(X118*'AVOID NEW'!$E$67<6.5,X118*(1-'AVOID NEW'!$E$67),X118-6.5),"NA") -> 32.6508 | Z118: =ROUND((+$E118),2) -> 30.49 | AA118: =IF(OR('Input - Capacity Factors'!$C$3="Wind"),IF(Z118*'AVOID NEW'!$E$67<6.5,Z118*(1-'AVOID NEW'!$E$67),Z118-6.5),"NA") -> 28.0508
B119: 3 | C119: ='AVOID NEW'!AQ11 -> 34.6362849 | D119: 36.3062849 | E119: 31.3062849 | G119: 37.41 | H119: =IF(OR('Input - Capacity Factors'!$C$3="Wind"),IF(G119*'AVOID NEW'!$E$67<6.5,G119*(1-'AVOID NEW'!$E$67),G119-6.5),"NA") -> 34.4172 | I119: 39.21 | J119: =IF(OR('Input - Capacity Factors'!$C$3="Wind"),IF(I119*'AVOID NEW'!$E$67<6.5,I119*(1-'AVOID NEW'!$E$67),I119-6.5),"NA") -> 36.0732 | K119: 33.81 | L119: =IF(OR('Input - Capacity Factors'!$C$3="Wind"),IF(K119*'AVOID NEW'!$E$67<6.5,K119*(1-'AVOID NEW'!$E$67),K119-6.5),"NA") -> 31.1052 | N119: 29.09 | O119: =IF(OR('Input - Capacity Factors'!$C$3="Wind"),IF(N119*'AVOID NEW'!$E$67<6.5,N119*(1-'AVOID NEW'!$E$67),N119-6.5),"NA") -> 26.7628 | P119: 30.5 | Q119: =IF(OR('Input - Capacity Factors'!$C$3="Wind"),IF(P119*'AVOID NEW'!$E$67<6.5,P119*(1-'AVOID NEW'!$E$67),P119-6.5),"NA") -> 28.06 | R119: 26.3 | S119: =IF(OR('Input - Capacity Factors'!$C$3="Wind"),IF(R119*'AVOID NEW'!$E$67<6.5,R119*(1-'AVOID NEW'!$E$67),R119-6.5),"NA") -> 24.196 | V119: 34.64 | W119: =IF(OR('Input - Capacity Factors'!$C$3="Wind"),IF(V119*'AVOID NEW'!$E$67<6.5,V119*(1-'AVOID NEW'!$E$67),V119-6.5),"NA") -> 31.8688 | X119: 36.31 | Y119: =IF(OR('Input - Capacity Factors'!$C$3="Wind"),IF(X119*'AVOID NEW'!$E$67<6.5,X119*(1-'AVOID NEW'!$E$67),X119-6.5),"NA") -> 33.4052 | Z119: 31.31 | AA119: =IF(OR('Input - Capacity Factors'!$C$3="Wind"),IF(Z119*'AVOID NEW'!$E$67<6.5,Z119*(1-'AVOID NEW'!$E$67),Z119-6.5),"NA") -> 28.8052
B120: 4 | C120: ='AVOID NEW'!AQ12 -> 35.59550419 | D120: 37.26550419 | E120: 32.26550419 | G120: 38.44 | H120: =IF(OR('Input - Capacity Factors'!$C$3="Wind"),IF(G120*'AVOID NEW'!$E$67<6.5,G120*(1-'AVOID NEW'!$E$67),G120-6.5),"NA") -> 35.3648 | I120: 40.25 | J120: =IF(OR('Input - Capacity Factors'!$C$3="Wind"),IF(I120*'AVOID NEW'!$E$67<6.5,I120*(1-'AVOID NEW'!$E$67),I120-6.5),"NA") -> 37.03 | K120: 34.85 | L120: =IF(OR('Input - Capacity Factors'!$C$3="Wind"),IF(K120*'AVOID NEW'!$E$67<6.5,K120*(1-'AVOID NEW'!$E$67),K120-6.5),"NA") -> 32.062 | N120: 29.9 | O120: =IF(OR('Input - Capacity Factors'!$C$3="Wind"),IF(N120*'AVOID NEW'!$E$67<6.5,N120*(1-'AVOID NEW'!$E$67),N120-6.5),"NA") -> 27.508 | P120: 31.3 | Q120: =IF(OR('Input - Capacity Factors'!$C$3="Wind"),IF(P120*'AVOID NEW'!$E$67<6.5,P120*(1-'AVOID NEW'!$E$67),P120-6.5),"NA") -> 28.796 | R120: 27.1 | S120: =IF(OR('Input - Capacity Factors'!$C$3="Wind"),IF(R120*'AVOID NEW'!$E$67<6.5,R120*(1-'AVOID NEW'!$E$67),R120-6.5),"NA") -> 24.932 | V120: 35.6 | W120: =IF(OR('Input - Capacity Factors'!$C$3="Wind"),IF(V120*'AVOID NEW'!$E$67<6.5,V120*(1-'AVOID NEW'!$E$67),V120-6.5),"NA") -> 32.752 | X120: 37.27 | Y120: =IF(OR('Input - Capacity Factors'!$C$3="Wind"),IF(X120*'AVOID NEW'!$E$67<6.5,X120*(1-'AVOID NEW'!$E$67),X120-6.5),"NA") -> 34.2884 | Z120: 32.27 | AA120: =IF(OR('Input - Capacity Factors'!$C$3="Wind"),IF(Z120*'AVOID NEW'!$E$67<6.5,Z120*(1-'AVOID NEW'!$E$67),Z120-6.5),"NA") -> 29.6884
B121: 5 | C121: ='AVOID NEW'!AQ13 -> 36.54004423 | D121: 38.21004423 | E121: 33.21004423 | G121: 39.46 | H121: =IF(OR('Input - Capacity Factors'!$C$3="Wind"),IF(G121*'AVOID NEW'!$E$67<6.5,G121*(1-'AVOID NEW'!$E$67),G121-6.5),"NA") -> 36.3032 | I121: 41.27 | J121: =IF(OR('Input - Capacity Factors'!$C$3="Wind"),IF(I121*'AVOID NEW'!$E$67<6.5,I121*(1-'AVOID NEW'!$E$67),I121-6.5),"NA") -> 37.9684 | K121: 35.87 | L121: =IF(OR('Input - Capacity Factors'!$C$3="Wind"),IF(K121*'AVOID NEW'!$E$67<6.5,K121*(1-'AVOID NEW'!$E$67),K121-6.5),"NA") -> 33.0004 | N121: 30.69 | O121: =IF(OR('Input - Capacity Factors'!$C$3="Wind"),IF(N121*'AVOID NEW'!$E$67<6.5,N121*(1-'AVOID NEW'!$E$67),N121-6.5),"NA") -> 28.2348 | P121: 32.1 | Q121: =IF(OR('Input - Capacity Factors'!$C$3="Wind"),IF(P121*'AVOID NEW'!$E$67<6.5,P121*(1-'AVOID NEW'!$E$67),P121-6.5),"NA") -> 29.532 | R121: 27.9 | S121: =IF(OR('Input - Capacity Factors'!$C$3="Wind"),IF(R121*'AVOID NEW'!$E$67<6.5,R121*(1-'AVOID NEW'!$E$67),R121-6.5),"NA") -> 25.668 | V121: 36.54 | W121: =IF(OR('Input - Capacity Factors'!$C$3="Wind"),IF(V121*'AVOID NEW'!$E$67<6.5,V121*(1-'AVOID NEW'!$E$67),V121-6.5),"NA") -> 33.6168 | X121: 38.21 | Y121: =IF(OR('Input - Capacity Factors'!$C$3="Wind"),IF(X121*'AVOID NEW'!$E$67<6.5,X121*(1-'AVOID NEW'!$E$67),X121-6.5),"NA") -> 35.1532 | Z121: 33.21 | AA121: =IF(OR('Input - Capacity Factors'!$C$3="Wind"),IF(Z121*'AVOID NEW'!$E$67<6.5,Z121*(1-'AVOID NEW'!$E$67),Z121-6.5),"NA") -> 30.5532
B122: 6 | C122: ='AVOID NEW'!AQ14 -> 37.4003941 | D122: 39.0703941 | E122: 34.0703941 | G122: 40.39 | H122: =IF(OR('Input - Capacity Factors'!$C$3="Wind"),IF(G122*'AVOID NEW'!$E$67<6.5,G122*(1-'AVOID NEW'!$E$67),G122-6.5),"NA") -> 37.1588 | I122: 42.2 | J122: =IF(OR('Input - Capacity Factors'!$C$3="Wind"),IF(I122*'AVOID NEW'!$E$67<6.5,I122*(1-'AVOID NEW'!$E$67),I122-6.5),"NA") -> 38.824 | K122: 36.8 | L122: =IF(OR('Input - Capacity Factors'!$C$3="Wind"),IF(K122*'AVOID NEW'!$E$67<6.5,K122*(1-'AVOID NEW'!$E$67),K122-6.5),"NA") -> 33.856 | N122: 31.42 | O122: =IF(OR('Input - Capacity Factors'!$C$3="Wind"),IF(N122*'AVOID NEW'!$E$67<6.5,N122*(1-'AVOID NEW'!$E$67),N122-6.5),"NA") -> 28.9064 | P122: 32.82 | Q122: =IF(OR('Input - Capacity Factors'!$C$3="Wind"),IF(P122*'AVOID NEW'!$E$67<6.5,P122*(1-'AVOID NEW'!$E$67),P122-6.5),"NA") -> 30.1944 | R122: 28.62 | S122: =IF(OR('Input - Capacity Factors'!$C$3="Wind"),IF(R122*'AVOID NEW'!$E$67<6.5,R122*(1-'AVOID NEW'!$E$67),R122-6.5),"NA") -> 26.3304 | V122: 37.4 | W122: =IF(OR('Input - Capacity Factors'!$C$3="Wind"),IF(V122*'AVOID NEW'!$E$67<6.5,V122*(1-'AVOID NEW'!$E$67),V122-6.5),"NA") -> 34.408 | X122: 39.07 | Y122: =IF(OR('Input - Capacity Factors'!$C$3="Wind"),IF(X122*'AVOID NEW'!$E$67<6.5,X122*(1-'AVOID NEW'!$E$67),X122-6.5),"NA") -> 35.9444 | Z122: 34.07 | AA122: =IF(OR('Input - Capacity Factors'!$C$3="Wind"),IF(Z122*'AVOID NEW'!$E$67<6.5,Z122*(1-'AVOID NEW'!$E$67),Z122-6.5),"NA") -> 31.3444
B123: 7 | C123: ='AVOID NEW'!AQ15 -> 38.17656707 | D123: 39.84656707 | E123: 34.84656707 | G123: 41.23 | H123: =IF(OR('Input - Capacity Factors'!$C$3="Wind"),IF(G123*'AVOID NEW'!$E$67<6.5,G123*(1-'AVOID NEW'!$E$67),G123-6.5),"NA") -> 37.9316 | I123: 43.03 | J123: =IF(OR('Input - Capacity Factors'!$C$3="Wind"),IF(I123*'AVOID NEW'!$E$67<6.5,I123*(1-'AVOID NEW'!$E$67),I123-6.5),"NA") -> 39.5876 | K123: 37.63 | L123: =IF(OR('Input - Capacity Factors'!$C$3="Wind"),IF(K123*'AVOID NEW'!$E$67<6.5,K123*(1-'AVOID NEW'!$E$67),K123-6.5),"NA") -> 34.6196 | N123: 32.07 | O123: =IF(OR('Input - Capacity Factors'!$C$3="Wind"),IF(N123*'AVOID NEW'!$E$67<6.5,N123*(1-'AVOID NEW'!$E$67),N123-6.5),"NA") -> 29.5044 | P123: 33.47 | Q123: =IF(OR('Input - Capacity Factors'!$C$3="Wind"),IF(P123*'AVOID NEW'!$E$67<6.5,P123*(1-'AVOID NEW'!$E$67),P123-6.5),"NA") -> 30.7924 | R123: 29.27 | S123: =IF(OR('Input - Capacity Factors'!$C$3="Wind"),IF(R123*'AVOID NEW'!$E$67<6.5,R123*(1-'AVOID NEW'!$E$67),R123-6.5),"NA") -> 26.9284 | V123: 38.18 | W123: =IF(OR('Input - Capacity Factors'!$C$3="Wind"),IF(V123*'AVOID NEW'!$E$67<6.5,V123*(1-'AVOID NEW'!$E$67),V123-6.5),"NA") -> 35.1256 | X123: 39.85 | Y123: =IF(OR('Input - Capacity Factors'!$C$3="Wind"),IF(X123*'AVOID NEW'!$E$67<6.5,X123*(1-'AVOID NEW'!$E$67),X123-6.5),"NA") -> 36.662 | Z123: 34.85 | AA123: =IF(OR('Input - Capacity Factors'!$C$3="Wind"),IF(Z123*'AVOID NEW'!$E$67<6.5,Z123*(1-'AVOID NEW'!$E$67),Z123-6.5),"NA") -> 32.062
B124: 8 | C124: ='AVOID NEW'!AQ16 -> 38.91366642 | D124: 40.58366642 | E124: 35.58366642 | G124: 42.03 | H124: =IF(OR('Input - Capacity Factors'!$C$3="Wind"),IF(G124*'AVOID NEW'!$E$67<6.5,G124*(1-'AVOID NEW'!$E$67),G124-6.5),"NA") -> 38.6676 | I124: 43.83 | J124: =IF(OR('Input - Capacity Factors'!$C$3="Wind"),IF(I124*'AVOID NEW'!$E$67<6.5,I124*(1-'AVOID NEW'!$E$67),I124-6.5),"NA") -> 40.3236 | K124: 38.43 | L124: =IF(OR('Input - Capacity Factors'!$C$3="Wind"),IF(K124*'AVOID NEW'!$E$67<6.5,K124*(1-'AVOID NEW'!$E$67),K124-6.5),"NA") -> 35.3556 | N124: 32.69 | O124: =IF(OR('Input - Capacity Factors'!$C$3="Wind"),IF(N124*'AVOID NEW'!$E$67<6.5,N124*(1-'AVOID NEW'!$E$67),N124-6.5),"NA") -> 30.0748 | P124: 34.09 | Q124: =IF(OR('Input - Capacity Factors'!$C$3="Wind"),IF(P124*'AVOID NEW'!$E$67<6.5,P124*(1-'AVOID NEW'!$E$67),P124-6.5),"NA") -> 31.3628 | R124: 29.89 | S124: =IF(OR('Input - Capacity Factors'!$C$3="Wind"),IF(R124*'AVOID NEW'!$E$67<6.5,R124*(1-'AVOID NEW'!$E$67),R124-6.5),"NA") -> 27.4988 | V124: 38.91 | W124: =IF(OR('Input - Capacity Factors'!$C$3="Wind"),IF(V124*'AVOID NEW'!$E$67<6.5,V124*(1-'AVOID NEW'!$E$67),V124-6.5),"NA") -> 35.7972 | X124: 40.58 | Y124: =IF(OR('Input - Capacity Factors'!$C$3="Wind"),IF(X124*'AVOID NEW'!$E$67<6.5,X124*(1-'AVOID NEW'!$E$67),X124-6.5),"NA") -> 37.3336 | Z124: 35.58 | AA124: =IF(OR('Input - Capacity Factors'!$C$3="Wind"),IF(Z124*'AVOID NEW'!$E$67<6.5,Z124*(1-'AVOID NEW'!$E$67),Z124-6.5),"NA") -> 32.7336
B125: 9 | C125: ='AVOID NEW'!AQ17 -> 39.61256546 | D125: 41.28256546 | E125: 36.28256546 | G125: 42.78 | H125: =IF(OR('Input - Capacity Factors'!$C$3="Wind"),IF(G125*'AVOID NEW'!$E$67<6.5,G125*(1-'AVOID NEW'!$E$67),G125-6.5),"NA") -> 39.3576 | I125: 44.59 | J125: =IF(OR('Input - Capacity Factors'!$C$3="Wind"),IF(I125*'AVOID NEW'!$E$67<6.5,I125*(1-'AVOID NEW'!$E$67),I125-6.5),"NA") -> 41.0228 | K125: 39.19 | L125: =IF(OR('Input - Capacity Factors'!$C$3="Wind"),IF(K125*'AVOID NEW'!$E$67<6.5,K125*(1-'AVOID NEW'!$E$67),K125-6.5),"NA") -> 36.0548 | N125: 33.27 | O125: =IF(OR('Input - Capacity Factors'!$C$3="Wind"),IF(N125*'AVOID NEW'!$E$67<6.5,N125*(1-'AVOID NEW'!$E$67),N125-6.5),"NA") -> 30.6084 | P125: 34.68 | Q125: =IF(OR('Input - Capacity Factors'!$C$3="Wind"),IF(P125*'AVOID NEW'!$E$67<6.5,P125*(1-'AVOID NEW'!$E$67),P125-6.5),"NA") -> 31.9056 | R125: 30.48 | S125: =IF(OR('Input - Capacity Factors'!$C$3="Wind"),IF(R125*'AVOID NEW'!$E$67<6.5,R125*(1-'AVOID NEW'!$E$67),R125-6.5),"NA") -> 28.0416 | V125: 39.61 | W125: =IF(OR('Input - Capacity Factors'!$C$3="Wind"),IF(V125*'AVOID NEW'!$E$67<6.5,V125*(1-'AVOID NEW'!$E$67),V125-6.5),"NA") -> 36.4412 | X125: 41.28 | Y125: =IF(OR('Input - Capacity Factors'!$C$3="Wind"),IF(X125*'AVOID NEW'!$E$67<6.5,X125*(1-'AVOID NEW'!$E$67),X125-6.5),"NA") -> 37.9776 | Z125: 36.28 | AA125: =IF(OR('Input - Capacity Factors'!$C$3="Wind"),IF(Z125*'AVOID NEW'!$E$67<6.5,Z125*(1-'AVOID NEW'!$E$67),Z125-6.5),"NA") -> 33.3776
B126: 10 | C126: ='AVOID NEW'!AQ18 -> 40.24693246 | D126: 41.91693246 | E126: 36.91693246 | G126: 43.47 | H126: =IF(OR('Input - Capacity Factors'!$C$3="Wind"),IF(G126*'AVOID NEW'!$E$67<6.5,G126*(1-'AVOID NEW'!$E$67),G126-6.5),"NA") -> 39.9924 | I126: 45.27 | J126: =IF(OR('Input - Capacity Factors'!$C$3="Wind"),IF(I126*'AVOID NEW'!$E$67<6.5,I126*(1-'AVOID NEW'!$E$67),I126-6.5),"NA") -> 41.6484 | K126: 39.87 | L126: =IF(OR('Input - Capacity Factors'!$C$3="Wind"),IF(K126*'AVOID NEW'!$E$67<6.5,K126*(1-'AVOID NEW'!$E$67),K126-6.5),"NA") -> 36.6804 | N126: 33.81 | O126: =IF(OR('Input - Capacity Factors'!$C$3="Wind"),IF(N126*'AVOID NEW'!$E$67<6.5,N126*(1-'AVOID NEW'!$E$67),N126-6.5),"NA") -> 31.1052 | P126: 35.21 | Q126: =IF(OR('Input - Capacity Factors'!$C$3="Wind"),IF(P126*'AVOID NEW'!$E$67<6.5,P126*(1-'AVOID NEW'!$E$67),P126-6.5),"NA") -> 32.3932 | R126: 31.01 | S126: =IF(OR('Input - Capacity Factors'!$C$3="Wind"),IF(R126*'AVOID NEW'!$E$67<6.5,R126*(1-'AVOID NEW'!$E$67),R126-6.5),"NA") -> 28.5292 | V126: 40.25 | W126: =IF(OR('Input - Capacity Factors'!$C$3="Wind"),IF(V126*'AVOID NEW'!$E$67<6.5,V126*(1-'AVOID NEW'!$E$67),V126-6.5),"NA") -> 37.03 | X126: 41.92 | Y126: =IF(OR('Input - Capacity Factors'!$C$3="Wind"),IF(X126*'AVOID NEW'!$E$67<6.5,X126*(1-'AVOID NEW'!$E$67),X126-6.5),"NA") -> 38.5664 | Z126: 36.92 | AA126: =IF(OR('Input - Capacity Factors'!$C$3="Wind"),IF(Z126*'AVOID NEW'!$E$67<6.5,Z126*(1-'AVOID NEW'!$E$67),Z126-6.5),"NA") -> 33.9664
B127: 11 | C127: ='AVOID NEW'!AQ19 -> 40.80887353 | D127: 42.47887353 | E127: 37.47887353 | G127: 44.07 | H127: =IF(OR('Input - Capacity Factors'!$C$3="Wind"),IF(G127*'AVOID NEW'!$E$67<6.5,G127*(1-'AVOID NEW'!$E$67),G127-6.5),"NA") -> 40.5444 | I127: 45.88 | J127: =IF(OR('Input - Capacity Factors'!$C$3="Wind"),IF(I127*'AVOID NEW'!$E$67<6.5,I127*(1-'AVOID NEW'!$E$67),I127-6.5),"NA") -> 42.2096 | K127: 40.48 | L127: =IF(OR('Input - Capacity Factors'!$C$3="Wind"),IF(K127*'AVOID NEW'!$E$67<6.5,K127*(1-'AVOID NEW'!$E$67),K127-6.5),"NA") -> 37.2416 | N127: 34.28 | O127: =IF(OR('Input - Capacity Factors'!$C$3="Wind"),IF(N127*'AVOID NEW'!$E$67<6.5,N127*(1-'AVOID NEW'!$E$67),N127-6.5),"NA") -> 31.5376 | P127: 35.68 | Q127: =IF(OR('Input - Capacity Factors'!$C$3="Wind"),IF(P127*'AVOID NEW'!$E$67<6.5,P127*(1-'AVOID NEW'!$E$67),P127-6.5),"NA") -> 32.8256 | R127: 31.48 | S127: =IF(OR('Input - Capacity Factors'!$C$3="Wind"),IF(R127*'AVOID NEW'!$E$67<6.5,R127*(1-'AVOID NEW'!$E$67),R127-6.5),"NA") -> 28.9616 | V127: 40.81 | W127: =IF(OR('Input - Capacity Factors'!$C$3="Wind"),IF(V127*'AVOID NEW'!$E$67<6.5,V127*(1-'AVOID NEW'!$E$67),V127-6.5),"NA") -> 37.5452 | X127: 42.48 | Y127: =IF(OR('Input - Capacity Factors'!$C$3="Wind"),IF(X127*'AVOID NEW'!$E$67<6.5,X127*(1-'AVOID NEW'!$E$67),X127-6.5),"NA") -> 39.0816 | Z127: 37.48 | AA127: =IF(OR('Input - Capacity Factors'!$C$3="Wind"),IF(Z127*'AVOID NEW'!$E$67<6.5,Z127*(1-'AVOID NEW'!$E$67),Z127-6.5),"NA") -> 34.4816
B128: 12 | C128: ='AVOID NEW'!AQ20 -> 41.33195474 | D128: 43.00195474 | E128: 38.00195474 | G128: 44.64 | H128: =IF(OR('Input - Capacity Factors'!$C$3="Wind"),IF(G128*'AVOID NEW'!$E$67<6.5,G128*(1-'AVOID NEW'!$E$67),G128-6.5),"NA") -> 41.0688 | I128: 46.44 | J128: =IF(OR('Input - Capacity Factors'!$C$3="Wind"),IF(I128*'AVOID NEW'!$E$67<6.5,I128*(1-'AVOID NEW'!$E$67),I128-6.5),"NA") -> 42.7248 | K128: 41.04 | L128: =IF(OR('Input - Capacity Factors'!$C$3="Wind"),IF(K128*'AVOID NEW'!$E$67<6.5,K128*(1-'AVOID NEW'!$E$67),K128-6.5),"NA") -> 37.7568 | N128: 34.72 | O128: =IF(OR('Input - Capacity Factors'!$C$3="Wind"),IF(N128*'AVOID NEW'!$E$67<6.5,N128*(1-'AVOID NEW'!$E$67),N128-6.5),"NA") -> 31.9424 | P128: 36.12 | Q128: =IF(OR('Input - Capacity Factors'!$C$3="Wind"),IF(P128*'AVOID NEW'!$E$67<6.5,P128*(1-'AVOID NEW'!$E$67),P128-6.5),"NA") -> 33.2304 | R128: 31.92 | S128: =IF(OR('Input - Capacity Factors'!$C$3="Wind"),IF(R128*'AVOID NEW'!$E$67<6.5,R128*(1-'AVOID NEW'!$E$67),R128-6.5),"NA") -> 29.3664 | V128: 41.33 | W128: =IF(OR('Input - Capacity Factors'!$C$3="Wind"),IF(V128*'AVOID NEW'!$E$67<6.5,V128*(1-'AVOID NEW'!$E$67),V128-6.5),"NA") -> 38.0236 | X128: 43 | Y128: =IF(OR('Input - Capacity Factors'!$C$3="Wind"),IF(X128*'AVOID NEW'!$E$67<6.5,X128*(1-'AVOID NEW'!$E$67),X128-6.5),"NA") -> 39.56 | Z128: 38 | AA128: =IF(OR('Input - Capacity Factors'!$C$3="Wind"),IF(Z128*'AVOID NEW'!$E$67<6.5,Z128*(1-'AVOID NEW'!$E$67),Z128-6.5),"NA") -> 34.96
B129: 13 | C129: ='AVOID NEW'!AQ21 -> 41.81771905 | D129: 43.48771905 | E129: 38.48771905 | G129: 45.16 | H129: =IF(OR('Input - Capacity Factors'!$C$3="Wind"),IF(G129*'AVOID NEW'!$E$67<6.5,G129*(1-'AVOID NEW'!$E$67),G129-6.5),"NA") -> 41.5472 | I129: 46.97 | J129: =IF(OR('Input - Capacity Factors'!$C$3="Wind"),IF(I129*'AVOID NEW'!$E$67<6.5,I129*(1-'AVOID NEW'!$E$67),I129-6.5),"NA") -> 43.2124 | K129: 41.57 | L129: =IF(OR('Input - Capacity Factors'!$C$3="Wind"),IF(K129*'AVOID NEW'!$E$67<6.5,K129*(1-'AVOID NEW'!$E$67),K129-6.5),"NA") -> 38.2444 | N129: 35.13 | O129: =IF(OR('Input - Capacity Factors'!$C$3="Wind"),IF(N129*'AVOID NEW'!$E$67<6.5,N129*(1-'AVOID NEW'!$E$67),N129-6.5),"NA") -> 32.3196 | P129: 36.53 | Q129: =IF(OR('Input - Capacity Factors'!$C$3="Wind"),IF(P129*'AVOID NEW'!$E$67<6.5,P129*(1-'AVOID NEW'!$E$67),P129-6.5),"NA") -> 33.6076 | R129: 32.33 | S129: =IF(OR('Input - Capacity Factors'!$C$3="Wind"),IF(R129*'AVOID NEW'!$E$67<6.5,R129*(1-'AVOID NEW'!$E$67),R129-6.5),"NA") -> 29.7436 | V129: 41.82 | W129: =IF(OR('Input - Capacity Factors'!$C$3="Wind"),IF(V129*'AVOID NEW'!$E$67<6.5,V129*(1-'AVOID NEW'!$E$67),V129-6.5),"NA") -> 38.4744 | X129: 43.49 | Y129: =IF(OR('Input - Capacity Factors'!$C$3="Wind"),IF(X129*'AVOID NEW'!$E$67<6.5,X129*(1-'AVOID NEW'!$E$67),X129-6.5),"NA") -> 40.0108 | Z129: 38.49 | AA129: =IF(OR('Input - Capacity Factors'!$C$3="Wind"),IF(Z129*'AVOID NEW'!$E$67<6.5,Z129*(1-'AVOID NEW'!$E$67),Z129-6.5),"NA") -> 35.4108
B130: 14 | C130: ='AVOID NEW'!AQ22 -> 42.28241402 | D130: 43.95241402 | E130: 38.95241402 | G130: 45.67 | H130: =IF(OR('Input - Capacity Factors'!$C$3="Wind"),IF(G130*'AVOID NEW'!$E$67<6.5,G130*(1-'AVOID NEW'!$E$67),G130-6.5),"NA") -> 42.0164 | I130: 47.47 | J130: =IF(OR('Input - Capacity Factors'!$C$3="Wind"),IF(I130*'AVOID NEW'!$E$67<6.5,I130*(1-'AVOID NEW'!$E$67),I130-6.5),"NA") -> 43.6724 | K130: 42.07 | L130: =IF(OR('Input - Capacity Factors'!$C$3="Wind"),IF(K130*'AVOID NEW'!$E$67<6.5,K130*(1-'AVOID NEW'!$E$67),K130-6.5),"NA") -> 38.7044 | N130: 35.52 | O130: =IF(OR('Input - Capacity Factors'!$C$3="Wind"),IF(N130*'AVOID NEW'!$E$67<6.5,N130*(1-'AVOID NEW'!$E$67),N130-6.5),"NA") -> 32.6784 | P130: 36.92 | Q130: =IF(OR('Input - Capacity Factors'!$C$3="Wind"),IF(P130*'AVOID NEW'!$E$67<6.5,P130*(1-'AVOID NEW'!$E$67),P130-6.5),"NA") -> 33.9664 | R130: 32.72 | S130: =IF(OR('Input - Capacity Factors'!$C$3="Wind"),IF(R130*'AVOID NEW'!$E$67<6.5,R130*(1-'AVOID NEW'!$E$67),R130-6.5),"NA") -> 30.1024 | V130: 42.28 | W130: =IF(OR('Input - Capacity Factors'!$C$3="Wind"),IF(V130*'AVOID NEW'!$E$67<6.5,V130*(1-'AVOID NEW'!$E$67),V130-6.5),"NA") -> 38.8976 | X130: 43.95 | Y130: =IF(OR('Input - Capacity Factors'!$C$3="Wind"),IF(X130*'AVOID NEW'!$E$67<6.5,X130*(1-'AVOID NEW'!$E$67),X130-6.5),"NA") -> 40.434 | Z130: 38.95 | AA130: =IF(OR('Input - Capacity Factors'!$C$3="Wind"),IF(Z130*'AVOID NEW'!$E$67<6.5,Z130*(1-'AVOID NEW'!$E$67),Z130-6.5),"NA") -> 35.834
B131: 15 | C131: ='AVOID NEW'!AQ23 -> 42.72673925 | D131: 44.39673925 | E131: 39.39673925 | G131: 46.14 | H131: =IF(OR('Input - Capacity Factors'!$C$3="Wind"),IF(G131*'AVOID NEW'!$E$67<6.5,G131*(1-'AVOID NEW'!$E$67),G131-6.5),"NA") -> 42.4488 | I131: 47.95 | J131: =IF(OR('Input - Capacity Factors'!$C$3="Wind"),IF(I131*'AVOID NEW'!$E$67<6.5,I131*(1-'AVOID NEW'!$E$67),I131-6.5),"NA") -> 44.114 | K131: 42.55 | L131: =IF(OR('Input - Capacity Factors'!$C$3="Wind"),IF(K131*'AVOID NEW'!$E$67<6.5,K131*(1-'AVOID NEW'!$E$67),K131-6.5),"NA") -> 39.146 | N131: 35.89 | O131: =IF(OR('Input - Capacity Factors'!$C$3="Wind"),IF(N131*'AVOID NEW'!$E$67<6.5,N131*(1-'AVOID NEW'!$E$67),N131-6.5),"NA") -> 33.0188 | P131: 37.29 | Q131: =IF(OR('Input - Capacity Factors'!$C$3="Wind"),IF(P131*'AVOID NEW'!$E$67<6.5,P131*(1-'AVOID NEW'!$E$67),P131-6.5),"NA") -> 34.3068 | R131: 33.09 | S131: =IF(OR('Input - Capacity Factors'!$C$3="Wind"),IF(R131*'AVOID NEW'!$E$67<6.5,R131*(1-'AVOID NEW'!$E$67),R131-6.5),"NA") -> 30.4428 | V131: 42.73 | W131: =IF(OR('Input - Capacity Factors'!$C$3="Wind"),IF(V131*'AVOID NEW'!$E$67<6.5,V131*(1-'AVOID NEW'!$E$67),V131-6.5),"NA") -> 39.3116 | X131: 44.4 | Y131: =IF(OR('Input - Capacity Factors'!$C$3="Wind"),IF(X131*'AVOID NEW'!$E$67<6.5,X131*(1-'AVOID NEW'!$E$67),X131-6.5),"NA") -> 40.848 | Z131: 39.4 | AA131: =IF(OR('Input - Capacity Factors'!$C$3="Wind"),IF(Z131*'AVOID NEW'!$E$67<6.5,Z131*(1-'AVOID NEW'!$E$67),Z131-6.5),"NA") -> 36.248
B132: 16 | C132: ='AVOID NEW'!AQ24 -> 43.16241611 | D132: 44.83241611 | E132: 39.83241611 | G132: 46.62 | H132: =IF(OR('Input - Capacity Factors'!$C$3="Wind"),IF(G132*'AVOID NEW'!$E$67<6.5,G132*(1-'AVOID NEW'!$E$67),G132-6.5),"NA") -> 42.8904 | I132: 48.42 | J132: =IF(OR('Input - Capacity Factors'!$C$3="Wind"),IF(I132*'AVOID NEW'!$E$67<6.5,I132*(1-'AVOID NEW'!$E$67),I132-6.5),"NA") -> 44.5464 | K132: 43.02 | L132: =IF(OR('Input - Capacity Factors'!$C$3="Wind"),IF(K132*'AVOID NEW'!$E$67<6.5,K132*(1-'AVOID NEW'!$E$67),K132-6.5),"NA") -> 39.5784 | N132: 36.26 | O132: =IF(OR('Input - Capacity Factors'!$C$3="Wind"),IF(N132*'AVOID NEW'!$E$67<6.5,N132*(1-'AVOID NEW'!$E$67),N132-6.5),"NA") -> 33.3592 | P132: 37.66 | Q132: =IF(OR('Input - Capacity Factors'!$C$3="Wind"),IF(P132*'AVOID NEW'!$E$67<6.5,P132*(1-'AVOID NEW'!$E$67),P132-6.5),"NA") -> 34.6472 | R132: 33.46 | S132: =IF(OR('Input - Capacity Factors'!$C$3="Wind"),IF(R132*'AVOID NEW'!$E$67<6.5,R132*(1-'AVOID NEW'!$E$67),R132-6.5),"NA") -> 30.7832 | V132: 43.16 | W132: =IF(OR('Input - Capacity Factors'!$C$3="Wind"),IF(V132*'AVOID NEW'!$E$67<6.5,V132*(1-'AVOID NEW'!$E$67),V132-6.5),"NA") -> 39.7072 | X132: 44.83 | Y132: =IF(OR('Input - Capacity Factors'!$C$3="Wind"),IF(X132*'AVOID NEW'!$E$67<6.5,X132*(1-'AVOID NEW'!$E$67),X132-6.5),"NA") -> 41.2436 | Z132: 39.83 | AA132: =IF(OR('Input - Capacity Factors'!$C$3="Wind"),IF(Z132*'AVOID NEW'!$E$67<6.5,Z132*(1-'AVOID NEW'!$E$67),Z132-6.5),"NA") -> 36.6436
B133: 17 | C133: ='AVOID NEW'!AQ25 -> 43.58352142 | D133: 45.25352142 | E133: 40.25352142 | G133: 47.07 | H133: =IF(OR('Input - Capacity Factors'!$C$3="Wind"),IF(G133*'AVOID NEW'!$E$67<6.5,G133*(1-'AVOID NEW'!$E$67),G133-6.5),"NA") -> 43.3044 | I133: 48.87 | J133: =IF(OR('Input - Capacity Factors'!$C$3="Wind"),IF(I133*'AVOID NEW'!$E$67<6.5,I133*(1-'AVOID NEW'!$E$67),I133-6.5),"NA") -> 44.9604 | K133: 43.47 | L133: =IF(OR('Input - Capacity Factors'!$C$3="Wind"),IF(K133*'AVOID NEW'!$E$67<6.5,K133*(1-'AVOID NEW'!$E$67),K133-6.5),"NA") -> 39.9924 | N133: 36.61 | O133: =IF(OR('Input - Capacity Factors'!$C$3="Wind"),IF(N133*'AVOID NEW'!$E$67<6.5,N133*(1-'AVOID NEW'!$E$67),N133-6.5),"NA") -> 33.6812 | P133: 38.01 | Q133: =IF(OR('Input - Capacity Factors'!$C$3="Wind"),IF(P133*'AVOID NEW'!$E$67<6.5,P133*(1-'AVOID NEW'!$E$67),P133-6.5),"NA") -> 34.9692 | R133: 33.81 | S133: =IF(OR('Input - Capacity Factors'!$C$3="Wind"),IF(R133*'AVOID NEW'!$E$67<6.5,R133*(1-'AVOID NEW'!$E$67),R133-6.5),"NA") -> 31.1052 | V133: 43.58 | W133: =IF(OR('Input - Capacity Factors'!$C$3="Wind"),IF(V133*'AVOID NEW'!$E$67<6.5,V133*(1-'AVOID NEW'!$E$67),V133-6.5),"NA") -> 40.0936 | X133: 45.25 | Y133: =IF(OR('Input - Capacity Factors'!$C$3="Wind"),IF(X133*'AVOID NEW'!$E$67<6.5,X133*(1-'AVOID NEW'!$E$67),X133-6.5),"NA") -> 41.63 | Z133: 40.25 | AA133: =IF(OR('Input - Capacity Factors'!$C$3="Wind"),IF(Z133*'AVOID NEW'!$E$67<6.5,Z133*(1-'AVOID NEW'!$E$67),Z133-6.5),"NA") -> 37.03
B134: 18 | C134: ='AVOID NEW'!AQ26 -> 43.9820921 | D134: 45.6520921 | E134: 40.6520921 | G134: 47.5 | H134: =IF(OR('Input - Capacity Factors'!$C$3="Wind"),IF(G134*'AVOID NEW'!$E$67<6.5,G134*(1-'AVOID NEW'!$E$67),G134-6.5),"NA") -> 43.7 | I134: 49.3 | J134: =IF(OR('Input - Capacity Factors'!$C$3="Wind"),IF(I134*'AVOID NEW'!$E$67<6.5,I134*(1-'AVOID NEW'!$E$67),I134-6.5),"NA") -> 45.356 | K134: 43.9 | L134: =IF(OR('Input - Capacity Factors'!$C$3="Wind"),IF(K134*'AVOID NEW'!$E$67<6.5,K134*(1-'AVOID NEW'!$E$67),K134-6.5),"NA") -> 40.388 | N134: 36.94 | O134: =IF(OR('Input - Capacity Factors'!$C$3="Wind"),IF(N134*'AVOID NEW'!$E$67<6.5,N134*(1-'AVOID NEW'!$E$67),N134-6.5),"NA") -> 33.9848 | P134: 38.35 | Q134: =IF(OR('Input - Capacity Factors'!$C$3="Wind"),IF(P134*'AVOID NEW'!$E$67<6.5,P134*(1-'AVOID NEW'!$E$67),P134-6.5),"NA") -> 35.282 | R134: 34.15 | S134: =IF(OR('Input - Capacity Factors'!$C$3="Wind"),IF(R134*'AVOID NEW'!$E$67<6.5,R134*(1-'AVOID NEW'!$E$67),R134-6.5),"NA") -> 31.418 | V134: 43.98 | W134: =IF(OR('Input - Capacity Factors'!$C$3="Wind"),IF(V134*'AVOID NEW'!$E$67<6.5,V134*(1-'AVOID NEW'!$E$67),V134-6.5),"NA") -> 40.4616 | X134: 45.65 | Y134: =IF(OR('Input - Capacity Factors'!$C$3="Wind"),IF(X134*'AVOID NEW'!$E$67<6.5,X134*(1-'AVOID NEW'!$E$67),X134-6.5),"NA") -> 41.998 | Z134: 40.65 | AA134: =IF(OR('Input - Capacity Factors'!$C$3="Wind"),IF(Z134*'AVOID NEW'!$E$67<6.5,Z134*(1-'AVOID NEW'!$E$67),Z134-6.5),"NA") -> 37.398
B135: 19 | C135: ='AVOID NEW'!AQ27 -> 44.36770314 | D135: 46.03770314 | E135: 41.03770314 | G135: 47.92 | H135: =IF(OR('Input - Capacity Factors'!$C$3="Wind"),IF(G135*'AVOID NEW'!$E$67<6.5,G135*(1-'AVOID NEW'!$E$67),G135-6.5),"NA") -> 44.0864 | I135: 49.72 | J135: =IF(OR('Input - Capacity Factors'!$C$3="Wind"),IF(I135*'AVOID NEW'!$E$67<6.5,I135*(1-'AVOID NEW'!$E$67),I135-6.5),"NA") -> 45.7424 | K135: 44.32 | L135: =IF(OR('Input - Capacity Factors'!$C$3="Wind"),IF(K135*'AVOID NEW'!$E$67<6.5,K135*(1-'AVOID NEW'!$E$67),K135-6.5),"NA") -> 40.7744 | N135: 37.27 | O135: =IF(OR('Input - Capacity Factors'!$C$3="Wind"),IF(N135*'AVOID NEW'!$E$67<6.5,N135*(1-'AVOID NEW'!$E$67),N135-6.5),"NA") -> 34.2884 | P135: 38.67 | Q135: =IF(OR('Input - Capacity Factors'!$C$3="Wind"),IF(P135*'AVOID NEW'!$E$67<6.5,P135*(1-'AVOID NEW'!$E$67),P135-6.5),"NA") -> 35.5764 | R135: 34.47 | S135: =IF(OR('Input - Capacity Factors'!$C$3="Wind"),IF(R135*'AVOID NEW'!$E$67<6.5,R135*(1-'AVOID NEW'!$E$67),R135-6.5),"NA") -> 31.7124 | V135: 44.37 | W135: =IF(OR('Input - Capacity Factors'!$C$3="Wind"),IF(V135*'AVOID NEW'!$E$67<6.5,V135*(1-'AVOID NEW'!$E$67),V135-6.5),"NA") -> 40.8204 | X135: 46.04 | Y135: =IF(OR('Input - Capacity Factors'!$C$3="Wind"),IF(X135*'AVOID NEW'!$E$67<6.5,X135*(1-'AVOID NEW'!$E$67),X135-6.5),"NA") -> 42.3568 | Z135: 41.04 | AA135: =IF(OR('Input - Capacity Factors'!$C$3="Wind"),IF(Z135*'AVOID NEW'!$E$67<6.5,Z135*(1-'AVOID NEW'!$E$67),Z135-6.5),"NA") -> 37.7568
B136: 20 | C136: ='AVOID NEW'!AQ28 -> 44.74377533 | D136: 46.41377533 | E136: 41.41377533 | G136: 48.32 | H136: =IF(OR('Input - Capacity Factors'!$C$3="Wind"),IF(G136*'AVOID NEW'!$E$67<6.5,G136*(1-'AVOID NEW'!$E$67),G136-6.5),"NA") -> 44.4544 | I136: 50.13 | J136: =IF(OR('Input - Capacity Factors'!$C$3="Wind"),IF(I136*'AVOID NEW'!$E$67<6.5,I136*(1-'AVOID NEW'!$E$67),I136-6.5),"NA") -> 46.1196 | K136: 44.73 | L136: =IF(OR('Input - Capacity Factors'!$C$3="Wind"),IF(K136*'AVOID NEW'!$E$67<6.5,K136*(1-'AVOID NEW'!$E$67),K136-6.5),"NA") -> 41.1516 | N136: 37.58 | O136: =IF(OR('Input - Capacity Factors'!$C$3="Wind"),IF(N136*'AVOID NEW'!$E$67<6.5,N136*(1-'AVOID NEW'!$E$67),N136-6.5),"NA") -> 34.5736 | P136: 38.99 | Q136: =IF(OR('Input - Capacity Factors'!$C$3="Wind"),IF(P136*'AVOID NEW'!$E$67<6.5,P136*(1-'AVOID NEW'!$E$67),P136-6.5),"NA") -> 35.8708 | R136: 34.79 | S136: =IF(OR('Input - Capacity Factors'!$C$3="Wind"),IF(R136*'AVOID NEW'!$E$67<6.5,R136*(1-'AVOID NEW'!$E$67),R136-6.5),"NA") -> 32.0068 | V136: 44.74 | W136: =IF(OR('Input - Capacity Factors'!$C$3="Wind"),IF(V136*'AVOID NEW'!$E$67<6.5,V136*(1-'AVOID NEW'!$E$67),V136-6.5),"NA") -> 41.1608 | X136: 46.41 | Y136: =IF(OR('Input - Capacity Factors'!$C$3="Wind"),IF(X136*'AVOID NEW'!$E$67<6.5,X136*(1-'AVOID NEW'!$E$67),X136-6.5),"NA") -> 42.6972 | Z136: 41.41 | AA136: =IF(OR('Input - Capacity Factors'!$C$3="Wind"),IF(Z136*'AVOID NEW'!$E$67<6.5,Z136*(1-'AVOID NEW'!$E$67),Z136-6.5),"NA") -> 38.0972
B140: =$B$1 -> THESE RATES ARE NOT VALID
B141: LEVELIZED RATES
B142: ="PROJECT ON-LINE IN "& 'AVOID NEW'!$D$54+4 -> PROJECT ON-LINE IN 2026
B143: ="Rate Effective Date: "&'AVOID NEW'!$E$69 -> Rate Effective Date: XXXX, 2022
B144: ="Resource: "&'Input - Capacity Factors'!$C$3 -> Resource: Wind
C145: Levelized Price | G145: ="Season 1 Pricing ("&$D$7*100&"%)" -> Season 1 Pricing (108%) | N145: ="Season 2 Pricing ("&100*$D$8&"%)" -> Season 2 Pricing (84%) | V145: Non-Seasonalized Pricing
C146: Heavy and Light Load Hour Differential | D146: ='AVOID NEW'!$E$66 -> 5 | G146: Flat | I146: Heavy Load Hour | K146: Light Load Hour | N146: Flat | P146: Heavy Load Hour | R146: Light Load Hour | V146: Flat | X146: Heavy Load Hour | Z146: Light Load Hour
D147: =ROUND(D146/3,2) -> 1.67 | E147: =-ROUND((D146*2)/3,2) -> -3.33 | H147: Price less wind integration adjustment | J147: Price less wind integration adjustment | L147: Price less wind integration adjustment | O147: Price less wind integration adjustment | Q147: Price less wind integration adjustment | S147: Price less wind integration adjustment | W147: Price less wind integration adjustment | Y147: Price less wind integration adjustment | AA147: Price less wind integration adjustment
B148: Contract Length | C148: Flat | D148: Heavy Load Hour | E148: Light Load Hour | G148: Price | I148: Price | K148: Price | N148: Price | P148: Price | R148: Price | V148: Price | X148: Price | Z148: Price
B149: 1 | C149: ='AVOID NEW'!AR9 -> 34.46980282 | D149: =C149+D$83 -> 36.13980282 | E149: =C149+E$83 -> 31.13980282 | G149: =ROUND((+$C149*$D$7),2) -> 37.23 | H149: =IF(OR('Input - Capacity Factors'!$C$3="Wind"),IF(G149*'AVOID NEW'!$E$67<6.5,G149*(1-'AVOID NEW'!$E$67),G149-6.5),"NA") -> 34.2516 | I149: =ROUND((+$D149*$D$7),2) -> 39.03 | J149: =IF(OR('Input - Capacity Factors'!$C$3="Wind"),IF(I149*'AVOID NEW'!$E$67<6.5,I149*(1-'AVOID NEW'!$E$67),I149-6.5),"NA") -> 35.9076 | K149: =ROUND((+$E149*$D$7),2) -> 33.63 | L149: =IF(OR('Input - Capacity Factors'!$C$3="Wind"),IF(K149*'AVOID NEW'!$E$67<6.5,K149*(1-'AVOID NEW'!$E$67),K149-6.5),"NA") -> 30.9396 | N149: =ROUND((+$C149*$D$8),2) -> 28.95 | O149: =IF(OR('Input - Capacity Factors'!$C$3="Wind"),IF(N149*'AVOID NEW'!$E$67<6.5,N149*(1-'AVOID NEW'!$E$67),N149-6.5),"NA") -> 26.634 | P149: =ROUND((+$D149*$D$8),2) -> 30.36 | Q149: =IF(OR('Input - Capacity Factors'!$C$3="Wind"),IF(P149*'AVOID NEW'!$E$67<6.5,P149*(1-'AVOID NEW'!$E$67),P149-6.5),"NA") -> 27.9312 | R149: =ROUND((+$E149*$D$8),2) -> 26.16 | S149: =IF(OR('Input - Capacity Factors'!$C$3="Wind"),IF(R149*'AVOID NEW'!$E$67<6.5,R149*(1-'AVOID NEW'!$E$67),R149-6.5),"NA") -> 24.0672 | V149: =ROUND((+$C149),2) -> 34.47 | W149: =IF(OR('Input - Capacity Factors'!$C$3="Wind"),IF(V149*'AVOID NEW'!$E$67<6.5,V149*(1-'AVOID NEW'!$E$67),V149-6.5),"NA") -> 31.7124 | X149: =ROUND((+$D149),2) -> 36.14 | Y149: =IF(OR('Input - Capacity Factors'!$C$3="Wind"),IF(X149*'AVOID NEW'!$E$67<6.5,X149*(1-'AVOID NEW'!$E$67),X149-6.5),"NA") -> 33.2488 | Z149: =ROUND((+$E149),2) -> 31.14 | AA149: =IF(OR('Input - Capacity Factors'!$C$3="Wind"),IF(Z149*'AVOID NEW'!$E$67<6.5,Z149*(1-'AVOID NEW'!$E$67),Z149-6.5),"NA") -> 28.6488
B150: 2 | C150: ='AVOID NEW'!AR10 -> 35.43695254 | D150: 37.10695254 | E150: 32.10695254 | G150: 38.27 | H150: =IF(OR('Input - Capacity Factors'!$C$3="Wind"),IF(G150*'AVOID NEW'!$E$67<6.5,G150*(1-'AVOID NEW'!$E$67),G150-6.5),"NA") -> 35.2084 | I150: 40.08 | J150: =IF(OR('Input - Capacity Factors'!$C$3="Wind"),IF(I150*'AVOID NEW'!$E$67<6.5,I150*(1-'AVOID NEW'!$E$67),I150-6.5),"NA") -> 36.8736 | K150: 34.68 | L150: =IF(OR('Input - Capacity Factors'!$C$3="Wind"),IF(K150*'AVOID NEW'!$E$67<6.5,K150*(1-'AVOID NEW'!$E$67),K150-6.5),"NA") -> 31.9056 | N150: 29.77 | O150: =IF(OR('Input - Capacity Factors'!$C$3="Wind"),IF(N150*'AVOID NEW'!$E$67<6.5,N150*(1-'AVOID NEW'!$E$67),N150-6.5),"NA") -> 27.3884 | P150: 31.17 | Q150: =IF(OR('Input - Capacity Factors'!$C$3="Wind"),IF(P150*'AVOID NEW'!$E$67<6.5,P150*(1-'AVOID NEW'!$E$67),P150-6.5),"NA") -> 28.6764 | R150: 26.97 | S150: =IF(OR('Input - Capacity Factors'!$C$3="Wind"),IF(R150*'AVOID NEW'!$E$67<6.5,R150*(1-'AVOID NEW'!$E$67),R150-6.5),"NA") -> 24.8124 | V150: =ROUND((+$C150),2) -> 35.44 | W150: =IF(OR('Input - Capacity Factors'!$C$3="Wind"),IF(V150*'AVOID NEW'!$E$67<6.5,V150*(1-'AVOID NEW'!$E$67),V150-6.5),"NA") -> 32.6048 | X150: =ROUND((+$D150),2) -> 37.11 | Y150: =IF(OR('Input - Capacity Factors'!$C$3="Wind"),IF(X150*'AVOID NEW'!$E$67<6.5,X150*(1-'AVOID NEW'!$E$67),X150-6.5),"NA") -> 34.1412 | Z150: =ROUND((+$E150),2) -> 32.11 | AA150: =IF(OR('Input - Capacity Factors'!$C$3="Wind"),IF(Z150*'AVOID NEW'!$E$67<6.5,Z150*(1-'AVOID NEW'!$E$67),Z150-6.5),"NA") -> 29.5412
B151: 3 | C151: ='AVOID NEW'!AR11 -> 36.52339079 | D151: 38.19339079 | E151: 33.19339079 | G151: 39.45 | H151: =IF(OR('Input - Capacity Factors'!$C$3="Wind"),IF(G151*'AVOID NEW'!$E$67<6.5,G151*(1-'AVOID NEW'!$E$67),G151-6.5),"NA") -> 36.294 | I151: 41.25 | J151: =IF(OR('Input - Capacity Factors'!$C$3="Wind"),IF(I151*'AVOID NEW'!$E$67<6.5,I151*(1-'AVOID NEW'!$E$67),I151-6.5),"NA") -> 37.95 | K151: 35.85 | L151: =IF(OR('Input - Capacity Factors'!$C$3="Wind"),IF(K151*'AVOID NEW'!$E$67<6.5,K151*(1-'AVOID NEW'!$E$67),K151-6.5),"NA") -> 32.982 | N151: 30.68 | O151: =IF(OR('Input - Capacity Factors'!$C$3="Wind"),IF(N151*'AVOID NEW'!$E$67<6.5,N151*(1-'AVOID NEW'!$E$67),N151-6.5),"NA") -> 28.2256 | P151: 32.08 | Q151: =IF(OR('Input - Capacity Factors'!$C$3="Wind"),IF(P151*'AVOID NEW'!$E$67<6.5,P151*(1-'AVOID NEW'!$E$67),P151-6.5),"NA") -> 29.5136 | R151: 27.88 | S151: =IF(OR('Input - Capacity Factors'!$C$3="Wind"),IF(R151*'AVOID NEW'!$E$67<6.5,R151*(1-'AVOID NEW'!$E$67),R151-6.5),"NA") -> 25.6496 | V151: 36.52 | W151: =IF(OR('Input - Capacity Factors'!$C$3="Wind"),IF(V151*'AVOID NEW'!$E$67<6.5,V151*(1-'AVOID NEW'!$E$67),V151-6.5),"NA") -> 33.5984 | X151: 38.19 | Y151: =IF(OR('Input - Capacity Factors'!$C$3="Wind"),IF(X151*'AVOID NEW'!$E$67<6.5,X151*(1-'AVOID NEW'!$E$67),X151-6.5),"NA") -> 35.1348 | Z151: 33.19 | AA151: =IF(OR('Input - Capacity Factors'!$C$3="Wind"),IF(Z151*'AVOID NEW'!$E$67<6.5,Z151*(1-'AVOID NEW'!$E$67),Z151-6.5),"NA") -> 30.5348
B152: 4 | C152: ='AVOID NEW'!AR12 -> 37.54888123 | D152: 39.21888123 | E152: 34.21888123 | G152: 40.55 | H152: =IF(OR('Input - Capacity Factors'!$C$3="Wind"),IF(G152*'AVOID NEW'!$E$67<6.5,G152*(1-'AVOID NEW'!$E$67),G152-6.5),"NA") -> 37.306 | I152: 42.36 | J152: =IF(OR('Input - Capacity Factors'!$C$3="Wind"),IF(I152*'AVOID NEW'!$E$67<6.5,I152*(1-'AVOID NEW'!$E$67),I152-6.5),"NA") -> 38.9712 | K152: 36.96 | L152: =IF(OR('Input - Capacity Factors'!$C$3="Wind"),IF(K152*'AVOID NEW'!$E$67<6.5,K152*(1-'AVOID NEW'!$E$67),K152-6.5),"NA") -> 34.0032 | N152: 31.54 | O152: =IF(OR('Input - Capacity Factors'!$C$3="Wind"),IF(N152*'AVOID NEW'!$E$67<6.5,N152*(1-'AVOID NEW'!$E$67),N152-6.5),"NA") -> 29.0168 | P152: 32.94 | Q152: =IF(OR('Input - Capacity Factors'!$C$3="Wind"),IF(P152*'AVOID NEW'!$E$67<6.5,P152*(1-'AVOID NEW'!$E$67),P152-6.5),"NA") -> 30.3048 | R152: 28.74 | S152: =IF(OR('Input - Capacity Factors'!$C$3="Wind"),IF(R152*'AVOID NEW'!$E$67<6.5,R152*(1-'AVOID NEW'!$E$67),R152-6.5),"NA") -> 26.4408 | V152: 37.55 | W152: =IF(OR('Input - Capacity Factors'!$C$3="Wind"),IF(V152*'AVOID NEW'!$E$67<6.5,V152*(1-'AVOID NEW'!$E$67),V152-6.5),"NA") -> 34.546 | X152: 39.22 | Y152: =IF(OR('Input - Capacity Factors'!$C$3="Wind"),IF(X152*'AVOID NEW'!$E$67<6.5,X152*(1-'AVOID NEW'!$E$67),X152-6.5),"NA") -> 36.0824 | Z152: 34.22 | AA152: =IF(OR('Input - Capacity Factors'!$C$3="Wind"),IF(Z152*'AVOID NEW'!$E$67<6.5,Z152*(1-'AVOID NEW'!$E$67),Z152-6.5),"NA") -> 31.4824
B153: 5 | C153: ='AVOID NEW'!AR13 -> 38.45438888 | D153: 40.12438888 | E153: 35.12438888 | G153: 41.53 | H153: =IF(OR('Input - Capacity Factors'!$C$3="Wind"),IF(G153*'AVOID NEW'!$E$67<6.5,G153*(1-'AVOID NEW'!$E$67),G153-6.5),"NA") -> 38.2076 | I153: 43.33 | J153: =IF(OR('Input - Capacity Factors'!$C$3="Wind"),IF(I153*'AVOID NEW'!$E$67<6.5,I153*(1-'AVOID NEW'!$E$67),I153-6.5),"NA") -> 39.8636 | K153: 37.93 | L153: =IF(OR('Input - Capacity Factors'!$C$3="Wind"),IF(K153*'AVOID NEW'!$E$67<6.5,K153*(1-'AVOID NEW'!$E$67),K153-6.5),"NA") -> 34.8956 | N153: 32.3 | O153: =IF(OR('Input - Capacity Factors'!$C$3="Wind"),IF(N153*'AVOID NEW'!$E$67<6.5,N153*(1-'AVOID NEW'!$E$67),N153-6.5),"NA") -> 29.716 | P153: 33.7 | Q153: =IF(OR('Input - Capacity Factors'!$C$3="Wind"),IF(P153*'AVOID NEW'!$E$67<6.5,P153*(1-'AVOID NEW'!$E$67),P153-6.5),"NA") -> 31.004 | R153: 29.5 | S153: =IF(OR('Input - Capacity Factors'!$C$3="Wind"),IF(R153*'AVOID NEW'!$E$67<6.5,R153*(1-'AVOID NEW'!$E$67),R153-6.5),"NA") -> 27.14 | V153: 38.45 | W153: =IF(OR('Input - Capacity Factors'!$C$3="Wind"),IF(V153*'AVOID NEW'!$E$67<6.5,V153*(1-'AVOID NEW'!$E$67),V153-6.5),"NA") -> 35.374 | X153: 40.12 | Y153: =IF(OR('Input - Capacity Factors'!$C$3="Wind"),IF(X153*'AVOID NEW'!$E$67<6.5,X153*(1-'AVOID NEW'!$E$67),X153-6.5),"NA") -> 36.9104 | Z153: 35.12 | AA153: =IF(OR('Input - Capacity Factors'!$C$3="Wind"),IF(Z153*'AVOID NEW'!$E$67<6.5,Z153*(1-'AVOID NEW'!$E$67),Z153-6.5),"NA") -> 32.3104
B154: 6 | C154: ='AVOID NEW'!AR14 -> 39.25635396 | D154: 40.92635396 | E154: 35.92635396 | G154: 42.4 | H154: =IF(OR('Input - Capacity Factors'!$C$3="Wind"),IF(G154*'AVOID NEW'!$E$67<6.5,G154*(1-'AVOID NEW'!$E$67),G154-6.5),"NA") -> 39.008 | I154: 44.2 | J154: =IF(OR('Input - Capacity Factors'!$C$3="Wind"),IF(I154*'AVOID NEW'!$E$67<6.5,I154*(1-'AVOID NEW'!$E$67),I154-6.5),"NA") -> 40.664 | K154: 38.8 | L154: =IF(OR('Input - Capacity Factors'!$C$3="Wind"),IF(K154*'AVOID NEW'!$E$67<6.5,K154*(1-'AVOID NEW'!$E$67),K154-6.5),"NA") -> 35.696 | N154: 32.98 | O154: =IF(OR('Input - Capacity Factors'!$C$3="Wind"),IF(N154*'AVOID NEW'!$E$67<6.5,N154*(1-'AVOID NEW'!$E$67),N154-6.5),"NA") -> 30.3416 | P154: 34.38 | Q154: =IF(OR('Input - Capacity Factors'!$C$3="Wind"),IF(P154*'AVOID NEW'!$E$67<6.5,P154*(1-'AVOID NEW'!$E$67),P154-6.5),"NA") -> 31.6296 | R154: 30.18 | S154: =IF(OR('Input - Capacity Factors'!$C$3="Wind"),IF(R154*'AVOID NEW'!$E$67<6.5,R154*(1-'AVOID NEW'!$E$67),R154-6.5),"NA") -> 27.7656 | V154: 39.26 | W154: =IF(OR('Input - Capacity Factors'!$C$3="Wind"),IF(V154*'AVOID NEW'!$E$67<6.5,V154*(1-'AVOID NEW'!$E$67),V154-6.5),"NA") -> 36.1192 | X154: 40.93 | Y154: =IF(OR('Input - Capacity Factors'!$C$3="Wind"),IF(X154*'AVOID NEW'!$E$67<6.5,X154*(1-'AVOID NEW'!$E$67),X154-6.5),"NA") -> 37.6556 | Z154: 35.93 | AA154: =IF(OR('Input - Capacity Factors'!$C$3="Wind"),IF(Z154*'AVOID NEW'!$E$67<6.5,Z154*(1-'AVOID NEW'!$E$67),Z154-6.5),"NA") -> 33.0556
B155: 7 | C155: ='AVOID NEW'!AR15 -> 40.01555431 | D155: 41.68555431 | E155: 36.68555431 | G155: 43.22 | H155: =IF(OR('Input - Capacity Factors'!$C$3="Wind"),IF(G155*'AVOID NEW'!$E$67<6.5,G155*(1-'AVOID NEW'!$E$67),G155-6.5),"NA") -> 39.7624 | I155: 45.02 | J155: =IF(OR('Input - Capacity Factors'!$C$3="Wind"),IF(I155*'AVOID NEW'!$E$67<6.5,I155*(1-'AVOID NEW'!$E$67),I155-6.5),"NA") -> 41.4184 | K155: 39.62 | L155: =IF(OR('Input - Capacity Factors'!$C$3="Wind"),IF(K155*'AVOID NEW'!$E$67<6.5,K155*(1-'AVOID NEW'!$E$67),K155-6.5),"NA") -> 36.4504 | N155: 33.61 | O155: =IF(OR('Input - Capacity Factors'!$C$3="Wind"),IF(N155*'AVOID NEW'!$E$67<6.5,N155*(1-'AVOID NEW'!$E$67),N155-6.5),"NA") -> 30.9212 | P155: 35.02 | Q155: =IF(OR('Input - Capacity Factors'!$C$3="Wind"),IF(P155*'AVOID NEW'!$E$67<6.5,P155*(1-'AVOID NEW'!$E$67),P155-6.5),"NA") -> 32.2184 | R155: 30.82 | S155: =IF(OR('Input - Capacity Factors'!$C$3="Wind"),IF(R155*'AVOID NEW'!$E$67<6.5,R155*(1-'AVOID NEW'!$E$67),R155-6.5),"NA") -> 28.3544 | V155: 40.02 | W155: =IF(OR('Input - Capacity Factors'!$C$3="Wind"),IF(V155*'AVOID NEW'!$E$67<6.5,V155*(1-'AVOID NEW'!$E$67),V155-6.5),"NA") -> 36.8184 | X155: 41.69 | Y155: =IF(OR('Input - Capacity Factors'!$C$3="Wind"),IF(X155*'AVOID NEW'!$E$67<6.5,X155*(1-'AVOID NEW'!$E$67),X155-6.5),"NA") -> 38.3548 | Z155: 36.69 | AA155: =IF(OR('Input - Capacity Factors'!$C$3="Wind"),IF(Z155*'AVOID NEW'!$E$67<6.5,Z155*(1-'AVOID NEW'!$E$67),Z155-6.5),"NA") -> 33.7548
B156: 8 | C156: ='AVOID NEW'!AR16 -> 40.73398299 | D156: 42.40398299 | E156: 37.40398299 | G156: 43.99 | H156: =IF(OR('Input - Capacity Factors'!$C$3="Wind"),IF(G156*'AVOID NEW'!$E$67<6.5,G156*(1-'AVOID NEW'!$E$67),G156-6.5),"NA") -> 40.4708 | I156: 45.8 | J156: =IF(OR('Input - Capacity Factors'!$C$3="Wind"),IF(I156*'AVOID NEW'!$E$67<6.5,I156*(1-'AVOID NEW'!$E$67),I156-6.5),"NA") -> 42.136 | K156: 40.4 | L156: =IF(OR('Input - Capacity Factors'!$C$3="Wind"),IF(K156*'AVOID NEW'!$E$67<6.5,K156*(1-'AVOID NEW'!$E$67),K156-6.5),"NA") -> 37.168 | N156: 34.22 | O156: =IF(OR('Input - Capacity Factors'!$C$3="Wind"),IF(N156*'AVOID NEW'!$E$67<6.5,N156*(1-'AVOID NEW'!$E$67),N156-6.5),"NA") -> 31.4824 | P156: 35.62 | Q156: =IF(OR('Input - Capacity Factors'!$C$3="Wind"),IF(P156*'AVOID NEW'!$E$67<6.5,P156*(1-'AVOID NEW'!$E$67),P156-6.5),"NA") -> 32.7704 | R156: 31.42 | S156: =IF(OR('Input - Capacity Factors'!$C$3="Wind"),IF(R156*'AVOID NEW'!$E$67<6.5,R156*(1-'AVOID NEW'!$E$67),R156-6.5),"NA") -> 28.9064 | V156: 40.73 | W156: =IF(OR('Input - Capacity Factors'!$C$3="Wind"),IF(V156*'AVOID NEW'!$E$67<6.5,V156*(1-'AVOID NEW'!$E$67),V156-6.5),"NA") -> 37.4716 | X156: 42.4 | Y156: =IF(OR('Input - Capacity Factors'!$C$3="Wind"),IF(X156*'AVOID NEW'!$E$67<6.5,X156*(1-'AVOID NEW'!$E$67),X156-6.5),"NA") -> 39.008 | Z156: 37.4 | AA156: =IF(OR('Input - Capacity Factors'!$C$3="Wind"),IF(Z156*'AVOID NEW'!$E$67<6.5,Z156*(1-'AVOID NEW'!$E$67),Z156-6.5),"NA") -> 34.408
B157: 9 | C157: ='AVOID NEW'!AR17 -> 41.3815314 | D157: 43.0515314 | E157: 38.0515314 | G157: 44.69 | H157: =IF(OR('Input - Capacity Factors'!$C$3="Wind"),IF(G157*'AVOID NEW'!$E$67<6.5,G157*(1-'AVOID NEW'!$E$67),G157-6.5),"NA") -> 41.1148 | I157: 46.5 | J157: =IF(OR('Input - Capacity Factors'!$C$3="Wind"),IF(I157*'AVOID NEW'!$E$67<6.5,I157*(1-'AVOID NEW'!$E$67),I157-6.5),"NA") -> 42.78 | K157: 41.1 | L157: =IF(OR('Input - Capacity Factors'!$C$3="Wind"),IF(K157*'AVOID NEW'!$E$67<6.5,K157*(1-'AVOID NEW'!$E$67),K157-6.5),"NA") -> 37.812 | N157: 34.76 | O157: =IF(OR('Input - Capacity Factors'!$C$3="Wind"),IF(N157*'AVOID NEW'!$E$67<6.5,N157*(1-'AVOID NEW'!$E$67),N157-6.5),"NA") -> 31.9792 | P157: 36.16 | Q157: =IF(OR('Input - Capacity Factors'!$C$3="Wind"),IF(P157*'AVOID NEW'!$E$67<6.5,P157*(1-'AVOID NEW'!$E$67),P157-6.5),"NA") -> 33.2672 | R157: 31.96 | S157: =IF(OR('Input - Capacity Factors'!$C$3="Wind"),IF(R157*'AVOID NEW'!$E$67<6.5,R157*(1-'AVOID NEW'!$E$67),R157-6.5),"NA") -> 29.4032 | V157: 41.38 | W157: =IF(OR('Input - Capacity Factors'!$C$3="Wind"),IF(V157*'AVOID NEW'!$E$67<6.5,V157*(1-'AVOID NEW'!$E$67),V157-6.5),"NA") -> 38.0696 | X157: 43.05 | Y157: =IF(OR('Input - Capacity Factors'!$C$3="Wind"),IF(X157*'AVOID NEW'!$E$67<6.5,X157*(1-'AVOID NEW'!$E$67),X157-6.5),"NA") -> 39.606 | Z157: 38.05 | AA157: =IF(OR('Input - Capacity Factors'!$C$3="Wind"),IF(Z157*'AVOID NEW'!$E$67<6.5,Z157*(1-'AVOID NEW'!$E$67),Z157-6.5),"NA") -> 35.006
B158: 10 | C158: ='AVOID NEW'!AR18 -> 41.95024645 | D158: 43.62024645 | E158: 38.62024645 | G158: 45.31 | H158: =IF(OR('Input - Capacity Factors'!$C$3="Wind"),IF(G158*'AVOID NEW'!$E$67<6.5,G158*(1-'AVOID NEW'!$E$67),G158-6.5),"NA") -> 41.6852 | I158: 47.11 | J158: =IF(OR('Input - Capacity Factors'!$C$3="Wind"),IF(I158*'AVOID NEW'!$E$67<6.5,I158*(1-'AVOID NEW'!$E$67),I158-6.5),"NA") -> 43.3412 | K158: 41.71 | L158: =IF(OR('Input - Capacity Factors'!$C$3="Wind"),IF(K158*'AVOID NEW'!$E$67<6.5,K158*(1-'AVOID NEW'!$E$67),K158-6.5),"NA") -> 38.3732 | N158: 35.24 | O158: =IF(OR('Input - Capacity Factors'!$C$3="Wind"),IF(N158*'AVOID NEW'!$E$67<6.5,N158*(1-'AVOID NEW'!$E$67),N158-6.5),"NA") -> 32.4208 | P158: 36.64 | Q158: =IF(OR('Input - Capacity Factors'!$C$3="Wind"),IF(P158*'AVOID NEW'!$E$67<6.5,P158*(1-'AVOID NEW'!$E$67),P158-6.5),"NA") -> 33.7088 | R158: 32.44 | S158: =IF(OR('Input - Capacity Factors'!$C$3="Wind"),IF(R158*'AVOID NEW'!$E$67<6.5,R158*(1-'AVOID NEW'!$E$67),R158-6.5),"NA") -> 29.8448 | V158: 41.95 | W158: =IF(OR('Input - Capacity Factors'!$C$3="Wind"),IF(V158*'AVOID NEW'!$E$67<6.5,V158*(1-'AVOID NEW'!$E$67),V158-6.5),"NA") -> 38.594 | X158: 43.62 | Y158: =IF(OR('Input - Capacity Factors'!$C$3="Wind"),IF(X158*'AVOID NEW'!$E$67<6.5,X158*(1-'AVOID NEW'!$E$67),X158-6.5),"NA") -> 40.1304 | Z158: 38.62 | AA158: =IF(OR('Input - Capacity Factors'!$C$3="Wind"),IF(Z158*'AVOID NEW'!$E$67<6.5,Z158*(1-'AVOID NEW'!$E$67),Z158-6.5),"NA") -> 35.5304
B159: 11 | C159: ='AVOID NEW'!AR19 -> 42.47932696 | D159: 44.14932696 | E159: 39.14932696 | G159: 45.88 | H159: =IF(OR('Input - Capacity Factors'!$C$3="Wind"),IF(G159*'AVOID NEW'!$E$67<6.5,G159*(1-'AVOID NEW'!$E$67),G159-6.5),"NA") -> 42.2096 | I159: 47.68 | J159: =IF(OR('Input - Capacity Factors'!$C$3="Wind"),IF(I159*'AVOID NEW'!$E$67<6.5,I159*(1-'AVOID NEW'!$E$67),I159-6.5),"NA") -> 43.8656 | K159: 42.28 | L159: =IF(OR('Input - Capacity Factors'!$C$3="Wind"),IF(K159*'AVOID NEW'!$E$67<6.5,K159*(1-'AVOID NEW'!$E$67),K159-6.5),"NA") -> 38.8976 | N159: 35.68 | O159: =IF(OR('Input - Capacity Factors'!$C$3="Wind"),IF(N159*'AVOID NEW'!$E$67<6.5,N159*(1-'AVOID NEW'!$E$67),N159-6.5),"NA") -> 32.8256 | P159: 37.09 | Q159: =IF(OR('Input - Capacity Factors'!$C$3="Wind"),IF(P159*'AVOID NEW'!$E$67<6.5,P159*(1-'AVOID NEW'!$E$67),P159-6.5),"NA") -> 34.1228 | R159: 32.89 | S159: =IF(OR('Input - Capacity Factors'!$C$3="Wind"),IF(R159*'AVOID NEW'!$E$67<6.5,R159*(1-'AVOID NEW'!$E$67),R159-6.5),"NA") -> 30.2588 | V159: 42.48 | W159: =IF(OR('Input - Capacity Factors'!$C$3="Wind"),IF(V159*'AVOID NEW'!$E$67<6.5,V159*(1-'AVOID NEW'!$E$67),V159-6.5),"NA") -> 39.0816 | X159: 44.15 | Y159: =IF(OR('Input - Capacity Factors'!$C$3="Wind"),IF(X159*'AVOID NEW'!$E$67<6.5,X159*(1-'AVOID NEW'!$E$67),X159-6.5),"NA") -> 40.618 | Z159: 39.15 | AA159: =IF(OR('Input - Capacity Factors'!$C$3="Wind"),IF(Z159*'AVOID NEW'!$E$67<6.5,Z159*(1-'AVOID NEW'!$E$67),Z159-6.5),"NA") -> 36.018
B160: 12 | C160: ='AVOID NEW'!AR20 -> 42.97033455 | D160: 44.64033455 | E160: 39.64033455 | G160: 46.41 | H160: =IF(OR('Input - Capacity Factors'!$C$3="Wind"),IF(G160*'AVOID NEW'!$E$67<6.5,G160*(1-'AVOID NEW'!$E$67),G160-6.5),"NA") -> 42.6972 | I160: 48.21 | J160: =IF(OR('Input - Capacity Factors'!$C$3="Wind"),IF(I160*'AVOID NEW'!$E$67<6.5,I160*(1-'AVOID NEW'!$E$67),I160-6.5),"NA") -> 44.3532 | K160: 42.81 | L160: =IF(OR('Input - Capacity Factors'!$C$3="Wind"),IF(K160*'AVOID NEW'!$E$67<6.5,K160*(1-'AVOID NEW'!$E$67),K160-6.5),"NA") -> 39.3852 | N160: 36.1 | O160: =IF(OR('Input - Capacity Factors'!$C$3="Wind"),IF(N160*'AVOID NEW'!$E$67<6.5,N160*(1-'AVOID NEW'!$E$67),N160-6.5),"NA") -> 33.212 | P160: 37.5 | Q160: =IF(OR('Input - Capacity Factors'!$C$3="Wind"),IF(P160*'AVOID NEW'!$E$67<6.5,P160*(1-'AVOID NEW'!$E$67),P160-6.5),"NA") -> 34.5 | R160: 33.3 | S160: =IF(OR('Input - Capacity Factors'!$C$3="Wind"),IF(R160*'AVOID NEW'!$E$67<6.5,R160*(1-'AVOID NEW'!$E$67),R160-6.5),"NA") -> 30.636 | V160: 42.97 | W160: =IF(OR('Input - Capacity Factors'!$C$3="Wind"),IF(V160*'AVOID NEW'!$E$67<6.5,V160*(1-'AVOID NEW'!$E$67),V160-6.5),"NA") -> 39.5324 | X160: 44.64 | Y160: =IF(OR('Input - Capacity Factors'!$C$3="Wind"),IF(X160*'AVOID NEW'!$E$67<6.5,X160*(1-'AVOID NEW'!$E$67),X160-6.5),"NA") -> 41.0688 | Z160: 39.64 | AA160: =IF(OR('Input - Capacity Factors'!$C$3="Wind"),IF(Z160*'AVOID NEW'!$E$67<6.5,Z160*(1-'AVOID NEW'!$E$67),Z160-6.5),"NA") -> 36.4688
B161: 13 | C161: ='AVOID NEW'!AR21 -> 43.44141367 | D161: 45.11141367 | E161: 40.11141367 | G161: 46.92 | H161: =IF(OR('Input - Capacity Factors'!$C$3="Wind"),IF(G161*'AVOID NEW'!$E$67<6.5,G161*(1-'AVOID NEW'!$E$67),G161-6.5),"NA") -> 43.1664 | I161: 48.72 | J161: =IF(OR('Input - Capacity Factors'!$C$3="Wind"),IF(I161*'AVOID NEW'!$E$67<6.5,I161*(1-'AVOID NEW'!$E$67),I161-6.5),"NA") -> 44.8224 | K161: 43.32 | L161: =IF(OR('Input - Capacity Factors'!$C$3="Wind"),IF(K161*'AVOID NEW'!$E$67<6.5,K161*(1-'AVOID NEW'!$E$67),K161-6.5),"NA") -> 39.8544 | N161: 36.49 | O161: =IF(OR('Input - Capacity Factors'!$C$3="Wind"),IF(N161*'AVOID NEW'!$E$67<6.5,N161*(1-'AVOID NEW'!$E$67),N161-6.5),"NA") -> 33.5708 | P161: 37.89 | Q161: =IF(OR('Input - Capacity Factors'!$C$3="Wind"),IF(P161*'AVOID NEW'!$E$67<6.5,P161*(1-'AVOID NEW'!$E$67),P161-6.5),"NA") -> 34.8588 | R161: 33.69 | S161: =IF(OR('Input - Capacity Factors'!$C$3="Wind"),IF(R161*'AVOID NEW'!$E$67<6.5,R161*(1-'AVOID NEW'!$E$67),R161-6.5),"NA") -> 30.9948 | V161: 43.44 | W161: =IF(OR('Input - Capacity Factors'!$C$3="Wind"),IF(V161*'AVOID NEW'!$E$67<6.5,V161*(1-'AVOID NEW'!$E$67),V161-6.5),"NA") -> 39.9648 | X161: 45.11 | Y161: =IF(OR('Input - Capacity Factors'!$C$3="Wind"),IF(X161*'AVOID NEW'!$E$67<6.5,X161*(1-'AVOID NEW'!$E$67),X161-6.5),"NA") -> 41.5012 | Z161: 40.11 | AA161: =IF(OR('Input - Capacity Factors'!$C$3="Wind"),IF(Z161*'AVOID NEW'!$E$67<6.5,Z161*(1-'AVOID NEW'!$E$67),Z161-6.5),"NA") -> 36.9012
B162: 14 | C162: ='AVOID NEW'!AR22 -> 43.89294962 | D162: 45.56294962 | E162: 40.56294962 | G162: 47.4 | H162: =IF(OR('Input - Capacity Factors'!$C$3="Wind"),IF(G162*'AVOID NEW'!$E$67<6.5,G162*(1-'AVOID NEW'!$E$67),G162-6.5),"NA") -> 43.608 | I162: 49.21 | J162: =IF(OR('Input - Capacity Factors'!$C$3="Wind"),IF(I162*'AVOID NEW'!$E$67<6.5,I162*(1-'AVOID NEW'!$E$67),I162-6.5),"NA") -> 45.2732 | K162: 43.81 | L162: =IF(OR('Input - Capacity Factors'!$C$3="Wind"),IF(K162*'AVOID NEW'!$E$67<6.5,K162*(1-'AVOID NEW'!$E$67),K162-6.5),"NA") -> 40.3052 | N162: 36.87 | O162: =IF(OR('Input - Capacity Factors'!$C$3="Wind"),IF(N162*'AVOID NEW'!$E$67<6.5,N162*(1-'AVOID NEW'!$E$67),N162-6.5),"NA") -> 33.9204 | P162: 38.27 | Q162: =IF(OR('Input - Capacity Factors'!$C$3="Wind"),IF(P162*'AVOID NEW'!$E$67<6.5,P162*(1-'AVOID NEW'!$E$67),P162-6.5),"NA") -> 35.2084 | R162: 34.07 | S162: =IF(OR('Input - Capacity Factors'!$C$3="Wind"),IF(R162*'AVOID NEW'!$E$67<6.5,R162*(1-'AVOID NEW'!$E$67),R162-6.5),"NA") -> 31.3444 | V162: 43.89 | W162: =IF(OR('Input - Capacity Factors'!$C$3="Wind"),IF(V162*'AVOID NEW'!$E$67<6.5,V162*(1-'AVOID NEW'!$E$67),V162-6.5),"NA") -> 40.3788 | X162: 45.56 | Y162: =IF(OR('Input - Capacity Factors'!$C$3="Wind"),IF(X162*'AVOID NEW'!$E$67<6.5,X162*(1-'AVOID NEW'!$E$67),X162-6.5),"NA") -> 41.9152 | Z162: 40.56 | AA162: =IF(OR('Input - Capacity Factors'!$C$3="Wind"),IF(Z162*'AVOID NEW'!$E$67<6.5,Z162*(1-'AVOID NEW'!$E$67),Z162-6.5),"NA") -> 37.3152
B163: 15 | C163: ='AVOID NEW'!AR23 -> 44.33773501 | D163: 46.00773501 | E163: 41.00773501 | G163: 47.88 | H163: =IF(OR('Input - Capacity Factors'!$C$3="Wind"),IF(G163*'AVOID NEW'!$E$67<6.5,G163*(1-'AVOID NEW'!$E$67),G163-6.5),"NA") -> 44.0496 | I163: 49.69 | J163: =IF(OR('Input - Capacity Factors'!$C$3="Wind"),IF(I163*'AVOID NEW'!$E$67<6.5,I163*(1-'AVOID NEW'!$E$67),I163-6.5),"NA") -> 45.7148 | K163: 44.29 | L163: =IF(OR('Input - Capacity Factors'!$C$3="Wind"),IF(K163*'AVOID NEW'!$E$67<6.5,K163*(1-'AVOID NEW'!$E$67),K163-6.5),"NA") -> 40.7468 | N163: 37.24 | O163: =IF(OR('Input - Capacity Factors'!$C$3="Wind"),IF(N163*'AVOID NEW'!$E$67<6.5,N163*(1-'AVOID NEW'!$E$67),N163-6.5),"NA") -> 34.2608 | P163: 38.65 | Q163: =IF(OR('Input - Capacity Factors'!$C$3="Wind"),IF(P163*'AVOID NEW'!$E$67<6.5,P163*(1-'AVOID NEW'!$E$67),P163-6.5),"NA") -> 35.558 | R163: 34.45 | S163: =IF(OR('Input - Capacity Factors'!$C$3="Wind"),IF(R163*'AVOID NEW'!$E$67<6.5,R163*(1-'AVOID NEW'!$E$67),R163-6.5),"NA") -> 31.694 | V163: 44.34 | W163: =IF(OR('Input - Capacity Factors'!$C$3="Wind"),IF(V163*'AVOID NEW'!$E$67<6.5,V163*(1-'AVOID NEW'!$E$67),V163-6.5),"NA") -> 40.7928 | X163: 46.01 | Y163: =IF(OR('Input - Capacity Factors'!$C$3="Wind"),IF(X163*'AVOID NEW'!$E$67<6.5,X163*(1-'AVOID NEW'!$E$67),X163-6.5),"NA") -> 42.3292 | Z163: 41.01 | AA163: =IF(OR('Input - Capacity Factors'!$C$3="Wind"),IF(Z163*'AVOID NEW'!$E$67<6.5,Z163*(1-'AVOID NEW'!$E$67),Z163-6.5),"NA") -> 37.7292
B164: 16 | C164: ='AVOID NEW'!AR24 -> 44.7687904 | D164: 46.4387904 | E164: 41.4387904 | G164: 48.35 | H164: =IF(OR('Input - Capacity Factors'!$C$3="Wind"),IF(G164*'AVOID NEW'!$E$67<6.5,G164*(1-'AVOID NEW'!$E$67),G164-6.5),"NA") -> 44.482 | I164: 50.15 | J164: =IF(OR('Input - Capacity Factors'!$C$3="Wind"),IF(I164*'AVOID NEW'!$E$67<6.5,I164*(1-'AVOID NEW'!$E$67),I164-6.5),"NA") -> 46.138 | K164: 44.75 | L164: =IF(OR('Input - Capacity Factors'!$C$3="Wind"),IF(K164*'AVOID NEW'!$E$67<6.5,K164*(1-'AVOID NEW'!$E$67),K164-6.5),"NA") -> 41.17 | N164: 37.61 | O164: =IF(OR('Input - Capacity Factors'!$C$3="Wind"),IF(N164*'AVOID NEW'!$E$67<6.5,N164*(1-'AVOID NEW'!$E$67),N164-6.5),"NA") -> 34.6012 | P164: 39.01 | Q164: =IF(OR('Input - Capacity Factors'!$C$3="Wind"),IF(P164*'AVOID NEW'!$E$67<6.5,P164*(1-'AVOID NEW'!$E$67),P164-6.5),"NA") -> 35.8892 | R164: 34.81 | S164: =IF(OR('Input - Capacity Factors'!$C$3="Wind"),IF(R164*'AVOID NEW'!$E$67<6.5,R164*(1-'AVOID NEW'!$E$67),R164-6.5),"NA") -> 32.0252 | V164: 44.77 | W164: =IF(OR('Input - Capacity Factors'!$C$3="Wind"),IF(V164*'AVOID NEW'!$E$67<6.5,V164*(1-'AVOID NEW'!$E$67),V164-6.5),"NA") -> 41.1884 | X164: 46.44 | Y164: =IF(OR('Input - Capacity Factors'!$C$3="Wind"),IF(X164*'AVOID NEW'!$E$67<6.5,X164*(1-'AVOID NEW'!$E$67),X164-6.5),"NA") -> 42.7248 | Z164: 41.44 | AA164: =IF(OR('Input - Capacity Factors'!$C$3="Wind"),IF(Z164*'AVOID NEW'!$E$67<6.5,Z164*(1-'AVOID NEW'!$E$67),Z164-6.5),"NA") -> 38.1248
B165: 17 | C165: ='AVOID NEW'!AR25 -> 45.17703333 | D165: 46.84703333 | E165: 41.84703333 | G165: 48.79 | H165: =IF(OR('Input - Capacity Factors'!$C$3="Wind"),IF(G165*'AVOID NEW'!$E$67<6.5,G165*(1-'AVOID NEW'!$E$67),G165-6.5),"NA") -> 44.8868 | I165: 50.59 | J165: =IF(OR('Input - Capacity Factors'!$C$3="Wind"),IF(I165*'AVOID NEW'!$E$67<6.5,I165*(1-'AVOID NEW'!$E$67),I165-6.5),"NA") -> 46.5428 | K165: 45.19 | L165: =IF(OR('Input - Capacity Factors'!$C$3="Wind"),IF(K165*'AVOID NEW'!$E$67<6.5,K165*(1-'AVOID NEW'!$E$67),K165-6.5),"NA") -> 41.5748 | N165: 37.95 | O165: =IF(OR('Input - Capacity Factors'!$C$3="Wind"),IF(N165*'AVOID NEW'!$E$67<6.5,N165*(1-'AVOID NEW'!$E$67),N165-6.5),"NA") -> 34.914 | P165: 39.35 | Q165: =IF(OR('Input - Capacity Factors'!$C$3="Wind"),IF(P165*'AVOID NEW'!$E$67<6.5,P165*(1-'AVOID NEW'!$E$67),P165-6.5),"NA") -> 36.202 | R165: 35.15 | S165: =IF(OR('Input - Capacity Factors'!$C$3="Wind"),IF(R165*'AVOID NEW'!$E$67<6.5,R165*(1-'AVOID NEW'!$E$67),R165-6.5),"NA") -> 32.338 | V165: 45.18 | W165: =IF(OR('Input - Capacity Factors'!$C$3="Wind"),IF(V165*'AVOID NEW'!$E$67<6.5,V165*(1-'AVOID NEW'!$E$67),V165-6.5),"NA") -> 41.5656 | X165: 46.85 | Y165: =IF(OR('Input - Capacity Factors'!$C$3="Wind"),IF(X165*'AVOID NEW'!$E$67<6.5,X165*(1-'AVOID NEW'!$E$67),X165-6.5),"NA") -> 43.102 | Z165: 41.85 | AA165: =IF(OR('Input - Capacity Factors'!$C$3="Wind"),IF(Z165*'AVOID NEW'!$E$67<6.5,Z165*(1-'AVOID NEW'!$E$67),Z165-6.5),"NA") -> 38.502
B166: 18 | C166: ='AVOID NEW'!AR26 -> 45.57295283 | D166: 47.24295283 | E166: 42.24295283 | G166: 49.22 | H166: =IF(OR('Input - Capacity Factors'!$C$3="Wind"),IF(G166*'AVOID NEW'!$E$67<6.5,G166*(1-'AVOID NEW'!$E$67),G166-6.5),"NA") -> 45.2824 | I166: 51.02 | J166: =IF(OR('Input - Capacity Factors'!$C$3="Wind"),IF(I166*'AVOID NEW'!$E$67<6.5,I166*(1-'AVOID NEW'!$E$67),I166-6.5),"NA") -> 46.9384 | K166: 45.62 | L166: =IF(OR('Input - Capacity Factors'!$C$3="Wind"),IF(K166*'AVOID NEW'!$E$67<6.5,K166*(1-'AVOID NEW'!$E$67),K166-6.5),"NA") -> 41.9704 | N166: 38.28 | O166: =IF(OR('Input - Capacity Factors'!$C$3="Wind"),IF(N166*'AVOID NEW'!$E$67<6.5,N166*(1-'AVOID NEW'!$E$67),N166-6.5),"NA") -> 35.2176 | P166: 39.68 | Q166: =IF(OR('Input - Capacity Factors'!$C$3="Wind"),IF(P166*'AVOID NEW'!$E$67<6.5,P166*(1-'AVOID NEW'!$E$67),P166-6.5),"NA") -> 36.5056 | R166: 35.48 | S166: =IF(OR('Input - Capacity Factors'!$C$3="Wind"),IF(R166*'AVOID NEW'!$E$67<6.5,R166*(1-'AVOID NEW'!$E$67),R166-6.5),"NA") -> 32.6416 | V166: 45.57 | W166: =IF(OR('Input - Capacity Factors'!$C$3="Wind"),IF(V166*'AVOID NEW'!$E$67<6.5,V166*(1-'AVOID NEW'!$E$67),V166-6.5),"NA") -> 41.9244 | X166: 47.24 | Y166: =IF(OR('Input - Capacity Factors'!$C$3="Wind"),IF(X166*'AVOID NEW'!$E$67<6.5,X166*(1-'AVOID NEW'!$E$67),X166-6.5),"NA") -> 43.4608 | Z166: 42.24 | AA166: =IF(OR('Input - Capacity Factors'!$C$3="Wind"),IF(Z166*'AVOID NEW'!$E$67<6.5,Z166*(1-'AVOID NEW'!$E$67),Z166-6.5),"NA") -> 38.8608
B167: 19 | C167: ='AVOID NEW'!AR27 -> 45.96015372 | D167: 47.63015372 | E167: 42.63015372 | G167: 49.64 | H167: =IF(OR('Input - Capacity Factors'!$C$3="Wind"),IF(G167*'AVOID NEW'!$E$67<6.5,G167*(1-'AVOID NEW'!$E$67),G167-6.5),"NA") -> 45.6688 | I167: 51.44 | J167: =IF(OR('Input - Capacity Factors'!$C$3="Wind"),IF(I167*'AVOID NEW'!$E$67<6.5,I167*(1-'AVOID NEW'!$E$67),I167-6.5),"NA") -> 47.3248 | K167: 46.04 | L167: =IF(OR('Input - Capacity Factors'!$C$3="Wind"),IF(K167*'AVOID NEW'!$E$67<6.5,K167*(1-'AVOID NEW'!$E$67),K167-6.5),"NA") -> 42.3568 | N167: 38.61 | O167: =IF(OR('Input - Capacity Factors'!$C$3="Wind"),IF(N167*'AVOID NEW'!$E$67<6.5,N167*(1-'AVOID NEW'!$E$67),N167-6.5),"NA") -> 35.5212 | P167: 40.01 | Q167: =IF(OR('Input - Capacity Factors'!$C$3="Wind"),IF(P167*'AVOID NEW'!$E$67<6.5,P167*(1-'AVOID NEW'!$E$67),P167-6.5),"NA") -> 36.8092 | R167: 35.81 | S167: =IF(OR('Input - Capacity Factors'!$C$3="Wind"),IF(R167*'AVOID NEW'!$E$67<6.5,R167*(1-'AVOID NEW'!$E$67),R167-6.5),"NA") -> 32.9452 | V167: 45.96 | W167: =IF(OR('Input - Capacity Factors'!$C$3="Wind"),IF(V167*'AVOID NEW'!$E$67<6.5,V167*(1-'AVOID NEW'!$E$67),V167-6.5),"NA") -> 42.2832 | X167: 47.63 | Y167: =IF(OR('Input - Capacity Factors'!$C$3="Wind"),IF(X167*'AVOID NEW'!$E$67<6.5,X167*(1-'AVOID NEW'!$E$67),X167-6.5),"NA") -> 43.8196 | Z167: 42.63 | AA167: =IF(OR('Input - Capacity Factors'!$C$3="Wind"),IF(Z167*'AVOID NEW'!$E$67<6.5,Z167*(1-'AVOID NEW'!$E$67),Z167-6.5),"NA") -> 39.2196
B168: 20 | C168: ='AVOID NEW'!AR28 -> 46.33602396 | D168: 48.00602396 | E168: 43.00602396 | G168: 50.04 | H168: =IF(OR('Input - Capacity Factors'!$C$3="Wind"),IF(G168*'AVOID NEW'!$E$67<6.5,G168*(1-'AVOID NEW'!$E$67),G168-6.5),"NA") -> 46.0368 | I168: 51.85 | J168: =IF(OR('Input - Capacity Factors'!$C$3="Wind"),IF(I168*'AVOID NEW'!$E$67<6.5,I168*(1-'AVOID NEW'!$E$67),I168-6.5),"NA") -> 47.702 | K168: 46.45 | L168: =IF(OR('Input - Capacity Factors'!$C$3="Wind"),IF(K168*'AVOID NEW'!$E$67<6.5,K168*(1-'AVOID NEW'!$E$67),K168-6.5),"NA") -> 42.734 | N168: 38.92 | O168: =IF(OR('Input - Capacity Factors'!$C$3="Wind"),IF(N168*'AVOID NEW'!$E$67<6.5,N168*(1-'AVOID NEW'!$E$67),N168-6.5),"NA") -> 35.8064 | P168: 40.33 | Q168: =IF(OR('Input - Capacity Factors'!$C$3="Wind"),IF(P168*'AVOID NEW'!$E$67<6.5,P168*(1-'AVOID NEW'!$E$67),P168-6.5),"NA") -> 37.1036 | R168: 36.13 | S168: =IF(OR('Input - Capacity Factors'!$C$3="Wind"),IF(R168*'AVOID NEW'!$E$67<6.5,R168*(1-'AVOID NEW'!$E$67),R168-6.5),"NA") -> 33.2396 | V168: 46.34 | W168: =IF(OR('Input - Capacity Factors'!$C$3="Wind"),IF(V168*'AVOID NEW'!$E$67<6.5,V168*(1-'AVOID NEW'!$E$67),V168-6.5),"NA") -> 42.6328 | X168: 48.01 | Y168: =IF(OR('Input - Capacity Factors'!$C$3="Wind"),IF(X168*'AVOID NEW'!$E$67<6.5,X168*(1-'AVOID NEW'!$E$67),X168-6.5),"NA") -> 44.1692 | Z168: 43.01 | AA168: =IF(OR('Input - Capacity Factors'!$C$3="Wind"),IF(Z168*'AVOID NEW'!$E$67<6.5,Z168*(1-'AVOID NEW'!$E$67),Z168-6.5),"NA") -> 39.5692
B172: =$B$1 -> THESE RATES ARE NOT VALID
B173: LEVELIZED RATES
B174: ="PROJECT ON-LINE IN "& 'AVOID NEW'!$D$54+5 -> PROJECT ON-LINE IN 2027
B175: ="Rate Effective Date: "&'AVOID NEW'!$E$69 -> Rate Effective Date: XXXX, 2022
B176: ="Resource: "&'Input - Capacity Factors'!$C$3 -> Resource: Wind
C177: Levelized Price | G177: ="Season 1 Pricing ("&$D$7*100&"%)" -> Season 1 Pricing (108%) | N177: ="Season 2 Pricing ("&100*$D$8&"%)" -> Season 2 Pricing (84%) | V177: Non-Seasonalized Pricing
C178: Heavy and Light Load Hour Differential | D178: ='AVOID NEW'!$E$66 -> 5 | G178: Flat | I178: Heavy Load Hour | K178: Light Load Hour | N178: Flat | P178: Heavy Load Hour | R178: Light Load Hour | V178: Flat | X178: Heavy Load Hour | Z178: Light Load Hour
D179: =ROUND(D178/3,2) -> 1.67 | E179: =-ROUND((D178*2)/3,2) -> -3.33 | H179: Price less wind integration adjustment | J179: Price less wind integration adjustment | L179: Price less wind integration adjustment | O179: Price less wind integration adjustment | Q179: Price less wind integration adjustment | S179: Price less wind integration adjustment | W179: Price less wind integration adjustment | Y179: Price less wind integration adjustment | AA179: Price less wind integration adjustment
B180: Contract Length | C180: Flat | D180: Heavy Load Hour | E180: Light Load Hour | G180: Price | I180: Price | K180: Price | N180: Price | P180: Price | R180: Price | V180: Price | X180: Price | Z180: Price
B181: 1 | C181: ='AVOID NEW'!AS9 -> 36.48321624 | D181: =C181+D$83 -> 38.15321624 | E181: =C181+E$83 -> 33.15321624 | G181: =ROUND((+$C181*$D$7),2) -> 39.4 | H181: =IF(OR('Input - Capacity Factors'!$C$3="Wind"),IF(G181*'AVOID NEW'!$E$67<6.5,G181*(1-'AVOID NEW'!$E$67),G181-6.5),"NA") -> 36.248 | I181: =ROUND((+$D181*$D$7),2) -> 41.21 | J181: =IF(OR('Input - Capacity Factors'!$C$3="Wind"),IF(I181*'AVOID NEW'!$E$67<6.5,I181*(1-'AVOID NEW'!$E$67),I181-6.5),"NA") -> 37.9132 | K181: =ROUND((+$E181*$D$7),2) -> 35.81 | L181: =IF(OR('Input - Capacity Factors'!$C$3="Wind"),IF(K181*'AVOID NEW'!$E$67<6.5,K181*(1-'AVOID NEW'!$E$67),K181-6.5),"NA") -> 32.9452 | N181: =ROUND((+$C181*$D$8),2) -> 30.65 | O181: =IF(OR('Input - Capacity Factors'!$C$3="Wind"),IF(N181*'AVOID NEW'!$E$67<6.5,N181*(1-'AVOID NEW'!$E$67),N181-6.5),"NA") -> 28.198 | P181: =ROUND((+$D181*$D$8),2) -> 32.05 | Q181: =IF(OR('Input - Capacity Factors'!$C$3="Wind"),IF(P181*'AVOID NEW'!$E$67<6.5,P181*(1-'AVOID NEW'!$E$67),P181-6.5),"NA") -> 29.486 | R181: =ROUND((+$E181*$D$8),2) -> 27.85 | S181: =IF(OR('Input - Capacity Factors'!$C$3="Wind"),IF(R181*'AVOID NEW'!$E$67<6.5,R181*(1-'AVOID NEW'!$E$67),R181-6.5),"NA") -> 25.622 | V181: =ROUND((+$C181),2) -> 36.48 | W181: =IF(OR('Input - Capacity Factors'!$C$3="Wind"),IF(V181*'AVOID NEW'!$E$67<6.5,V181*(1-'AVOID NEW'!$E$67),V181-6.5),"NA") -> 33.5616 | X181: =ROUND((+$D181),2) -> 38.15 | Y181: =IF(OR('Input - Capacity Factors'!$C$3="Wind"),IF(X181*'AVOID NEW'!$E$67<6.5,X181*(1-'AVOID NEW'!$E$67),X181-6.5),"NA") -> 35.098 | Z181: =ROUND((+$E181),2) -> 33.15 | AA181: =IF(OR('Input - Capacity Factors'!$C$3="Wind"),IF(Z181*'AVOID NEW'!$E$67<6.5,Z181*(1-'AVOID NEW'!$E$67),Z181-6.5),"NA") -> 30.498
B182: 2 | C182: ='AVOID NEW'!AS10 -> 37.67782438 | D182: 39.34782438 | E182: 34.34782438 | G182: 40.69 | H182: =IF(OR('Input - Capacity Factors'!$C$3="Wind"),IF(G182*'AVOID NEW'!$E$67<6.5,G182*(1-'AVOID NEW'!$E$67),G182-6.5),"NA") -> 37.4348 | I182: 42.5 | J182: =IF(OR('Input - Capacity Factors'!$C$3="Wind"),IF(I182*'AVOID NEW'!$E$67<6.5,I182*(1-'AVOID NEW'!$E$67),I182-6.5),"NA") -> 39.1 | K182: 37.1 | L182: =IF(OR('Input - Capacity Factors'!$C$3="Wind"),IF(K182*'AVOID NEW'!$E$67<6.5,K182*(1-'AVOID NEW'!$E$67),K182-6.5),"NA") -> 34.132 | N182: 31.65 | O182: =IF(OR('Input - Capacity Factors'!$C$3="Wind"),IF(N182*'AVOID NEW'!$E$67<6.5,N182*(1-'AVOID NEW'!$E$67),N182-6.5),"NA") -> 29.118 | P182: 33.05 | Q182: =IF(OR('Input - Capacity Factors'!$C$3="Wind"),IF(P182*'AVOID NEW'!$E$67<6.5,P182*(1-'AVOID NEW'!$E$67),P182-6.5),"NA") -> 30.406 | R182: 28.85 | S182: =IF(OR('Input - Capacity Factors'!$C$3="Wind"),IF(R182*'AVOID NEW'!$E$67<6.5,R182*(1-'AVOID NEW'!$E$67),R182-6.5),"NA") -> 26.542 | V182: =ROUND((+$C182),2) -> 37.68 | W182: =IF(OR('Input - Capacity Factors'!$C$3="Wind"),IF(V182*'AVOID NEW'!$E$67<6.5,V182*(1-'AVOID NEW'!$E$67),V182-6.5),"NA") -> 34.6656 | X182: =ROUND((+$D182),2) -> 39.35 | Y182: =IF(OR('Input - Capacity Factors'!$C$3="Wind"),IF(X182*'AVOID NEW'!$E$67<6.5,X182*(1-'AVOID NEW'!$E$67),X182-6.5),"NA") -> 36.202 | Z182: =ROUND((+$E182),2) -> 34.35 | AA182: =IF(OR('Input - Capacity Factors'!$C$3="Wind"),IF(Z182*'AVOID NEW'!$E$67<6.5,Z182*(1-'AVOID NEW'!$E$67),Z182-6.5),"NA") -> 31.602
B183: 3 | C183: ='AVOID NEW'!AS11 -> 38.74755188 | D183: 40.41755188 | E183: 35.41755188 | G183: 41.85 | H183: =IF(OR('Input - Capacity Factors'!$C$3="Wind"),IF(G183*'AVOID NEW'!$E$67<6.5,G183*(1-'AVOID NEW'!$E$67),G183-6.5),"NA") -> 38.502 | I183: 43.65 | J183: =IF(OR('Input - Capacity Factors'!$C$3="Wind"),IF(I183*'AVOID NEW'!$E$67<6.5,I183*(1-'AVOID NEW'!$E$67),I183-6.5),"NA") -> 40.158 | K183: 38.25 | L183: =IF(OR('Input - Capacity Factors'!$C$3="Wind"),IF(K183*'AVOID NEW'!$E$67<6.5,K183*(1-'AVOID NEW'!$E$67),K183-6.5),"NA") -> 35.19 | N183: 32.55 | O183: =IF(OR('Input - Capacity Factors'!$C$3="Wind"),IF(N183*'AVOID NEW'!$E$67<6.5,N183*(1-'AVOID NEW'!$E$67),N183-6.5),"NA") -> 29.946 | P183: 33.95 | Q183: =IF(OR('Input - Capacity Factors'!$C$3="Wind"),IF(P183*'AVOID NEW'!$E$67<6.5,P183*(1-'AVOID NEW'!$E$67),P183-6.5),"NA") -> 31.234 | R183: 29.75 | S183: =IF(OR('Input - Capacity Factors'!$C$3="Wind"),IF(R183*'AVOID NEW'!$E$67<6.5,R183*(1-'AVOID NEW'!$E$67),R183-6.5),"NA") -> 27.37 | V183: 38.75 | W183: =IF(OR('Input - Capacity Factors'!$C$3="Wind"),IF(V183*'AVOID NEW'!$E$67<6.5,V183*(1-'AVOID NEW'!$E$67),V183-6.5),"NA") -> 35.65 | X183: 40.42 | Y183: =IF(OR('Input - Capacity Factors'!$C$3="Wind"),IF(X183*'AVOID NEW'!$E$67<6.5,X183*(1-'AVOID NEW'!$E$67),X183-6.5),"NA") -> 37.1864 | Z183: 35.42 | AA183: =IF(OR('Input - Capacity Factors'!$C$3="Wind"),IF(Z183*'AVOID NEW'!$E$67<6.5,Z183*(1-'AVOID NEW'!$E$67),Z183-6.5),"NA") -> 32.5864
B184: 4 | C184: ='AVOID NEW'!AS12 -> 39.66224506 | D184: 41.33224506 | E184: 36.33224506 | G184: 42.84 | H184: =IF(OR('Input - Capacity Factors'!$C$3="Wind"),IF(G184*'AVOID NEW'!$E$67<6.5,G184*(1-'AVOID NEW'!$E$67),G184-6.5),"NA") -> 39.4128 | I184: 44.64 | J184: =IF(OR('Input - Capacity Factors'!$C$3="Wind"),IF(I184*'AVOID NEW'!$E$67<6.5,I184*(1-'AVOID NEW'!$E$67),I184-6.5),"NA") -> 41.0688 | K184: 39.24 | L184: =IF(OR('Input - Capacity Factors'!$C$3="Wind"),IF(K184*'AVOID NEW'!$E$67<6.5,K184*(1-'AVOID NEW'!$E$67),K184-6.5),"NA") -> 36.1008 | N184: 33.32 | O184: =IF(OR('Input - Capacity Factors'!$C$3="Wind"),IF(N184*'AVOID NEW'!$E$67<6.5,N184*(1-'AVOID NEW'!$E$67),N184-6.5),"NA") -> 30.6544 | P184: 34.72 | Q184: =IF(OR('Input - Capacity Factors'!$C$3="Wind"),IF(P184*'AVOID NEW'!$E$67<6.5,P184*(1-'AVOID NEW'!$E$67),P184-6.5),"NA") -> 31.9424 | R184: 30.52 | S184: =IF(OR('Input - Capacity Factors'!$C$3="Wind"),IF(R184*'AVOID NEW'!$E$67<6.5,R184*(1-'AVOID NEW'!$E$67),R184-6.5),"NA") -> 28.0784 | V184: 39.66 | W184: =IF(OR('Input - Capacity Factors'!$C$3="Wind"),IF(V184*'AVOID NEW'!$E$67<6.5,V184*(1-'AVOID NEW'!$E$67),V184-6.5),"NA") -> 36.4872 | X184: 41.33 | Y184: =IF(OR('Input - Capacity Factors'!$C$3="Wind"),IF(X184*'AVOID NEW'!$E$67<6.5,X184*(1-'AVOID NEW'!$E$67),X184-6.5),"NA") -> 38.0236 | Z184: 36.33 | AA184: =IF(OR('Input - Capacity Factors'!$C$3="Wind"),IF(Z184*'AVOID NEW'!$E$67<6.5,Z184*(1-'AVOID NEW'!$E$67),Z184-6.5),"NA") -> 33.4236
B185: 5 | C185: ='AVOID NEW'!AS13 -> 40.4608731 | D185: 42.1308731 | E185: 37.1308731 | G185: 43.7 | H185: =IF(OR('Input - Capacity Factors'!$C$3="Wind"),IF(G185*'AVOID NEW'!$E$67<6.5,G185*(1-'AVOID NEW'!$E$67),G185-6.5),"NA") -> 40.204 | I185: 45.5 | J185: =IF(OR('Input - Capacity Factors'!$C$3="Wind"),IF(I185*'AVOID NEW'!$E$67<6.5,I185*(1-'AVOID NEW'!$E$67),I185-6.5),"NA") -> 41.86 | K185: 40.1 | L185: =IF(OR('Input - Capacity Factors'!$C$3="Wind"),IF(K185*'AVOID NEW'!$E$67<6.5,K185*(1-'AVOID NEW'!$E$67),K185-6.5),"NA") -> 36.892 | N185: 33.99 | O185: =IF(OR('Input - Capacity Factors'!$C$3="Wind"),IF(N185*'AVOID NEW'!$E$67<6.5,N185*(1-'AVOID NEW'!$E$67),N185-6.5),"NA") -> 31.2708 | P185: 35.39 | Q185: =IF(OR('Input - Capacity Factors'!$C$3="Wind"),IF(P185*'AVOID NEW'!$E$67<6.5,P185*(1-'AVOID NEW'!$E$67),P185-6.5),"NA") -> 32.5588 | R185: 31.19 | S185: =IF(OR('Input - Capacity Factors'!$C$3="Wind"),IF(R185*'AVOID NEW'!$E$67<6.5,R185*(1-'AVOID NEW'!$E$67),R185-6.5),"NA") -> 28.6948 | V185: 40.46 | W185: =IF(OR('Input - Capacity Factors'!$C$3="Wind"),IF(V185*'AVOID NEW'!$E$67<6.5,V185*(1-'AVOID NEW'!$E$67),V185-6.5),"NA") -> 37.2232 | X185: 42.13 | Y185: =IF(OR('Input - Capacity Factors'!$C$3="Wind"),IF(X185*'AVOID NEW'!$E$67<6.5,X185*(1-'AVOID NEW'!$E$67),X185-6.5),"NA") -> 38.7596 | Z185: 37.13 | AA185: =IF(OR('Input - Capacity Factors'!$C$3="Wind"),IF(Z185*'AVOID NEW'!$E$67<6.5,Z185*(1-'AVOID NEW'!$E$67),Z185-6.5),"NA") -> 34.1596
B186: 6 | C186: ='AVOID NEW'!AS14 -> 41.22174825 | D186: 42.89174825 | E186: 37.89174825 | G186: 44.52 | H186: =IF(OR('Input - Capacity Factors'!$C$3="Wind"),IF(G186*'AVOID NEW'!$E$67<6.5,G186*(1-'AVOID NEW'!$E$67),G186-6.5),"NA") -> 40.9584 | I186: 46.32 | J186: =IF(OR('Input - Capacity Factors'!$C$3="Wind"),IF(I186*'AVOID NEW'!$E$67<6.5,I186*(1-'AVOID NEW'!$E$67),I186-6.5),"NA") -> 42.6144 | K186: 40.92 | L186: =IF(OR('Input - Capacity Factors'!$C$3="Wind"),IF(K186*'AVOID NEW'!$E$67<6.5,K186*(1-'AVOID NEW'!$E$67),K186-6.5),"NA") -> 37.6464 | N186: 34.63 | O186: =IF(OR('Input - Capacity Factors'!$C$3="Wind"),IF(N186*'AVOID NEW'!$E$67<6.5,N186*(1-'AVOID NEW'!$E$67),N186-6.5),"NA") -> 31.8596 | P186: 36.03 | Q186: =IF(OR('Input - Capacity Factors'!$C$3="Wind"),IF(P186*'AVOID NEW'!$E$67<6.5,P186*(1-'AVOID NEW'!$E$67),P186-6.5),"NA") -> 33.1476 | R186: 31.83 | S186: =IF(OR('Input - Capacity Factors'!$C$3="Wind"),IF(R186*'AVOID NEW'!$E$67<6.5,R186*(1-'AVOID NEW'!$E$67),R186-6.5),"NA") -> 29.2836 | V186: 41.22 | W186: =IF(OR('Input - Capacity Factors'!$C$3="Wind"),IF(V186*'AVOID NEW'!$E$67<6.5,V186*(1-'AVOID NEW'!$E$67),V186-6.5),"NA") -> 37.9224 | X186: 42.89 | Y186: =IF(OR('Input - Capacity Factors'!$C$3="Wind"),IF(X186*'AVOID NEW'!$E$67<6.5,X186*(1-'AVOID NEW'!$E$67),X186-6.5),"NA") -> 39.4588 | Z186: 37.89 | AA186: =IF(OR('Input - Capacity Factors'!$C$3="Wind"),IF(Z186*'AVOID NEW'!$E$67<6.5,Z186*(1-'AVOID NEW'!$E$67),Z186-6.5),"NA") -> 34.8588
B187: 7 | C187: ='AVOID NEW'!AS15 -> 41.94458086 | D187: 43.61458086 | E187: 38.61458086 | G187: 45.3 | H187: =IF(OR('Input - Capacity Factors'!$C$3="Wind"),IF(G187*'AVOID NEW'!$E$67<6.5,G187*(1-'AVOID NEW'!$E$67),G187-6.5),"NA") -> 41.676 | I187: 47.1 | J187: =IF(OR('Input - Capacity Factors'!$C$3="Wind"),IF(I187*'AVOID NEW'!$E$67<6.5,I187*(1-'AVOID NEW'!$E$67),I187-6.5),"NA") -> 43.332 | K187: 41.7 | L187: =IF(OR('Input - Capacity Factors'!$C$3="Wind"),IF(K187*'AVOID NEW'!$E$67<6.5,K187*(1-'AVOID NEW'!$E$67),K187-6.5),"NA") -> 38.364 | N187: 35.23 | O187: =IF(OR('Input - Capacity Factors'!$C$3="Wind"),IF(N187*'AVOID NEW'!$E$67<6.5,N187*(1-'AVOID NEW'!$E$67),N187-6.5),"NA") -> 32.4116 | P187: 36.64 | Q187: =IF(OR('Input - Capacity Factors'!$C$3="Wind"),IF(P187*'AVOID NEW'!$E$67<6.5,P187*(1-'AVOID NEW'!$E$67),P187-6.5),"NA") -> 33.7088 | R187: 32.44 | S187: =IF(OR('Input - Capacity Factors'!$C$3="Wind"),IF(R187*'AVOID NEW'!$E$67<6.5,R187*(1-'AVOID NEW'!$E$67),R187-6.5),"NA") -> 29.8448 | V187: 41.94 | W187: =IF(OR('Input - Capacity Factors'!$C$3="Wind"),IF(V187*'AVOID NEW'!$E$67<6.5,V187*(1-'AVOID NEW'!$E$67),V187-6.5),"NA") -> 38.5848 | X187: 43.61 | Y187: =IF(OR('Input - Capacity Factors'!$C$3="Wind"),IF(X187*'AVOID NEW'!$E$67<6.5,X187*(1-'AVOID NEW'!$E$67),X187-6.5),"NA") -> 40.1212 | Z187: 38.61 | AA187: =IF(OR('Input - Capacity Factors'!$C$3="Wind"),IF(Z187*'AVOID NEW'!$E$67<6.5,Z187*(1-'AVOID NEW'!$E$67),Z187-6.5),"NA") -> 35.5212
B188: 8 | C188: ='AVOID NEW'!AS16 -> 42.59250793 | D188: 44.26250793 | E188: 39.26250793 | G188: 46 | H188: =IF(OR('Input - Capacity Factors'!$C$3="Wind"),IF(G188*'AVOID NEW'!$E$67<6.5,G188*(1-'AVOID NEW'!$E$67),G188-6.5),"NA") -> 42.32 | I188: 47.8 | J188: =IF(OR('Input - Capacity Factors'!$C$3="Wind"),IF(I188*'AVOID NEW'!$E$67<6.5,I188*(1-'AVOID NEW'!$E$67),I188-6.5),"NA") -> 43.976 | K188: 42.4 | L188: =IF(OR('Input - Capacity Factors'!$C$3="Wind"),IF(K188*'AVOID NEW'!$E$67<6.5,K188*(1-'AVOID NEW'!$E$67),K188-6.5),"NA") -> 39.008 | N188: 35.78 | O188: =IF(OR('Input - Capacity Factors'!$C$3="Wind"),IF(N188*'AVOID NEW'!$E$67<6.5,N188*(1-'AVOID NEW'!$E$67),N188-6.5),"NA") -> 32.9176 | P188: 37.18 | Q188: =IF(OR('Input - Capacity Factors'!$C$3="Wind"),IF(P188*'AVOID NEW'!$E$67<6.5,P188*(1-'AVOID NEW'!$E$67),P188-6.5),"NA") -> 34.2056 | R188: 32.98 | S188: =IF(OR('Input - Capacity Factors'!$C$3="Wind"),IF(R188*'AVOID NEW'!$E$67<6.5,R188*(1-'AVOID NEW'!$E$67),R188-6.5),"NA") -> 30.3416 | V188: 42.59 | W188: =IF(OR('Input - Capacity Factors'!$C$3="Wind"),IF(V188*'AVOID NEW'!$E$67<6.5,V188*(1-'AVOID NEW'!$E$67),V188-6.5),"NA") -> 39.1828 | X188: 44.26 | Y188: =IF(OR('Input - Capacity Factors'!$C$3="Wind"),IF(X188*'AVOID NEW'!$E$67<6.5,X188*(1-'AVOID NEW'!$E$67),X188-6.5),"NA") -> 40.7192 | Z188: 39.26 | AA188: =IF(OR('Input - Capacity Factors'!$C$3="Wind"),IF(Z188*'AVOID NEW'!$E$67<6.5,Z188*(1-'AVOID NEW'!$E$67),Z188-6.5),"NA") -> 36.1192
B189: 9 | C189: ='AVOID NEW'!AS17 -> 43.15669788 | D189: 44.82669788 | E189: 39.82669788 | G189: 46.61 | H189: =IF(OR('Input - Capacity Factors'!$C$3="Wind"),IF(G189*'AVOID NEW'!$E$67<6.5,G189*(1-'AVOID NEW'!$E$67),G189-6.5),"NA") -> 42.8812 | I189: 48.41 | J189: =IF(OR('Input - Capacity Factors'!$C$3="Wind"),IF(I189*'AVOID NEW'!$E$67<6.5,I189*(1-'AVOID NEW'!$E$67),I189-6.5),"NA") -> 44.5372 | K189: 43.01 | L189: =IF(OR('Input - Capacity Factors'!$C$3="Wind"),IF(K189*'AVOID NEW'!$E$67<6.5,K189*(1-'AVOID NEW'!$E$67),K189-6.5),"NA") -> 39.5692 | N189: 36.25 | O189: =IF(OR('Input - Capacity Factors'!$C$3="Wind"),IF(N189*'AVOID NEW'!$E$67<6.5,N189*(1-'AVOID NEW'!$E$67),N189-6.5),"NA") -> 33.35 | P189: 37.65 | Q189: =IF(OR('Input - Capacity Factors'!$C$3="Wind"),IF(P189*'AVOID NEW'!$E$67<6.5,P189*(1-'AVOID NEW'!$E$67),P189-6.5),"NA") -> 34.638 | R189: 33.45 | S189: =IF(OR('Input - Capacity Factors'!$C$3="Wind"),IF(R189*'AVOID NEW'!$E$67<6.5,R189*(1-'AVOID NEW'!$E$67),R189-6.5),"NA") -> 30.774 | V189: 43.16 | W189: =IF(OR('Input - Capacity Factors'!$C$3="Wind"),IF(V189*'AVOID NEW'!$E$67<6.5,V189*(1-'AVOID NEW'!$E$67),V189-6.5),"NA") -> 39.7072 | X189: 44.83 | Y189: =IF(OR('Input - Capacity Factors'!$C$3="Wind"),IF(X189*'AVOID NEW'!$E$67<6.5,X189*(1-'AVOID NEW'!$E$67),X189-6.5),"NA") -> 41.2436 | Z189: 39.83 | AA189: =IF(OR('Input - Capacity Factors'!$C$3="Wind"),IF(Z189*'AVOID NEW'!$E$67<6.5,Z189*(1-'AVOID NEW'!$E$67),Z189-6.5),"NA") -> 36.6436
B190: 10 | C190: ='AVOID NEW'!AS18 -> 43.68269764 | D190: 45.35269764 | E190: 40.35269764 | G190: 47.18 | H190: =IF(OR('Input - Capacity Factors'!$C$3="Wind"),IF(G190*'AVOID NEW'!$E$67<6.5,G190*(1-'AVOID NEW'!$E$67),G190-6.5),"NA") -> 43.4056 | I190: 48.98 | J190: =IF(OR('Input - Capacity Factors'!$C$3="Wind"),IF(I190*'AVOID NEW'!$E$67<6.5,I190*(1-'AVOID NEW'!$E$67),I190-6.5),"NA") -> 45.0616 | K190: 43.58 | L190: =IF(OR('Input - Capacity Factors'!$C$3="Wind"),IF(K190*'AVOID NEW'!$E$67<6.5,K190*(1-'AVOID NEW'!$E$67),K190-6.5),"NA") -> 40.0936 | N190: 36.69 | O190: =IF(OR('Input - Capacity Factors'!$C$3="Wind"),IF(N190*'AVOID NEW'!$E$67<6.5,N190*(1-'AVOID NEW'!$E$67),N190-6.5),"NA") -> 33.7548 | P190: 38.1 | Q190: =IF(OR('Input - Capacity Factors'!$C$3="Wind"),IF(P190*'AVOID NEW'!$E$67<6.5,P190*(1-'AVOID NEW'!$E$67),P190-6.5),"NA") -> 35.052 | R190: 33.9 | S190: =IF(OR('Input - Capacity Factors'!$C$3="Wind"),IF(R190*'AVOID NEW'!$E$67<6.5,R190*(1-'AVOID NEW'!$E$67),R190-6.5),"NA") -> 31.188 | V190: 43.68 | W190: =IF(OR('Input - Capacity Factors'!$C$3="Wind"),IF(V190*'AVOID NEW'!$E$67<6.5,V190*(1-'AVOID NEW'!$E$67),V190-6.5),"NA") -> 40.1856 | X190: 45.35 | Y190: =IF(OR('Input - Capacity Factors'!$C$3="Wind"),IF(X190*'AVOID NEW'!$E$67<6.5,X190*(1-'AVOID NEW'!$E$67),X190-6.5),"NA") -> 41.722 | Z190: 40.35 | AA190: =IF(OR('Input - Capacity Factors'!$C$3="Wind"),IF(Z190*'AVOID NEW'!$E$67<6.5,Z190*(1-'AVOID NEW'!$E$67),Z190-6.5),"NA") -> 37.122
